Workbook

Sheet Review Video
B4: 1. Fix formatting and new generic macros
B5: 2. Add a button
B6: 3. Clean up Units and Formatting
B7: 4. Investment Account
B8: 5. Addition of Growth | J8: annual | L8: (1+J8)^(1/6)-1
B9: 6. Proof that method works with different time periods
B10: 7. Implications of Risk Premium Method
B12: Themes
B13: Put flag for Pre-COD and Post-COD
B14: Use periods in year variable

Sheet InputC
E2: Project IRR | G2: ='Financial Model'!F24 -> 0.09465945065
E3: Rf + Premium | G3: ='Financial Model'!G60 -> 0.08935219282
I4: Rf Case | J4: Base | K4: Annual | L4: Monthly | M4: Monthly Semi Annual
B5: Timeline
D6: Start Date | E6: Date | F6: 2026-01-01
D7: Construction months | E7: months | F7: 12
D9: Commercial Operation Date | E9: date | F9: =EDATE(F6,F7) -> 2027-01-01
D10: Months in period - construction | E10: months | F10: 12 | K10: 12 | L10: 1 | M10: 1
D11: Months in period - operations | E11: months | F11: 12 | K11: 12 | L11: 1 | M11: 6
D13: Operations Period | E13: years | F13: 35 | I13: 30
D14: Operations End Date | E14: date | F14: =EDATE(F9,F13*12) -> 2062-01-01
B16: Operations
D18: Capex | E18: EUR | F18: 1000000
D19: EBITDA | E19: EUR p.a. | F19: 80000 | I19: 54371.33161
D20: EBITDA Growth | E20: % p.a. | F20: =G35 -> 0.02
B22: Valuation
D23: Risk Free Rate | E23: % p.a. | F23: 0.035
D24: Valuation Discount Rate | E24: % p.a. | F24: 0.06
B28: Constants
D29: Months in a year | F29: 12 | G29: months
D30: One Range Name | F30: 1 | G30: One
B34: Data Tables
F35: Growth | G35: =I35/1000 -> 0.02 | I35: 20
F37: IRR Table
G38: ='Financial Model'!F24 -> 0.09465945065 | H38: 50000 | I38: 70000 | J38: 100000 | K38: 125000 | L38: 150000 | O38: 50000 | P38: 70000 | Q38: 100000 | R38: 125000 | S38: 150000
G39: 15 | N39: 15 | O39: -0.01464746892 | P39: 0.02626548111 | Q39: 0.0766179055 | R39: 0.1130207717 | S39: 0.1463993132
F40: Years | G40: 30 | N40: 30 | O40: 0.04897966683 | P40: 0.07764013112 | Q40: 0.1148477137 | R40: 0.1432383001 | S40: 0.1704049051
G41: 50 | N41: 50 | O41: 0.06510482132 | P41: 0.08858480155 | Q41: 0.1210037529 | R41: 0.1470279515 | S41: 0.1727223217
G42: 100 | N42: 100 | O42: 0.07054633796 | P42: 0.09124985635 | Q42: 0.1219004333 | R42: 0.1473854125 | S42: 0.1728641689
F44: Rf + Rp Table | G44: ='Financial Model'!G60 -> 0.08935219282 | H44: 50000 | I44: 70000 | J44: 100000 | K44: 125000 | L44: 150000 | O44: 50000 | P44: 70000 | Q44: 100000 | R44: 125000 | S44: 150000
G45: 15 | N45: 15 | O45: 0.005733322394 | P45: 0.02710058361 | Q45: 0.05915147543 | R45: 0.08586055194 | S45: 0.1125696285
G46: 30 | N46: 30 | O46: 0.04380842156 | P46: 0.06868075009 | Q46: 0.1059892429 | R46: 0.1370796535 | S46: 0.1681700642
F47: Years | G47: 50 | N47: 50 | O47: 0.06470323947 | P47: 0.0935131609 | Q47: 0.1367280431 | R47: 0.1727404449 | S47: 0.2087528467
G48: 100 | N48: 100 | O48: 0.08997394787 | P48: 0.1264110529 | Q48: 0.1810667104 | R48: 0.2266130917 | S48: 0.272159473

Sheet Financial Model
B2: Timeline | E2: Input Units | F2: Constants | G2: Constants | H2: Sum | I2: Model Units | J2: Initial
C3: Time Period | I3: Period | K3: =_xlfn.SEQUENCE(,1000) -> 1 | L3: 2 | M3: 3 | N3: 4 | O3: 5 | P3: 6 | Q3: 7 | R3: 8 | S3: 9 | T3: 10 | U3: 11 | V3: 12 | W3: 13 | X3: 14 | Y3: 15 | Z3: 16 | AA3: 17 | AB3: 18 | AC3: 19 | AD3: 20 | AE3: 21 | AF3: 22 | AG3: 23 | AH3: 24 | AI3: 25 | AJ3: 26 | AK3: 27 | AL3: 28 | AM3: 29 | AN3: 30 | AO3: 31 | AP3: 32 | AQ3: 33 | AR3: 34 | AS3: 35 | AT3: 36 | AU3: 37 | AV3: 38 | AW3: 39 | AX3: 40 | AY3: 41 | AZ3: 42 | BA3: 43 | BB3: 44 | BC3: 45 | BD3: 46 | BE3: 47 | BF3: 48 | BG3: 49 | BH3: 50 | BI3: 51 | BJ3: 52 | BK3: 53 | BL3: 54 | BM3: 55 | BN3: 56 | BO3: 57 | BP3: 58 | BQ3: 59 | BR3: 60 | BS3: 61 | BT3: 62 | BU3: 63 | BV3: 64 | BW3: 65 | BX3: 66 | BY3: 67 | BZ3: 68 | CA3: 69 | CB3: 70 | CC3: 71 | CD3: 72 | CE3: 73 | CF3: 74 | CG3: 75 | CH3: 76 | CI3: 77 | CJ3: 78 | CK3: 79 | CL3: 80 | CM3: 81 | CN3: 82 | CO3: 83 | CP3: 84 | CQ3: 85 | CR3: 86 | CS3: 87 | CT3: 88 | CU3: 89 | CV3: 90 | CW3: 91 | CX3: 92 | CY3: 93 | CZ3: 94 | DA3: 95 | DB3: 96 | DC3: 97 | DD3: 98 | DE3: 99 | DF3: 100 | DG3: 101 | DH3: 102 | DI3: 103 | DJ3: 104 | DK3: 105 | DL3: 106 | DM3: 107 | DN3: 108 | DO3: 109 | DP3: 110 | DQ3: 111 | DR3: 112 | DS3: 113 | DT3: 114 | DU3: 115 | DV3: 116 | DW3: 117 | DX3: 118 | DY3: 119 | DZ3: 120 | EA3: 121 | EB3: 122 | EC3: 123 | ED3: 124 | EE3: 125 | EF3: 126 | EG3: 127 | EH3: 128 | EI3: 129 | EJ3: 130 | EK3: 131 | EL3: 132 | EM3: 133 | EN3: 134 | EO3: 135 | EP3: 136 | EQ3: 137 | ER3: 138 | ES3: 139 | ET3: 140 | EU3: 141 | EV3: 142 | EW3: 143 | EX3: 144 | EY3: 145 | EZ3: 146 | FA3: 147 | FB3: 148 | FC3: 149 | FD3: 150 | FE3: 151 | FF3: 152 | FG3: 153 | FH3: 154 | FI3: 155 | FJ3: 156 | FK3: 157 | FL3: 158 | FM3: 159 | FN3: 160 | FO3: 161 | FP3: 162 | FQ3: 163 | FR3: 164 | FS3: 165 | FT3: 166 | FU3: 167 | FV3: 168 | FW3: 169 | FX3: 170 | FY3: 171 | FZ3: 172 | GA3: 173 | GB3: 174 | GC3: 175 | GD3: 176 | GE3: 177 | GF3: 178 | GG3: 179 | GH3: 180 | GI3: 181 | GJ3: 182 | GK3: 183 | GL3: 184 | GM3: 185 | GN3: 186 | GO3: 187 | GP3: 188 | GQ3: 189 | GR3: 190 | GS3: 191 | GT3: 192 | GU3: 193 | GV3: 194 | GW3: 195 | GX3: 196 | GY3: 197 | GZ3: 198 | HA3: 199 | HB3: 200 | HC3: 201 | HD3: 202 | HE3: 203 | HF3: 204 | HG3: 205 | HH3: 206 | HI3: 207 | HJ3: 208 | HK3: 209 | HL3: 210 | HM3: 211 | HN3: 212 | HO3: 213 | HP3: 214 | HQ3: 215 | HR3: 216 | HS3: 217 | HT3: 218 | HU3: 219 | HV3: 220 | HW3: 221 | HX3: 222 | HY3: 223 | HZ3: 224 | IA3: 225 | IB3: 226 | IC3: 227 | ID3: 228 | IE3: 229 | IF3: 230 | IG3: 231 | IH3: 232 | II3: 233 | IJ3: 234 | IK3: 235 | IL3: 236 | IM3: 237 | IN3: 238 | IO3: 239 | IP3: 240 | IQ3: 241 | IR3: 242 | IS3: 243 | IT3: 244 | IU3: 245 | IV3: 246 | IW3: 247 | IX3: 248 | IY3: 249 | IZ3: 250 | JA3: 251 | JB3: 252 | JC3: 253 | JD3: 254 | JE3: 255 | JF3: 256 | JG3: 257 | JH3: 258 | JI3: 259 | JJ3: 260 | JK3: 261 | JL3: 262 | JM3: 263 | JN3: 264 | JO3: 265 | JP3: 266 | JQ3: 267 | JR3: 268 | JS3: 269 | JT3: 270 | JU3: 271 | JV3: 272 | JW3: 273 | JX3: 274 | JY3: 275 | JZ3: 276 | KA3: 277 | KB3: 278 | KC3: 279 | KD3: 280 | KE3: 281 | KF3: 282 | KG3: 283 | KH3: 284 | KI3: 285 | KJ3: 286 | KK3: 287 | KL3: 288 | KM3: 289 | KN3: 290 | KO3: 291 | KP3: 292 | KQ3: 293 | KR3: 294 | KS3: 295 | KT3: 296 | KU3: 297 | KV3: 298 | KW3: 299 | KX3: 300 | KY3: 301 | KZ3: 302 | LA3: 303 | LB3: 304 | LC3: 305 | LD3: 306 | LE3: 307 | LF3: 308 | LG3: 309 | LH3: 310 | LI3: 311 | LJ3: 312 | LK3: 313 | LL3: 314 | LM3: 315 | LN3: 316 | LO3: 317 | LP3: 318 | LQ3: 319 | LR3: 320 | LS3: 321 | LT3: 322 | LU3: 323 | LV3: 324 | LW3: 325 | LX3: 326 | LY3: 327 | LZ3: 328 | MA3: 329 | MB3: 330 | MC3: 331 | MD3: 332 | ME3: 333 | MF3: 334 | MG3: 335 | MH3: 336 | MI3: 337 | MJ3: 338 | MK3: 339 | ML3: 340 | MM3: 341 | MN3: 342 | MO3: 343 | MP3: 344 | MQ3: 345 | MR3: 346 | MS3: 347 | MT3: 348 | MU3: 349 | MV3: 350 | MW3: 351 | MX3: 352 | MY3: 353 | MZ3: 354 | NA3: 355 | NB3: 356 | NC3: 357 | ND3: 358 | NE3: 359 | NF3: 360 | NG3: 361 | NH3: 362 | NI3: 363 | NJ3: 364 | NK3: 365 | NL3: 366 | NM3: 367 | NN3: 368 | NO3: 369 | NP3: 370 | NQ3: 371 | NR3: 372 | NS3: 373 | NT3: 374 | NU3: 375 | NV3: 376 | NW3: 377 | NX3: 378 | NY3: 379 | NZ3: 380 | OA3: 381 | OB3: 382 | OC3: 383 | OD3: 384 | OE3: 385 | OF3: 386 | OG3: 387 | OH3: 388 | OI3: 389 | OJ3: 390 | OK3: 391 | OL3: 392 | OM3: 393 | ON3: 394 | OO3: 395 | OP3: 396 | OQ3: 397 | OR3: 398 | OS3: 399 | OT3: 400 | OU3: 401 | OV3: 402 | OW3: 403 | OX3: 404 | OY3: 405 | OZ3: 406 | PA3: 407 | PB3: 408 | PC3: 409 | PD3: 410 | PE3: 411 | PF3: 412 | PG3: 413 | PH3: 414 | PI3: 415 | PJ3: 416 | PK3: 417 | PL3: 418 | PM3: 419 | PN3: 420 | PO3: 421 | PP3: 422 | PQ3: 423 | PR3: 424 | PS3: 425 | PT3: 426 | PU3: 427 | PV3: 428 | PW3: 429 | PX3: 430 | PY3: 431 | PZ3: 432 | QA3: 433 | QB3: 434 | QC3: 435 | QD3: 436 | QE3: 437 | QF3: 438 | QG3: 439 | QH3: 440 | QI3: 441 | QJ3: 442 | QK3: 443 | QL3: 444 | QM3: 445 | QN3: 446 | QO3: 447 | QP3: 448 | QQ3: 449 | QR3: 450 | QS3: 451 | QT3: 452 | QU3: 453 | QV3: 454 | QW3: 455 | QX3: 456 | QY3: 457 | QZ3: 458 | RA3: 459 | RB3: 460 | RC3: 461 | RD3: 462 | RE3: 463 | RF3: 464 | RG3: 465 | RH3: 466 | RI3: 467 | RJ3: 468 | RK3: 469 | RL3: 470 | RM3: 471 | RN3: 472 | RO3: 473 | RP3: 474 | RQ3: 475 | RR3: 476 | RS3: 477 | RT3: 478 | RU3: 479 | RV3: 480 | RW3: 481 | RX3: 482 | RY3: 483 | RZ3: 484 | SA3: 485 | SB3: 486 | SC3: 487 | SD3: 488 | SE3: 489 | SF3: 490 | SG3: 491 | SH3: 492 | SI3: 493 | SJ3: 494 | SK3: 495 | SL3: 496 | SM3: 497 | SN3: 498 | SO3: 499 | SP3: 500 | SQ3: 501 | SR3: 502 | SS3: 503 | ST3: 504 | SU3: 505 | SV3: 506 | SW3: 507 | SX3: 508 | SY3: 509 | SZ3: 510 | TA3: 511 | TB3: 512 | TC3: 513 | TD3: 514 | TE3: 515 | TF3: 516 | TG3: 517 | TH3: 518 | TI3: 519 | TJ3: 520 | TK3: 521 | TL3: 522 | TM3: 523 | TN3: 524 | TO3: 525 | TP3: 526 | TQ3: 527 | TR3: 528 | TS3: 529 | TT3: 530 | TU3: 531 | TV3: 532 | TW3: 533 | TX3: 534 | TY3: 535 | TZ3: 536 | UA3: 537 | UB3: 538 | UC3: 539 | UD3: 540 | UE3: 541 | UF3: 542 | UG3: 543 | UH3: 544 | UI3: 545 | UJ3: 546 | UK3: 547 | UL3: 548 | UM3: 549 | UN3: 550 | UO3: 551 | UP3: 552 | UQ3: 553 | UR3: 554 | US3: 555 | UT3: 556 | UU3: 557 | UV3: 558 | UW3: 559 | UX3: 560 | UY3: 561 | UZ3: 562 | VA3: 563 | VB3: 564 | VC3: 565 | VD3: 566 | VE3: 567 | VF3: 568 | VG3: 569 | VH3: 570 | VI3: 571 | VJ3: 572 | VK3: 573 | VL3: 574 | VM3: 575 | VN3: 576 | VO3: 577 | VP3: 578 | VQ3: 579 | VR3: 580 | VS3: 581 | VT3: 582 | VU3: 583 | VV3: 584 | VW3: 585 | VX3: 586 | VY3: 587 | VZ3: 588 | WA3: 589 | WB3: 590 | WC3: 591 | WD3: 592 | WE3: 593 | WF3: 594 | WG3: 595 | WH3: 596 | WI3: 597 | WJ3: 598 | WK3: 599 | WL3: 600 | WM3: 601 | WN3: 602 | WO3: 603 | WP3: 604 | WQ3: 605 | WR3: 606 | WS3: 607 | WT3: 608 | WU3: 609 | WV3: 610 | WW3: 611 | WX3: 612 | WY3: 613 | WZ3: 614 | XA3: 615 | XB3: 616 | XC3: 617 | XD3: 618 | XE3: 619 | XF3: 620 | XG3: 621 | XH3: 622 | XI3: 623 | XJ3: 624 | XK3: 625 | XL3: 626 | XM3: 627 | XN3: 628 | XO3: 629 | XP3: 630 | XQ3: 631 | XR3: 632 | XS3: 633 | XT3: 634 | XU3: 635 | XV3: 636 | XW3: 637 | XX3: 638 | XY3: 639 | XZ3: 640 | YA3: 641 | YB3: 642 | YC3: 643 | YD3: 644 | YE3: 645 | YF3: 646 | YG3: 647 | YH3: 648 | YI3: 649 | YJ3: 650 | YK3: 651 | YL3: 652 | YM3: 653 | YN3: 654 | YO3: 655 | YP3: 656 | YQ3: 657 | YR3: 658 | YS3: 659 | YT3: 660 | YU3: 661 | YV3: 662 | YW3: 663 | YX3: 664 | YY3: 665 | YZ3: 666 | ZA3: 667 | ZB3: 668 | ZC3: 669 | ZD3: 670 | ZE3: 671 | ZF3: 672 | ZG3: 673 | ZH3: 674 | ZI3: 675 | ZJ3: 676 | ZK3: 677 | ZL3: 678 | ZM3: 679 | ZN3: 680 | ZO3: 681 | ZP3: 682 | ZQ3: 683 | ZR3: 684 | ZS3: 685 | ZT3: 686 | ZU3: 687 | ZV3: 688 | ZW3: 689 | ZX3: 690 | ZY3: 691 | ZZ3: 692 | AAA3: 693 | AAB3: 694 | AAC3: 695 | AAD3: 696 | AAE3: 697 | AAF3: 698 | AAG3: 699 | AAH3: 700 | AAI3: 701 | AAJ3: 702 | AAK3: 703 | AAL3: 704 | AAM3: 705 | AAN3: 706 | AAO3: 707 | AAP3: 708 | AAQ3: 709 | AAR3: 710 | AAS3: 711 | AAT3: 712 | AAU3: 713 | AAV3: 714 | AAW3: 715 | AAX3: 716 | AAY3: 717 | AAZ3: 718 | ABA3: 719 | ABB3: 720 | ABC3: 721 | ABD3: 722 | ABE3: 723 | ABF3: 724 | ABG3: 725 | ABH3: 726 | ABI3: 727 | ABJ3: 728 | ABK3: 729 | ABL3: 730 | ABM3: 731 | ABN3: 732 | ABO3: 733 | ABP3: 734 | ABQ3: 735 | ABR3: 736 | ABS3: 737 | ABT3: 738 | ABU3: 739 | ABV3: 740 | ABW3: 741 | ABX3: 742 | ABY3: 743 | ABZ3: 744 | ACA3: 745 | ACB3: 746 | ACC3: 747 | ACD3: 748 | ACE3: 749 | ACF3: 750 | ACG3: 751 | ACH3: 752 | ACI3: 753 | ACJ3: 754 | ACK3: 755 | ACL3: 756 | ACM3: 757 | ACN3: 758 | ACO3: 759 | ACP3: 760 | ACQ3: 761 | ACR3: 762 | ACS3: 763 | ACT3: 764 | ACU3: 765 | ACV3: 766 | ACW3: 767 | ACX3: 768 | ACY3: 769 | ACZ3: 770 | ADA3: 771 | ADB3: 772 | ADC3: 773 | ADD3: 774 | ADE3: 775 | ADF3: 776 | ADG3: 777 | ADH3: 778 | ADI3: 779 | ADJ3: 780 | ADK3: 781 | ADL3: 782 | ADM3: 783 | ADN3: 784 | ADO3: 785 | ADP3: 786 | ADQ3: 787 | ADR3: 788 | ADS3: 789 | ADT3: 790 | ADU3: 791 | ADV3: 792 | ADW3: 793 | ADX3: 794 | ADY3: 795 | ADZ3: 796 | AEA3: 797 | AEB3: 798 | AEC3: 799 | AED3: 800 | AEE3: 801 | AEF3: 802 | AEG3: 803 | AEH3: 804 | AEI3: 805 | AEJ3: 806 | AEK3: 807 | AEL3: 808 | AEM3: 809 | AEN3: 810 | AEO3: 811 | AEP3: 812 | AEQ3: 813 | AER3: 814 | AES3: 815 | AET3: 816 | AEU3: 817 | AEV3: 818 | AEW3: 819 | AEX3: 820 | AEY3: 821 | AEZ3: 822 | AFA3: 823 | AFB3: 824 | AFC3: 825 | AFD3: 826 | AFE3: 827 | AFF3: 828 | AFG3: 829 | AFH3: 830 | AFI3: 831 | AFJ3: 832 | AFK3: 833 | AFL3: 834 | AFM3: 835 | AFN3: 836 | AFO3: 837 | AFP3: 838 | AFQ3: 839 | AFR3: 840 | AFS3: 841 | AFT3: 842 | AFU3: 843 | AFV3: 844 | AFW3: 845 | AFX3: 846 | AFY3: 847 | AFZ3: 848 | AGA3: 849 | AGB3: 850 | AGC3: 851 | AGD3: 852 | AGE3: 853 | AGF3: 854 | AGG3: 855 | AGH3: 856 | AGI3: 857 | AGJ3: 858 | AGK3: 859 | AGL3: 860 | AGM3: 861 | AGN3: 862 | AGO3: 863 | AGP3: 864 | AGQ3: 865 | AGR3: 866 | AGS3: 867 | AGT3: 868 | AGU3: 869 | AGV3: 870 | AGW3: 871 | AGX3: 872 | AGY3: 873 | AGZ3: 874 | AHA3: 875 | AHB3: 876 | AHC3: 877 | AHD3: 878 | AHE3: 879 | AHF3: 880 | AHG3: 881 | AHH3: 882 | AHI3: 883 | AHJ3: 884 | AHK3: 885 | AHL3: 886 | AHM3: 887 | AHN3: 888 | AHO3: 889 | AHP3: 890 | AHQ3: 891 | AHR3: 892 | AHS3: 893 | AHT3: 894 | AHU3: 895 | AHV3: 896 | AHW3: 897 | AHX3: 898 | AHY3: 899 | AHZ3: 900 | AIA3: 901 | AIB3: 902 | AIC3: 903 | AID3: 904 | AIE3: 905 | AIF3: 906 | AIG3: 907 | AIH3: 908 | AII3: 909 | AIJ3: 910 | AIK3: 911 | AIL3: 912 | AIM3: 913 | AIN3: 914 | AIO3: 915 | AIP3: 916 | AIQ3: 917 | AIR3: 918 | AIS3: 919 | AIT3: 920 | AIU3: 921 | AIV3: 922 | AIW3: 923 | AIX3: 924 | AIY3: 925 | AIZ3: 926 | AJA3: 927 | AJB3: 928 | AJC3: 929 | AJD3: 930 | AJE3: 931 | AJF3: 932 | AJG3: 933 | AJH3: 934 | AJI3: 935 | AJJ3: 936 | AJK3: 937 | AJL3: 938 | AJM3: 939 | AJN3: 940 | AJO3: 941 | AJP3: 942 | AJQ3: 943 | AJR3: 944 | AJS3: 945 | AJT3: 946 | AJU3: 947 | AJV3: 948 | AJW3: 949 | AJX3: 950 | AJY3: 951 | AJZ3: 952 | AKA3: 953 | AKB3: 954 | AKC3: 955 | AKD3: 956 | AKE3: 957 | AKF3: 958 | AKG3: 959 | AKH3: 960 | AKI3: 961 | AKJ3: 962 | AKK3: 963 | AKL3: 964 | AKM3: 965 | AKN3: 966 | AKO3: 967 | AKP3: 968 | AKQ3: 969 | AKR3: 970 | AKS3: 971 | AKT3: 972 | AKU3: 973 | AKV3: 974 | AKW3: 975 | AKX3: 976 | AKY3: 977 | AKZ3: 978 | ALA3: 979 | ALB3: 980 | ALC3: 981 | ALD3: 982 | ALE3: 983 | ALF3: 984 | ALG3: 985 | ALH3: 986 | ALI3: 987 | ALJ3: 988 | ALK3: 989 | ALL3: 990 | ALM3: 991 | ALN3: 992 | ALO3: 993 | ALP3: 994 | ALQ3: 995 | ALR3: 996 | ALS3: 997 | ALT3: 998 | ALU3: 999 | ALV3: 1000
C4: Construction Periods | E4: Months | F4: =InputC!F7 -> 12
C5: Construction in Periods | E5: Periods | F5: =F4/F6 -> 1 | H5: =SUM(K5:XFD5) -> 1 | I5: Flag | K5: =(K3<=$F$5)*1 -> 1 | L5: =(L3<=$F$5)*1 -> 0 | M5: 0 | N5: 0 | O5: 0 | P5: 0 | Q5: 0 | R5: 0 | S5: 0 | T5: 0 | U5: 0 | V5: 0 | W5: 0 | X5: 0 | Y5: 0 | Z5: 0 | AA5: 0 | AB5: 0 | AC5: 0 | AD5: 0 | AE5: 0 | AF5: 0 | AG5: 0 | AH5: 0 | AI5: 0 | AJ5: 0 | AK5: 0 | AL5: 0 | AM5: 0 | AN5: 0 | AO5: 0 | AP5: 0 | AQ5: 0 | AR5: 0 | AS5: 0 | AT5: 0 | AU5: 0 | AV5: 0 | AW5: 0 | AX5: 0 | AY5: 0 | AZ5: 0 | BA5: 0 | BB5: 0 | BC5: 0 | BD5: 0 | BE5: 0 | BF5: 0 | BG5: 0 | BH5: 0 | BI5: 0 | BJ5: 0 | BK5: 0 | BL5: 0 | BM5: 0 | BN5: 0 | BO5: 0 | BP5: 0 | BQ5: 0 | BR5: 0 | BS5: 0 | BT5: 0 | BU5: 0 | BV5: 0 | BW5: 0 | BX5: =(BX3<=$F$5)*1 -> 0 | BY5: 0 | BZ5: 0 | CA5: 0 | CB5: 0 | CC5: 0 | CD5: 0 | CE5: 0 | CF5: 0 | CG5: 0 | CH5: 0 | CI5: 0 | CJ5: 0 | CK5: 0 | CL5: 0 | CM5: 0 | CN5: 0 | CO5: 0 | CP5: 0 | CQ5: 0 | CR5: 0 | CS5: 0 | CT5: 0 | CU5: 0 | CV5: 0 | CW5: 0 | CX5: 0 | CY5: 0 | CZ5: 0 | DA5: 0 | DB5: 0 | DC5: 0 | DD5: 0 | DE5: 0 | DF5: 0 | DG5: 0 | DH5: 0 | DI5: 0 | DJ5: 0 | DK5: 0 | DL5: 0 | DM5: 0 | DN5: 0 | DO5: 0 | DP5: 0 | DQ5: 0 | DR5: 0 | DS5: 0 | DT5: 0 | DU5: 0 | DV5: 0 | DW5: 0 | DX5: 0 | DY5: 0 | DZ5: 0 | EA5: 0 | EB5: 0 | EC5: 0 | ED5: 0 | EE5: 0 | EF5: 0 | EG5: 0 | EH5: 0 | EI5: 0 | EJ5: =(EJ3<=$F$5)*1 -> 0 | EK5: 0 | EL5: 0 | EM5: 0 | EN5: 0 | EO5: 0 | EP5: 0 | EQ5: 0 | ER5: 0 | ES5: 0 | ET5: 0 | EU5: 0 | EV5: 0 | EW5: 0 | EX5: 0 | EY5: 0 | EZ5: 0 | FA5: 0 | FB5: 0 | FC5: 0 | FD5: 0 | FE5: 0 | FF5: 0 | FG5: 0 | FH5: 0 | FI5: 0 | FJ5: 0 | FK5: 0 | FL5: 0 | FM5: 0 | FN5: 0 | FO5: 0 | FP5: 0 | FQ5: 0 | FR5: 0 | FS5: 0 | FT5: 0 | FU5: 0 | FV5: 0 | FW5: 0 | FX5: 0 | FY5: 0 | FZ5: 0 | GA5: 0 | GB5: 0 | GC5: 0 | GD5: 0 | GE5: 0 | GF5: 0 | GG5: 0 | GH5: 0 | GI5: 0 | GJ5: 0 | GK5: 0 | GL5: 0 | GM5: 0 | GN5: 0 | GO5: 0 | GP5: 0 | GQ5: 0 | GR5: 0 | GS5: 0 | GT5: 0 | GU5: 0 | GV5: =(GV3<=$F$5)*1 -> 0 | GW5: 0 | GX5: 0 | GY5: 0 | GZ5: 0 | HA5: 0 | HB5: 0 | HC5: 0 | HD5: 0 | HE5: 0 | HF5: 0 | HG5: 0 | HH5: 0 | HI5: 0 | HJ5: 0 | HK5: 0 | HL5: 0 | HM5: 0 | HN5: 0 | HO5: 0 | HP5: 0 | HQ5: 0 | HR5: 0 | HS5: 0 | HT5: 0 | HU5: 0 | HV5: 0 | HW5: 0 | HX5: 0 | HY5: 0 | HZ5: 0 | IA5: 0 | IB5: 0 | IC5: 0 | ID5: 0 | IE5: 0 | IF5: 0 | IG5: 0 | IH5: 0 | II5: 0 | IJ5: 0 | IK5: 0 | IL5: 0 | IM5: 0 | IN5: 0 | IO5: 0 | IP5: 0 | IQ5: 0 | IR5: 0 | IS5: 0 | IT5: 0 | IU5: 0 | IV5: 0 | IW5: 0 | IX5: 0 | IY5: 0 | IZ5: 0 | JA5: 0 | JB5: 0 | JC5: 0 | JD5: 0 | JE5: 0 | JF5: 0 | JG5: 0 | JH5: =(JH3<=$F$5)*1 -> 0 | JI5: 0 | JJ5: 0 | JK5: 0 | JL5: 0 | JM5: 0 | JN5: 0 | JO5: 0 | JP5: 0 | JQ5: 0 | JR5: 0 | JS5: 0 | JT5: 0 | JU5: 0 | JV5: 0 | JW5: 0 | JX5: 0 | JY5: 0 | JZ5: 0 | KA5: 0 | KB5: 0 | KC5: 0 | KD5: 0 | KE5: 0 | KF5: 0 | KG5: 0 | KH5: 0 | KI5: 0 | KJ5: 0 | KK5: 0 | KL5: 0 | KM5: 0 | KN5: 0 | KO5: 0 | KP5: 0 | KQ5: 0 | KR5: 0 | KS5: 0 | KT5: 0 | KU5: 0 | KV5: 0 | KW5: 0 | KX5: 0 | KY5: 0 | KZ5: 0 | LA5: 0 | LB5: 0 | LC5: 0 | LD5: 0 | LE5: 0 | LF5: 0 | LG5: 0 | LH5: 0 | LI5: 0 | LJ5: 0 | LK5: 0 | LL5: 0 | LM5: 0 | LN5: 0 | LO5: 0 | LP5: 0 | LQ5: 0 | LR5: 0 | LS5: 0 | LT5: =(LT3<=$F$5)*1 -> 0 | LU5: 0 | LV5: 0 | LW5: 0 | LX5: 0 | LY5: 0 | LZ5: 0 | MA5: 0 | MB5: 0 | MC5: 0 | MD5: 0 | ME5: 0 | MF5: 0 | MG5: 0 | MH5: 0 | MI5: 0 | MJ5: 0 | MK5: 0 | ML5: 0 | MM5: 0 | MN5: 0 | MO5: 0 | MP5: 0 | MQ5: 0 | MR5: 0 | MS5: 0 | MT5: 0 | MU5: 0 | MV5: 0 | MW5: 0 | MX5: 0 | MY5: 0 | MZ5: 0 | NA5: 0 | NB5: 0 | NC5: 0 | ND5: 0 | NE5: 0 | NF5: 0 | NG5: 0 | NH5: 0 | NI5: 0 | NJ5: 0 | NK5: 0 | NL5: 0 | NM5: 0 | NN5: 0 | NO5: 0 | NP5: 0 | NQ5: 0 | NR5: 0 | NS5: 0 | NT5: 0 | NU5: 0 | NV5: 0 | NW5: 0 | NX5: 0 | NY5: 0 | NZ5: 0 | OA5: 0 | OB5: 0 | OC5: 0 | OD5: 0 | OE5: 0 | OF5: =(OF3<=$F$5)*1 -> 0 | OG5: 0 | OH5: 0 | OI5: 0 | OJ5: 0 | OK5: 0 | OL5: 0 | OM5: 0 | ON5: 0 | OO5: 0 | OP5: 0 | OQ5: 0 | OR5: 0 | OS5: 0 | OT5: 0 | OU5: 0 | OV5: 0 | OW5: 0 | OX5: 0 | OY5: 0 | OZ5: 0 | PA5: 0 | PB5: 0 | PC5: 0 | PD5: 0 | PE5: 0 | PF5: 0 | PG5: 0 | PH5: 0 | PI5: 0 | PJ5: 0 | PK5: 0 | PL5: 0 | PM5: 0 | PN5: 0 | PO5: 0 | PP5: 0 | PQ5: 0 | PR5: 0 | PS5: 0 | PT5: 0 | PU5: 0 | PV5: 0 | PW5: 0 | PX5: 0 | PY5: 0 | PZ5: 0 | QA5: 0 | QB5: 0 | QC5: 0 | QD5: 0 | QE5: 0 | QF5: 0 | QG5: 0 | QH5: 0 | QI5: 0 | QJ5: 0 | QK5: 0 | QL5: 0 | QM5: 0 | QN5: 0 | QO5: 0 | QP5: 0 | QQ5: 0 | QR5: =(QR3<=$F$5)*1 -> 0 | QS5: 0 | QT5: 0 | QU5: 0 | QV5: 0 | QW5: 0 | QX5: 0 | QY5: 0 | QZ5: 0 | RA5: 0 | RB5: 0 | RC5: 0 | RD5: 0 | RE5: 0 | RF5: 0 | RG5: 0 | RH5: 0 | RI5: 0 | RJ5: 0 | RK5: 0 | RL5: 0 | RM5: 0 | RN5: 0 | RO5: 0 | RP5: 0 | RQ5: 0 | RR5: 0 | RS5: 0 | RT5: 0 | RU5: 0 | RV5: 0 | RW5: 0 | RX5: 0 | RY5: 0 | RZ5: 0 | SA5: 0 | SB5: 0 | SC5: 0 | SD5: 0 | SE5: 0 | SF5: 0 | SG5: 0 | SH5: 0 | SI5: 0 | SJ5: 0 | SK5: 0 | SL5: 0 | SM5: 0 | SN5: 0 | SO5: 0 | SP5: 0 | SQ5: 0 | SR5: 0 | SS5: 0 | ST5: 0 | SU5: 0 | SV5: 0 | SW5: 0 | SX5: 0 | SY5: 0 | SZ5: 0 | TA5: 0 | TB5: 0 | TC5: 0 | TD5: =(TD3<=$F$5)*1 -> 0 | TE5: 0 | TF5: 0 | TG5: 0 | TH5: 0 | TI5: 0 | TJ5: 0 | TK5: 0 | TL5: 0 | TM5: 0 | TN5: 0 | TO5: 0 | TP5: 0 | TQ5: 0 | TR5: 0 | TS5: 0 | TT5: 0 | TU5: 0 | TV5: 0 | TW5: 0 | TX5: 0 | TY5: 0 | TZ5: 0 | UA5: 0 | UB5: 0 | UC5: 0 | UD5: 0 | UE5: 0 | UF5: 0 | UG5: 0 | UH5: 0 | UI5: 0 | UJ5: 0 | UK5: 0 | UL5: 0 | UM5: 0 | UN5: 0 | UO5: 0 | UP5: 0 | UQ5: 0 | UR5: 0 | US5: 0 | UT5: 0 | UU5: 0 | UV5: 0 | UW5: 0 | UX5: 0 | UY5: 0 | UZ5: 0 | VA5: 0 | VB5: 0 | VC5: 0 | VD5: 0 | VE5: 0 | VF5: 0 | VG5: 0 | VH5: 0 | VI5: 0 | VJ5: 0 | VK5: 0 | VL5: 0 | VM5: 0 | VN5: 0 | VO5: 0 | VP5: =(VP3<=$F$5)*1 -> 0 | VQ5: 0 | VR5: 0 | VS5: 0 | VT5: 0 | VU5: 0 | VV5: 0 | VW5: 0 | VX5: 0 | VY5: 0 | VZ5: 0 | WA5: 0 | WB5: 0 | WC5: 0 | WD5: 0 | WE5: 0 | WF5: 0 | WG5: 0 | WH5: 0 | WI5: 0 | WJ5: 0 | WK5: 0 | WL5: 0 | WM5: 0 | WN5: 0 | WO5: 0 | WP5: 0 | WQ5: 0 | WR5: 0 | WS5: 0 | WT5: 0 | WU5: 0 | WV5: 0 | WW5: 0 | WX5: 0 | WY5: 0 | WZ5: 0 | XA5: 0 | XB5: 0 | XC5: 0 | XD5: 0 | XE5: 0 | XF5: 0 | XG5: 0 | XH5: 0 | XI5: 0 | XJ5: 0 | XK5: 0 | XL5: 0 | XM5: 0 | XN5: 0 | XO5: 0 | XP5: 0 | XQ5: 0 | XR5: 0 | XS5: 0 | XT5: 0 | XU5: 0 | XV5: 0 | XW5: 0 | XX5: 0 | XY5: 0 | XZ5: 0 | YA5: 0 | YB5: =(YB3<=$F$5)*1 -> 0 | YC5: 0 | YD5: 0 | YE5: 0 | YF5: 0 | YG5: 0 | YH5: 0 | YI5: 0 | YJ5: 0 | YK5: 0 | YL5: 0 | YM5: 0 | YN5: 0 | YO5: 0 | YP5: 0 | YQ5: 0 | YR5: 0 | YS5: 0 | YT5: 0 | YU5: 0 | YV5: 0 | YW5: 0 | YX5: 0 | YY5: 0 | YZ5: 0 | ZA5: 0 | ZB5: 0 | ZC5: 0 | ZD5: 0 | ZE5: 0 | ZF5: 0 | ZG5: 0 | ZH5: 0 | ZI5: 0 | ZJ5: 0 | ZK5: 0 | ZL5: 0 | ZM5: 0 | ZN5: 0 | ZO5: 0 | ZP5: 0 | ZQ5: 0 | ZR5: 0 | ZS5: 0 | ZT5: 0 | ZU5: 0 | ZV5: 0 | ZW5: 0 | ZX5: 0 | ZY5: 0 | ZZ5: 0 | AAA5: 0 | AAB5: 0 | AAC5: 0 | AAD5: 0 | AAE5: 0 | AAF5: 0 | AAG5: 0 | AAH5: 0 | AAI5: 0 | AAJ5: 0 | AAK5: 0 | AAL5: 0 | AAM5: 0 | AAN5: =(AAN3<=$F$5)*1 -> 0 | AAO5: 0 | AAP5: 0 | AAQ5: 0 | AAR5: 0 | AAS5: 0 | AAT5: 0 | AAU5: 0 | AAV5: 0 | AAW5: 0 | AAX5: 0 | AAY5: 0 | AAZ5: 0 | ABA5: 0 | ABB5: 0 | ABC5: 0 | ABD5: 0 | ABE5: 0 | ABF5: 0 | ABG5: 0 | ABH5: 0 | ABI5: 0 | ABJ5: 0 | ABK5: 0 | ABL5: 0 | ABM5: 0 | ABN5: 0 | ABO5: 0 | ABP5: 0 | ABQ5: 0 | ABR5: 0 | ABS5: 0 | ABT5: 0 | ABU5: 0 | ABV5: 0 | ABW5: 0 | ABX5: 0 | ABY5: 0 | ABZ5: 0 | ACA5: 0 | ACB5: 0 | ACC5: 0 | ACD5: 0 | ACE5: 0 | ACF5: 0 | ACG5: 0 | ACH5: 0 | ACI5: 0 | ACJ5: 0 | ACK5: 0 | ACL5: 0 | ACM5: 0 | ACN5: 0 | ACO5: 0 | ACP5: 0 | ACQ5: 0 | ACR5: 0 | ACS5: 0 | ACT5: 0 | ACU5: 0 | ACV5: 0 | ACW5: 0 | ACX5: 0 | ACY5: 0 | ACZ5: =(ACZ3<=$F$5)*1 -> 0 | ADA5: 0 | ADB5: 0 | ADC5: 0 | ADD5: 0 | ADE5: 0 | ADF5: 0 | ADG5: 0 | ADH5: 0 | ADI5: 0 | ADJ5: 0 | ADK5: 0 | ADL5: 0 | ADM5: 0 | ADN5: 0 | ADO5: 0 | ADP5: 0 | ADQ5: 0 | ADR5: 0 | ADS5: 0 | ADT5: 0 | ADU5: 0 | ADV5: 0 | ADW5: 0 | ADX5: 0 | ADY5: 0 | ADZ5: 0 | AEA5: 0 | AEB5: 0 | AEC5: 0 | AED5: 0 | AEE5: 0 | AEF5: 0 | AEG5: 0 | AEH5: 0 | AEI5: 0 | AEJ5: 0 | AEK5: 0 | AEL5: 0 | AEM5: 0 | AEN5: 0 | AEO5: 0 | AEP5: 0 | AEQ5: 0 | AER5: 0 | AES5: 0 | AET5: 0 | AEU5: 0 | AEV5: 0 | AEW5: 0 | AEX5: 0 | AEY5: 0 | AEZ5: 0 | AFA5: 0 | AFB5: 0 | AFC5: 0 | AFD5: 0 | AFE5: 0 | AFF5: 0 | AFG5: 0 | AFH5: 0 | AFI5: 0 | AFJ5: 0 | AFK5: 0 | AFL5: =(AFL3<=$F$5)*1 -> 0 | AFM5: 0 | AFN5: 0 | AFO5: 0 | AFP5: 0 | AFQ5: 0 | AFR5: 0 | AFS5: 0 | AFT5: 0 | AFU5: 0 | AFV5: 0 | AFW5: 0 | AFX5: 0 | AFY5: 0 | AFZ5: 0 | AGA5: 0 | AGB5: 0 | AGC5: 0 | AGD5: 0 | AGE5: 0 | AGF5: 0 | AGG5: 0 | AGH5: 0 | AGI5: 0 | AGJ5: 0 | AGK5: 0 | AGL5: 0 | AGM5: 0 | AGN5: 0 | AGO5: 0 | AGP5: 0 | AGQ5: 0 | AGR5: 0 | AGS5: 0 | AGT5: 0 | AGU5: 0 | AGV5: 0 | AGW5: 0 | AGX5: 0 | AGY5: 0 | AGZ5: 0 | AHA5: 0 | AHB5: 0 | AHC5: 0 | AHD5: 0 | AHE5: 0 | AHF5: 0 | AHG5: 0 | AHH5: 0 | AHI5: 0 | AHJ5: 0 | AHK5: 0 | AHL5: 0 | AHM5: 0 | AHN5: 0 | AHO5: 0 | AHP5: 0 | AHQ5: 0 | AHR5: 0 | AHS5: 0 | AHT5: 0 | AHU5: 0 | AHV5: 0 | AHW5: 0 | AHX5: =(AHX3<=$F$5)*1 -> 0 | AHY5: 0 | AHZ5: 0 | AIA5: 0 | AIB5: 0 | AIC5: 0 | AID5: 0 | AIE5: 0 | AIF5: 0 | AIG5: 0 | AIH5: 0 | AII5: 0 | AIJ5: 0 | AIK5: 0 | AIL5: 0 | AIM5: 0 | AIN5: 0 | AIO5: 0 | AIP5: 0 | AIQ5: 0 | AIR5: 0 | AIS5: 0 | AIT5: 0 | AIU5: 0 | AIV5: 0 | AIW5: 0 | AIX5: 0 | AIY5: 0 | AIZ5: 0 | AJA5: 0 | AJB5: 0 | AJC5: 0 | AJD5: 0 | AJE5: 0 | AJF5: 0 | AJG5: 0 | AJH5: 0 | AJI5: 0 | AJJ5: 0 | AJK5: 0 | AJL5: 0 | AJM5: 0 | AJN5: 0 | AJO5: 0 | AJP5: 0 | AJQ5: 0 | AJR5: 0 | AJS5: 0 | AJT5: 0 | AJU5: 0 | AJV5: 0 | AJW5: 0 | AJX5: 0 | AJY5: 0 | AJZ5: 0 | AKA5: 0 | AKB5: 0 | AKC5: 0 | AKD5: 0 | AKE5: 0 | AKF5: 0 | AKG5: 0 | AKH5: 0 | AKI5: 0 | AKJ5: =(AKJ3<=$F$5)*1 -> 0 | AKK5: 0 | AKL5: 0 | AKM5: 0 | AKN5: 0 | AKO5: 0 | AKP5: 0 | AKQ5: 0 | AKR5: 0 | AKS5: 0 | AKT5: 0 | AKU5: 0 | AKV5: 0 | AKW5: 0 | AKX5: 0 | AKY5: 0 | AKZ5: 0 | ALA5: 0 | ALB5: 0 | ALC5: 0 | ALD5: 0 | ALE5: 0 | ALF5: 0 | ALG5: 0 | ALH5: 0 | ALI5: 0 | ALJ5: 0 | ALK5: 0 | ALL5: 0 | ALM5: 0 | ALN5: 0 | ALO5: 0 | ALP5: 0 | ALQ5: 0 | ALR5: 0 | ALS5: 0 | ALT5: 0 | ALU5: 0 | ALV5: 0
C6: Months in period | E6: Months/Per | F6: =InputC!F10 -> 12 | G6: =InputC!F11 -> 12 | I6: Months/Per | K6: =IF(K5,$F$6,$G$6) -> 12 | L6: 12 | M6: 12 | N6: 12 | O6: 12 | P6: 12 | Q6: 12 | R6: 12 | S6: 12 | T6: 12 | U6: 12 | V6: 12 | W6: 12 | X6: 12 | Y6: 12 | Z6: 12 | AA6: 12 | AB6: 12 | AC6: 12 | AD6: 12 | AE6: 12 | AF6: 12 | AG6: 12 | AH6: 12 | AI6: 12 | AJ6: 12 | AK6: 12 | AL6: 12 | AM6: 12 | AN6: 12 | AO6: 12 | AP6: 12 | AQ6: 12 | AR6: 12 | AS6: 12 | AT6: 12 | AU6: 12 | AV6: 12 | AW6: 12 | AX6: 12 | AY6: 12 | AZ6: 12 | BA6: 12 | BB6: 12 | BC6: 12 | BD6: 12 | BE6: 12 | BF6: 12 | BG6: 12 | BH6: 12 | BI6: 12 | BJ6: 12 | BK6: 12 | BL6: 12 | BM6: 12 | BN6: 12 | BO6: 12 | BP6: 12 | BQ6: 12 | BR6: 12 | BS6: 12 | BT6: 12 | BU6: 12 | BV6: 12 | BW6: =IF(BW5,$F$6,$G$6) -> 12 | BX6: 12 | BY6: 12 | BZ6: 12 | CA6: 12 | CB6: 12 | CC6: 12 | CD6: 12 | CE6: 12 | CF6: 12 | CG6: 12 | CH6: 12 | CI6: 12 | CJ6: 12 | CK6: 12 | CL6: 12 | CM6: 12 | CN6: 12 | CO6: 12 | CP6: 12 | CQ6: 12 | CR6: 12 | CS6: 12 | CT6: 12 | CU6: 12 | CV6: 12 | CW6: 12 | CX6: 12 | CY6: 12 | CZ6: 12 | DA6: 12 | DB6: 12 | DC6: 12 | DD6: 12 | DE6: 12 | DF6: 12 | DG6: 12 | DH6: 12 | DI6: 12 | DJ6: 12 | DK6: 12 | DL6: 12 | DM6: 12 | DN6: 12 | DO6: 12 | DP6: 12 | DQ6: 12 | DR6: 12 | DS6: 12 | DT6: 12 | DU6: 12 | DV6: 12 | DW6: 12 | DX6: 12 | DY6: 12 | DZ6: 12 | EA6: 12 | EB6: 12 | EC6: 12 | ED6: 12 | EE6: 12 | EF6: 12 | EG6: 12 | EH6: 12 | EI6: =IF(EI5,$F$6,$G$6) -> 12 | EJ6: 12 | EK6: 12 | EL6: 12 | EM6: 12 | EN6: 12 | EO6: 12 | EP6: 12 | EQ6: 12 | ER6: 12 | ES6: 12 | ET6: 12 | EU6: 12 | EV6: 12 | EW6: 12 | EX6: 12 | EY6: 12 | EZ6: 12 | FA6: 12 | FB6: 12 | FC6: 12 | FD6: 12 | FE6: 12 | FF6: 12 | FG6: 12 | FH6: 12 | FI6: 12 | FJ6: 12 | FK6: 12 | FL6: 12 | FM6: 12 | FN6: 12 | FO6: 12 | FP6: 12 | FQ6: 12 | FR6: 12 | FS6: 12 | FT6: 12 | FU6: 12 | FV6: 12 | FW6: 12 | FX6: 12 | FY6: 12 | FZ6: 12 | GA6: 12 | GB6: 12 | GC6: 12 | GD6: 12 | GE6: 12 | GF6: 12 | GG6: 12 | GH6: 12 | GI6: 12 | GJ6: 12 | GK6: 12 | GL6: 12 | GM6: 12 | GN6: 12 | GO6: 12 | GP6: 12 | GQ6: 12 | GR6: 12 | GS6: 12 | GT6: 12 | GU6: =IF(GU5,$F$6,$G$6) -> 12 | GV6: 12 | GW6: 12 | GX6: 12 | GY6: 12 | GZ6: 12 | HA6: 12 | HB6: 12 | HC6: 12 | HD6: 12 | HE6: 12 | HF6: 12 | HG6: 12 | HH6: 12 | HI6: 12 | HJ6: 12 | HK6: 12 | HL6: 12 | HM6: 12 | HN6: 12 | HO6: 12 | HP6: 12 | HQ6: 12 | HR6: 12 | HS6: 12 | HT6: 12 | HU6: 12 | HV6: 12 | HW6: 12 | HX6: 12 | HY6: 12 | HZ6: 12 | IA6: 12 | IB6: 12 | IC6: 12 | ID6: 12 | IE6: 12 | IF6: 12 | IG6: 12 | IH6: 12 | II6: 12 | IJ6: 12 | IK6: 12 | IL6: 12 | IM6: 12 | IN6: 12 | IO6: 12 | IP6: 12 | IQ6: 12 | IR6: 12 | IS6: 12 | IT6: 12 | IU6: 12 | IV6: 12 | IW6: 12 | IX6: 12 | IY6: 12 | IZ6: 12 | JA6: 12 | JB6: 12 | JC6: 12 | JD6: 12 | JE6: 12 | JF6: 12 | JG6: =IF(JG5,$F$6,$G$6) -> 12 | JH6: 12 | JI6: 12 | JJ6: 12 | JK6: 12 | JL6: 12 | JM6: 12 | JN6: 12 | JO6: 12 | JP6: 12 | JQ6: 12 | JR6: 12 | JS6: 12 | JT6: 12 | JU6: 12 | JV6: 12 | JW6: 12 | JX6: 12 | JY6: 12 | JZ6: 12 | KA6: 12 | KB6: 12 | KC6: 12 | KD6: 12 | KE6: 12 | KF6: 12 | KG6: 12 | KH6: 12 | KI6: 12 | KJ6: 12 | KK6: 12 | KL6: 12 | KM6: 12 | KN6: 12 | KO6: 12 | KP6: 12 | KQ6: 12 | KR6: 12 | KS6: 12 | KT6: 12 | KU6: 12 | KV6: 12 | KW6: 12 | KX6: 12 | KY6: 12 | KZ6: 12 | LA6: 12 | LB6: 12 | LC6: 12 | LD6: 12 | LE6: 12 | LF6: 12 | LG6: 12 | LH6: 12 | LI6: 12 | LJ6: 12 | LK6: 12 | LL6: 12 | LM6: 12 | LN6: 12 | LO6: 12 | LP6: 12 | LQ6: 12 | LR6: 12 | LS6: =IF(LS5,$F$6,$G$6) -> 12 | LT6: 12 | LU6: 12 | LV6: 12 | LW6: 12 | LX6: 12 | LY6: 12 | LZ6: 12 | MA6: 12 | MB6: 12 | MC6: 12 | MD6: 12 | ME6: 12 | MF6: 12 | MG6: 12 | MH6: 12 | MI6: 12 | MJ6: 12 | MK6: 12 | ML6: 12 | MM6: 12 | MN6: 12 | MO6: 12 | MP6: 12 | MQ6: 12 | MR6: 12 | MS6: 12 | MT6: 12 | MU6: 12 | MV6: 12 | MW6: 12 | MX6: 12 | MY6: 12 | MZ6: 12 | NA6: 12 | NB6: 12 | NC6: 12 | ND6: 12 | NE6: 12 | NF6: 12 | NG6: 12 | NH6: 12 | NI6: 12 | NJ6: 12 | NK6: 12 | NL6: 12 | NM6: 12 | NN6: 12 | NO6: 12 | NP6: 12 | NQ6: 12 | NR6: 12 | NS6: 12 | NT6: 12 | NU6: 12 | NV6: 12 | NW6: 12 | NX6: 12 | NY6: 12 | NZ6: 12 | OA6: 12 | OB6: 12 | OC6: 12 | OD6: 12 | OE6: =IF(OE5,$F$6,$G$6) -> 12 | OF6: 12 | OG6: 12 | OH6: 12 | OI6: 12 | OJ6: 12 | OK6: 12 | OL6: 12 | OM6: 12 | ON6: 12 | OO6: 12 | OP6: 12 | OQ6: 12 | OR6: 12 | OS6: 12 | OT6: 12 | OU6: 12 | OV6: 12 | OW6: 12 | OX6: 12 | OY6: 12 | OZ6: 12 | PA6: 12 | PB6: 12 | PC6: 12 | PD6: 12 | PE6: 12 | PF6: 12 | PG6: 12 | PH6: 12 | PI6: 12 | PJ6: 12 | PK6: 12 | PL6: 12 | PM6: 12 | PN6: 12 | PO6: 12 | PP6: 12 | PQ6: 12 | PR6: 12 | PS6: 12 | PT6: 12 | PU6: 12 | PV6: 12 | PW6: 12 | PX6: 12 | PY6: 12 | PZ6: 12 | QA6: 12 | QB6: 12 | QC6: 12 | QD6: 12 | QE6: 12 | QF6: 12 | QG6: 12 | QH6: 12 | QI6: 12 | QJ6: 12 | QK6: 12 | QL6: 12 | QM6: 12 | QN6: 12 | QO6: 12 | QP6: 12 | QQ6: =IF(QQ5,$F$6,$G$6) -> 12 | QR6: 12 | QS6: 12 | QT6: 12 | QU6: 12 | QV6: 12 | QW6: 12 | QX6: 12 | QY6: 12 | QZ6: 12 | RA6: 12 | RB6: 12 | RC6: 12 | RD6: 12 | RE6: 12 | RF6: 12 | RG6: 12 | RH6: 12 | RI6: 12 | RJ6: 12 | RK6: 12 | RL6: 12 | RM6: 12 | RN6: 12 | RO6: 12 | RP6: 12 | RQ6: 12 | RR6: 12 | RS6: 12 | RT6: 12 | RU6: 12 | RV6: 12 | RW6: 12 | RX6: 12 | RY6: 12 | RZ6: 12 | SA6: 12 | SB6: 12 | SC6: 12 | SD6: 12 | SE6: 12 | SF6: 12 | SG6: 12 | SH6: 12 | SI6: 12 | SJ6: 12 | SK6: 12 | SL6: 12 | SM6: 12 | SN6: 12 | SO6: 12 | SP6: 12 | SQ6: =IF(SQ5,$F$6,$G$6) -> 12 | SR6: 12 | SS6: 12 | ST6: 12 | SU6: 12 | SV6: 12 | SW6: 12 | SX6: 12 | SY6: 12 | SZ6: 12 | TA6: 12 | TB6: 12 | TC6: 12 | TD6: 12 | TE6: 12 | TF6: 12 | TG6: 12 | TH6: 12 | TI6: 12 | TJ6: 12 | TK6: 12 | TL6: 12 | TM6: 12 | TN6: 12 | TO6: 12 | TP6: 12 | TQ6: 12 | TR6: 12 | TS6: 12 | TT6: 12 | TU6: 12 | TV6: 12 | TW6: 12 | TX6: 12 | TY6: 12 | TZ6: 12 | UA6: 12 | UB6: 12 | UC6: 12 | UD6: 12 | UE6: 12 | UF6: 12 | UG6: 12 | UH6: 12 | UI6: 12 | UJ6: 12 | UK6: 12 | UL6: 12 | UM6: 12 | UN6: 12 | UO6: 12 | UP6: 12 | UQ6: 12 | UR6: 12 | US6: 12 | UT6: 12 | UU6: 12 | UV6: 12 | UW6: 12 | UX6: 12 | UY6: 12 | UZ6: 12 | VA6: 12 | VB6: 12 | VC6: =IF(VC5,$F$6,$G$6) -> 12 | VD6: 12 | VE6: 12 | VF6: 12 | VG6: 12 | VH6: 12 | VI6: 12 | VJ6: 12 | VK6: 12 | VL6: 12 | VM6: 12 | VN6: 12 | VO6: 12 | VP6: 12 | VQ6: 12 | VR6: 12 | VS6: 12 | VT6: 12 | VU6: 12 | VV6: 12 | VW6: 12 | VX6: 12 | VY6: 12 | VZ6: 12 | WA6: 12 | WB6: 12 | WC6: 12 | WD6: 12 | WE6: 12 | WF6: 12 | WG6: 12 | WH6: 12 | WI6: 12 | WJ6: 12 | WK6: 12 | WL6: 12 | WM6: 12 | WN6: 12 | WO6: 12 | WP6: 12 | WQ6: 12 | WR6: 12 | WS6: 12 | WT6: 12 | WU6: 12 | WV6: 12 | WW6: 12 | WX6: 12 | WY6: 12 | WZ6: 12 | XA6: 12 | XB6: 12 | XC6: 12 | XD6: 12 | XE6: 12 | XF6: 12 | XG6: 12 | XH6: 12 | XI6: 12 | XJ6: 12 | XK6: 12 | XL6: 12 | XM6: 12 | XN6: 12 | XO6: =IF(XO5,$F$6,$G$6) -> 12 | XP6: 12 | XQ6: 12 | XR6: 12 | XS6: 12 | XT6: 12 | XU6: 12 | XV6: 12 | XW6: 12 | XX6: 12 | XY6: 12 | XZ6: 12 | YA6: 12 | YB6: 12 | YC6: 12 | YD6: 12 | YE6: 12 | YF6: 12 | YG6: 12 | YH6: 12 | YI6: 12 | YJ6: 12 | YK6: 12 | YL6: 12 | YM6: 12 | YN6: 12 | YO6: 12 | YP6: 12 | YQ6: 12 | YR6: 12 | YS6: 12 | YT6: 12 | YU6: 12 | YV6: 12 | YW6: 12 | YX6: 12 | YY6: 12 | YZ6: 12 | ZA6: 12 | ZB6: 12 | ZC6: 12 | ZD6: 12 | ZE6: 12 | ZF6: 12 | ZG6: 12 | ZH6: 12 | ZI6: 12 | ZJ6: 12 | ZK6: 12 | ZL6: 12 | ZM6: 12 | ZN6: 12 | ZO6: 12 | ZP6: 12 | ZQ6: 12 | ZR6: 12 | ZS6: 12 | ZT6: 12 | ZU6: 12 | ZV6: 12 | ZW6: 12 | ZX6: 12 | ZY6: 12 | ZZ6: 12 | AAA6: =IF(AAA5,$F$6,$G$6) -> 12 | AAB6: 12 | AAC6: 12 | AAD6: 12 | AAE6: 12 | AAF6: 12 | AAG6: 12 | AAH6: 12 | AAI6: 12 | AAJ6: 12 | AAK6: 12 | AAL6: 12 | AAM6: 12 | AAN6: 12 | AAO6: 12 | AAP6: 12 | AAQ6: 12 | AAR6: 12 | AAS6: 12 | AAT6: 12 | AAU6: 12 | AAV6: 12 | AAW6: 12 | AAX6: 12 | AAY6: 12 | AAZ6: 12 | ABA6: 12 | ABB6: 12 | ABC6: 12 | ABD6: 12 | ABE6: 12 | ABF6: 12 | ABG6: 12 | ABH6: 12 | ABI6: 12 | ABJ6: 12 | ABK6: 12 | ABL6: 12 | ABM6: 12 | ABN6: 12 | ABO6: 12 | ABP6: 12 | ABQ6: 12 | ABR6: 12 | ABS6: 12 | ABT6: 12 | ABU6: 12 | ABV6: 12 | ABW6: 12 | ABX6: 12 | ABY6: 12 | ABZ6: 12 | ACA6: 12 | ACB6: 12 | ACC6: 12 | ACD6: 12 | ACE6: 12 | ACF6: 12 | ACG6: 12 | ACH6: 12 | ACI6: 12 | ACJ6: 12 | ACK6: 12 | ACL6: 12 | ACM6: =IF(ACM5,$F$6,$G$6) -> 12 | ACN6: 12 | ACO6: 12 | ACP6: 12 | ACQ6: 12 | ACR6: 12 | ACS6: 12 | ACT6: 12 | ACU6: 12 | ACV6: 12 | ACW6: 12 | ACX6: 12 | ACY6: 12 | ACZ6: 12 | ADA6: 12 | ADB6: 12 | ADC6: 12 | ADD6: 12 | ADE6: 12 | ADF6: 12 | ADG6: 12 | ADH6: 12 | ADI6: 12 | ADJ6: 12 | ADK6: 12 | ADL6: 12 | ADM6: 12 | ADN6: 12 | ADO6: 12 | ADP6: 12 | ADQ6: 12 | ADR6: 12 | ADS6: 12 | ADT6: 12 | ADU6: 12 | ADV6: 12 | ADW6: 12 | ADX6: 12 | ADY6: 12 | ADZ6: 12 | AEA6: 12 | AEB6: 12 | AEC6: 12 | AED6: 12 | AEE6: 12 | AEF6: 12 | AEG6: 12 | AEH6: 12 | AEI6: 12 | AEJ6: 12 | AEK6: 12 | AEL6: 12 | AEM6: 12 | AEN6: 12 | AEO6: 12 | AEP6: 12 | AEQ6: 12 | AER6: 12 | AES6: 12 | AET6: 12 | AEU6: 12 | AEV6: 12 | AEW6: 12 | AEX6: 12 | AEY6: =IF(AEY5,$F$6,$G$6) -> 12 | AEZ6: 12 | AFA6: 12 | AFB6: 12 | AFC6: 12 | AFD6: 12 | AFE6: 12 | AFF6: 12 | AFG6: 12 | AFH6: 12 | AFI6: 12 | AFJ6: 12 | AFK6: 12 | AFL6: 12 | AFM6: 12 | AFN6: 12 | AFO6: 12 | AFP6: 12 | AFQ6: 12 | AFR6: 12 | AFS6: 12 | AFT6: 12 | AFU6: 12 | AFV6: 12 | AFW6: 12 | AFX6: 12 | AFY6: 12 | AFZ6: 12 | AGA6: 12 | AGB6: 12 | AGC6: 12 | AGD6: 12 | AGE6: 12 | AGF6: 12 | AGG6: 12 | AGH6: 12 | AGI6: 12 | AGJ6: 12 | AGK6: 12 | AGL6: 12 | AGM6: 12 | AGN6: 12 | AGO6: 12 | AGP6: 12 | AGQ6: 12 | AGR6: 12 | AGS6: 12 | AGT6: 12 | AGU6: 12 | AGV6: 12 | AGW6: 12 | AGX6: 12 | AGY6: 12 | AGZ6: 12 | AHA6: 12 | AHB6: 12 | AHC6: 12 | AHD6: 12 | AHE6: 12 | AHF6: 12 | AHG6: 12 | AHH6: 12 | AHI6: 12 | AHJ6: 12 | AHK6: =IF(AHK5,$F$6,$G$6) -> 12 | AHL6: 12 | AHM6: 12 | AHN6: 12 | AHO6: 12 | AHP6: 12 | AHQ6: 12 | AHR6: 12 | AHS6: 12 | AHT6: 12 | AHU6: 12 | AHV6: 12 | AHW6: 12 | AHX6: 12 | AHY6: 12 | AHZ6: 12 | AIA6: 12 | AIB6: 12 | AIC6: 12 | AID6: 12 | AIE6: 12 | AIF6: 12 | AIG6: 12 | AIH6: 12 | AII6: 12 | AIJ6: 12 | AIK6: 12 | AIL6: 12 | AIM6: 12 | AIN6: 12 | AIO6: 12 | AIP6: 12 | AIQ6: 12 | AIR6: 12 | AIS6: 12 | AIT6: 12 | AIU6: 12 | AIV6: 12 | AIW6: 12 | AIX6: 12 | AIY6: 12 | AIZ6: 12 | AJA6: 12 | AJB6: 12 | AJC6: 12 | AJD6: 12 | AJE6: 12 | AJF6: 12 | AJG6: 12 | AJH6: 12 | AJI6: 12 | AJJ6: 12 | AJK6: 12 | AJL6: 12 | AJM6: 12 | AJN6: 12 | AJO6: 12 | AJP6: 12 | AJQ6: 12 | AJR6: 12 | AJS6: 12 | AJT6: 12 | AJU6: 12 | AJV6: 12 | AJW6: =IF(AJW5,$F$6,$G$6) -> 12 | AJX6: 12 | AJY6: 12 | AJZ6: 12 | AKA6: 12 | AKB6: 12 | AKC6: 12 | AKD6: 12 | AKE6: 12 | AKF6: 12 | AKG6: 12 | AKH6: 12 | AKI6: 12 | AKJ6: 12 | AKK6: 12 | AKL6: 12 | AKM6: 12 | AKN6: 12 | AKO6: 12 | AKP6: 12 | AKQ6: 12 | AKR6: 12 | AKS6: 12 | AKT6: 12 | AKU6: 12 | AKV6: 12 | AKW6: 12 | AKX6: 12 | AKY6: 12 | AKZ6: 12 | ALA6: 12 | ALB6: 12 | ALC6: 12 | ALD6: 12 | ALE6: 12 | ALF6: 12 | ALG6: 12 | ALH6: 12 | ALI6: 12 | ALJ6: 12 | ALK6: 12 | ALL6: 12 | ALM6: 12 | ALN6: 12 | ALO6: 12 | ALP6: 12 | ALQ6: 12 | ALR6: 12 | ALS6: 12 | ALT6: 12 | ALU6: 12 | ALV6: 12
C7: Start of period | E7: Data | I7: Date | K7: =J8+1 -> 2026-01-01 | L7: =K8+1 -> 2027-01-01 | M7: 2028-01-01 | N7: 2029-01-01 | O7: 2030-01-01 | P7: 2031-01-01 | Q7: 2032-01-01 | R7: 2033-01-01 | S7: 2034-01-01 | T7: 2035-01-01 | U7: 2036-01-01 | V7: 2037-01-01 | W7: 2038-01-01 | X7: 2039-01-01 | Y7: 2040-01-01 | Z7: 2041-01-01 | AA7: 2042-01-01 | AB7: 2043-01-01 | AC7: 2044-01-01 | AD7: 2045-01-01 | AE7: 2046-01-01 | AF7: 2047-01-01 | AG7: 2048-01-01 | AH7: 2049-01-01 | AI7: 2050-01-01 | AJ7: 2051-01-01 | AK7: 2052-01-01 | AL7: 2053-01-01 | AM7: 2054-01-01 | AN7: 2055-01-01 | AO7: 2056-01-01 | AP7: 2057-01-01 | AQ7: 2058-01-01 | AR7: 2059-01-01 | AS7: 2060-01-01 | AT7: 2061-01-01 | AU7: 2062-01-01 | AV7: 2063-01-01 | AW7: 2064-01-01 | AX7: 2065-01-01 | AY7: 2066-01-01 | AZ7: 2067-01-01 | BA7: 2068-01-01 | BB7: 2069-01-01 | BC7: 2070-01-01 | BD7: 2071-01-01 | BE7: 2072-01-01 | BF7: 2073-01-01 | BG7: 2074-01-01 | BH7: 2075-01-01 | BI7: 2076-01-01 | BJ7: 2077-01-01 | BK7: 2078-01-01 | BL7: 2079-01-01 | BM7: 2080-01-01 | BN7: 2081-01-01 | BO7: 2082-01-01 | BP7: 2083-01-01 | BQ7: 2084-01-01 | BR7: 2085-01-01 | BS7: 2086-01-01 | BT7: 2087-01-01 | BU7: 2088-01-01 | BV7: 2089-01-01 | BW7: 2090-01-01 | BX7: =BW8+1 -> 2091-01-01 | BY7: 2092-01-01 | BZ7: 2093-01-01 | CA7: 2094-01-01 | CB7: 2095-01-01 | CC7: 2096-01-01 | CD7: 2097-01-01 | CE7: 2098-01-01 | CF7: 2099-01-01 | CG7: 2100-01-01 | CH7: 2101-01-01 | CI7: 2102-01-01 | CJ7: 2103-01-01 | CK7: 2104-01-01 | CL7: 2105-01-01 | CM7: 2106-01-01 | CN7: 2107-01-01 | CO7: 2108-01-01 | CP7: 2109-01-01 | CQ7: 2110-01-01 | CR7: 2111-01-01 | CS7: 2112-01-01 | CT7: 2113-01-01 | CU7: 2114-01-01 | CV7: 2115-01-01 | CW7: 2116-01-01 | CX7: 2117-01-01 | CY7: 2118-01-01 | CZ7: 2119-01-01 | DA7: 2120-01-01 | DB7: 2121-01-01 | DC7: 2122-01-01 | DD7: 2123-01-01 | DE7: 2124-01-01 | DF7: 2125-01-01 | DG7: 2126-01-01 | DH7: 2127-01-01 | DI7: 2128-01-01 | DJ7: 2129-01-01 | DK7: 2130-01-01 | DL7: 2131-01-01 | DM7: 2132-01-01 | DN7: 2133-01-01 | DO7: 2134-01-01 | DP7: 2135-01-01 | DQ7: 2136-01-01 | DR7: 2137-01-01 | DS7: 2138-01-01 | DT7: 2139-01-01 | DU7: 2140-01-01 | DV7: 2141-01-01 | DW7: 2142-01-01 | DX7: 2143-01-01 | DY7: 2144-01-01 | DZ7: 2145-01-01 | EA7: 2146-01-01 | EB7: 2147-01-01 | EC7: 2148-01-01 | ED7: 2149-01-01 | EE7: 2150-01-01 | EF7: 2151-01-01 | EG7: 2152-01-01 | EH7: 2153-01-01 | EI7: 2154-01-01 | EJ7: =EI8+1 -> 2155-01-01 | EK7: 2156-01-01 | EL7: 2157-01-01 | EM7: 2158-01-01 | EN7: 2159-01-01 | EO7: 2160-01-01 | EP7: 2161-01-01 | EQ7: 2162-01-01 | ER7: 2163-01-01 | ES7: 2164-01-01 | ET7: 2165-01-01 | EU7: 2166-01-01 | EV7: 2167-01-01 | EW7: 2168-01-01 | EX7: 2169-01-01 | EY7: 2170-01-01 | EZ7: 2171-01-01 | FA7: 2172-01-01 | FB7: 2173-01-01 | FC7: 2174-01-01 | FD7: 2175-01-01 | FE7: 2176-01-01 | FF7: 2177-01-01 | FG7: 2178-01-01 | FH7: 2179-01-01 | FI7: 2180-01-01 | FJ7: 2181-01-01 | FK7: 2182-01-01 | FL7: 2183-01-01 | FM7: 2184-01-01 | FN7: 2185-01-01 | FO7: 2186-01-01 | FP7: 2187-01-01 | FQ7: 2188-01-01 | FR7: 2189-01-01 | FS7: 2190-01-01 | FT7: 2191-01-01 | FU7: 2192-01-01 | FV7: 2193-01-01 | FW7: 2194-01-01 | FX7: 2195-01-01 | FY7: 2196-01-01 | FZ7: 2197-01-01 | GA7: 2198-01-01 | GB7: 2199-01-01 | GC7: 2200-01-01 | GD7: 2201-01-01 | GE7: 2202-01-01 | GF7: 2203-01-01 | GG7: 2204-01-01 | GH7: 2205-01-01 | GI7: 2206-01-01 | GJ7: 2207-01-01 | GK7: 2208-01-01 | GL7: 2209-01-01 | GM7: 2210-01-01 | GN7: 2211-01-01 | GO7: 2212-01-01 | GP7: 2213-01-01 | GQ7: 2214-01-01 | GR7: 2215-01-01 | GS7: 2216-01-01 | GT7: 2217-01-01 | GU7: 2218-01-01 | GV7: =GU8+1 -> 2219-01-01 | GW7: 2220-01-01 | GX7: 2221-01-01 | GY7: 2222-01-01 | GZ7: 2223-01-01 | HA7: 2224-01-01 | HB7: 2225-01-01 | HC7: 2226-01-01 | HD7: 2227-01-01 | HE7: 2228-01-01 | HF7: 2229-01-01 | HG7: 2230-01-01 | HH7: 2231-01-01 | HI7: 2232-01-01 | HJ7: 2233-01-01 | HK7: 2234-01-01 | HL7: 2235-01-01 | HM7: 2236-01-01 | HN7: 2237-01-01 | HO7: 2238-01-01 | HP7: 2239-01-01 | HQ7: 2240-01-01 | HR7: 2241-01-01 | HS7: 2242-01-01 | HT7: 2243-01-01 | HU7: 2244-01-01 | HV7: 2245-01-01 | HW7: 2246-01-01 | HX7: 2247-01-01 | HY7: 2248-01-01 | HZ7: 2249-01-01 | IA7: 2250-01-01 | IB7: 2251-01-01 | IC7: 2252-01-01 | ID7: 2253-01-01 | IE7: 2254-01-01 | IF7: 2255-01-01 | IG7: 2256-01-01 | IH7: 2257-01-01 | II7: 2258-01-01 | IJ7: 2259-01-01 | IK7: 2260-01-01 | IL7: 2261-01-01 | IM7: 2262-01-01 | IN7: 2263-01-01 | IO7: 2264-01-01 | IP7: 2265-01-01 | IQ7: 2266-01-01 | IR7: 2267-01-01 | IS7: 2268-01-01 | IT7: 2269-01-01 | IU7: 2270-01-01 | IV7: 2271-01-01 | IW7: 2272-01-01 | IX7: 2273-01-01 | IY7: 2274-01-01 | IZ7: 2275-01-01 | JA7: 2276-01-01 | JB7: 2277-01-01 | JC7: 2278-01-01 | JD7: 2279-01-01 | JE7: 2280-01-01 | JF7: 2281-01-01 | JG7: 2282-01-01 | JH7: =JG8+1 -> 2283-01-01 | JI7: 2284-01-01 | JJ7: 2285-01-01 | JK7: 2286-01-01 | JL7: 2287-01-01 | JM7: 2288-01-01 | JN7: 2289-01-01 | JO7: 2290-01-01 | JP7: 2291-01-01 | JQ7: 2292-01-01 | JR7: 2293-01-01 | JS7: 2294-01-01 | JT7: 2295-01-01 | JU7: 2296-01-01 | JV7: 2297-01-01 | JW7: 2298-01-01 | JX7: 2299-01-01 | JY7: 2300-01-01 | JZ7: 2301-01-01 | KA7: 2302-01-01 | KB7: 2303-01-01 | KC7: 2304-01-01 | KD7: 2305-01-01 | KE7: 2306-01-01 | KF7: 2307-01-01 | KG7: 2308-01-01 | KH7: 2309-01-01 | KI7: 2310-01-01 | KJ7: 2311-01-01 | KK7: 2312-01-01 | KL7: 2313-01-01 | KM7: 2314-01-01 | KN7: 2315-01-01 | KO7: 2316-01-01 | KP7: 2317-01-01 | KQ7: 2318-01-01 | KR7: 2319-01-01 | KS7: 2320-01-01 | KT7: 2321-01-01 | KU7: 2322-01-01 | KV7: 2323-01-01 | KW7: 2324-01-01 | KX7: 2325-01-01 | KY7: 2326-01-01 | KZ7: 2327-01-01 | LA7: 2328-01-01 | LB7: 2329-01-01 | LC7: 2330-01-01 | LD7: 2331-01-01 | LE7: 2332-01-01 | LF7: 2333-01-01 | LG7: 2334-01-01 | LH7: 2335-01-01 | LI7: 2336-01-01 | LJ7: 2337-01-01 | LK7: 2338-01-01 | LL7: 2339-01-01 | LM7: 2340-01-01 | LN7: 2341-01-01 | LO7: 2342-01-01 | LP7: 2343-01-01 | LQ7: 2344-01-01 | LR7: 2345-01-01 | LS7: 2346-01-01 | LT7: =LS8+1 -> 2347-01-01 | LU7: 2348-01-01 | LV7: 2349-01-01 | LW7: 2350-01-01 | LX7: 2351-01-01 | LY7: 2352-01-01 | LZ7: 2353-01-01 | MA7: 2354-01-01 | MB7: 2355-01-01 | MC7: 2356-01-01 | MD7: 2357-01-01 | ME7: 2358-01-01 | MF7: 2359-01-01 | MG7: 2360-01-01 | MH7: 2361-01-01 | MI7: 2362-01-01 | MJ7: 2363-01-01 | MK7: 2364-01-01 | ML7: 2365-01-01 | MM7: 2366-01-01 | MN7: 2367-01-01 | MO7: 2368-01-01 | MP7: 2369-01-01 | MQ7: 2370-01-01 | MR7: 2371-01-01 | MS7: 2372-01-01 | MT7: 2373-01-01 | MU7: 2374-01-01 | MV7: 2375-01-01 | MW7: 2376-01-01 | MX7: 2377-01-01 | MY7: 2378-01-01 | MZ7: 2379-01-01 | NA7: 2380-01-01 | NB7: 2381-01-01 | NC7: 2382-01-01 | ND7: 2383-01-01 | NE7: 2384-01-01 | NF7: 2385-01-01 | NG7: 2386-01-01 | NH7: 2387-01-01 | NI7: 2388-01-01 | NJ7: 2389-01-01 | NK7: 2390-01-01 | NL7: 2391-01-01 | NM7: 2392-01-01 | NN7: 2393-01-01 | NO7: 2394-01-01 | NP7: 2395-01-01 | NQ7: 2396-01-01 | NR7: 2397-01-01 | NS7: 2398-01-01 | NT7: 2399-01-01 | NU7: 2400-01-01 | NV7: 2401-01-01 | NW7: 2402-01-01 | NX7: 2403-01-01 | NY7: 2404-01-01 | NZ7: 2405-01-01 | OA7: 2406-01-01 | OB7: 2407-01-01 | OC7: 2408-01-01 | OD7: 2409-01-01 | OE7: 2410-01-01 | OF7: =OE8+1 -> 2411-01-01 | OG7: 2412-01-01 | OH7: 2413-01-01 | OI7: 2414-01-01 | OJ7: 2415-01-01 | OK7: 2416-01-01 | OL7: 2417-01-01 | OM7: 2418-01-01 | ON7: 2419-01-01 | OO7: 2420-01-01 | OP7: 2421-01-01 | OQ7: 2422-01-01 | OR7: 2423-01-01 | OS7: 2424-01-01 | OT7: 2425-01-01 | OU7: 2426-01-01 | OV7: 2427-01-01 | OW7: 2428-01-01 | OX7: 2429-01-01 | OY7: 2430-01-01 | OZ7: 2431-01-01 | PA7: 2432-01-01 | PB7: 2433-01-01 | PC7: 2434-01-01 | PD7: 2435-01-01 | PE7: 2436-01-01 | PF7: 2437-01-01 | PG7: 2438-01-01 | PH7: 2439-01-01 | PI7: 2440-01-01 | PJ7: 2441-01-01 | PK7: 2442-01-01 | PL7: 2443-01-01 | PM7: 2444-01-01 | PN7: 2445-01-01 | PO7: 2446-01-01 | PP7: 2447-01-01 | PQ7: 2448-01-01 | PR7: 2449-01-01 | PS7: 2450-01-01 | PT7: 2451-01-01 | PU7: 2452-01-01 | PV7: 2453-01-01 | PW7: 2454-01-01 | PX7: 2455-01-01 | PY7: 2456-01-01 | PZ7: 2457-01-01 | QA7: 2458-01-01 | QB7: 2459-01-01 | QC7: 2460-01-01 | QD7: 2461-01-01 | QE7: 2462-01-01 | QF7: 2463-01-01 | QG7: 2464-01-01 | QH7: 2465-01-01 | QI7: 2466-01-01 | QJ7: 2467-01-01 | QK7: 2468-01-01 | QL7: 2469-01-01 | QM7: 2470-01-01 | QN7: 2471-01-01 | QO7: 2472-01-01 | QP7: 2473-01-01 | QQ7: 2474-01-01 | QR7: =QQ8+1 -> 2475-01-01 | QS7: 2476-01-01 | QT7: 2477-01-01 | QU7: 2478-01-01 | QV7: 2479-01-01 | QW7: 2480-01-01 | QX7: 2481-01-01 | QY7: 2482-01-01 | QZ7: 2483-01-01 | RA7: 2484-01-01 | RB7: 2485-01-01 | RC7: 2486-01-01 | RD7: 2487-01-01 | RE7: 2488-01-01 | RF7: 2489-01-01 | RG7: 2490-01-01 | RH7: 2491-01-01 | RI7: 2492-01-01 | RJ7: 2493-01-01 | RK7: 2494-01-01 | RL7: 2495-01-01 | RM7: 2496-01-01 | RN7: 2497-01-01 | RO7: 2498-01-01 | RP7: 2499-01-01 | RQ7: 2500-01-01 | RR7: 2501-01-01 | RS7: 2502-01-01 | RT7: 2503-01-01 | RU7: 2504-01-01 | RV7: 2505-01-01 | RW7: 2506-01-01 | RX7: 2507-01-01 | RY7: 2508-01-01 | RZ7: 2509-01-01 | SA7: 2510-01-01 | SB7: 2511-01-01 | SC7: 2512-01-01 | SD7: 2513-01-01 | SE7: 2514-01-01 | SF7: 2515-01-01 | SG7: 2516-01-01 | SH7: 2517-01-01 | SI7: 2518-01-01 | SJ7: 2519-01-01 | SK7: 2520-01-01 | SL7: 2521-01-01 | SM7: 2522-01-01 | SN7: 2523-01-01 | SO7: 2524-01-01 | SP7: 2525-01-01 | SQ7: =SP8+1 -> 2526-01-01 | SR7: =SQ8+1 -> 2527-01-01 | SS7: =SR8+1 -> 2528-01-01 | ST7: =SS8+1 -> 2529-01-01 | SU7: =ST8+1 -> 2530-01-01 | SV7: =SU8+1 -> 2531-01-01 | SW7: =SV8+1 -> 2532-01-01 | SX7: =SW8+1 -> 2533-01-01 | SY7: =SX8+1 -> 2534-01-01 | SZ7: =SY8+1 -> 2535-01-01 | TA7: =SZ8+1 -> 2536-01-01 | TB7: =TA8+1 -> 2537-01-01 | TC7: =TB8+1 -> 2538-01-01 | TD7: =TC8+1 -> 2539-01-01 | TE7: =TD8+1 -> 2540-01-01 | TF7: =TE8+1 -> 2541-01-01 | TG7: =TF8+1 -> 2542-01-01 | TH7: =TG8+1 -> 2543-01-01 | TI7: =TH8+1 -> 2544-01-01 | TJ7: =TI8+1 -> 2545-01-01 | TK7: =TJ8+1 -> 2546-01-01 | TL7: =TK8+1 -> 2547-01-01 | TM7: =TL8+1 -> 2548-01-01 | TN7: =TM8+1 -> 2549-01-01 | TO7: =TN8+1 -> 2550-01-01 | TP7: =TO8+1 -> 2551-01-01 | TQ7: =TP8+1 -> 2552-01-01 | TR7: =TQ8+1 -> 2553-01-01 | TS7: =TR8+1 -> 2554-01-01 | TT7: =TS8+1 -> 2555-01-01 | TU7: =TT8+1 -> 2556-01-01 | TV7: =TU8+1 -> 2557-01-01 | TW7: =TV8+1 -> 2558-01-01 | TX7: =TW8+1 -> 2559-01-01 | TY7: =TX8+1 -> 2560-01-01 | TZ7: =TY8+1 -> 2561-01-01 | UA7: =TZ8+1 -> 2562-01-01 | UB7: =UA8+1 -> 2563-01-01 | UC7: =UB8+1 -> 2564-01-01 | UD7: =UC8+1 -> 2565-01-01 | UE7: =UD8+1 -> 2566-01-01 | UF7: =UE8+1 -> 2567-01-01 | UG7: =UF8+1 -> 2568-01-01 | UH7: =UG8+1 -> 2569-01-01 | UI7: =UH8+1 -> 2570-01-01 | UJ7: =UI8+1 -> 2571-01-01 | UK7: =UJ8+1 -> 2572-01-01 | UL7: =UK8+1 -> 2573-01-01 | UM7: =UL8+1 -> 2574-01-01 | UN7: =UM8+1 -> 2575-01-01 | UO7: =UN8+1 -> 2576-01-01 | UP7: =UO8+1 -> 2577-01-01 | UQ7: =UP8+1 -> 2578-01-01 | UR7: =UQ8+1 -> 2579-01-01 | US7: =UR8+1 -> 2580-01-01 | UT7: =US8+1 -> 2581-01-01 | UU7: =UT8+1 -> 2582-01-01 | UV7: =UU8+1 -> 2583-01-01 | UW7: =UV8+1 -> 2584-01-01 | UX7: =UW8+1 -> 2585-01-01 | UY7: =UX8+1 -> 2586-01-01 | UZ7: =UY8+1 -> 2587-01-01 | VA7: =UZ8+1 -> 2588-01-01 | VB7: =VA8+1 -> 2589-01-01 | VC7: =VB8+1 -> 2590-01-01 | VD7: =VC8+1 -> 2591-01-01 | VE7: =VD8+1 -> 2592-01-01 | VF7: =VE8+1 -> 2593-01-01 | VG7: =VF8+1 -> 2594-01-01 | VH7: =VG8+1 -> 2595-01-01 | VI7: =VH8+1 -> 2596-01-01 | VJ7: =VI8+1 -> 2597-01-01 | VK7: =VJ8+1 -> 2598-01-01 | VL7: =VK8+1 -> 2599-01-01 | VM7: =VL8+1 -> 2600-01-01 | VN7: =VM8+1 -> 2601-01-01 | VO7: =VN8+1 -> 2602-01-01 | VP7: =VO8+1 -> 2603-01-01 | VQ7: =VP8+1 -> 2604-01-01 | VR7: =VQ8+1 -> 2605-01-01 | VS7: =VR8+1 -> 2606-01-01 | VT7: =VS8+1 -> 2607-01-01 | VU7: =VT8+1 -> 2608-01-01 | VV7: =VU8+1 -> 2609-01-01 | VW7: =VV8+1 -> 2610-01-01 | VX7: =VW8+1 -> 2611-01-01 | VY7: =VX8+1 -> 2612-01-01 | VZ7: =VY8+1 -> 2613-01-01 | WA7: =VZ8+1 -> 2614-01-01 | WB7: =WA8+1 -> 2615-01-01 | WC7: =WB8+1 -> 2616-01-01 | WD7: =WC8+1 -> 2617-01-01 | WE7: =WD8+1 -> 2618-01-01 | WF7: =WE8+1 -> 2619-01-01 | WG7: =WF8+1 -> 2620-01-01 | WH7: =WG8+1 -> 2621-01-01 | WI7: =WH8+1 -> 2622-01-01 | WJ7: =WI8+1 -> 2623-01-01 | WK7: =WJ8+1 -> 2624-01-01 | WL7: =WK8+1 -> 2625-01-01 | WM7: =WL8+1 -> 2626-01-01 | WN7: =WM8+1 -> 2627-01-01 | WO7: =WN8+1 -> 2628-01-01 | WP7: =WO8+1 -> 2629-01-01 | WQ7: =WP8+1 -> 2630-01-01 | WR7: =WQ8+1 -> 2631-01-01 | WS7: =WR8+1 -> 2632-01-01 | WT7: =WS8+1 -> 2633-01-01 | WU7: =WT8+1 -> 2634-01-01 | WV7: =WU8+1 -> 2635-01-01 | WW7: =WV8+1 -> 2636-01-01 | WX7: =WW8+1 -> 2637-01-01 | WY7: =WX8+1 -> 2638-01-01 | WZ7: =WY8+1 -> 2639-01-01 | XA7: =WZ8+1 -> 2640-01-01 | XB7: =XA8+1 -> 2641-01-01 | XC7: =XB8+1 -> 2642-01-01 | XD7: =XC8+1 -> 2643-01-01 | XE7: =XD8+1 -> 2644-01-01 | XF7: =XE8+1 -> 2645-01-01 | XG7: =XF8+1 -> 2646-01-01 | XH7: =XG8+1 -> 2647-01-01 | XI7: =XH8+1 -> 2648-01-01 | XJ7: =XI8+1 -> 2649-01-01 | XK7: =XJ8+1 -> 2650-01-01 | XL7: =XK8+1 -> 2651-01-01 | XM7: =XL8+1 -> 2652-01-01 | XN7: =XM8+1 -> 2653-01-01 | XO7: =XN8+1 -> 2654-01-01 | XP7: =XO8+1 -> 2655-01-01 | XQ7: =XP8+1 -> 2656-01-01 | XR7: =XQ8+1 -> 2657-01-01 | XS7: =XR8+1 -> 2658-01-01 | XT7: =XS8+1 -> 2659-01-01 | XU7: =XT8+1 -> 2660-01-01 | XV7: =XU8+1 -> 2661-01-01 | XW7: =XV8+1 -> 2662-01-01 | XX7: =XW8+1 -> 2663-01-01 | XY7: =XX8+1 -> 2664-01-01 | XZ7: =XY8+1 -> 2665-01-01 | YA7: =XZ8+1 -> 2666-01-01 | YB7: =YA8+1 -> 2667-01-01 | YC7: =YB8+1 -> 2668-01-01 | YD7: =YC8+1 -> 2669-01-01 | YE7: =YD8+1 -> 2670-01-01 | YF7: =YE8+1 -> 2671-01-01 | YG7: =YF8+1 -> 2672-01-01 | YH7: =YG8+1 -> 2673-01-01 | YI7: =YH8+1 -> 2674-01-01 | YJ7: =YI8+1 -> 2675-01-01 | YK7: =YJ8+1 -> 2676-01-01 | YL7: =YK8+1 -> 2677-01-01 | YM7: =YL8+1 -> 2678-01-01 | YN7: =YM8+1 -> 2679-01-01 | YO7: =YN8+1 -> 2680-01-01 | YP7: =YO8+1 -> 2681-01-01 | YQ7: =YP8+1 -> 2682-01-01 | YR7: =YQ8+1 -> 2683-01-01 | YS7: =YR8+1 -> 2684-01-01 | YT7: =YS8+1 -> 2685-01-01 | YU7: =YT8+1 -> 2686-01-01 | YV7: =YU8+1 -> 2687-01-01 | YW7: =YV8+1 -> 2688-01-01 | YX7: =YW8+1 -> 2689-01-01 | YY7: =YX8+1 -> 2690-01-01 | YZ7: =YY8+1 -> 2691-01-01 | ZA7: =YZ8+1 -> 2692-01-01 | ZB7: =ZA8+1 -> 2693-01-01 | ZC7: =ZB8+1 -> 2694-01-01 | ZD7: =ZC8+1 -> 2695-01-01 | ZE7: =ZD8+1 -> 2696-01-01 | ZF7: =ZE8+1 -> 2697-01-01 | ZG7: =ZF8+1 -> 2698-01-01 | ZH7: =ZG8+1 -> 2699-01-01 | ZI7: =ZH8+1 -> 2700-01-01 | ZJ7: =ZI8+1 -> 2701-01-01 | ZK7: =ZJ8+1 -> 2702-01-01 | ZL7: =ZK8+1 -> 2703-01-01 | ZM7: =ZL8+1 -> 2704-01-01 | ZN7: =ZM8+1 -> 2705-01-01 | ZO7: =ZN8+1 -> 2706-01-01 | ZP7: =ZO8+1 -> 2707-01-01 | ZQ7: =ZP8+1 -> 2708-01-01 | ZR7: =ZQ8+1 -> 2709-01-01 | ZS7: =ZR8+1 -> 2710-01-01 | ZT7: =ZS8+1 -> 2711-01-01 | ZU7: =ZT8+1 -> 2712-01-01 | ZV7: =ZU8+1 -> 2713-01-01 | ZW7: =ZV8+1 -> 2714-01-01 | ZX7: =ZW8+1 -> 2715-01-01 | ZY7: =ZX8+1 -> 2716-01-01 | ZZ7: =ZY8+1 -> 2717-01-01 | AAA7: =ZZ8+1 -> 2718-01-01 | AAB7: =AAA8+1 -> 2719-01-01 | AAC7: =AAB8+1 -> 2720-01-01 | AAD7: =AAC8+1 -> 2721-01-01 | AAE7: =AAD8+1 -> 2722-01-01 | AAF7: =AAE8+1 -> 2723-01-01 | AAG7: =AAF8+1 -> 2724-01-01 | AAH7: =AAG8+1 -> 2725-01-01 | AAI7: =AAH8+1 -> 2726-01-01 | AAJ7: =AAI8+1 -> 2727-01-01 | AAK7: =AAJ8+1 -> 2728-01-01 | AAL7: =AAK8+1 -> 2729-01-01 | AAM7: =AAL8+1 -> 2730-01-01 | AAN7: =AAM8+1 -> 2731-01-01 | AAO7: =AAN8+1 -> 2732-01-01 | AAP7: =AAO8+1 -> 2733-01-01 | AAQ7: =AAP8+1 -> 2734-01-01 | AAR7: =AAQ8+1 -> 2735-01-01 | AAS7: =AAR8+1 -> 2736-01-01 | AAT7: =AAS8+1 -> 2737-01-01 | AAU7: =AAT8+1 -> 2738-01-01 | AAV7: =AAU8+1 -> 2739-01-01 | AAW7: =AAV8+1 -> 2740-01-01 | AAX7: =AAW8+1 -> 2741-01-01 | AAY7: =AAX8+1 -> 2742-01-01 | AAZ7: =AAY8+1 -> 2743-01-01 | ABA7: =AAZ8+1 -> 2744-01-01 | ABB7: =ABA8+1 -> 2745-01-01 | ABC7: =ABB8+1 -> 2746-01-01 | ABD7: =ABC8+1 -> 2747-01-01 | ABE7: =ABD8+1 -> 2748-01-01 | ABF7: =ABE8+1 -> 2749-01-01 | ABG7: =ABF8+1 -> 2750-01-01 | ABH7: =ABG8+1 -> 2751-01-01 | ABI7: =ABH8+1 -> 2752-01-01 | ABJ7: =ABI8+1 -> 2753-01-01 | ABK7: =ABJ8+1 -> 2754-01-01 | ABL7: =ABK8+1 -> 2755-01-01 | ABM7: =ABL8+1 -> 2756-01-01 | ABN7: =ABM8+1 -> 2757-01-01 | ABO7: =ABN8+1 -> 2758-01-01 | ABP7: =ABO8+1 -> 2759-01-01 | ABQ7: =ABP8+1 -> 2760-01-01 | ABR7: =ABQ8+1 -> 2761-01-01 | ABS7: =ABR8+1 -> 2762-01-01 | ABT7: =ABS8+1 -> 2763-01-01 | ABU7: =ABT8+1 -> 2764-01-01 | ABV7: =ABU8+1 -> 2765-01-01 | ABW7: =ABV8+1 -> 2766-01-01 | ABX7: =ABW8+1 -> 2767-01-01 | ABY7: =ABX8+1 -> 2768-01-01 | ABZ7: =ABY8+1 -> 2769-01-01 | ACA7: =ABZ8+1 -> 2770-01-01 | ACB7: =ACA8+1 -> 2771-01-01 | ACC7: =ACB8+1 -> 2772-01-01 | ACD7: =ACC8+1 -> 2773-01-01 | ACE7: =ACD8+1 -> 2774-01-01 | ACF7: =ACE8+1 -> 2775-01-01 | ACG7: =ACF8+1 -> 2776-01-01 | ACH7: =ACG8+1 -> 2777-01-01 | ACI7: =ACH8+1 -> 2778-01-01 | ACJ7: =ACI8+1 -> 2779-01-01 | ACK7: =ACJ8+1 -> 2780-01-01 | ACL7: =ACK8+1 -> 2781-01-01 | ACM7: =ACL8+1 -> 2782-01-01 | ACN7: =ACM8+1 -> 2783-01-01 | ACO7: =ACN8+1 -> 2784-01-01 | ACP7: =ACO8+1 -> 2785-01-01 | ACQ7: =ACP8+1 -> 2786-01-01 | ACR7: =ACQ8+1 -> 2787-01-01 | ACS7: =ACR8+1 -> 2788-01-01 | ACT7: =ACS8+1 -> 2789-01-01 | ACU7: =ACT8+1 -> 2790-01-01 | ACV7: =ACU8+1 -> 2791-01-01 | ACW7: =ACV8+1 -> 2792-01-01 | ACX7: =ACW8+1 -> 2793-01-01 | ACY7: =ACX8+1 -> 2794-01-01 | ACZ7: =ACY8+1 -> 2795-01-01 | ADA7: =ACZ8+1 -> 2796-01-01 | ADB7: =ADA8+1 -> 2797-01-01 | ADC7: =ADB8+1 -> 2798-01-01 | ADD7: =ADC8+1 -> 2799-01-01 | ADE7: =ADD8+1 -> 2800-01-01 | ADF7: =ADE8+1 -> 2801-01-01 | ADG7: =ADF8+1 -> 2802-01-01 | ADH7: =ADG8+1 -> 2803-01-01 | ADI7: =ADH8+1 -> 2804-01-01 | ADJ7: =ADI8+1 -> 2805-01-01 | ADK7: =ADJ8+1 -> 2806-01-01 | ADL7: =ADK8+1 -> 2807-01-01 | ADM7: =ADL8+1 -> 2808-01-01 | ADN7: =ADM8+1 -> 2809-01-01 | ADO7: =ADN8+1 -> 2810-01-01 | ADP7: =ADO8+1 -> 2811-01-01 | ADQ7: =ADP8+1 -> 2812-01-01 | ADR7: =ADQ8+1 -> 2813-01-01 | ADS7: =ADR8+1 -> 2814-01-01 | ADT7: =ADS8+1 -> 2815-01-01 | ADU7: =ADT8+1 -> 2816-01-01 | ADV7: =ADU8+1 -> 2817-01-01 | ADW7: =ADV8+1 -> 2818-01-01 | ADX7: =ADW8+1 -> 2819-01-01 | ADY7: =ADX8+1 -> 2820-01-01 | ADZ7: =ADY8+1 -> 2821-01-01 | AEA7: =ADZ8+1 -> 2822-01-01 | AEB7: =AEA8+1 -> 2823-01-01 | AEC7: =AEB8+1 -> 2824-01-01 | AED7: =AEC8+1 -> 2825-01-01 | AEE7: =AED8+1 -> 2826-01-01 | AEF7: =AEE8+1 -> 2827-01-01 | AEG7: =AEF8+1 -> 2828-01-01 | AEH7: =AEG8+1 -> 2829-01-01 | AEI7: =AEH8+1 -> 2830-01-01 | AEJ7: =AEI8+1 -> 2831-01-01 | AEK7: =AEJ8+1 -> 2832-01-01 | AEL7: =AEK8+1 -> 2833-01-01 | AEM7: =AEL8+1 -> 2834-01-01 | AEN7: =AEM8+1 -> 2835-01-01 | AEO7: =AEN8+1 -> 2836-01-01 | AEP7: =AEO8+1 -> 2837-01-01 | AEQ7: =AEP8+1 -> 2838-01-01 | AER7: =AEQ8+1 -> 2839-01-01 | AES7: =AER8+1 -> 2840-01-01 | AET7: =AES8+1 -> 2841-01-01 | AEU7: =AET8+1 -> 2842-01-01 | AEV7: =AEU8+1 -> 2843-01-01 | AEW7: =AEV8+1 -> 2844-01-01 | AEX7: =AEW8+1 -> 2845-01-01 | AEY7: =AEX8+1 -> 2846-01-01 | AEZ7: =AEY8+1 -> 2847-01-01 | AFA7: =AEZ8+1 -> 2848-01-01 | AFB7: =AFA8+1 -> 2849-01-01 | AFC7: =AFB8+1 -> 2850-01-01 | AFD7: =AFC8+1 -> 2851-01-01 | AFE7: =AFD8+1 -> 2852-01-01 | AFF7: =AFE8+1 -> 2853-01-01 | AFG7: =AFF8+1 -> 2854-01-01 | AFH7: =AFG8+1 -> 2855-01-01 | AFI7: =AFH8+1 -> 2856-01-01 | AFJ7: =AFI8+1 -> 2857-01-01 | AFK7: =AFJ8+1 -> 2858-01-01 | AFL7: =AFK8+1 -> 2859-01-01 | AFM7: =AFL8+1 -> 2860-01-01 | AFN7: =AFM8+1 -> 2861-01-01 | AFO7: =AFN8+1 -> 2862-01-01 | AFP7: =AFO8+1 -> 2863-01-01 | AFQ7: =AFP8+1 -> 2864-01-01 | AFR7: =AFQ8+1 -> 2865-01-01 | AFS7: =AFR8+1 -> 2866-01-01 | AFT7: =AFS8+1 -> 2867-01-01 | AFU7: =AFT8+1 -> 2868-01-01 | AFV7: =AFU8+1 -> 2869-01-01 | AFW7: =AFV8+1 -> 2870-01-01 | AFX7: =AFW8+1 -> 2871-01-01 | AFY7: =AFX8+1 -> 2872-01-01 | AFZ7: =AFY8+1 -> 2873-01-01 | AGA7: =AFZ8+1 -> 2874-01-01 | AGB7: =AGA8+1 -> 2875-01-01 | AGC7: =AGB8+1 -> 2876-01-01 | AGD7: =AGC8+1 -> 2877-01-01 | AGE7: =AGD8+1 -> 2878-01-01 | AGF7: =AGE8+1 -> 2879-01-01 | AGG7: =AGF8+1 -> 2880-01-01 | AGH7: =AGG8+1 -> 2881-01-01 | AGI7: =AGH8+1 -> 2882-01-01 | AGJ7: =AGI8+1 -> 2883-01-01 | AGK7: =AGJ8+1 -> 2884-01-01 | AGL7: =AGK8+1 -> 2885-01-01 | AGM7: =AGL8+1 -> 2886-01-01 | AGN7: =AGM8+1 -> 2887-01-01 | AGO7: =AGN8+1 -> 2888-01-01 | AGP7: =AGO8+1 -> 2889-01-01 | AGQ7: =AGP8+1 -> 2890-01-01 | AGR7: =AGQ8+1 -> 2891-01-01 | AGS7: =AGR8+1 -> 2892-01-01 | AGT7: =AGS8+1 -> 2893-01-01 | AGU7: =AGT8+1 -> 2894-01-01 | AGV7: =AGU8+1 -> 2895-01-01 | AGW7: =AGV8+1 -> 2896-01-01 | AGX7: =AGW8+1 -> 2897-01-01 | AGY7: =AGX8+1 -> 2898-01-01 | AGZ7: =AGY8+1 -> 2899-01-01 | AHA7: =AGZ8+1 -> 2900-01-01 | AHB7: =AHA8+1 -> 2901-01-01 | AHC7: =AHB8+1 -> 2902-01-01 | AHD7: =AHC8+1 -> 2903-01-01 | AHE7: =AHD8+1 -> 2904-01-01 | AHF7: =AHE8+1 -> 2905-01-01 | AHG7: =AHF8+1 -> 2906-01-01 | AHH7: =AHG8+1 -> 2907-01-01 | AHI7: =AHH8+1 -> 2908-01-01 | AHJ7: =AHI8+1 -> 2909-01-01 | AHK7: =AHJ8+1 -> 2910-01-01 | AHL7: =AHK8+1 -> 2911-01-01 | AHM7: =AHL8+1 -> 2912-01-01 | AHN7: =AHM8+1 -> 2913-01-01 | AHO7: =AHN8+1 -> 2914-01-01 | AHP7: =AHO8+1 -> 2915-01-01 | AHQ7: =AHP8+1 -> 2916-01-01 | AHR7: =AHQ8+1 -> 2917-01-01 | AHS7: =AHR8+1 -> 2918-01-01 | AHT7: =AHS8+1 -> 2919-01-01 | AHU7: =AHT8+1 -> 2920-01-01 | AHV7: =AHU8+1 -> 2921-01-01 | AHW7: =AHV8+1 -> 2922-01-01 | AHX7: =AHW8+1 -> 2923-01-01 | AHY7: =AHX8+1 -> 2924-01-01 | AHZ7: =AHY8+1 -> 2925-01-01 | AIA7: =AHZ8+1 -> 2926-01-01 | AIB7: =AIA8+1 -> 2927-01-01 | AIC7: =AIB8+1 -> 2928-01-01 | AID7: =AIC8+1 -> 2929-01-01 | AIE7: =AID8+1 -> 2930-01-01 | AIF7: =AIE8+1 -> 2931-01-01 | AIG7: =AIF8+1 -> 2932-01-01 | AIH7: =AIG8+1 -> 2933-01-01 | AII7: =AIH8+1 -> 2934-01-01 | AIJ7: =AII8+1 -> 2935-01-01 | AIK7: =AIJ8+1 -> 2936-01-01 | AIL7: =AIK8+1 -> 2937-01-01 | AIM7: =AIL8+1 -> 2938-01-01 | AIN7: =AIM8+1 -> 2939-01-01 | AIO7: =AIN8+1 -> 2940-01-01 | AIP7: =AIO8+1 -> 2941-01-01 | AIQ7: =AIP8+1 -> 2942-01-01 | AIR7: =AIQ8+1 -> 2943-01-01 | AIS7: =AIR8+1 -> 2944-01-01 | AIT7: =AIS8+1 -> 2945-01-01 | AIU7: =AIT8+1 -> 2946-01-01 | AIV7: =AIU8+1 -> 2947-01-01 | AIW7: =AIV8+1 -> 2948-01-01 | AIX7: =AIW8+1 -> 2949-01-01 | AIY7: =AIX8+1 -> 2950-01-01 | AIZ7: =AIY8+1 -> 2951-01-01 | AJA7: =AIZ8+1 -> 2952-01-01 | AJB7: =AJA8+1 -> 2953-01-01 | AJC7: =AJB8+1 -> 2954-01-01 | AJD7: =AJC8+1 -> 2955-01-01 | AJE7: =AJD8+1 -> 2956-01-01 | AJF7: =AJE8+1 -> 2957-01-01 | AJG7: =AJF8+1 -> 2958-01-01 | AJH7: =AJG8+1 -> 2959-01-01 | AJI7: =AJH8+1 -> 2960-01-01 | AJJ7: =AJI8+1 -> 2961-01-01 | AJK7: =AJJ8+1 -> 2962-01-01 | AJL7: =AJK8+1 -> 2963-01-01 | AJM7: =AJL8+1 -> 2964-01-01 | AJN7: =AJM8+1 -> 2965-01-01 | AJO7: =AJN8+1 -> 2966-01-01 | AJP7: =AJO8+1 -> 2967-01-01 | AJQ7: =AJP8+1 -> 2968-01-01 | AJR7: =AJQ8+1 -> 2969-01-01 | AJS7: =AJR8+1 -> 2970-01-01 | AJT7: =AJS8+1 -> 2971-01-01 | AJU7: =AJT8+1 -> 2972-01-01 | AJV7: =AJU8+1 -> 2973-01-01 | AJW7: =AJV8+1 -> 2974-01-01 | AJX7: =AJW8+1 -> 2975-01-01 | AJY7: =AJX8+1 -> 2976-01-01 | AJZ7: =AJY8+1 -> 2977-01-01 | AKA7: =AJZ8+1 -> 2978-01-01 | AKB7: =AKA8+1 -> 2979-01-01 | AKC7: =AKB8+1 -> 2980-01-01 | AKD7: =AKC8+1 -> 2981-01-01 | AKE7: =AKD8+1 -> 2982-01-01 | AKF7: =AKE8+1 -> 2983-01-01 | AKG7: =AKF8+1 -> 2984-01-01 | AKH7: =AKG8+1 -> 2985-01-01 | AKI7: =AKH8+1 -> 2986-01-01 | AKJ7: =AKI8+1 -> 2987-01-01 | AKK7: =AKJ8+1 -> 2988-01-01 | AKL7: =AKK8+1 -> 2989-01-01 | AKM7: =AKL8+1 -> 2990-01-01 | AKN7: =AKM8+1 -> 2991-01-01 | AKO7: =AKN8+1 -> 2992-01-01 | AKP7: =AKO8+1 -> 2993-01-01 | AKQ7: =AKP8+1 -> 2994-01-01 | AKR7: =AKQ8+1 -> 2995-01-01 | AKS7: =AKR8+1 -> 2996-01-01 | AKT7: =AKS8+1 -> 2997-01-01 | AKU7: =AKT8+1 -> 2998-01-01 | AKV7: =AKU8+1 -> 2999-01-01 | AKW7: =AKV8+1 -> 3000-01-01 | AKX7: =AKW8+1 -> 3001-01-01 | AKY7: =AKX8+1 -> 3002-01-01 | AKZ7: =AKY8+1 -> 3003-01-01 | ALA7: =AKZ8+1 -> 3004-01-01 | ALB7: =ALA8+1 -> 3005-01-01 | ALC7: =ALB8+1 -> 3006-01-01 | ALD7: =ALC8+1 -> 3007-01-01 | ALE7: =ALD8+1 -> 3008-01-01 | ALF7: =ALE8+1 -> 3009-01-01 | ALG7: =ALF8+1 -> 3010-01-01 | ALH7: =ALG8+1 -> 3011-01-01 | ALI7: =ALH8+1 -> 3012-01-01 | ALJ7: =ALI8+1 -> 3013-01-01 | ALK7: =ALJ8+1 -> 3014-01-01 | ALL7: =ALK8+1 -> 3015-01-01 | ALM7: =ALL8+1 -> 3016-01-01 | ALN7: =ALM8+1 -> 3017-01-01 | ALO7: =ALN8+1 -> 3018-01-01 | ALP7: =ALO8+1 -> 3019-01-01 | ALQ7: =ALP8+1 -> 3020-01-01 | ALR7: =ALQ8+1 -> 3021-01-01 | ALS7: =ALR8+1 -> 3022-01-01 | ALT7: =ALS8+1 -> 3023-01-01 | ALU7: =ALT8+1 -> 3024-01-01 | ALV7: =ALU8+1 -> 3025-01-01
C8: End of period | E8: Date | I8: Date | J8: =InputC!F6-1 -> 2025-12-31 | K8: =EDATE(K7,K6)-1 -> 2026-12-31 | L8: =EDATE(L7,L6)-1 -> 2027-12-31 | M8: 2028-12-31 | N8: 2029-12-31 | O8: 2030-12-31 | P8: 2031-12-31 | Q8: 2032-12-31 | R8: 2033-12-31 | S8: 2034-12-31 | T8: 2035-12-31 | U8: 2036-12-31 | V8: 2037-12-31 | W8: 2038-12-31 | X8: 2039-12-31 | Y8: 2040-12-31 | Z8: 2041-12-31 | AA8: 2042-12-31 | AB8: 2043-12-31 | AC8: 2044-12-31 | AD8: 2045-12-31 | AE8: 2046-12-31 | AF8: 2047-12-31 | AG8: 2048-12-31 | AH8: 2049-12-31 | AI8: 2050-12-31 | AJ8: 2051-12-31 | AK8: 2052-12-31 | AL8: 2053-12-31 | AM8: 2054-12-31 | AN8: 2055-12-31 | AO8: 2056-12-31 | AP8: 2057-12-31 | AQ8: 2058-12-31 | AR8: 2059-12-31 | AS8: 2060-12-31 | AT8: 2061-12-31 | AU8: 2062-12-31 | AV8: 2063-12-31 | AW8: 2064-12-31 | AX8: 2065-12-31 | AY8: 2066-12-31 | AZ8: 2067-12-31 | BA8: 2068-12-31 | BB8: 2069-12-31 | BC8: 2070-12-31 | BD8: 2071-12-31 | BE8: 2072-12-31 | BF8: 2073-12-31 | BG8: 2074-12-31 | BH8: 2075-12-31 | BI8: 2076-12-31 | BJ8: 2077-12-31 | BK8: 2078-12-31 | BL8: 2079-12-31 | BM8: 2080-12-31 | BN8: 2081-12-31 | BO8: 2082-12-31 | BP8: 2083-12-31 | BQ8: 2084-12-31 | BR8: 2085-12-31 | BS8: 2086-12-31 | BT8: 2087-12-31 | BU8: 2088-12-31 | BV8: 2089-12-31 | BW8: 2090-12-31 | BX8: =EDATE(BX7,BX6)-1 -> 2091-12-31 | BY8: 2092-12-31 | BZ8: 2093-12-31 | CA8: 2094-12-31 | CB8: 2095-12-31 | CC8: 2096-12-31 | CD8: 2097-12-31 | CE8: 2098-12-31 | CF8: 2099-12-31 | CG8: 2100-12-31 | CH8: 2101-12-31 | CI8: 2102-12-31 | CJ8: 2103-12-31 | CK8: 2104-12-31 | CL8: 2105-12-31 | CM8: 2106-12-31 | CN8: 2107-12-31 | CO8: 2108-12-31 | CP8: 2109-12-31 | CQ8: 2110-12-31 | CR8: 2111-12-31 | CS8: 2112-12-31 | CT8: 2113-12-31 | CU8: 2114-12-31 | CV8: 2115-12-31 | CW8: 2116-12-31 | CX8: 2117-12-31 | CY8: 2118-12-31 | CZ8: 2119-12-31 | DA8: 2120-12-31 | DB8: 2121-12-31 | DC8: 2122-12-31 | DD8: 2123-12-31 | DE8: 2124-12-31 | DF8: 2125-12-31 | DG8: 2126-12-31 | DH8: 2127-12-31 | DI8: 2128-12-31 | DJ8: 2129-12-31 | DK8: 2130-12-31 | DL8: 2131-12-31 | DM8: 2132-12-31 | DN8: 2133-12-31 | DO8: 2134-12-31 | DP8: 2135-12-31 | DQ8: 2136-12-31 | DR8: 2137-12-31 | DS8: 2138-12-31 | DT8: 2139-12-31 | DU8: 2140-12-31 | DV8: 2141-12-31 | DW8: 2142-12-31 | DX8: 2143-12-31 | DY8: 2144-12-31 | DZ8: 2145-12-31 | EA8: 2146-12-31 | EB8: 2147-12-31 | EC8: 2148-12-31 | ED8: 2149-12-31 | EE8: 2150-12-31 | EF8: 2151-12-31 | EG8: 2152-12-31 | EH8: 2153-12-31 | EI8: 2154-12-31 | EJ8: =EDATE(EJ7,EJ6)-1 -> 2155-12-31 | EK8: 2156-12-31 | EL8: 2157-12-31 | EM8: 2158-12-31 | EN8: 2159-12-31 | EO8: 2160-12-31 | EP8: 2161-12-31 | EQ8: 2162-12-31 | ER8: 2163-12-31 | ES8: 2164-12-31 | ET8: 2165-12-31 | EU8: 2166-12-31 | EV8: 2167-12-31 | EW8: 2168-12-31 | EX8: 2169-12-31 | EY8: 2170-12-31 | EZ8: 2171-12-31 | FA8: 2172-12-31 | FB8: 2173-12-31 | FC8: 2174-12-31 | FD8: 2175-12-31 | FE8: 2176-12-31 | FF8: 2177-12-31 | FG8: 2178-12-31 | FH8: 2179-12-31 | FI8: 2180-12-31 | FJ8: 2181-12-31 | FK8: 2182-12-31 | FL8: 2183-12-31 | FM8: 2184-12-31 | FN8: 2185-12-31 | FO8: 2186-12-31 | FP8: 2187-12-31 | FQ8: 2188-12-31 | FR8: 2189-12-31 | FS8: 2190-12-31 | FT8: 2191-12-31 | FU8: 2192-12-31 | FV8: 2193-12-31 | FW8: 2194-12-31 | FX8: 2195-12-31 | FY8: 2196-12-31 | FZ8: 2197-12-31 | GA8: 2198-12-31 | GB8: 2199-12-31 | GC8: 2200-12-31 | GD8: 2201-12-31 | GE8: 2202-12-31 | GF8: 2203-12-31 | GG8: 2204-12-31 | GH8: 2205-12-31 | GI8: 2206-12-31 | GJ8: 2207-12-31 | GK8: 2208-12-31 | GL8: 2209-12-31 | GM8: 2210-12-31 | GN8: 2211-12-31 | GO8: 2212-12-31 | GP8: 2213-12-31 | GQ8: 2214-12-31 | GR8: 2215-12-31 | GS8: 2216-12-31 | GT8: 2217-12-31 | GU8: 2218-12-31 | GV8: =EDATE(GV7,GV6)-1 -> 2219-12-31 | GW8: 2220-12-31 | GX8: 2221-12-31 | GY8: 2222-12-31 | GZ8: 2223-12-31 | HA8: 2224-12-31 | HB8: 2225-12-31 | HC8: 2226-12-31 | HD8: 2227-12-31 | HE8: 2228-12-31 | HF8: 2229-12-31 | HG8: 2230-12-31 | HH8: 2231-12-31 | HI8: 2232-12-31 | HJ8: 2233-12-31 | HK8: 2234-12-31 | HL8: 2235-12-31 | HM8: 2236-12-31 | HN8: 2237-12-31 | HO8: 2238-12-31 | HP8: 2239-12-31 | HQ8: 2240-12-31 | HR8: 2241-12-31 | HS8: 2242-12-31 | HT8: 2243-12-31 | HU8: 2244-12-31 | HV8: 2245-12-31 | HW8: 2246-12-31 | HX8: 2247-12-31 | HY8: 2248-12-31 | HZ8: 2249-12-31 | IA8: 2250-12-31 | IB8: 2251-12-31 | IC8: 2252-12-31 | ID8: 2253-12-31 | IE8: 2254-12-31 | IF8: 2255-12-31 | IG8: 2256-12-31 | IH8: 2257-12-31 | II8: 2258-12-31 | IJ8: 2259-12-31 | IK8: 2260-12-31 | IL8: 2261-12-31 | IM8: 2262-12-31 | IN8: 2263-12-31 | IO8: 2264-12-31 | IP8: 2265-12-31 | IQ8: 2266-12-31 | IR8: 2267-12-31 | IS8: 2268-12-31 | IT8: 2269-12-31 | IU8: 2270-12-31 | IV8: 2271-12-31 | IW8: 2272-12-31 | IX8: 2273-12-31 | IY8: 2274-12-31 | IZ8: 2275-12-31 | JA8: 2276-12-31 | JB8: 2277-12-31 | JC8: 2278-12-31 | JD8: 2279-12-31 | JE8: 2280-12-31 | JF8: 2281-12-31 | JG8: 2282-12-31 | JH8: =EDATE(JH7,JH6)-1 -> 2283-12-31 | JI8: 2284-12-31 | JJ8: 2285-12-31 | JK8: 2286-12-31 | JL8: 2287-12-31 | JM8: 2288-12-31 | JN8: 2289-12-31 | JO8: 2290-12-31 | JP8: 2291-12-31 | JQ8: 2292-12-31 | JR8: 2293-12-31 | JS8: 2294-12-31 | JT8: 2295-12-31 | JU8: 2296-12-31 | JV8: 2297-12-31 | JW8: 2298-12-31 | JX8: 2299-12-31 | JY8: 2300-12-31 | JZ8: 2301-12-31 | KA8: 2302-12-31 | KB8: 2303-12-31 | KC8: 2304-12-31 | KD8: 2305-12-31 | KE8: 2306-12-31 | KF8: 2307-12-31 | KG8: 2308-12-31 | KH8: 2309-12-31 | KI8: 2310-12-31 | KJ8: 2311-12-31 | KK8: 2312-12-31 | KL8: 2313-12-31 | KM8: 2314-12-31 | KN8: 2315-12-31 | KO8: 2316-12-31 | KP8: 2317-12-31 | KQ8: 2318-12-31 | KR8: 2319-12-31 | KS8: 2320-12-31 | KT8: 2321-12-31 | KU8: 2322-12-31 | KV8: 2323-12-31 | KW8: 2324-12-31 | KX8: 2325-12-31 | KY8: 2326-12-31 | KZ8: 2327-12-31 | LA8: 2328-12-31 | LB8: 2329-12-31 | LC8: 2330-12-31 | LD8: 2331-12-31 | LE8: 2332-12-31 | LF8: 2333-12-31 | LG8: 2334-12-31 | LH8: 2335-12-31 | LI8: 2336-12-31 | LJ8: 2337-12-31 | LK8: 2338-12-31 | LL8: 2339-12-31 | LM8: 2340-12-31 | LN8: 2341-12-31 | LO8: 2342-12-31 | LP8: 2343-12-31 | LQ8: 2344-12-31 | LR8: 2345-12-31 | LS8: 2346-12-31 | LT8: =EDATE(LT7,LT6)-1 -> 2347-12-31 | LU8: 2348-12-31 | LV8: 2349-12-31 | LW8: 2350-12-31 | LX8: 2351-12-31 | LY8: 2352-12-31 | LZ8: 2353-12-31 | MA8: 2354-12-31 | MB8: 2355-12-31 | MC8: 2356-12-31 | MD8: 2357-12-31 | ME8: 2358-12-31 | MF8: 2359-12-31 | MG8: 2360-12-31 | MH8: 2361-12-31 | MI8: 2362-12-31 | MJ8: 2363-12-31 | MK8: 2364-12-31 | ML8: 2365-12-31 | MM8: 2366-12-31 | MN8: 2367-12-31 | MO8: 2368-12-31 | MP8: 2369-12-31 | MQ8: 2370-12-31 | MR8: 2371-12-31 | MS8: 2372-12-31 | MT8: 2373-12-31 | MU8: 2374-12-31 | MV8: 2375-12-31 | MW8: 2376-12-31 | MX8: 2377-12-31 | MY8: 2378-12-31 | MZ8: 2379-12-31 | NA8: 2380-12-31 | NB8: 2381-12-31 | NC8: 2382-12-31 | ND8: 2383-12-31 | NE8: 2384-12-31 | NF8: 2385-12-31 | NG8: 2386-12-31 | NH8: 2387-12-31 | NI8: 2388-12-31 | NJ8: 2389-12-31 | NK8: 2390-12-31 | NL8: 2391-12-31 | NM8: 2392-12-31 | NN8: 2393-12-31 | NO8: 2394-12-31 | NP8: 2395-12-31 | NQ8: 2396-12-31 | NR8: 2397-12-31 | NS8: 2398-12-31 | NT8: 2399-12-31 | NU8: 2400-12-31 | NV8: 2401-12-31 | NW8: 2402-12-31 | NX8: 2403-12-31 | NY8: 2404-12-31 | NZ8: 2405-12-31 | OA8: 2406-12-31 | OB8: 2407-12-31 | OC8: 2408-12-31 | OD8: 2409-12-31 | OE8: 2410-12-31 | OF8: =EDATE(OF7,OF6)-1 -> 2411-12-31 | OG8: 2412-12-31 | OH8: 2413-12-31 | OI8: 2414-12-31 | OJ8: 2415-12-31 | OK8: 2416-12-31 | OL8: 2417-12-31 | OM8: 2418-12-31 | ON8: 2419-12-31 | OO8: 2420-12-31 | OP8: 2421-12-31 | OQ8: 2422-12-31 | OR8: 2423-12-31 | OS8: 2424-12-31 | OT8: 2425-12-31 | OU8: 2426-12-31 | OV8: 2427-12-31 | OW8: 2428-12-31 | OX8: 2429-12-31 | OY8: 2430-12-31 | OZ8: 2431-12-31 | PA8: 2432-12-31 | PB8: 2433-12-31 | PC8: 2434-12-31 | PD8: 2435-12-31 | PE8: 2436-12-31 | PF8: 2437-12-31 | PG8: 2438-12-31 | PH8: 2439-12-31 | PI8: 2440-12-31 | PJ8: 2441-12-31 | PK8: 2442-12-31 | PL8: 2443-12-31 | PM8: 2444-12-31 | PN8: 2445-12-31 | PO8: 2446-12-31 | PP8: 2447-12-31 | PQ8: 2448-12-31 | PR8: 2449-12-31 | PS8: 2450-12-31 | PT8: 2451-12-31 | PU8: 2452-12-31 | PV8: 2453-12-31 | PW8: 2454-12-31 | PX8: 2455-12-31 | PY8: 2456-12-31 | PZ8: 2457-12-31 | QA8: 2458-12-31 | QB8: 2459-12-31 | QC8: 2460-12-31 | QD8: 2461-12-31 | QE8: 2462-12-31 | QF8: 2463-12-31 | QG8: 2464-12-31 | QH8: 2465-12-31 | QI8: 2466-12-31 | QJ8: 2467-12-31 | QK8: 2468-12-31 | QL8: 2469-12-31 | QM8: 2470-12-31 | QN8: 2471-12-31 | QO8: 2472-12-31 | QP8: 2473-12-31 | QQ8: 2474-12-31 | QR8: =EDATE(QR7,QR6)-1 -> 2475-12-31 | QS8: 2476-12-31 | QT8: 2477-12-31 | QU8: 2478-12-31 | QV8: 2479-12-31 | QW8: 2480-12-31 | QX8: 2481-12-31 | QY8: 2482-12-31 | QZ8: 2483-12-31 | RA8: 2484-12-31 | RB8: 2485-12-31 | RC8: 2486-12-31 | RD8: 2487-12-31 | RE8: 2488-12-31 | RF8: 2489-12-31 | RG8: 2490-12-31 | RH8: 2491-12-31 | RI8: 2492-12-31 | RJ8: 2493-12-31 | RK8: 2494-12-31 | RL8: 2495-12-31 | RM8: 2496-12-31 | RN8: 2497-12-31 | RO8: 2498-12-31 | RP8: 2499-12-31 | RQ8: 2500-12-31 | RR8: 2501-12-31 | RS8: 2502-12-31 | RT8: 2503-12-31 | RU8: 2504-12-31 | RV8: 2505-12-31 | RW8: 2506-12-31 | RX8: 2507-12-31 | RY8: 2508-12-31 | RZ8: 2509-12-31 | SA8: 2510-12-31 | SB8: 2511-12-31 | SC8: 2512-12-31 | SD8: 2513-12-31 | SE8: 2514-12-31 | SF8: 2515-12-31 | SG8: 2516-12-31 | SH8: 2517-12-31 | SI8: 2518-12-31 | SJ8: 2519-12-31 | SK8: 2520-12-31 | SL8: 2521-12-31 | SM8: 2522-12-31 | SN8: 2523-12-31 | SO8: 2524-12-31 | SP8: 2525-12-31 | SQ8: 2526-12-31 | SR8: 2527-12-31 | SS8: 2528-12-31 | ST8: 2529-12-31 | SU8: 2530-12-31 | SV8: 2531-12-31 | SW8: 2532-12-31 | SX8: 2533-12-31 | SY8: 2534-12-31 | SZ8: 2535-12-31 | TA8: 2536-12-31 | TB8: 2537-12-31 | TC8: 2538-12-31 | TD8: =EDATE(TD7,TD6)-1 -> 2539-12-31 | TE8: 2540-12-31 | TF8: 2541-12-31 | TG8: 2542-12-31 | TH8: 2543-12-31 | TI8: 2544-12-31 | TJ8: 2545-12-31 | TK8: 2546-12-31 | TL8: 2547-12-31 | TM8: 2548-12-31 | TN8: 2549-12-31 | TO8: 2550-12-31 | TP8: 2551-12-31 | TQ8: 2552-12-31 | TR8: 2553-12-31 | TS8: 2554-12-31 | TT8: 2555-12-31 | TU8: 2556-12-31 | TV8: 2557-12-31 | TW8: 2558-12-31 | TX8: 2559-12-31 | TY8: 2560-12-31 | TZ8: 2561-12-31 | UA8: 2562-12-31 | UB8: 2563-12-31 | UC8: 2564-12-31 | UD8: 2565-12-31 | UE8: 2566-12-31 | UF8: 2567-12-31 | UG8: 2568-12-31 | UH8: 2569-12-31 | UI8: 2570-12-31 | UJ8: 2571-12-31 | UK8: 2572-12-31 | UL8: 2573-12-31 | UM8: 2574-12-31 | UN8: 2575-12-31 | UO8: 2576-12-31 | UP8: 2577-12-31 | UQ8: 2578-12-31 | UR8: 2579-12-31 | US8: 2580-12-31 | UT8: 2581-12-31 | UU8: 2582-12-31 | UV8: 2583-12-31 | UW8: 2584-12-31 | UX8: 2585-12-31 | UY8: 2586-12-31 | UZ8: 2587-12-31 | VA8: 2588-12-31 | VB8: 2589-12-31 | VC8: 2590-12-31 | VD8: 2591-12-31 | VE8: 2592-12-31 | VF8: 2593-12-31 | VG8: 2594-12-31 | VH8: 2595-12-31 | VI8: 2596-12-31 | VJ8: 2597-12-31 | VK8: 2598-12-31 | VL8: 2599-12-31 | VM8: 2600-12-31 | VN8: 2601-12-31 | VO8: 2602-12-31 | VP8: =EDATE(VP7,VP6)-1 -> 2603-12-31 | VQ8: 2604-12-31 | VR8: 2605-12-31 | VS8: 2606-12-31 | VT8: 2607-12-31 | VU8: 2608-12-31 | VV8: 2609-12-31 | VW8: 2610-12-31 | VX8: 2611-12-31 | VY8: 2612-12-31 | VZ8: 2613-12-31 | WA8: 2614-12-31 | WB8: 2615-12-31 | WC8: 2616-12-31 | WD8: 2617-12-31 | WE8: 2618-12-31 | WF8: 2619-12-31 | WG8: 2620-12-31 | WH8: 2621-12-31 | WI8: 2622-12-31 | WJ8: 2623-12-31 | WK8: 2624-12-31 | WL8: 2625-12-31 | WM8: 2626-12-31 | WN8: 2627-12-31 | WO8: 2628-12-31 | WP8: 2629-12-31 | WQ8: 2630-12-31 | WR8: 2631-12-31 | WS8: 2632-12-31 | WT8: 2633-12-31 | WU8: 2634-12-31 | WV8: 2635-12-31 | WW8: 2636-12-31 | WX8: 2637-12-31 | WY8: 2638-12-31 | WZ8: 2639-12-31 | XA8: 2640-12-31 | XB8: 2641-12-31 | XC8: 2642-12-31 | XD8: 2643-12-31 | XE8: 2644-12-31 | XF8: 2645-12-31 | XG8: 2646-12-31 | XH8: 2647-12-31 | XI8: 2648-12-31 | XJ8: 2649-12-31 | XK8: 2650-12-31 | XL8: 2651-12-31 | XM8: 2652-12-31 | XN8: 2653-12-31 | XO8: 2654-12-31 | XP8: 2655-12-31 | XQ8: 2656-12-31 | XR8: 2657-12-31 | XS8: 2658-12-31 | XT8: 2659-12-31 | XU8: 2660-12-31 | XV8: 2661-12-31 | XW8: 2662-12-31 | XX8: 2663-12-31 | XY8: 2664-12-31 | XZ8: 2665-12-31 | YA8: 2666-12-31 | YB8: =EDATE(YB7,YB6)-1 -> 2667-12-31 | YC8: 2668-12-31 | YD8: 2669-12-31 | YE8: 2670-12-31 | YF8: 2671-12-31 | YG8: 2672-12-31 | YH8: 2673-12-31 | YI8: 2674-12-31 | YJ8: 2675-12-31 | YK8: 2676-12-31 | YL8: 2677-12-31 | YM8: 2678-12-31 | YN8: 2679-12-31 | YO8: 2680-12-31 | YP8: 2681-12-31 | YQ8: 2682-12-31 | YR8: 2683-12-31 | YS8: 2684-12-31 | YT8: 2685-12-31 | YU8: 2686-12-31 | YV8: 2687-12-31 | YW8: 2688-12-31 | YX8: 2689-12-31 | YY8: 2690-12-31 | YZ8: 2691-12-31 | ZA8: 2692-12-31 | ZB8: 2693-12-31 | ZC8: 2694-12-31 | ZD8: 2695-12-31 | ZE8: 2696-12-31 | ZF8: 2697-12-31 | ZG8: 2698-12-31 | ZH8: 2699-12-31 | ZI8: 2700-12-31 | ZJ8: 2701-12-31 | ZK8: 2702-12-31 | ZL8: 2703-12-31 | ZM8: 2704-12-31 | ZN8: 2705-12-31 | ZO8: 2706-12-31 | ZP8: 2707-12-31 | ZQ8: 2708-12-31 | ZR8: 2709-12-31 | ZS8: 2710-12-31 | ZT8: 2711-12-31 | ZU8: 2712-12-31 | ZV8: 2713-12-31 | ZW8: 2714-12-31 | ZX8: 2715-12-31 | ZY8: 2716-12-31 | ZZ8: 2717-12-31 | AAA8: 2718-12-31 | AAB8: 2719-12-31 | AAC8: 2720-12-31 | AAD8: 2721-12-31 | AAE8: 2722-12-31 | AAF8: 2723-12-31 | AAG8: 2724-12-31 | AAH8: 2725-12-31 | AAI8: 2726-12-31 | AAJ8: 2727-12-31 | AAK8: 2728-12-31 | AAL8: 2729-12-31 | AAM8: 2730-12-31 | AAN8: =EDATE(AAN7,AAN6)-1 -> 2731-12-31 | AAO8: 2732-12-31 | AAP8: 2733-12-31 | AAQ8: 2734-12-31 | AAR8: 2735-12-31 | AAS8: 2736-12-31 | AAT8: 2737-12-31 | AAU8: 2738-12-31 | AAV8: 2739-12-31 | AAW8: 2740-12-31 | AAX8: 2741-12-31 | AAY8: 2742-12-31 | AAZ8: 2743-12-31 | ABA8: 2744-12-31 | ABB8: 2745-12-31 | ABC8: 2746-12-31 | ABD8: 2747-12-31 | ABE8: 2748-12-31 | ABF8: 2749-12-31 | ABG8: 2750-12-31 | ABH8: 2751-12-31 | ABI8: 2752-12-31 | ABJ8: 2753-12-31 | ABK8: 2754-12-31 | ABL8: 2755-12-31 | ABM8: 2756-12-31 | ABN8: 2757-12-31 | ABO8: 2758-12-31 | ABP8: 2759-12-31 | ABQ8: 2760-12-31 | ABR8: 2761-12-31 | ABS8: 2762-12-31 | ABT8: 2763-12-31 | ABU8: 2764-12-31 | ABV8: 2765-12-31 | ABW8: 2766-12-31 | ABX8: 2767-12-31 | ABY8: 2768-12-31 | ABZ8: 2769-12-31 | ACA8: 2770-12-31 | ACB8: 2771-12-31 | ACC8: 2772-12-31 | ACD8: 2773-12-31 | ACE8: 2774-12-31 | ACF8: 2775-12-31 | ACG8: 2776-12-31 | ACH8: 2777-12-31 | ACI8: 2778-12-31 | ACJ8: 2779-12-31 | ACK8: 2780-12-31 | ACL8: 2781-12-31 | ACM8: 2782-12-31 | ACN8: 2783-12-31 | ACO8: 2784-12-31 | ACP8: 2785-12-31 | ACQ8: 2786-12-31 | ACR8: 2787-12-31 | ACS8: 2788-12-31 | ACT8: 2789-12-31 | ACU8: 2790-12-31 | ACV8: 2791-12-31 | ACW8: 2792-12-31 | ACX8: 2793-12-31 | ACY8: 2794-12-31 | ACZ8: =EDATE(ACZ7,ACZ6)-1 -> 2795-12-31 | ADA8: 2796-12-31 | ADB8: 2797-12-31 | ADC8: 2798-12-31 | ADD8: 2799-12-31 | ADE8: 2800-12-31 | ADF8: 2801-12-31 | ADG8: 2802-12-31 | ADH8: 2803-12-31 | ADI8: 2804-12-31 | ADJ8: 2805-12-31 | ADK8: 2806-12-31 | ADL8: 2807-12-31 | ADM8: 2808-12-31 | ADN8: 2809-12-31 | ADO8: 2810-12-31 | ADP8: 2811-12-31 | ADQ8: 2812-12-31 | ADR8: 2813-12-31 | ADS8: 2814-12-31 | ADT8: 2815-12-31 | ADU8: 2816-12-31 | ADV8: 2817-12-31 | ADW8: 2818-12-31 | ADX8: 2819-12-31 | ADY8: 2820-12-31 | ADZ8: 2821-12-31 | AEA8: 2822-12-31 | AEB8: 2823-12-31 | AEC8: 2824-12-31 | AED8: 2825-12-31 | AEE8: 2826-12-31 | AEF8: 2827-12-31 | AEG8: 2828-12-31 | AEH8: 2829-12-31 | AEI8: 2830-12-31 | AEJ8: 2831-12-31 | AEK8: 2832-12-31 | AEL8: 2833-12-31 | AEM8: 2834-12-31 | AEN8: 2835-12-31 | AEO8: 2836-12-31 | AEP8: 2837-12-31 | AEQ8: 2838-12-31 | AER8: 2839-12-31 | AES8: 2840-12-31 | AET8: 2841-12-31 | AEU8: 2842-12-31 | AEV8: 2843-12-31 | AEW8: 2844-12-31 | AEX8: 2845-12-31 | AEY8: 2846-12-31 | AEZ8: 2847-12-31 | AFA8: 2848-12-31 | AFB8: 2849-12-31 | AFC8: 2850-12-31 | AFD8: 2851-12-31 | AFE8: 2852-12-31 | AFF8: 2853-12-31 | AFG8: 2854-12-31 | AFH8: 2855-12-31 | AFI8: 2856-12-31 | AFJ8: 2857-12-31 | AFK8: 2858-12-31 | AFL8: =EDATE(AFL7,AFL6)-1 -> 2859-12-31 | AFM8: 2860-12-31 | AFN8: 2861-12-31 | AFO8: 2862-12-31 | AFP8: 2863-12-31 | AFQ8: 2864-12-31 | AFR8: 2865-12-31 | AFS8: 2866-12-31 | AFT8: 2867-12-31 | AFU8: 2868-12-31 | AFV8: 2869-12-31 | AFW8: 2870-12-31 | AFX8: 2871-12-31 | AFY8: 2872-12-31 | AFZ8: 2873-12-31 | AGA8: 2874-12-31 | AGB8: 2875-12-31 | AGC8: 2876-12-31 | AGD8: 2877-12-31 | AGE8: 2878-12-31 | AGF8: 2879-12-31 | AGG8: 2880-12-31 | AGH8: 2881-12-31 | AGI8: 2882-12-31 | AGJ8: 2883-12-31 | AGK8: 2884-12-31 | AGL8: 2885-12-31 | AGM8: 2886-12-31 | AGN8: 2887-12-31 | AGO8: 2888-12-31 | AGP8: 2889-12-31 | AGQ8: 2890-12-31 | AGR8: 2891-12-31 | AGS8: 2892-12-31 | AGT8: 2893-12-31 | AGU8: 2894-12-31 | AGV8: 2895-12-31 | AGW8: 2896-12-31 | AGX8: 2897-12-31 | AGY8: 2898-12-31 | AGZ8: 2899-12-31 | AHA8: 2900-12-31 | AHB8: 2901-12-31 | AHC8: 2902-12-31 | AHD8: 2903-12-31 | AHE8: 2904-12-31 | AHF8: 2905-12-31 | AHG8: 2906-12-31 | AHH8: 2907-12-31 | AHI8: 2908-12-31 | AHJ8: 2909-12-31 | AHK8: 2910-12-31 | AHL8: 2911-12-31 | AHM8: 2912-12-31 | AHN8: 2913-12-31 | AHO8: 2914-12-31 | AHP8: 2915-12-31 | AHQ8: 2916-12-31 | AHR8: 2917-12-31 | AHS8: 2918-12-31 | AHT8: 2919-12-31 | AHU8: 2920-12-31 | AHV8: 2921-12-31 | AHW8: 2922-12-31 | AHX8: =EDATE(AHX7,AHX6)-1 -> 2923-12-31 | AHY8: 2924-12-31 | AHZ8: 2925-12-31 | AIA8: 2926-12-31 | AIB8: 2927-12-31 | AIC8: 2928-12-31 | AID8: 2929-12-31 | AIE8: 2930-12-31 | AIF8: 2931-12-31 | AIG8: 2932-12-31 | AIH8: 2933-12-31 | AII8: 2934-12-31 | AIJ8: 2935-12-31 | AIK8: 2936-12-31 | AIL8: 2937-12-31 | AIM8: 2938-12-31 | AIN8: 2939-12-31 | AIO8: 2940-12-31 | AIP8: 2941-12-31 | AIQ8: 2942-12-31 | AIR8: 2943-12-31 | AIS8: 2944-12-31 | AIT8: 2945-12-31 | AIU8: 2946-12-31 | AIV8: 2947-12-31 | AIW8: 2948-12-31 | AIX8: 2949-12-31 | AIY8: 2950-12-31 | AIZ8: 2951-12-31 | AJA8: 2952-12-31 | AJB8: 2953-12-31 | AJC8: 2954-12-31 | AJD8: 2955-12-31 | AJE8: 2956-12-31 | AJF8: 2957-12-31 | AJG8: 2958-12-31 | AJH8: 2959-12-31 | AJI8: 2960-12-31 | AJJ8: 2961-12-31 | AJK8: 2962-12-31 | AJL8: 2963-12-31 | AJM8: 2964-12-31 | AJN8: 2965-12-31 | AJO8: 2966-12-31 | AJP8: 2967-12-31 | AJQ8: 2968-12-31 | AJR8: 2969-12-31 | AJS8: 2970-12-31 | AJT8: 2971-12-31 | AJU8: 2972-12-31 | AJV8: 2973-12-31 | AJW8: 2974-12-31 | AJX8: 2975-12-31 | AJY8: 2976-12-31 | AJZ8: 2977-12-31 | AKA8: 2978-12-31 | AKB8: 2979-12-31 | AKC8: 2980-12-31 | AKD8: 2981-12-31 | AKE8: 2982-12-31 | AKF8: 2983-12-31 | AKG8: 2984-12-31 | AKH8: 2985-12-31 | AKI8: 2986-12-31 | AKJ8: =EDATE(AKJ7,AKJ6)-1 -> 2987-12-31 | AKK8: 2988-12-31 | AKL8: 2989-12-31 | AKM8: 2990-12-31 | AKN8: 2991-12-31 | AKO8: 2992-12-31 | AKP8: 2993-12-31 | AKQ8: 2994-12-31 | AKR8: 2995-12-31 | AKS8: 2996-12-31 | AKT8: 2997-12-31 | AKU8: 2998-12-31 | AKV8: 2999-12-31 | AKW8: 3000-12-31 | AKX8: 3001-12-31 | AKY8: 3002-12-31 | AKZ8: 3003-12-31 | ALA8: 3004-12-31 | ALB8: 3005-12-31 | ALC8: 3006-12-31 | ALD8: 3007-12-31 | ALE8: 3008-12-31 | ALF8: 3009-12-31 | ALG8: 3010-12-31 | ALH8: 3011-12-31 | ALI8: 3012-12-31 | ALJ8: 3013-12-31 | ALK8: 3014-12-31 | ALL8: 3015-12-31 | ALM8: 3016-12-31 | ALN8: 3017-12-31 | ALO8: 3018-12-31 | ALP8: 3019-12-31 | ALQ8: 3020-12-31 | ALR8: 3021-12-31 | ALS8: 3022-12-31 | ALT8: 3023-12-31 | ALU8: 3024-12-31 | ALV8: 3025-12-31
C9: Operation period | E9: Flag | F9: =InputC!F9 -> 2027-01-01 | G9: =InputC!F14 -> 2062-01-01 | H9: =SUM(K9:XFD9) -> 35 | I9: Flag | K9: =(AND(K7>=$F$9,K7<$G$9))*1 -> 0 | L9: =(AND(L7>=$F$9,L7<$G$9))*1 -> 1 | M9: 1 | N9: 1 | O9: 1 | P9: 1 | Q9: 1 | R9: 1 | S9: 1 | T9: 1 | U9: 1 | V9: 1 | W9: 1 | X9: 1 | Y9: 1 | Z9: 1 | AA9: 1 | AB9: 1 | AC9: 1 | AD9: 1 | AE9: 1 | AF9: 1 | AG9: 1 | AH9: 1 | AI9: 1 | AJ9: 1 | AK9: 1 | AL9: 1 | AM9: 1 | AN9: 1 | AO9: 1 | AP9: 1 | AQ9: 1 | AR9: 1 | AS9: 1 | AT9: 1 | AU9: 0 | AV9: 0 | AW9: 0 | AX9: 0 | AY9: 0 | AZ9: 0 | BA9: 0 | BB9: 0 | BC9: 0 | BD9: 0 | BE9: 0 | BF9: 0 | BG9: 0 | BH9: 0 | BI9: 0 | BJ9: 0 | BK9: 0 | BL9: 0 | BM9: 0 | BN9: 0 | BO9: 0 | BP9: 0 | BQ9: 0 | BR9: 0 | BS9: 0 | BT9: 0 | BU9: 0 | BV9: 0 | BW9: 0 | BX9: =(AND(BX7>=$F$9,BX7<$G$9))*1 -> 0 | BY9: 0 | BZ9: 0 | CA9: 0 | CB9: 0 | CC9: 0 | CD9: 0 | CE9: 0 | CF9: 0 | CG9: 0 | CH9: 0 | CI9: 0 | CJ9: 0 | CK9: 0 | CL9: 0 | CM9: 0 | CN9: 0 | CO9: 0 | CP9: 0 | CQ9: 0 | CR9: 0 | CS9: 0 | CT9: 0 | CU9: 0 | CV9: 0 | CW9: 0 | CX9: 0 | CY9: 0 | CZ9: 0 | DA9: 0 | DB9: 0 | DC9: 0 | DD9: 0 | DE9: 0 | DF9: 0 | DG9: 0 | DH9: 0 | DI9: 0 | DJ9: 0 | DK9: 0 | DL9: 0 | DM9: 0 | DN9: 0 | DO9: 0 | DP9: 0 | DQ9: 0 | DR9: 0 | DS9: 0 | DT9: 0 | DU9: 0 | DV9: 0 | DW9: 0 | DX9: 0 | DY9: 0 | DZ9: 0 | EA9: 0 | EB9: 0 | EC9: 0 | ED9: 0 | EE9: 0 | EF9: 0 | EG9: 0 | EH9: 0 | EI9: 0 | EJ9: =(AND(EJ7>=$F$9,EJ7<$G$9))*1 -> 0 | EK9: 0 | EL9: 0 | EM9: 0 | EN9: 0 | EO9: 0 | EP9: 0 | EQ9: 0 | ER9: 0 | ES9: 0 | ET9: 0 | EU9: 0 | EV9: 0 | EW9: 0 | EX9: 0 | EY9: 0 | EZ9: 0 | FA9: 0 | FB9: 0 | FC9: 0 | FD9: 0 | FE9: 0 | FF9: 0 | FG9: 0 | FH9: 0 | FI9: 0 | FJ9: 0 | FK9: 0 | FL9: 0 | FM9: 0 | FN9: 0 | FO9: 0 | FP9: 0 | FQ9: 0 | FR9: 0 | FS9: 0 | FT9: 0 | FU9: 0 | FV9: 0 | FW9: 0 | FX9: 0 | FY9: 0 | FZ9: 0 | GA9: 0 | GB9: 0 | GC9: 0 | GD9: 0 | GE9: 0 | GF9: 0 | GG9: 0 | GH9: 0 | GI9: 0 | GJ9: 0 | GK9: 0 | GL9: 0 | GM9: 0 | GN9: 0 | GO9: 0 | GP9: 0 | GQ9: 0 | GR9: 0 | GS9: 0 | GT9: 0 | GU9: 0 | GV9: =(AND(GV7>=$F$9,GV7<$G$9))*1 -> 0 | GW9: 0 | GX9: 0 | GY9: 0 | GZ9: 0 | HA9: 0 | HB9: 0 | HC9: 0 | HD9: 0 | HE9: 0 | HF9: 0 | HG9: 0 | HH9: 0 | HI9: 0 | HJ9: 0 | HK9: 0 | HL9: 0 | HM9: 0 | HN9: 0 | HO9: 0 | HP9: 0 | HQ9: 0 | HR9: 0 | HS9: 0 | HT9: 0 | HU9: 0 | HV9: 0 | HW9: 0 | HX9: 0 | HY9: 0 | HZ9: 0 | IA9: 0 | IB9: 0 | IC9: 0 | ID9: 0 | IE9: 0 | IF9: 0 | IG9: 0 | IH9: 0 | II9: 0 | IJ9: 0 | IK9: 0 | IL9: 0 | IM9: 0 | IN9: 0 | IO9: 0 | IP9: 0 | IQ9: 0 | IR9: 0 | IS9: 0 | IT9: 0 | IU9: 0 | IV9: 0 | IW9: 0 | IX9: 0 | IY9: 0 | IZ9: 0 | JA9: 0 | JB9: 0 | JC9: 0 | JD9: 0 | JE9: 0 | JF9: 0 | JG9: 0 | JH9: =(AND(JH7>=$F$9,JH7<$G$9))*1 -> 0 | JI9: 0 | JJ9: 0 | JK9: 0 | JL9: 0 | JM9: 0 | JN9: 0 | JO9: 0 | JP9: 0 | JQ9: 0 | JR9: 0 | JS9: 0 | JT9: 0 | JU9: 0 | JV9: 0 | JW9: 0 | JX9: 0 | JY9: 0 | JZ9: 0 | KA9: 0 | KB9: 0 | KC9: 0 | KD9: 0 | KE9: 0 | KF9: 0 | KG9: 0 | KH9: 0 | KI9: 0 | KJ9: 0 | KK9: 0 | KL9: 0 | KM9: 0 | KN9: 0 | KO9: 0 | KP9: 0 | KQ9: 0 | KR9: 0 | KS9: 0 | KT9: 0 | KU9: 0 | KV9: 0 | KW9: 0 | KX9: 0 | KY9: 0 | KZ9: 0 | LA9: 0 | LB9: 0 | LC9: 0 | LD9: 0 | LE9: 0 | LF9: 0 | LG9: 0 | LH9: 0 | LI9: 0 | LJ9: 0 | LK9: 0 | LL9: 0 | LM9: 0 | LN9: 0 | LO9: 0 | LP9: 0 | LQ9: 0 | LR9: 0 | LS9: 0 | LT9: =(AND(LT7>=$F$9,LT7<$G$9))*1 -> 0 | LU9: 0 | LV9: 0 | LW9: 0 | LX9: 0 | LY9: 0 | LZ9: 0 | MA9: 0 | MB9: 0 | MC9: 0 | MD9: 0 | ME9: 0 | MF9: 0 | MG9: 0 | MH9: 0 | MI9: 0 | MJ9: 0 | MK9: 0 | ML9: 0 | MM9: 0 | MN9: 0 | MO9: 0 | MP9: 0 | MQ9: 0 | MR9: 0 | MS9: 0 | MT9: 0 | MU9: 0 | MV9: 0 | MW9: 0 | MX9: 0 | MY9: 0 | MZ9: 0 | NA9: 0 | NB9: 0 | NC9: 0 | ND9: 0 | NE9: 0 | NF9: 0 | NG9: 0 | NH9: 0 | NI9: 0 | NJ9: 0 | NK9: 0 | NL9: 0 | NM9: 0 | NN9: 0 | NO9: 0 | NP9: 0 | NQ9: 0 | NR9: 0 | NS9: 0 | NT9: 0 | NU9: 0 | NV9: 0 | NW9: 0 | NX9: 0 | NY9: 0 | NZ9: 0 | OA9: 0 | OB9: 0 | OC9: 0 | OD9: 0 | OE9: 0 | OF9: =(AND(OF7>=$F$9,OF7<$G$9))*1 -> 0 | OG9: 0 | OH9: 0 | OI9: 0 | OJ9: 0 | OK9: 0 | OL9: 0 | OM9: 0 | ON9: 0 | OO9: 0 | OP9: 0 | OQ9: 0 | OR9: 0 | OS9: 0 | OT9: 0 | OU9: 0 | OV9: 0 | OW9: 0 | OX9: 0 | OY9: 0 | OZ9: 0 | PA9: 0 | PB9: 0 | PC9: 0 | PD9: 0 | PE9: 0 | PF9: 0 | PG9: 0 | PH9: 0 | PI9: 0 | PJ9: 0 | PK9: 0 | PL9: 0 | PM9: 0 | PN9: 0 | PO9: 0 | PP9: 0 | PQ9: 0 | PR9: 0 | PS9: 0 | PT9: 0 | PU9: 0 | PV9: 0 | PW9: 0 | PX9: 0 | PY9: 0 | PZ9: 0 | QA9: 0 | QB9: 0 | QC9: 0 | QD9: 0 | QE9: 0 | QF9: 0 | QG9: 0 | QH9: 0 | QI9: 0 | QJ9: 0 | QK9: 0 | QL9: 0 | QM9: 0 | QN9: 0 | QO9: 0 | QP9: 0 | QQ9: 0 | QR9: =(AND(QR7>=$F$9,QR7<$G$9))*1 -> 0 | QS9: 0 | QT9: 0 | QU9: 0 | QV9: 0 | QW9: 0 | QX9: 0 | QY9: 0 | QZ9: 0 | RA9: 0 | RB9: 0 | RC9: 0 | RD9: 0 | RE9: 0 | RF9: 0 | RG9: 0 | RH9: 0 | RI9: 0 | RJ9: 0 | RK9: 0 | RL9: 0 | RM9: 0 | RN9: 0 | RO9: 0 | RP9: 0 | RQ9: 0 | RR9: 0 | RS9: 0 | RT9: 0 | RU9: 0 | RV9: 0 | RW9: 0 | RX9: 0 | RY9: 0 | RZ9: 0 | SA9: 0 | SB9: 0 | SC9: 0 | SD9: 0 | SE9: 0 | SF9: 0 | SG9: 0 | SH9: 0 | SI9: 0 | SJ9: 0 | SK9: 0 | SL9: 0 | SM9: 0 | SN9: 0 | SO9: 0 | SP9: 0 | SQ9: 0 | SR9: 0 | SS9: 0 | ST9: 0 | SU9: 0 | SV9: 0 | SW9: 0 | SX9: 0 | SY9: 0 | SZ9: 0 | TA9: 0 | TB9: 0 | TC9: 0 | TD9: =(AND(TD7>=$F$9,TD7<$G$9))*1 -> 0 | TE9: 0 | TF9: 0 | TG9: 0 | TH9: 0 | TI9: 0 | TJ9: 0 | TK9: 0 | TL9: 0 | TM9: 0 | TN9: 0 | TO9: 0 | TP9: 0 | TQ9: 0 | TR9: 0 | TS9: 0 | TT9: 0 | TU9: 0 | TV9: 0 | TW9: 0 | TX9: 0 | TY9: 0 | TZ9: 0 | UA9: 0 | UB9: 0 | UC9: 0 | UD9: 0 | UE9: 0 | UF9: 0 | UG9: 0 | UH9: 0 | UI9: 0 | UJ9: 0 | UK9: 0 | UL9: 0 | UM9: 0 | UN9: 0 | UO9: 0 | UP9: 0 | UQ9: 0 | UR9: 0 | US9: 0 | UT9: 0 | UU9: 0 | UV9: 0 | UW9: 0 | UX9: 0 | UY9: 0 | UZ9: 0 | VA9: 0 | VB9: 0 | VC9: 0 | VD9: 0 | VE9: 0 | VF9: 0 | VG9: 0 | VH9: 0 | VI9: 0 | VJ9: 0 | VK9: 0 | VL9: 0 | VM9: 0 | VN9: 0 | VO9: 0 | VP9: =(AND(VP7>=$F$9,VP7<$G$9))*1 -> 0 | VQ9: 0 | VR9: 0 | VS9: 0 | VT9: 0 | VU9: 0 | VV9: 0 | VW9: 0 | VX9: 0 | VY9: 0 | VZ9: 0 | WA9: 0 | WB9: 0 | WC9: 0 | WD9: 0 | WE9: 0 | WF9: 0 | WG9: 0 | WH9: 0 | WI9: 0 | WJ9: 0 | WK9: 0 | WL9: 0 | WM9: 0 | WN9: 0 | WO9: 0 | WP9: 0 | WQ9: 0 | WR9: 0 | WS9: 0 | WT9: 0 | WU9: 0 | WV9: 0 | WW9: 0 | WX9: 0 | WY9: 0 | WZ9: 0 | XA9: 0 | XB9: 0 | XC9: 0 | XD9: 0 | XE9: 0 | XF9: 0 | XG9: 0 | XH9: 0 | XI9: 0 | XJ9: 0 | XK9: 0 | XL9: 0 | XM9: 0 | XN9: 0 | XO9: 0 | XP9: 0 | XQ9: 0 | XR9: 0 | XS9: 0 | XT9: 0 | XU9: 0 | XV9: 0 | XW9: 0 | XX9: 0 | XY9: 0 | XZ9: 0 | YA9: 0 | YB9: =(AND(YB7>=$F$9,YB7<$G$9))*1 -> 0 | YC9: 0 | YD9: 0 | YE9: 0 | YF9: 0 | YG9: 0 | YH9: 0 | YI9: 0 | YJ9: 0 | YK9: 0 | YL9: 0 | YM9: 0 | YN9: 0 | YO9: 0 | YP9: 0 | YQ9: 0 | YR9: 0 | YS9: 0 | YT9: 0 | YU9: 0 | YV9: 0 | YW9: 0 | YX9: 0 | YY9: 0 | YZ9: 0 | ZA9: 0 | ZB9: 0 | ZC9: 0 | ZD9: 0 | ZE9: 0 | ZF9: 0 | ZG9: 0 | ZH9: 0 | ZI9: 0 | ZJ9: 0 | ZK9: 0 | ZL9: 0 | ZM9: 0 | ZN9: 0 | ZO9: 0 | ZP9: 0 | ZQ9: 0 | ZR9: 0 | ZS9: 0 | ZT9: 0 | ZU9: 0 | ZV9: 0 | ZW9: 0 | ZX9: 0 | ZY9: 0 | ZZ9: 0 | AAA9: 0 | AAB9: 0 | AAC9: 0 | AAD9: 0 | AAE9: 0 | AAF9: 0 | AAG9: 0 | AAH9: 0 | AAI9: 0 | AAJ9: 0 | AAK9: 0 | AAL9: 0 | AAM9: 0 | AAN9: =(AND(AAN7>=$F$9,AAN7<$G$9))*1 -> 0 | AAO9: 0 | AAP9: 0 | AAQ9: 0 | AAR9: 0 | AAS9: 0 | AAT9: 0 | AAU9: 0 | AAV9: 0 | AAW9: 0 | AAX9: 0 | AAY9: 0 | AAZ9: 0 | ABA9: 0 | ABB9: 0 | ABC9: 0 | ABD9: 0 | ABE9: 0 | ABF9: 0 | ABG9: 0 | ABH9: 0 | ABI9: 0 | ABJ9: 0 | ABK9: 0 | ABL9: 0 | ABM9: 0 | ABN9: 0 | ABO9: 0 | ABP9: 0 | ABQ9: 0 | ABR9: 0 | ABS9: 0 | ABT9: 0 | ABU9: 0 | ABV9: 0 | ABW9: 0 | ABX9: 0 | ABY9: 0 | ABZ9: 0 | ACA9: 0 | ACB9: 0 | ACC9: 0 | ACD9: 0 | ACE9: 0 | ACF9: 0 | ACG9: 0 | ACH9: 0 | ACI9: 0 | ACJ9: 0 | ACK9: 0 | ACL9: 0 | ACM9: 0 | ACN9: 0 | ACO9: 0 | ACP9: 0 | ACQ9: 0 | ACR9: 0 | ACS9: 0 | ACT9: 0 | ACU9: 0 | ACV9: 0 | ACW9: 0 | ACX9: 0 | ACY9: 0 | ACZ9: =(AND(ACZ7>=$F$9,ACZ7<$G$9))*1 -> 0 | ADA9: 0 | ADB9: 0 | ADC9: 0 | ADD9: 0 | ADE9: 0 | ADF9: 0 | ADG9: 0 | ADH9: 0 | ADI9: 0 | ADJ9: 0 | ADK9: 0 | ADL9: 0 | ADM9: 0 | ADN9: 0 | ADO9: 0 | ADP9: 0 | ADQ9: 0 | ADR9: 0 | ADS9: 0 | ADT9: 0 | ADU9: 0 | ADV9: 0 | ADW9: 0 | ADX9: 0 | ADY9: 0 | ADZ9: 0 | AEA9: 0 | AEB9: 0 | AEC9: 0 | AED9: 0 | AEE9: 0 | AEF9: 0 | AEG9: 0 | AEH9: 0 | AEI9: 0 | AEJ9: 0 | AEK9: 0 | AEL9: 0 | AEM9: 0 | AEN9: 0 | AEO9: 0 | AEP9: 0 | AEQ9: 0 | AER9: 0 | AES9: 0 | AET9: 0 | AEU9: 0 | AEV9: 0 | AEW9: 0 | AEX9: 0 | AEY9: 0 | AEZ9: 0 | AFA9: 0 | AFB9: 0 | AFC9: 0 | AFD9: 0 | AFE9: 0 | AFF9: 0 | AFG9: 0 | AFH9: 0 | AFI9: 0 | AFJ9: 0 | AFK9: 0 | AFL9: =(AND(AFL7>=$F$9,AFL7<$G$9))*1 -> 0 | AFM9: 0 | AFN9: 0 | AFO9: 0 | AFP9: 0 | AFQ9: 0 | AFR9: 0 | AFS9: 0 | AFT9: 0 | AFU9: 0 | AFV9: 0 | AFW9: 0 | AFX9: 0 | AFY9: 0 | AFZ9: 0 | AGA9: 0 | AGB9: 0 | AGC9: 0 | AGD9: 0 | AGE9: 0 | AGF9: 0 | AGG9: 0 | AGH9: 0 | AGI9: 0 | AGJ9: 0 | AGK9: 0 | AGL9: 0 | AGM9: 0 | AGN9: 0 | AGO9: 0 | AGP9: 0 | AGQ9: 0 | AGR9: 0 | AGS9: 0 | AGT9: 0 | AGU9: 0 | AGV9: 0 | AGW9: 0 | AGX9: 0 | AGY9: 0 | AGZ9: 0 | AHA9: 0 | AHB9: 0 | AHC9: 0 | AHD9: 0 | AHE9: 0 | AHF9: 0 | AHG9: 0 | AHH9: 0 | AHI9: 0 | AHJ9: 0 | AHK9: 0 | AHL9: 0 | AHM9: 0 | AHN9: 0 | AHO9: 0 | AHP9: 0 | AHQ9: 0 | AHR9: 0 | AHS9: 0 | AHT9: 0 | AHU9: 0 | AHV9: 0 | AHW9: 0 | AHX9: =(AND(AHX7>=$F$9,AHX7<$G$9))*1 -> 0 | AHY9: 0 | AHZ9: 0 | AIA9: 0 | AIB9: 0 | AIC9: 0 | AID9: 0 | AIE9: 0 | AIF9: 0 | AIG9: 0 | AIH9: 0 | AII9: 0 | AIJ9: 0 | AIK9: 0 | AIL9: 0 | AIM9: 0 | AIN9: 0 | AIO9: 0 | AIP9: 0 | AIQ9: 0 | AIR9: 0 | AIS9: 0 | AIT9: 0 | AIU9: 0 | AIV9: 0 | AIW9: 0 | AIX9: 0 | AIY9: 0 | AIZ9: 0 | AJA9: 0 | AJB9: 0 | AJC9: 0 | AJD9: 0 | AJE9: 0 | AJF9: 0 | AJG9: 0 | AJH9: 0 | AJI9: 0 | AJJ9: 0 | AJK9: 0 | AJL9: 0 | AJM9: 0 | AJN9: 0 | AJO9: 0 | AJP9: 0 | AJQ9: 0 | AJR9: 0 | AJS9: 0 | AJT9: 0 | AJU9: 0 | AJV9: 0 | AJW9: 0 | AJX9: 0 | AJY9: 0 | AJZ9: 0 | AKA9: 0 | AKB9: 0 | AKC9: 0 | AKD9: 0 | AKE9: 0 | AKF9: 0 | AKG9: 0 | AKH9: 0 | AKI9: 0 | AKJ9: =(AND(AKJ7>=$F$9,AKJ7<$G$9))*1 -> 0 | AKK9: 0 | AKL9: 0 | AKM9: 0 | AKN9: 0 | AKO9: 0 | AKP9: 0 | AKQ9: 0 | AKR9: 0 | AKS9: 0 | AKT9: 0 | AKU9: 0 | AKV9: 0 | AKW9: 0 | AKX9: 0 | AKY9: 0 | AKZ9: 0 | ALA9: 0 | ALB9: 0 | ALC9: 0 | ALD9: 0 | ALE9: 0 | ALF9: 0 | ALG9: 0 | ALH9: 0 | ALI9: 0 | ALJ9: 0 | ALK9: 0 | ALL9: 0 | ALM9: 0 | ALN9: 0 | ALO9: 0 | ALP9: 0 | ALQ9: 0 | ALR9: 0 | ALS9: 0 | ALT9: 0 | ALU9: 0 | ALV9: 0
B11: Operations
C13: Total Cost | E13: EUR | F13: =InputC!F18 -> 1000000 | I13: EUR | K13: =$F$13 -> 1000000 | L13: 1000000 | M13: 1000000 | N13: 1000000 | O13: 1000000 | P13: 1000000 | Q13: 1000000 | R13: 1000000 | S13: 1000000 | T13: 1000000 | U13: 1000000 | V13: 1000000 | W13: 1000000 | X13: 1000000 | Y13: 1000000 | Z13: 1000000 | AA13: 1000000 | AB13: 1000000 | AC13: 1000000 | AD13: 1000000 | AE13: 1000000 | AF13: 1000000 | AG13: 1000000 | AH13: 1000000 | AI13: 1000000 | AJ13: 1000000 | AK13: 1000000 | AL13: 1000000 | AM13: 1000000 | AN13: 1000000 | AO13: 1000000 | AP13: 1000000 | AQ13: 1000000 | AR13: 1000000 | AS13: 1000000 | AT13: 1000000 | AU13: 1000000 | AV13: 1000000 | AW13: 1000000 | AX13: 1000000 | AY13: 1000000 | AZ13: 1000000 | BA13: 1000000 | BB13: 1000000 | BC13: 1000000 | BD13: 1000000 | BE13: 1000000 | BF13: 1000000 | BG13: 1000000 | BH13: 1000000 | BI13: 1000000 | BJ13: 1000000 | BK13: 1000000 | BL13: 1000000 | BM13: 1000000 | BN13: 1000000 | BO13: 1000000 | BP13: 1000000 | BQ13: 1000000 | BR13: 1000000 | BS13: 1000000 | BT13: 1000000 | BU13: 1000000 | BV13: 1000000 | BW13: =$F$13 -> 1000000 | BX13: 1000000 | BY13: 1000000 | BZ13: 1000000 | CA13: 1000000 | CB13: 1000000 | CC13: 1000000 | CD13: 1000000 | CE13: 1000000 | CF13: 1000000 | CG13: 1000000 | CH13: 1000000 | CI13: 1000000 | CJ13: 1000000 | CK13: 1000000 | CL13: 1000000 | CM13: 1000000 | CN13: 1000000 | CO13: 1000000 | CP13: 1000000 | CQ13: 1000000 | CR13: 1000000 | CS13: 1000000 | CT13: 1000000 | CU13: 1000000 | CV13: 1000000 | CW13: 1000000 | CX13: 1000000 | CY13: 1000000 | CZ13: 1000000 | DA13: 1000000 | DB13: 1000000 | DC13: 1000000 | DD13: 1000000 | DE13: 1000000 | DF13: 1000000 | DG13: 1000000 | DH13: 1000000 | DI13: 1000000 | DJ13: 1000000 | DK13: 1000000 | DL13: 1000000 | DM13: 1000000 | DN13: 1000000 | DO13: 1000000 | DP13: 1000000 | DQ13: 1000000 | DR13: 1000000 | DS13: 1000000 | DT13: 1000000 | DU13: 1000000 | DV13: 1000000 | DW13: 1000000 | DX13: 1000000 | DY13: 1000000 | DZ13: 1000000 | EA13: 1000000 | EB13: 1000000 | EC13: 1000000 | ED13: 1000000 | EE13: 1000000 | EF13: 1000000 | EG13: 1000000 | EH13: 1000000 | EI13: =$F$13 -> 1000000 | EJ13: 1000000 | EK13: 1000000 | EL13: 1000000 | EM13: 1000000 | EN13: 1000000 | EO13: 1000000 | EP13: 1000000 | EQ13: 1000000 | ER13: 1000000 | ES13: 1000000 | ET13: 1000000 | EU13: 1000000 | EV13: 1000000 | EW13: 1000000 | EX13: 1000000 | EY13: 1000000 | EZ13: 1000000 | FA13: 1000000 | FB13: 1000000 | FC13: 1000000 | FD13: 1000000 | FE13: 1000000 | FF13: 1000000 | FG13: 1000000 | FH13: 1000000 | FI13: 1000000 | FJ13: 1000000 | FK13: 1000000 | FL13: 1000000 | FM13: 1000000 | FN13: 1000000 | FO13: 1000000 | FP13: 1000000 | FQ13: 1000000 | FR13: 1000000 | FS13: 1000000 | FT13: 1000000 | FU13: 1000000 | FV13: 1000000 | FW13: 1000000 | FX13: 1000000 | FY13: 1000000 | FZ13: 1000000 | GA13: 1000000 | GB13: 1000000 | GC13: 1000000 | GD13: 1000000 | GE13: 1000000 | GF13: 1000000 | GG13: 1000000 | GH13: 1000000 | GI13: 1000000 | GJ13: 1000000 | GK13: 1000000 | GL13: 1000000 | GM13: 1000000 | GN13: 1000000 | GO13: 1000000 | GP13: 1000000 | GQ13: 1000000 | GR13: 1000000 | GS13: 1000000 | GT13: 1000000 | GU13: =$F$13 -> 1000000 | GV13: 1000000 | GW13: 1000000 | GX13: 1000000 | GY13: 1000000 | GZ13: 1000000 | HA13: 1000000 | HB13: 1000000 | HC13: 1000000 | HD13: 1000000 | HE13: 1000000 | HF13: 1000000 | HG13: 1000000 | HH13: 1000000 | HI13: 1000000 | HJ13: 1000000 | HK13: 1000000 | HL13: 1000000 | HM13: 1000000 | HN13: 1000000 | HO13: 1000000 | HP13: 1000000 | HQ13: 1000000 | HR13: 1000000 | HS13: 1000000 | HT13: 1000000 | HU13: 1000000 | HV13: 1000000 | HW13: 1000000 | HX13: 1000000 | HY13: 1000000 | HZ13: 1000000 | IA13: 1000000 | IB13: 1000000 | IC13: 1000000 | ID13: 1000000 | IE13: 1000000 | IF13: 1000000 | IG13: 1000000 | IH13: 1000000 | II13: 1000000 | IJ13: 1000000 | IK13: 1000000 | IL13: 1000000 | IM13: 1000000 | IN13: 1000000 | IO13: 1000000 | IP13: 1000000 | IQ13: 1000000 | IR13: 1000000 | IS13: 1000000 | IT13: 1000000 | IU13: 1000000 | IV13: 1000000 | IW13: 1000000 | IX13: 1000000 | IY13: 1000000 | IZ13: 1000000 | JA13: 1000000 | JB13: 1000000 | JC13: 1000000 | JD13: 1000000 | JE13: 1000000 | JF13: 1000000 | JG13: =$F$13 -> 1000000 | JH13: 1000000 | JI13: 1000000 | JJ13: 1000000 | JK13: 1000000 | JL13: 1000000 | JM13: 1000000 | JN13: 1000000 | JO13: 1000000 | JP13: 1000000 | JQ13: 1000000 | JR13: 1000000 | JS13: 1000000 | JT13: 1000000 | JU13: 1000000 | JV13: 1000000 | JW13: 1000000 | JX13: 1000000 | JY13: 1000000 | JZ13: 1000000 | KA13: 1000000 | KB13: 1000000 | KC13: 1000000 | KD13: 1000000 | KE13: 1000000 | KF13: 1000000 | KG13: 1000000 | KH13: 1000000 | KI13: 1000000 | KJ13: 1000000 | KK13: 1000000 | KL13: 1000000 | KM13: 1000000 | KN13: 1000000 | KO13: 1000000 | KP13: 1000000 | KQ13: 1000000 | KR13: 1000000 | KS13: 1000000 | KT13: 1000000 | KU13: 1000000 | KV13: 1000000 | KW13: 1000000 | KX13: 1000000 | KY13: 1000000 | KZ13: 1000000 | LA13: 1000000 | LB13: 1000000 | LC13: 1000000 | LD13: 1000000 | LE13: 1000000 | LF13: 1000000 | LG13: 1000000 | LH13: 1000000 | LI13: 1000000 | LJ13: 1000000 | LK13: 1000000 | LL13: 1000000 | LM13: 1000000 | LN13: 1000000 | LO13: 1000000 | LP13: 1000000 | LQ13: 1000000 | LR13: 1000000 | LS13: =$F$13 -> 1000000 | LT13: 1000000 | LU13: 1000000 | LV13: 1000000 | LW13: 1000000 | LX13: 1000000 | LY13: 1000000 | LZ13: 1000000 | MA13: 1000000 | MB13: 1000000 | MC13: 1000000 | MD13: 1000000 | ME13: 1000000 | MF13: 1000000 | MG13: 1000000 | MH13: 1000000 | MI13: 1000000 | MJ13: 1000000 | MK13: 1000000 | ML13: 1000000 | MM13: 1000000 | MN13: 1000000 | MO13: 1000000 | MP13: 1000000 | MQ13: 1000000 | MR13: 1000000 | MS13: 1000000 | MT13: 1000000 | MU13: 1000000 | MV13: 1000000 | MW13: 1000000 | MX13: 1000000 | MY13: 1000000 | MZ13: 1000000 | NA13: 1000000 | NB13: 1000000 | NC13: 1000000 | ND13: 1000000 | NE13: 1000000 | NF13: 1000000 | NG13: 1000000 | NH13: 1000000 | NI13: 1000000 | NJ13: 1000000 | NK13: 1000000 | NL13: 1000000 | NM13: 1000000 | NN13: 1000000 | NO13: 1000000 | NP13: 1000000 | NQ13: 1000000 | NR13: 1000000 | NS13: 1000000 | NT13: 1000000 | NU13: 1000000 | NV13: 1000000 | NW13: 1000000 | NX13: 1000000 | NY13: 1000000 | NZ13: 1000000 | OA13: 1000000 | OB13: 1000000 | OC13: 1000000 | OD13: 1000000 | OE13: =$F$13 -> 1000000 | OF13: 1000000 | OG13: 1000000 | OH13: 1000000 | OI13: 1000000 | OJ13: 1000000 | OK13: 1000000 | OL13: 1000000 | OM13: 1000000 | ON13: 1000000 | OO13: 1000000 | OP13: 1000000 | OQ13: 1000000 | OR13: 1000000 | OS13: 1000000 | OT13: 1000000 | OU13: 1000000 | OV13: 1000000 | OW13: 1000000 | OX13: 1000000 | OY13: 1000000 | OZ13: 1000000 | PA13: 1000000 | PB13: 1000000 | PC13: 1000000 | PD13: 1000000 | PE13: 1000000 | PF13: 1000000 | PG13: 1000000 | PH13: 1000000 | PI13: 1000000 | PJ13: 1000000 | PK13: 1000000 | PL13: 1000000 | PM13: 1000000 | PN13: 1000000 | PO13: 1000000 | PP13: 1000000 | PQ13: 1000000 | PR13: 1000000 | PS13: 1000000 | PT13: 1000000 | PU13: 1000000 | PV13: 1000000 | PW13: 1000000 | PX13: 1000000 | PY13: 1000000 | PZ13: 1000000 | QA13: 1000000 | QB13: 1000000 | QC13: 1000000 | QD13: 1000000 | QE13: 1000000 | QF13: 1000000 | QG13: 1000000 | QH13: 1000000 | QI13: 1000000 | QJ13: 1000000 | QK13: 1000000 | QL13: 1000000 | QM13: 1000000 | QN13: 1000000 | QO13: 1000000 | QP13: 1000000 | QQ13: =$F$13 -> 1000000 | QR13: 1000000 | QS13: 1000000 | QT13: 1000000 | QU13: 1000000 | QV13: 1000000 | QW13: 1000000 | QX13: 1000000 | QY13: 1000000 | QZ13: 1000000 | RA13: 1000000 | RB13: 1000000 | RC13: 1000000 | RD13: 1000000 | RE13: 1000000 | RF13: 1000000 | RG13: 1000000 | RH13: 1000000 | RI13: 1000000 | RJ13: 1000000 | RK13: 1000000 | RL13: 1000000 | RM13: 1000000 | RN13: 1000000 | RO13: 1000000 | RP13: 1000000 | RQ13: 1000000 | RR13: 1000000 | RS13: 1000000 | RT13: 1000000 | RU13: 1000000 | RV13: 1000000 | RW13: 1000000 | RX13: 1000000 | RY13: 1000000 | RZ13: 1000000 | SA13: 1000000 | SB13: 1000000 | SC13: 1000000 | SD13: 1000000 | SE13: 1000000 | SF13: 1000000 | SG13: 1000000 | SH13: 1000000 | SI13: 1000000 | SJ13: 1000000 | SK13: 1000000 | SL13: 1000000 | SM13: 1000000 | SN13: 1000000 | SO13: 1000000 | SP13: 1000000 | SQ13: =$F$13 -> 1000000 | SR13: 1000000 | SS13: 1000000 | ST13: 1000000 | SU13: 1000000 | SV13: 1000000 | SW13: 1000000 | SX13: 1000000 | SY13: 1000000 | SZ13: 1000000 | TA13: 1000000 | TB13: 1000000 | TC13: 1000000 | TD13: 1000000 | TE13: 1000000 | TF13: 1000000 | TG13: 1000000 | TH13: 1000000 | TI13: 1000000 | TJ13: 1000000 | TK13: 1000000 | TL13: 1000000 | TM13: 1000000 | TN13: 1000000 | TO13: 1000000 | TP13: 1000000 | TQ13: 1000000 | TR13: 1000000 | TS13: 1000000 | TT13: 1000000 | TU13: 1000000 | TV13: 1000000 | TW13: 1000000 | TX13: 1000000 | TY13: 1000000 | TZ13: 1000000 | UA13: 1000000 | UB13: 1000000 | UC13: 1000000 | UD13: 1000000 | UE13: 1000000 | UF13: 1000000 | UG13: 1000000 | UH13: 1000000 | UI13: 1000000 | UJ13: 1000000 | UK13: 1000000 | UL13: 1000000 | UM13: 1000000 | UN13: 1000000 | UO13: 1000000 | UP13: 1000000 | UQ13: 1000000 | UR13: 1000000 | US13: 1000000 | UT13: 1000000 | UU13: 1000000 | UV13: 1000000 | UW13: 1000000 | UX13: 1000000 | UY13: 1000000 | UZ13: 1000000 | VA13: 1000000 | VB13: 1000000 | VC13: =$F$13 -> 1000000 | VD13: 1000000 | VE13: 1000000 | VF13: 1000000 | VG13: 1000000 | VH13: 1000000 | VI13: 1000000 | VJ13: 1000000 | VK13: 1000000 | VL13: 1000000 | VM13: 1000000 | VN13: 1000000 | VO13: 1000000 | VP13: 1000000 | VQ13: 1000000 | VR13: 1000000 | VS13: 1000000 | VT13: 1000000 | VU13: 1000000 | VV13: 1000000 | VW13: 1000000 | VX13: 1000000 | VY13: 1000000 | VZ13: 1000000 | WA13: 1000000 | WB13: 1000000 | WC13: 1000000 | WD13: 1000000 | WE13: 1000000 | WF13: 1000000 | WG13: 1000000 | WH13: 1000000 | WI13: 1000000 | WJ13: 1000000 | WK13: 1000000 | WL13: 1000000 | WM13: 1000000 | WN13: 1000000 | WO13: 1000000 | WP13: 1000000 | WQ13: 1000000 | WR13: 1000000 | WS13: 1000000 | WT13: 1000000 | WU13: 1000000 | WV13: 1000000 | WW13: 1000000 | WX13: 1000000 | WY13: 1000000 | WZ13: 1000000 | XA13: 1000000 | XB13: 1000000 | XC13: 1000000 | XD13: 1000000 | XE13: 1000000 | XF13: 1000000 | XG13: 1000000 | XH13: 1000000 | XI13: 1000000 | XJ13: 1000000 | XK13: 1000000 | XL13: 1000000 | XM13: 1000000 | XN13: 1000000 | XO13: =$F$13 -> 1000000 | XP13: 1000000 | XQ13: 1000000 | XR13: 1000000 | XS13: 1000000 | XT13: 1000000 | XU13: 1000000 | XV13: 1000000 | XW13: 1000000 | XX13: 1000000 | XY13: 1000000 | XZ13: 1000000 | YA13: 1000000 | YB13: 1000000 | YC13: 1000000 | YD13: 1000000 | YE13: 1000000 | YF13: 1000000 | YG13: 1000000 | YH13: 1000000 | YI13: 1000000 | YJ13: 1000000 | YK13: 1000000 | YL13: 1000000 | YM13: 1000000 | YN13: 1000000 | YO13: 1000000 | YP13: 1000000 | YQ13: 1000000 | YR13: 1000000 | YS13: 1000000 | YT13: 1000000 | YU13: 1000000 | YV13: 1000000 | YW13: 1000000 | YX13: 1000000 | YY13: 1000000 | YZ13: 1000000 | ZA13: 1000000 | ZB13: 1000000 | ZC13: 1000000 | ZD13: 1000000 | ZE13: 1000000 | ZF13: 1000000 | ZG13: 1000000 | ZH13: 1000000 | ZI13: 1000000 | ZJ13: 1000000 | ZK13: 1000000 | ZL13: 1000000 | ZM13: 1000000 | ZN13: 1000000 | ZO13: 1000000 | ZP13: 1000000 | ZQ13: 1000000 | ZR13: 1000000 | ZS13: 1000000 | ZT13: 1000000 | ZU13: 1000000 | ZV13: 1000000 | ZW13: 1000000 | ZX13: 1000000 | ZY13: 1000000 | ZZ13: 1000000 | AAA13: =$F$13 -> 1000000 | AAB13: 1000000 | AAC13: 1000000 | AAD13: 1000000 | AAE13: 1000000 | AAF13: 1000000 | AAG13: 1000000 | AAH13: 1000000 | AAI13: 1000000 | AAJ13: 1000000 | AAK13: 1000000 | AAL13: 1000000 | AAM13: 1000000 | AAN13: 1000000 | AAO13: 1000000 | AAP13: 1000000 | AAQ13: 1000000 | AAR13: 1000000 | AAS13: 1000000 | AAT13: 1000000 | AAU13: 1000000 | AAV13: 1000000 | AAW13: 1000000 | AAX13: 1000000 | AAY13: 1000000 | AAZ13: 1000000 | ABA13: 1000000 | ABB13: 1000000 | ABC13: 1000000 | ABD13: 1000000 | ABE13: 1000000 | ABF13: 1000000 | ABG13: 1000000 | ABH13: 1000000 | ABI13: 1000000 | ABJ13: 1000000 | ABK13: 1000000 | ABL13: 1000000 | ABM13: 1000000 | ABN13: 1000000 | ABO13: 1000000 | ABP13: 1000000 | ABQ13: 1000000 | ABR13: 1000000 | ABS13: 1000000 | ABT13: 1000000 | ABU13: 1000000 | ABV13: 1000000 | ABW13: 1000000 | ABX13: 1000000 | ABY13: 1000000 | ABZ13: 1000000 | ACA13: 1000000 | ACB13: 1000000 | ACC13: 1000000 | ACD13: 1000000 | ACE13: 1000000 | ACF13: 1000000 | ACG13: 1000000 | ACH13: 1000000 | ACI13: 1000000 | ACJ13: 1000000 | ACK13: 1000000 | ACL13: 1000000 | ACM13: =$F$13 -> 1000000 | ACN13: 1000000 | ACO13: 1000000 | ACP13: 1000000 | ACQ13: 1000000 | ACR13: 1000000 | ACS13: 1000000 | ACT13: 1000000 | ACU13: 1000000 | ACV13: 1000000 | ACW13: 1000000 | ACX13: 1000000 | ACY13: 1000000 | ACZ13: 1000000 | ADA13: 1000000 | ADB13: 1000000 | ADC13: 1000000 | ADD13: 1000000 | ADE13: 1000000 | ADF13: 1000000 | ADG13: 1000000 | ADH13: 1000000 | ADI13: 1000000 | ADJ13: 1000000 | ADK13: 1000000 | ADL13: 1000000 | ADM13: 1000000 | ADN13: 1000000 | ADO13: 1000000 | ADP13: 1000000 | ADQ13: 1000000 | ADR13: 1000000 | ADS13: 1000000 | ADT13: 1000000 | ADU13: 1000000 | ADV13: 1000000 | ADW13: 1000000 | ADX13: 1000000 | ADY13: 1000000 | ADZ13: 1000000 | AEA13: 1000000 | AEB13: 1000000 | AEC13: 1000000 | AED13: 1000000 | AEE13: 1000000 | AEF13: 1000000 | AEG13: 1000000 | AEH13: 1000000 | AEI13: 1000000 | AEJ13: 1000000 | AEK13: 1000000 | AEL13: 1000000 | AEM13: 1000000 | AEN13: 1000000 | AEO13: 1000000 | AEP13: 1000000 | AEQ13: 1000000 | AER13: 1000000 | AES13: 1000000 | AET13: 1000000 | AEU13: 1000000 | AEV13: 1000000 | AEW13: 1000000 | AEX13: 1000000 | AEY13: =$F$13 -> 1000000 | AEZ13: 1000000 | AFA13: 1000000 | AFB13: 1000000 | AFC13: 1000000 | AFD13: 1000000 | AFE13: 1000000 | AFF13: 1000000 | AFG13: 1000000 | AFH13: 1000000 | AFI13: 1000000 | AFJ13: 1000000 | AFK13: 1000000 | AFL13: 1000000 | AFM13: 1000000 | AFN13: 1000000 | AFO13: 1000000 | AFP13: 1000000 | AFQ13: 1000000 | AFR13: 1000000 | AFS13: 1000000 | AFT13: 1000000 | AFU13: 1000000 | AFV13: 1000000 | AFW13: 1000000 | AFX13: 1000000 | AFY13: 1000000 | AFZ13: 1000000 | AGA13: 1000000 | AGB13: 1000000 | AGC13: 1000000 | AGD13: 1000000 | AGE13: 1000000 | AGF13: 1000000 | AGG13: 1000000 | AGH13: 1000000 | AGI13: 1000000 | AGJ13: 1000000 | AGK13: 1000000 | AGL13: 1000000 | AGM13: 1000000 | AGN13: 1000000 | AGO13: 1000000 | AGP13: 1000000 | AGQ13: 1000000 | AGR13: 1000000 | AGS13: 1000000 | AGT13: 1000000 | AGU13: 1000000 | AGV13: 1000000 | AGW13: 1000000 | AGX13: 1000000 | AGY13: 1000000 | AGZ13: 1000000 | AHA13: 1000000 | AHB13: 1000000 | AHC13: 1000000 | AHD13: 1000000 | AHE13: 1000000 | AHF13: 1000000 | AHG13: 1000000 | AHH13: 1000000 | AHI13: 1000000 | AHJ13: 1000000 | AHK13: =$F$13 -> 1000000 | AHL13: 1000000 | AHM13: 1000000 | AHN13: 1000000 | AHO13: 1000000 | AHP13: 1000000 | AHQ13: 1000000 | AHR13: 1000000 | AHS13: 1000000 | AHT13: 1000000 | AHU13: 1000000 | AHV13: 1000000 | AHW13: 1000000 | AHX13: 1000000 | AHY13: 1000000 | AHZ13: 1000000 | AIA13: 1000000 | AIB13: 1000000 | AIC13: 1000000 | AID13: 1000000 | AIE13: 1000000 | AIF13: 1000000 | AIG13: 1000000 | AIH13: 1000000 | AII13: 1000000 | AIJ13: 1000000 | AIK13: 1000000 | AIL13: 1000000 | AIM13: 1000000 | AIN13: 1000000 | AIO13: 1000000 | AIP13: 1000000 | AIQ13: 1000000 | AIR13: 1000000 | AIS13: 1000000 | AIT13: 1000000 | AIU13: 1000000 | AIV13: 1000000 | AIW13: 1000000 | AIX13: 1000000 | AIY13: 1000000 | AIZ13: 1000000 | AJA13: 1000000 | AJB13: 1000000 | AJC13: 1000000 | AJD13: 1000000 | AJE13: 1000000 | AJF13: 1000000 | AJG13: 1000000 | AJH13: 1000000 | AJI13: 1000000 | AJJ13: 1000000 | AJK13: 1000000 | AJL13: 1000000 | AJM13: 1000000 | AJN13: 1000000 | AJO13: 1000000 | AJP13: 1000000 | AJQ13: 1000000 | AJR13: 1000000 | AJS13: 1000000 | AJT13: 1000000 | AJU13: 1000000 | AJV13: 1000000 | AJW13: =$F$13 -> 1000000 | AJX13: 1000000 | AJY13: 1000000 | AJZ13: 1000000 | AKA13: 1000000 | AKB13: 1000000 | AKC13: 1000000 | AKD13: 1000000 | AKE13: 1000000 | AKF13: 1000000 | AKG13: 1000000 | AKH13: 1000000 | AKI13: 1000000 | AKJ13: 1000000 | AKK13: 1000000 | AKL13: 1000000 | AKM13: 1000000 | AKN13: 1000000 | AKO13: 1000000 | AKP13: 1000000 | AKQ13: 1000000 | AKR13: 1000000 | AKS13: 1000000 | AKT13: 1000000 | AKU13: 1000000 | AKV13: 1000000 | AKW13: 1000000 | AKX13: 1000000 | AKY13: 1000000 | AKZ13: 1000000 | ALA13: 1000000 | ALB13: 1000000 | ALC13: 1000000 | ALD13: 1000000 | ALE13: 1000000 | ALF13: 1000000 | ALG13: 1000000 | ALH13: 1000000 | ALI13: 1000000 | ALJ13: 1000000 | ALK13: 1000000 | ALL13: 1000000 | ALM13: 1000000 | ALN13: 1000000 | ALO13: 1000000 | ALP13: 1000000 | ALQ13: 1000000 | ALR13: 1000000 | ALS13: 1000000 | ALT13: 1000000 | ALU13: 1000000 | ALV13: 1000000
C14: Percent Spent | E14: Months/Per | F14: =F6/F4 -> 1 | I14: % | K14: =$F$14*K5 -> 1 | L14: =$F$14*L5 -> 0 | M14: 0 | N14: 0 | O14: 0 | P14: 0 | Q14: 0 | R14: 0 | S14: 0 | T14: 0 | U14: 0 | V14: 0 | W14: 0 | X14: 0 | Y14: 0 | Z14: 0 | AA14: 0 | AB14: 0 | AC14: 0 | AD14: 0 | AE14: 0 | AF14: 0 | AG14: 0 | AH14: 0 | AI14: 0 | AJ14: 0 | AK14: 0 | AL14: 0 | AM14: 0 | AN14: 0 | AO14: 0 | AP14: 0 | AQ14: 0 | AR14: 0 | AS14: 0 | AT14: 0 | AU14: 0 | AV14: 0 | AW14: 0 | AX14: 0 | AY14: 0 | AZ14: 0 | BA14: 0 | BB14: 0 | BC14: 0 | BD14: 0 | BE14: 0 | BF14: 0 | BG14: 0 | BH14: 0 | BI14: 0 | BJ14: 0 | BK14: 0 | BL14: 0 | BM14: 0 | BN14: 0 | BO14: 0 | BP14: 0 | BQ14: 0 | BR14: 0 | BS14: 0 | BT14: 0 | BU14: 0 | BV14: 0 | BW14: 0 | BX14: =$F$14*BX5 -> 0 | BY14: 0 | BZ14: 0 | CA14: 0 | CB14: 0 | CC14: 0 | CD14: 0 | CE14: 0 | CF14: 0 | CG14: 0 | CH14: 0 | CI14: 0 | CJ14: 0 | CK14: 0 | CL14: 0 | CM14: 0 | CN14: 0 | CO14: 0 | CP14: 0 | CQ14: 0 | CR14: 0 | CS14: 0 | CT14: 0 | CU14: 0 | CV14: 0 | CW14: 0 | CX14: 0 | CY14: 0 | CZ14: 0 | DA14: 0 | DB14: 0 | DC14: 0 | DD14: 0 | DE14: 0 | DF14: 0 | DG14: 0 | DH14: 0 | DI14: 0 | DJ14: 0 | DK14: 0 | DL14: 0 | DM14: 0 | DN14: 0 | DO14: 0 | DP14: 0 | DQ14: 0 | DR14: 0 | DS14: 0 | DT14: 0 | DU14: 0 | DV14: 0 | DW14: 0 | DX14: 0 | DY14: 0 | DZ14: 0 | EA14: 0 | EB14: 0 | EC14: 0 | ED14: 0 | EE14: 0 | EF14: 0 | EG14: 0 | EH14: 0 | EI14: 0 | EJ14: =$F$14*EJ5 -> 0 | EK14: 0 | EL14: 0 | EM14: 0 | EN14: 0 | EO14: 0 | EP14: 0 | EQ14: 0 | ER14: 0 | ES14: 0 | ET14: 0 | EU14: 0 | EV14: 0 | EW14: 0 | EX14: 0 | EY14: 0 | EZ14: 0 | FA14: 0 | FB14: 0 | FC14: 0 | FD14: 0 | FE14: 0 | FF14: 0 | FG14: 0 | FH14: 0 | FI14: 0 | FJ14: 0 | FK14: 0 | FL14: 0 | FM14: 0 | FN14: 0 | FO14: 0 | FP14: 0 | FQ14: 0 | FR14: 0 | FS14: 0 | FT14: 0 | FU14: 0 | FV14: 0 | FW14: 0 | FX14: 0 | FY14: 0 | FZ14: 0 | GA14: 0 | GB14: 0 | GC14: 0 | GD14: 0 | GE14: 0 | GF14: 0 | GG14: 0 | GH14: 0 | GI14: 0 | GJ14: 0 | GK14: 0 | GL14: 0 | GM14: 0 | GN14: 0 | GO14: 0 | GP14: 0 | GQ14: 0 | GR14: 0 | GS14: 0 | GT14: 0 | GU14: 0 | GV14: =$F$14*GV5 -> 0 | GW14: 0 | GX14: 0 | GY14: 0 | GZ14: 0 | HA14: 0 | HB14: 0 | HC14: 0 | HD14: 0 | HE14: 0 | HF14: 0 | HG14: 0 | HH14: 0 | HI14: 0 | HJ14: 0 | HK14: 0 | HL14: 0 | HM14: 0 | HN14: 0 | HO14: 0 | HP14: 0 | HQ14: 0 | HR14: 0 | HS14: 0 | HT14: 0 | HU14: 0 | HV14: 0 | HW14: 0 | HX14: 0 | HY14: 0 | HZ14: 0 | IA14: 0 | IB14: 0 | IC14: 0 | ID14: 0 | IE14: 0 | IF14: 0 | IG14: 0 | IH14: 0 | II14: 0 | IJ14: 0 | IK14: 0 | IL14: 0 | IM14: 0 | IN14: 0 | IO14: 0 | IP14: 0 | IQ14: 0 | IR14: 0 | IS14: 0 | IT14: 0 | IU14: 0 | IV14: 0 | IW14: 0 | IX14: 0 | IY14: 0 | IZ14: 0 | JA14: 0 | JB14: 0 | JC14: 0 | JD14: 0 | JE14: 0 | JF14: 0 | JG14: 0 | JH14: =$F$14*JH5 -> 0 | JI14: 0 | JJ14: 0 | JK14: 0 | JL14: 0 | JM14: 0 | JN14: 0 | JO14: 0 | JP14: 0 | JQ14: 0 | JR14: 0 | JS14: 0 | JT14: 0 | JU14: 0 | JV14: 0 | JW14: 0 | JX14: 0 | JY14: 0 | JZ14: 0 | KA14: 0 | KB14: 0 | KC14: 0 | KD14: 0 | KE14: 0 | KF14: 0 | KG14: 0 | KH14: 0 | KI14: 0 | KJ14: 0 | KK14: 0 | KL14: 0 | KM14: 0 | KN14: 0 | KO14: 0 | KP14: 0 | KQ14: 0 | KR14: 0 | KS14: 0 | KT14: 0 | KU14: 0 | KV14: 0 | KW14: 0 | KX14: 0 | KY14: 0 | KZ14: 0 | LA14: 0 | LB14: 0 | LC14: 0 | LD14: 0 | LE14: 0 | LF14: 0 | LG14: 0 | LH14: 0 | LI14: 0 | LJ14: 0 | LK14: 0 | LL14: 0 | LM14: 0 | LN14: 0 | LO14: 0 | LP14: 0 | LQ14: 0 | LR14: 0 | LS14: 0 | LT14: =$F$14*LT5 -> 0 | LU14: 0 | LV14: 0 | LW14: 0 | LX14: 0 | LY14: 0 | LZ14: 0 | MA14: 0 | MB14: 0 | MC14: 0 | MD14: 0 | ME14: 0 | MF14: 0 | MG14: 0 | MH14: 0 | MI14: 0 | MJ14: 0 | MK14: 0 | ML14: 0 | MM14: 0 | MN14: 0 | MO14: 0 | MP14: 0 | MQ14: 0 | MR14: 0 | MS14: 0 | MT14: 0 | MU14: 0 | MV14: 0 | MW14: 0 | MX14: 0 | MY14: 0 | MZ14: 0 | NA14: 0 | NB14: 0 | NC14: 0 | ND14: 0 | NE14: 0 | NF14: 0 | NG14: 0 | NH14: 0 | NI14: 0 | NJ14: 0 | NK14: 0 | NL14: 0 | NM14: 0 | NN14: 0 | NO14: 0 | NP14: 0 | NQ14: 0 | NR14: 0 | NS14: 0 | NT14: 0 | NU14: 0 | NV14: 0 | NW14: 0 | NX14: 0 | NY14: 0 | NZ14: 0 | OA14: 0 | OB14: 0 | OC14: 0 | OD14: 0 | OE14: 0 | OF14: =$F$14*OF5 -> 0 | OG14: 0 | OH14: 0 | OI14: 0 | OJ14: 0 | OK14: 0 | OL14: 0 | OM14: 0 | ON14: 0 | OO14: 0 | OP14: 0 | OQ14: 0 | OR14: 0 | OS14: 0 | OT14: 0 | OU14: 0 | OV14: 0 | OW14: 0 | OX14: 0 | OY14: 0 | OZ14: 0 | PA14: 0 | PB14: 0 | PC14: 0 | PD14: 0 | PE14: 0 | PF14: 0 | PG14: 0 | PH14: 0 | PI14: 0 | PJ14: 0 | PK14: 0 | PL14: 0 | PM14: 0 | PN14: 0 | PO14: 0 | PP14: 0 | PQ14: 0 | PR14: 0 | PS14: 0 | PT14: 0 | PU14: 0 | PV14: 0 | PW14: 0 | PX14: 0 | PY14: 0 | PZ14: 0 | QA14: 0 | QB14: 0 | QC14: 0 | QD14: 0 | QE14: 0 | QF14: 0 | QG14: 0 | QH14: 0 | QI14: 0 | QJ14: 0 | QK14: 0 | QL14: 0 | QM14: 0 | QN14: 0 | QO14: 0 | QP14: 0 | QQ14: 0 | QR14: =$F$14*QR5 -> 0 | QS14: 0 | QT14: 0 | QU14: 0 | QV14: 0 | QW14: 0 | QX14: 0 | QY14: 0 | QZ14: 0 | RA14: 0 | RB14: 0 | RC14: 0 | RD14: 0 | RE14: 0 | RF14: 0 | RG14: 0 | RH14: 0 | RI14: 0 | RJ14: 0 | RK14: 0 | RL14: 0 | RM14: 0 | RN14: 0 | RO14: 0 | RP14: 0 | RQ14: 0 | RR14: 0 | RS14: 0 | RT14: 0 | RU14: 0 | RV14: 0 | RW14: 0 | RX14: 0 | RY14: 0 | RZ14: 0 | SA14: 0 | SB14: 0 | SC14: 0 | SD14: 0 | SE14: 0 | SF14: 0 | SG14: 0 | SH14: 0 | SI14: 0 | SJ14: 0 | SK14: 0 | SL14: 0 | SM14: 0 | SN14: 0 | SO14: 0 | SP14: 0 | SQ14: 0 | SR14: 0 | SS14: 0 | ST14: 0 | SU14: 0 | SV14: 0 | SW14: 0 | SX14: 0 | SY14: 0 | SZ14: 0 | TA14: 0 | TB14: 0 | TC14: 0 | TD14: =$F$14*TD5 -> 0 | TE14: 0 | TF14: 0 | TG14: 0 | TH14: 0 | TI14: 0 | TJ14: 0 | TK14: 0 | TL14: 0 | TM14: 0 | TN14: 0 | TO14: 0 | TP14: 0 | TQ14: 0 | TR14: 0 | TS14: 0 | TT14: 0 | TU14: 0 | TV14: 0 | TW14: 0 | TX14: 0 | TY14: 0 | TZ14: 0 | UA14: 0 | UB14: 0 | UC14: 0 | UD14: 0 | UE14: 0 | UF14: 0 | UG14: 0 | UH14: 0 | UI14: 0 | UJ14: 0 | UK14: 0 | UL14: 0 | UM14: 0 | UN14: 0 | UO14: 0 | UP14: 0 | UQ14: 0 | UR14: 0 | US14: 0 | UT14: 0 | UU14: 0 | UV14: 0 | UW14: 0 | UX14: 0 | UY14: 0 | UZ14: 0 | VA14: 0 | VB14: 0 | VC14: 0 | VD14: 0 | VE14: 0 | VF14: 0 | VG14: 0 | VH14: 0 | VI14: 0 | VJ14: 0 | VK14: 0 | VL14: 0 | VM14: 0 | VN14: 0 | VO14: 0 | VP14: =$F$14*VP5 -> 0 | VQ14: 0 | VR14: 0 | VS14: 0 | VT14: 0 | VU14: 0 | VV14: 0 | VW14: 0 | VX14: 0 | VY14: 0 | VZ14: 0 | WA14: 0 | WB14: 0 | WC14: 0 | WD14: 0 | WE14: 0 | WF14: 0 | WG14: 0 | WH14: 0 | WI14: 0 | WJ14: 0 | WK14: 0 | WL14: 0 | WM14: 0 | WN14: 0 | WO14: 0 | WP14: 0 | WQ14: 0 | WR14: 0 | WS14: 0 | WT14: 0 | WU14: 0 | WV14: 0 | WW14: 0 | WX14: 0 | WY14: 0 | WZ14: 0 | XA14: 0 | XB14: 0 | XC14: 0 | XD14: 0 | XE14: 0 | XF14: 0 | XG14: 0 | XH14: 0 | XI14: 0 | XJ14: 0 | XK14: 0 | XL14: 0 | XM14: 0 | XN14: 0 | XO14: 0 | XP14: 0 | XQ14: 0 | XR14: 0 | XS14: 0 | XT14: 0 | XU14: 0 | XV14: 0 | XW14: 0 | XX14: 0 | XY14: 0 | XZ14: 0 | YA14: 0 | YB14: =$F$14*YB5 -> 0 | YC14: 0 | YD14: 0 | YE14: 0 | YF14: 0 | YG14: 0 | YH14: 0 | YI14: 0 | YJ14: 0 | YK14: 0 | YL14: 0 | YM14: 0 | YN14: 0 | YO14: 0 | YP14: 0 | YQ14: 0 | YR14: 0 | YS14: 0 | YT14: 0 | YU14: 0 | YV14: 0 | YW14: 0 | YX14: 0 | YY14: 0 | YZ14: 0 | ZA14: 0 | ZB14: 0 | ZC14: 0 | ZD14: 0 | ZE14: 0 | ZF14: 0 | ZG14: 0 | ZH14: 0 | ZI14: 0 | ZJ14: 0 | ZK14: 0 | ZL14: 0 | ZM14: 0 | ZN14: 0 | ZO14: 0 | ZP14: 0 | ZQ14: 0 | ZR14: 0 | ZS14: 0 | ZT14: 0 | ZU14: 0 | ZV14: 0 | ZW14: 0 | ZX14: 0 | ZY14: 0 | ZZ14: 0 | AAA14: 0 | AAB14: 0 | AAC14: 0 | AAD14: 0 | AAE14: 0 | AAF14: 0 | AAG14: 0 | AAH14: 0 | AAI14: 0 | AAJ14: 0 | AAK14: 0 | AAL14: 0 | AAM14: 0 | AAN14: =$F$14*AAN5 -> 0 | AAO14: 0 | AAP14: 0 | AAQ14: 0 | AAR14: 0 | AAS14: 0 | AAT14: 0 | AAU14: 0 | AAV14: 0 | AAW14: 0 | AAX14: 0 | AAY14: 0 | AAZ14: 0 | ABA14: 0 | ABB14: 0 | ABC14: 0 | ABD14: 0 | ABE14: 0 | ABF14: 0 | ABG14: 0 | ABH14: 0 | ABI14: 0 | ABJ14: 0 | ABK14: 0 | ABL14: 0 | ABM14: 0 | ABN14: 0 | ABO14: 0 | ABP14: 0 | ABQ14: 0 | ABR14: 0 | ABS14: 0 | ABT14: 0 | ABU14: 0 | ABV14: 0 | ABW14: 0 | ABX14: 0 | ABY14: 0 | ABZ14: 0 | ACA14: 0 | ACB14: 0 | ACC14: 0 | ACD14: 0 | ACE14: 0 | ACF14: 0 | ACG14: 0 | ACH14: 0 | ACI14: 0 | ACJ14: 0 | ACK14: 0 | ACL14: 0 | ACM14: 0 | ACN14: 0 | ACO14: 0 | ACP14: 0 | ACQ14: 0 | ACR14: 0 | ACS14: 0 | ACT14: 0 | ACU14: 0 | ACV14: 0 | ACW14: 0 | ACX14: 0 | ACY14: 0 | ACZ14: =$F$14*ACZ5 -> 0 | ADA14: 0 | ADB14: 0 | ADC14: 0 | ADD14: 0 | ADE14: 0 | ADF14: 0 | ADG14: 0 | ADH14: 0 | ADI14: 0 | ADJ14: 0 | ADK14: 0 | ADL14: 0 | ADM14: 0 | ADN14: 0 | ADO14: 0 | ADP14: 0 | ADQ14: 0 | ADR14: 0 | ADS14: 0 | ADT14: 0 | ADU14: 0 | ADV14: 0 | ADW14: 0 | ADX14: 0 | ADY14: 0 | ADZ14: 0 | AEA14: 0 | AEB14: 0 | AEC14: 0 | AED14: 0 | AEE14: 0 | AEF14: 0 | AEG14: 0 | AEH14: 0 | AEI14: 0 | AEJ14: 0 | AEK14: 0 | AEL14: 0 | AEM14: 0 | AEN14: 0 | AEO14: 0 | AEP14: 0 | AEQ14: 0 | AER14: 0 | AES14: 0 | AET14: 0 | AEU14: 0 | AEV14: 0 | AEW14: 0 | AEX14: 0 | AEY14: 0 | AEZ14: 0 | AFA14: 0 | AFB14: 0 | AFC14: 0 | AFD14: 0 | AFE14: 0 | AFF14: 0 | AFG14: 0 | AFH14: 0 | AFI14: 0 | AFJ14: 0 | AFK14: 0 | AFL14: =$F$14*AFL5 -> 0 | AFM14: 0 | AFN14: 0 | AFO14: 0 | AFP14: 0 | AFQ14: 0 | AFR14: 0 | AFS14: 0 | AFT14: 0 | AFU14: 0 | AFV14: 0 | AFW14: 0 | AFX14: 0 | AFY14: 0 | AFZ14: 0 | AGA14: 0 | AGB14: 0 | AGC14: 0 | AGD14: 0 | AGE14: 0 | AGF14: 0 | AGG14: 0 | AGH14: 0 | AGI14: 0 | AGJ14: 0 | AGK14: 0 | AGL14: 0 | AGM14: 0 | AGN14: 0 | AGO14: 0 | AGP14: 0 | AGQ14: 0 | AGR14: 0 | AGS14: 0 | AGT14: 0 | AGU14: 0 | AGV14: 0 | AGW14: 0 | AGX14: 0 | AGY14: 0 | AGZ14: 0 | AHA14: 0 | AHB14: 0 | AHC14: 0 | AHD14: 0 | AHE14: 0 | AHF14: 0 | AHG14: 0 | AHH14: 0 | AHI14: 0 | AHJ14: 0 | AHK14: 0 | AHL14: 0 | AHM14: 0 | AHN14: 0 | AHO14: 0 | AHP14: 0 | AHQ14: 0 | AHR14: 0 | AHS14: 0 | AHT14: 0 | AHU14: 0 | AHV14: 0 | AHW14: 0 | AHX14: =$F$14*AHX5 -> 0 | AHY14: 0 | AHZ14: 0 | AIA14: 0 | AIB14: 0 | AIC14: 0 | AID14: 0 | AIE14: 0 | AIF14: 0 | AIG14: 0 | AIH14: 0 | AII14: 0 | AIJ14: 0 | AIK14: 0 | AIL14: 0 | AIM14: 0 | AIN14: 0 | AIO14: 0 | AIP14: 0 | AIQ14: 0 | AIR14: 0 | AIS14: 0 | AIT14: 0 | AIU14: 0 | AIV14: 0 | AIW14: 0 | AIX14: 0 | AIY14: 0 | AIZ14: 0 | AJA14: 0 | AJB14: 0 | AJC14: 0 | AJD14: 0 | AJE14: 0 | AJF14: 0 | AJG14: 0 | AJH14: 0 | AJI14: 0 | AJJ14: 0 | AJK14: 0 | AJL14: 0 | AJM14: 0 | AJN14: 0 | AJO14: 0 | AJP14: 0 | AJQ14: 0 | AJR14: 0 | AJS14: 0 | AJT14: 0 | AJU14: 0 | AJV14: 0 | AJW14: 0 | AJX14: 0 | AJY14: 0 | AJZ14: 0 | AKA14: 0 | AKB14: 0 | AKC14: 0 | AKD14: 0 | AKE14: 0 | AKF14: 0 | AKG14: 0 | AKH14: 0 | AKI14: 0 | AKJ14: =$F$14*AKJ5 -> 0 | AKK14: 0 | AKL14: 0 | AKM14: 0 | AKN14: 0 | AKO14: 0 | AKP14: 0 | AKQ14: 0 | AKR14: 0 | AKS14: 0 | AKT14: 0 | AKU14: 0 | AKV14: 0 | AKW14: 0 | AKX14: 0 | AKY14: 0 | AKZ14: 0 | ALA14: 0 | ALB14: 0 | ALC14: 0 | ALD14: 0 | ALE14: 0 | ALF14: 0 | ALG14: 0 | ALH14: 0 | ALI14: 0 | ALJ14: 0 | ALK14: 0 | ALL14: 0 | ALM14: 0 | ALN14: 0 | ALO14: 0 | ALP14: 0 | ALQ14: 0 | ALR14: 0 | ALS14: 0 | ALT14: 0 | ALU14: 0 | ALV14: 0
C15: Capital Expenditues | H15: =SUM(K15:XFD15) -> 1000000 | I15: EUR | K15: =K13*K14 -> 1000000 | L15: =L13*L14 -> 0 | M15: 0 | N15: 0 | O15: 0 | P15: 0 | Q15: 0 | R15: 0 | S15: 0 | T15: 0 | U15: 0 | V15: 0 | W15: 0 | X15: 0 | Y15: 0 | Z15: 0 | AA15: 0 | AB15: 0 | AC15: 0 | AD15: 0 | AE15: 0 | AF15: 0 | AG15: 0 | AH15: 0 | AI15: 0 | AJ15: 0 | AK15: 0 | AL15: 0 | AM15: 0 | AN15: 0 | AO15: 0 | AP15: 0 | AQ15: 0 | AR15: 0 | AS15: 0 | AT15: 0 | AU15: 0 | AV15: 0 | AW15: 0 | AX15: 0 | AY15: 0 | AZ15: 0 | BA15: 0 | BB15: 0 | BC15: 0 | BD15: 0 | BE15: 0 | BF15: 0 | BG15: 0 | BH15: 0 | BI15: 0 | BJ15: 0 | BK15: 0 | BL15: 0 | BM15: 0 | BN15: 0 | BO15: 0 | BP15: 0 | BQ15: 0 | BR15: 0 | BS15: 0 | BT15: 0 | BU15: 0 | BV15: 0 | BW15: 0 | BX15: =BX13*BX14 -> 0 | BY15: 0 | BZ15: 0 | CA15: 0 | CB15: 0 | CC15: 0 | CD15: 0 | CE15: 0 | CF15: 0 | CG15: 0 | CH15: 0 | CI15: 0 | CJ15: 0 | CK15: 0 | CL15: 0 | CM15: 0 | CN15: 0 | CO15: 0 | CP15: 0 | CQ15: 0 | CR15: 0 | CS15: 0 | CT15: 0 | CU15: 0 | CV15: 0 | CW15: 0 | CX15: 0 | CY15: 0 | CZ15: 0 | DA15: 0 | DB15: 0 | DC15: 0 | DD15: 0 | DE15: 0 | DF15: 0 | DG15: 0 | DH15: 0 | DI15: 0 | DJ15: 0 | DK15: 0 | DL15: 0 | DM15: 0 | DN15: 0 | DO15: 0 | DP15: 0 | DQ15: 0 | DR15: 0 | DS15: 0 | DT15: 0 | DU15: 0 | DV15: 0 | DW15: 0 | DX15: 0 | DY15: 0 | DZ15: 0 | EA15: 0 | EB15: 0 | EC15: 0 | ED15: 0 | EE15: 0 | EF15: 0 | EG15: 0 | EH15: 0 | EI15: 0 | EJ15: =EJ13*EJ14 -> 0 | EK15: 0 | EL15: 0 | EM15: 0 | EN15: 0 | EO15: 0 | EP15: 0 | EQ15: 0 | ER15: 0 | ES15: 0 | ET15: 0 | EU15: 0 | EV15: 0 | EW15: 0 | EX15: 0 | EY15: 0 | EZ15: 0 | FA15: 0 | FB15: 0 | FC15: 0 | FD15: 0 | FE15: 0 | FF15: 0 | FG15: 0 | FH15: 0 | FI15: 0 | FJ15: 0 | FK15: 0 | FL15: 0 | FM15: 0 | FN15: 0 | FO15: 0 | FP15: 0 | FQ15: 0 | FR15: 0 | FS15: 0 | FT15: 0 | FU15: 0 | FV15: 0 | FW15: 0 | FX15: 0 | FY15: 0 | FZ15: 0 | GA15: 0 | GB15: 0 | GC15: 0 | GD15: 0 | GE15: 0 | GF15: 0 | GG15: 0 | GH15: 0 | GI15: 0 | GJ15: 0 | GK15: 0 | GL15: 0 | GM15: 0 | GN15: 0 | GO15: 0 | GP15: 0 | GQ15: 0 | GR15: 0 | GS15: 0 | GT15: 0 | GU15: 0 | GV15: =GV13*GV14 -> 0 | GW15: 0 | GX15: 0 | GY15: 0 | GZ15: 0 | HA15: 0 | HB15: 0 | HC15: 0 | HD15: 0 | HE15: 0 | HF15: 0 | HG15: 0 | HH15: 0 | HI15: 0 | HJ15: 0 | HK15: 0 | HL15: 0 | HM15: 0 | HN15: 0 | HO15: 0 | HP15: 0 | HQ15: 0 | HR15: 0 | HS15: 0 | HT15: 0 | HU15: 0 | HV15: 0 | HW15: 0 | HX15: 0 | HY15: 0 | HZ15: 0 | IA15: 0 | IB15: 0 | IC15: 0 | ID15: 0 | IE15: 0 | IF15: 0 | IG15: 0 | IH15: 0 | II15: 0 | IJ15: 0 | IK15: 0 | IL15: 0 | IM15: 0 | IN15: 0 | IO15: 0 | IP15: 0 | IQ15: 0 | IR15: 0 | IS15: 0 | IT15: 0 | IU15: 0 | IV15: 0 | IW15: 0 | IX15: 0 | IY15: 0 | IZ15: 0 | JA15: 0 | JB15: 0 | JC15: 0 | JD15: 0 | JE15: 0 | JF15: 0 | JG15: 0 | JH15: =JH13*JH14 -> 0 | JI15: 0 | JJ15: 0 | JK15: 0 | JL15: 0 | JM15: 0 | JN15: 0 | JO15: 0 | JP15: 0 | JQ15: 0 | JR15: 0 | JS15: 0 | JT15: 0 | JU15: 0 | JV15: 0 | JW15: 0 | JX15: 0 | JY15: 0 | JZ15: 0 | KA15: 0 | KB15: 0 | KC15: 0 | KD15: 0 | KE15: 0 | KF15: 0 | KG15: 0 | KH15: 0 | KI15: 0 | KJ15: 0 | KK15: 0 | KL15: 0 | KM15: 0 | KN15: 0 | KO15: 0 | KP15: 0 | KQ15: 0 | KR15: 0 | KS15: 0 | KT15: 0 | KU15: 0 | KV15: 0 | KW15: 0 | KX15: 0 | KY15: 0 | KZ15: 0 | LA15: 0 | LB15: 0 | LC15: 0 | LD15: 0 | LE15: 0 | LF15: 0 | LG15: 0 | LH15: 0 | LI15: 0 | LJ15: 0 | LK15: 0 | LL15: 0 | LM15: 0 | LN15: 0 | LO15: 0 | LP15: 0 | LQ15: 0 | LR15: 0 | LS15: 0 | LT15: =LT13*LT14 -> 0 | LU15: 0 | LV15: 0 | LW15: 0 | LX15: 0 | LY15: 0 | LZ15: 0 | MA15: 0 | MB15: 0 | MC15: 0 | MD15: 0 | ME15: 0 | MF15: 0 | MG15: 0 | MH15: 0 | MI15: 0 | MJ15: 0 | MK15: 0 | ML15: 0 | MM15: 0 | MN15: 0 | MO15: 0 | MP15: 0 | MQ15: 0 | MR15: 0 | MS15: 0 | MT15: 0 | MU15: 0 | MV15: 0 | MW15: 0 | MX15: 0 | MY15: 0 | MZ15: 0 | NA15: 0 | NB15: 0 | NC15: 0 | ND15: 0 | NE15: 0 | NF15: 0 | NG15: 0 | NH15: 0 | NI15: 0 | NJ15: 0 | NK15: 0 | NL15: 0 | NM15: 0 | NN15: 0 | NO15: 0 | NP15: 0 | NQ15: 0 | NR15: 0 | NS15: 0 | NT15: 0 | NU15: 0 | NV15: 0 | NW15: 0 | NX15: 0 | NY15: 0 | NZ15: 0 | OA15: 0 | OB15: 0 | OC15: 0 | OD15: 0 | OE15: 0 | OF15: =OF13*OF14 -> 0 | OG15: 0 | OH15: 0 | OI15: 0 | OJ15: 0 | OK15: 0 | OL15: 0 | OM15: 0 | ON15: 0 | OO15: 0 | OP15: 0 | OQ15: 0 | OR15: 0 | OS15: 0 | OT15: 0 | OU15: 0 | OV15: 0 | OW15: 0 | OX15: 0 | OY15: 0 | OZ15: 0 | PA15: 0 | PB15: 0 | PC15: 0 | PD15: 0 | PE15: 0 | PF15: 0 | PG15: 0 | PH15: 0 | PI15: 0 | PJ15: 0 | PK15: 0 | PL15: 0 | PM15: 0 | PN15: 0 | PO15: 0 | PP15: 0 | PQ15: 0 | PR15: 0 | PS15: 0 | PT15: 0 | PU15: 0 | PV15: 0 | PW15: 0 | PX15: 0 | PY15: 0 | PZ15: 0 | QA15: 0 | QB15: 0 | QC15: 0 | QD15: 0 | QE15: 0 | QF15: 0 | QG15: 0 | QH15: 0 | QI15: 0 | QJ15: 0 | QK15: 0 | QL15: 0 | QM15: 0 | QN15: 0 | QO15: 0 | QP15: 0 | QQ15: 0 | QR15: =QR13*QR14 -> 0 | QS15: 0 | QT15: 0 | QU15: 0 | QV15: 0 | QW15: 0 | QX15: 0 | QY15: 0 | QZ15: 0 | RA15: 0 | RB15: 0 | RC15: 0 | RD15: 0 | RE15: 0 | RF15: 0 | RG15: 0 | RH15: 0 | RI15: 0 | RJ15: 0 | RK15: 0 | RL15: 0 | RM15: 0 | RN15: 0 | RO15: 0 | RP15: 0 | RQ15: 0 | RR15: 0 | RS15: 0 | RT15: 0 | RU15: 0 | RV15: 0 | RW15: 0 | RX15: 0 | RY15: 0 | RZ15: 0 | SA15: 0 | SB15: 0 | SC15: 0 | SD15: 0 | SE15: 0 | SF15: 0 | SG15: 0 | SH15: 0 | SI15: 0 | SJ15: 0 | SK15: 0 | SL15: 0 | SM15: 0 | SN15: 0 | SO15: 0 | SP15: 0 | SQ15: =SQ13*SQ14 -> 0 | SR15: =SR13*SR14 -> 0 | SS15: =SS13*SS14 -> 0 | ST15: =ST13*ST14 -> 0 | SU15: =SU13*SU14 -> 0 | SV15: =SV13*SV14 -> 0 | SW15: =SW13*SW14 -> 0 | SX15: =SX13*SX14 -> 0 | SY15: =SY13*SY14 -> 0 | SZ15: =SZ13*SZ14 -> 0 | TA15: =TA13*TA14 -> 0 | TB15: =TB13*TB14 -> 0 | TC15: =TC13*TC14 -> 0 | TD15: =TD13*TD14 -> 0 | TE15: =TE13*TE14 -> 0 | TF15: =TF13*TF14 -> 0 | TG15: =TG13*TG14 -> 0 | TH15: =TH13*TH14 -> 0 | TI15: =TI13*TI14 -> 0 | TJ15: =TJ13*TJ14 -> 0 | TK15: =TK13*TK14 -> 0 | TL15: =TL13*TL14 -> 0 | TM15: =TM13*TM14 -> 0 | TN15: =TN13*TN14 -> 0 | TO15: =TO13*TO14 -> 0 | TP15: =TP13*TP14 -> 0 | TQ15: =TQ13*TQ14 -> 0 | TR15: =TR13*TR14 -> 0 | TS15: =TS13*TS14 -> 0 | TT15: =TT13*TT14 -> 0 | TU15: =TU13*TU14 -> 0 | TV15: =TV13*TV14 -> 0 | TW15: =TW13*TW14 -> 0 | TX15: =TX13*TX14 -> 0 | TY15: =TY13*TY14 -> 0 | TZ15: =TZ13*TZ14 -> 0 | UA15: =UA13*UA14 -> 0 | UB15: =UB13*UB14 -> 0 | UC15: =UC13*UC14 -> 0 | UD15: =UD13*UD14 -> 0 | UE15: =UE13*UE14 -> 0 | UF15: =UF13*UF14 -> 0 | UG15: =UG13*UG14 -> 0 | UH15: =UH13*UH14 -> 0 | UI15: =UI13*UI14 -> 0 | UJ15: =UJ13*UJ14 -> 0 | UK15: =UK13*UK14 -> 0 | UL15: =UL13*UL14 -> 0 | UM15: =UM13*UM14 -> 0 | UN15: =UN13*UN14 -> 0 | UO15: =UO13*UO14 -> 0 | UP15: =UP13*UP14 -> 0 | UQ15: =UQ13*UQ14 -> 0 | UR15: =UR13*UR14 -> 0 | US15: =US13*US14 -> 0 | UT15: =UT13*UT14 -> 0 | UU15: =UU13*UU14 -> 0 | UV15: =UV13*UV14 -> 0 | UW15: =UW13*UW14 -> 0 | UX15: =UX13*UX14 -> 0 | UY15: =UY13*UY14 -> 0 | UZ15: =UZ13*UZ14 -> 0 | VA15: =VA13*VA14 -> 0 | VB15: =VB13*VB14 -> 0 | VC15: =VC13*VC14 -> 0 | VD15: =VD13*VD14 -> 0 | VE15: =VE13*VE14 -> 0 | VF15: =VF13*VF14 -> 0 | VG15: =VG13*VG14 -> 0 | VH15: =VH13*VH14 -> 0 | VI15: =VI13*VI14 -> 0 | VJ15: =VJ13*VJ14 -> 0 | VK15: =VK13*VK14 -> 0 | VL15: =VL13*VL14 -> 0 | VM15: =VM13*VM14 -> 0 | VN15: =VN13*VN14 -> 0 | VO15: =VO13*VO14 -> 0 | VP15: =VP13*VP14 -> 0 | VQ15: =VQ13*VQ14 -> 0 | VR15: =VR13*VR14 -> 0 | VS15: =VS13*VS14 -> 0 | VT15: =VT13*VT14 -> 0 | VU15: =VU13*VU14 -> 0 | VV15: =VV13*VV14 -> 0 | VW15: =VW13*VW14 -> 0 | VX15: =VX13*VX14 -> 0 | VY15: =VY13*VY14 -> 0 | VZ15: =VZ13*VZ14 -> 0 | WA15: =WA13*WA14 -> 0 | WB15: =WB13*WB14 -> 0 | WC15: =WC13*WC14 -> 0 | WD15: =WD13*WD14 -> 0 | WE15: =WE13*WE14 -> 0 | WF15: =WF13*WF14 -> 0 | WG15: =WG13*WG14 -> 0 | WH15: =WH13*WH14 -> 0 | WI15: =WI13*WI14 -> 0 | WJ15: =WJ13*WJ14 -> 0 | WK15: =WK13*WK14 -> 0 | WL15: =WL13*WL14 -> 0 | WM15: =WM13*WM14 -> 0 | WN15: =WN13*WN14 -> 0 | WO15: =WO13*WO14 -> 0 | WP15: =WP13*WP14 -> 0 | WQ15: =WQ13*WQ14 -> 0 | WR15: =WR13*WR14 -> 0 | WS15: =WS13*WS14 -> 0 | WT15: =WT13*WT14 -> 0 | WU15: =WU13*WU14 -> 0 | WV15: =WV13*WV14 -> 0 | WW15: =WW13*WW14 -> 0 | WX15: =WX13*WX14 -> 0 | WY15: =WY13*WY14 -> 0 | WZ15: =WZ13*WZ14 -> 0 | XA15: =XA13*XA14 -> 0 | XB15: =XB13*XB14 -> 0 | XC15: =XC13*XC14 -> 0 | XD15: =XD13*XD14 -> 0 | XE15: =XE13*XE14 -> 0 | XF15: =XF13*XF14 -> 0 | XG15: =XG13*XG14 -> 0 | XH15: =XH13*XH14 -> 0 | XI15: =XI13*XI14 -> 0 | XJ15: =XJ13*XJ14 -> 0 | XK15: =XK13*XK14 -> 0 | XL15: =XL13*XL14 -> 0 | XM15: =XM13*XM14 -> 0 | XN15: =XN13*XN14 -> 0 | XO15: =XO13*XO14 -> 0 | XP15: =XP13*XP14 -> 0 | XQ15: =XQ13*XQ14 -> 0 | XR15: =XR13*XR14 -> 0 | XS15: =XS13*XS14 -> 0 | XT15: =XT13*XT14 -> 0 | XU15: =XU13*XU14 -> 0 | XV15: =XV13*XV14 -> 0 | XW15: =XW13*XW14 -> 0 | XX15: =XX13*XX14 -> 0 | XY15: =XY13*XY14 -> 0 | XZ15: =XZ13*XZ14 -> 0 | YA15: =YA13*YA14 -> 0 | YB15: =YB13*YB14 -> 0 | YC15: =YC13*YC14 -> 0 | YD15: =YD13*YD14 -> 0 | YE15: =YE13*YE14 -> 0 | YF15: =YF13*YF14 -> 0 | YG15: =YG13*YG14 -> 0 | YH15: =YH13*YH14 -> 0 | YI15: =YI13*YI14 -> 0 | YJ15: =YJ13*YJ14 -> 0 | YK15: =YK13*YK14 -> 0 | YL15: =YL13*YL14 -> 0 | YM15: =YM13*YM14 -> 0 | YN15: =YN13*YN14 -> 0 | YO15: =YO13*YO14 -> 0 | YP15: =YP13*YP14 -> 0 | YQ15: =YQ13*YQ14 -> 0 | YR15: =YR13*YR14 -> 0 | YS15: =YS13*YS14 -> 0 | YT15: =YT13*YT14 -> 0 | YU15: =YU13*YU14 -> 0 | YV15: =YV13*YV14 -> 0 | YW15: =YW13*YW14 -> 0 | YX15: =YX13*YX14 -> 0 | YY15: =YY13*YY14 -> 0 | YZ15: =YZ13*YZ14 -> 0 | ZA15: =ZA13*ZA14 -> 0 | ZB15: =ZB13*ZB14 -> 0 | ZC15: =ZC13*ZC14 -> 0 | ZD15: =ZD13*ZD14 -> 0 | ZE15: =ZE13*ZE14 -> 0 | ZF15: =ZF13*ZF14 -> 0 | ZG15: =ZG13*ZG14 -> 0 | ZH15: =ZH13*ZH14 -> 0 | ZI15: =ZI13*ZI14 -> 0 | ZJ15: =ZJ13*ZJ14 -> 0 | ZK15: =ZK13*ZK14 -> 0 | ZL15: =ZL13*ZL14 -> 0 | ZM15: =ZM13*ZM14 -> 0 | ZN15: =ZN13*ZN14 -> 0 | ZO15: =ZO13*ZO14 -> 0 | ZP15: =ZP13*ZP14 -> 0 | ZQ15: =ZQ13*ZQ14 -> 0 | ZR15: =ZR13*ZR14 -> 0 | ZS15: =ZS13*ZS14 -> 0 | ZT15: =ZT13*ZT14 -> 0 | ZU15: =ZU13*ZU14 -> 0 | ZV15: =ZV13*ZV14 -> 0 | ZW15: =ZW13*ZW14 -> 0 | ZX15: =ZX13*ZX14 -> 0 | ZY15: =ZY13*ZY14 -> 0 | ZZ15: =ZZ13*ZZ14 -> 0 | AAA15: =AAA13*AAA14 -> 0 | AAB15: =AAB13*AAB14 -> 0 | AAC15: =AAC13*AAC14 -> 0 | AAD15: =AAD13*AAD14 -> 0 | AAE15: =AAE13*AAE14 -> 0 | AAF15: =AAF13*AAF14 -> 0 | AAG15: =AAG13*AAG14 -> 0 | AAH15: =AAH13*AAH14 -> 0 | AAI15: =AAI13*AAI14 -> 0 | AAJ15: =AAJ13*AAJ14 -> 0 | AAK15: =AAK13*AAK14 -> 0 | AAL15: =AAL13*AAL14 -> 0 | AAM15: =AAM13*AAM14 -> 0 | AAN15: =AAN13*AAN14 -> 0 | AAO15: =AAO13*AAO14 -> 0 | AAP15: =AAP13*AAP14 -> 0 | AAQ15: =AAQ13*AAQ14 -> 0 | AAR15: =AAR13*AAR14 -> 0 | AAS15: =AAS13*AAS14 -> 0 | AAT15: =AAT13*AAT14 -> 0 | AAU15: =AAU13*AAU14 -> 0 | AAV15: =AAV13*AAV14 -> 0 | AAW15: =AAW13*AAW14 -> 0 | AAX15: =AAX13*AAX14 -> 0 | AAY15: =AAY13*AAY14 -> 0 | AAZ15: =AAZ13*AAZ14 -> 0 | ABA15: =ABA13*ABA14 -> 0 | ABB15: =ABB13*ABB14 -> 0 | ABC15: =ABC13*ABC14 -> 0 | ABD15: =ABD13*ABD14 -> 0 | ABE15: =ABE13*ABE14 -> 0 | ABF15: =ABF13*ABF14 -> 0 | ABG15: =ABG13*ABG14 -> 0 | ABH15: =ABH13*ABH14 -> 0 | ABI15: =ABI13*ABI14 -> 0 | ABJ15: =ABJ13*ABJ14 -> 0 | ABK15: =ABK13*ABK14 -> 0 | ABL15: =ABL13*ABL14 -> 0 | ABM15: =ABM13*ABM14 -> 0 | ABN15: =ABN13*ABN14 -> 0 | ABO15: =ABO13*ABO14 -> 0 | ABP15: =ABP13*ABP14 -> 0 | ABQ15: =ABQ13*ABQ14 -> 0 | ABR15: =ABR13*ABR14 -> 0 | ABS15: =ABS13*ABS14 -> 0 | ABT15: =ABT13*ABT14 -> 0 | ABU15: =ABU13*ABU14 -> 0 | ABV15: =ABV13*ABV14 -> 0 | ABW15: =ABW13*ABW14 -> 0 | ABX15: =ABX13*ABX14 -> 0 | ABY15: =ABY13*ABY14 -> 0 | ABZ15: =ABZ13*ABZ14 -> 0 | ACA15: =ACA13*ACA14 -> 0 | ACB15: =ACB13*ACB14 -> 0 | ACC15: =ACC13*ACC14 -> 0 | ACD15: =ACD13*ACD14 -> 0 | ACE15: =ACE13*ACE14 -> 0 | ACF15: =ACF13*ACF14 -> 0 | ACG15: =ACG13*ACG14 -> 0 | ACH15: =ACH13*ACH14 -> 0 | ACI15: =ACI13*ACI14 -> 0 | ACJ15: =ACJ13*ACJ14 -> 0 | ACK15: =ACK13*ACK14 -> 0 | ACL15: =ACL13*ACL14 -> 0 | ACM15: =ACM13*ACM14 -> 0 | ACN15: =ACN13*ACN14 -> 0 | ACO15: =ACO13*ACO14 -> 0 | ACP15: =ACP13*ACP14 -> 0 | ACQ15: =ACQ13*ACQ14 -> 0 | ACR15: =ACR13*ACR14 -> 0 | ACS15: =ACS13*ACS14 -> 0 | ACT15: =ACT13*ACT14 -> 0 | ACU15: =ACU13*ACU14 -> 0 | ACV15: =ACV13*ACV14 -> 0 | ACW15: =ACW13*ACW14 -> 0 | ACX15: =ACX13*ACX14 -> 0 | ACY15: =ACY13*ACY14 -> 0 | ACZ15: =ACZ13*ACZ14 -> 0 | ADA15: =ADA13*ADA14 -> 0 | ADB15: =ADB13*ADB14 -> 0 | ADC15: =ADC13*ADC14 -> 0 | ADD15: =ADD13*ADD14 -> 0 | ADE15: =ADE13*ADE14 -> 0 | ADF15: =ADF13*ADF14 -> 0 | ADG15: =ADG13*ADG14 -> 0 | ADH15: =ADH13*ADH14 -> 0 | ADI15: =ADI13*ADI14 -> 0 | ADJ15: =ADJ13*ADJ14 -> 0 | ADK15: =ADK13*ADK14 -> 0 | ADL15: =ADL13*ADL14 -> 0 | ADM15: =ADM13*ADM14 -> 0 | ADN15: =ADN13*ADN14 -> 0 | ADO15: =ADO13*ADO14 -> 0 | ADP15: =ADP13*ADP14 -> 0 | ADQ15: =ADQ13*ADQ14 -> 0 | ADR15: =ADR13*ADR14 -> 0 | ADS15: =ADS13*ADS14 -> 0 | ADT15: =ADT13*ADT14 -> 0 | ADU15: =ADU13*ADU14 -> 0 | ADV15: =ADV13*ADV14 -> 0 | ADW15: =ADW13*ADW14 -> 0 | ADX15: =ADX13*ADX14 -> 0 | ADY15: =ADY13*ADY14 -> 0 | ADZ15: =ADZ13*ADZ14 -> 0 | AEA15: =AEA13*AEA14 -> 0 | AEB15: =AEB13*AEB14 -> 0 | AEC15: =AEC13*AEC14 -> 0 | AED15: =AED13*AED14 -> 0 | AEE15: =AEE13*AEE14 -> 0 | AEF15: =AEF13*AEF14 -> 0 | AEG15: =AEG13*AEG14 -> 0 | AEH15: =AEH13*AEH14 -> 0 | AEI15: =AEI13*AEI14 -> 0 | AEJ15: =AEJ13*AEJ14 -> 0 | AEK15: =AEK13*AEK14 -> 0 | AEL15: =AEL13*AEL14 -> 0 | AEM15: =AEM13*AEM14 -> 0 | AEN15: =AEN13*AEN14 -> 0 | AEO15: =AEO13*AEO14 -> 0 | AEP15: =AEP13*AEP14 -> 0 | AEQ15: =AEQ13*AEQ14 -> 0 | AER15: =AER13*AER14 -> 0 | AES15: =AES13*AES14 -> 0 | AET15: =AET13*AET14 -> 0 | AEU15: =AEU13*AEU14 -> 0 | AEV15: =AEV13*AEV14 -> 0 | AEW15: =AEW13*AEW14 -> 0 | AEX15: =AEX13*AEX14 -> 0 | AEY15: =AEY13*AEY14 -> 0 | AEZ15: =AEZ13*AEZ14 -> 0 | AFA15: =AFA13*AFA14 -> 0 | AFB15: =AFB13*AFB14 -> 0 | AFC15: =AFC13*AFC14 -> 0 | AFD15: =AFD13*AFD14 -> 0 | AFE15: =AFE13*AFE14 -> 0 | AFF15: =AFF13*AFF14 -> 0 | AFG15: =AFG13*AFG14 -> 0 | AFH15: =AFH13*AFH14 -> 0 | AFI15: =AFI13*AFI14 -> 0 | AFJ15: =AFJ13*AFJ14 -> 0 | AFK15: =AFK13*AFK14 -> 0 | AFL15: =AFL13*AFL14 -> 0 | AFM15: =AFM13*AFM14 -> 0 | AFN15: =AFN13*AFN14 -> 0 | AFO15: =AFO13*AFO14 -> 0 | AFP15: =AFP13*AFP14 -> 0 | AFQ15: =AFQ13*AFQ14 -> 0 | AFR15: =AFR13*AFR14 -> 0 | AFS15: =AFS13*AFS14 -> 0 | AFT15: =AFT13*AFT14 -> 0 | AFU15: =AFU13*AFU14 -> 0 | AFV15: =AFV13*AFV14 -> 0 | AFW15: =AFW13*AFW14 -> 0 | AFX15: =AFX13*AFX14 -> 0 | AFY15: =AFY13*AFY14 -> 0 | AFZ15: =AFZ13*AFZ14 -> 0 | AGA15: =AGA13*AGA14 -> 0 | AGB15: =AGB13*AGB14 -> 0 | AGC15: =AGC13*AGC14 -> 0 | AGD15: =AGD13*AGD14 -> 0 | AGE15: =AGE13*AGE14 -> 0 | AGF15: =AGF13*AGF14 -> 0 | AGG15: =AGG13*AGG14 -> 0 | AGH15: =AGH13*AGH14 -> 0 | AGI15: =AGI13*AGI14 -> 0 | AGJ15: =AGJ13*AGJ14 -> 0 | AGK15: =AGK13*AGK14 -> 0 | AGL15: =AGL13*AGL14 -> 0 | AGM15: =AGM13*AGM14 -> 0 | AGN15: =AGN13*AGN14 -> 0 | AGO15: =AGO13*AGO14 -> 0 | AGP15: =AGP13*AGP14 -> 0 | AGQ15: =AGQ13*AGQ14 -> 0 | AGR15: =AGR13*AGR14 -> 0 | AGS15: =AGS13*AGS14 -> 0 | AGT15: =AGT13*AGT14 -> 0 | AGU15: =AGU13*AGU14 -> 0 | AGV15: =AGV13*AGV14 -> 0 | AGW15: =AGW13*AGW14 -> 0 | AGX15: =AGX13*AGX14 -> 0 | AGY15: =AGY13*AGY14 -> 0 | AGZ15: =AGZ13*AGZ14 -> 0 | AHA15: =AHA13*AHA14 -> 0 | AHB15: =AHB13*AHB14 -> 0 | AHC15: =AHC13*AHC14 -> 0 | AHD15: =AHD13*AHD14 -> 0 | AHE15: =AHE13*AHE14 -> 0 | AHF15: =AHF13*AHF14 -> 0 | AHG15: =AHG13*AHG14 -> 0 | AHH15: =AHH13*AHH14 -> 0 | AHI15: =AHI13*AHI14 -> 0 | AHJ15: =AHJ13*AHJ14 -> 0 | AHK15: =AHK13*AHK14 -> 0 | AHL15: =AHL13*AHL14 -> 0 | AHM15: =AHM13*AHM14 -> 0 | AHN15: =AHN13*AHN14 -> 0 | AHO15: =AHO13*AHO14 -> 0 | AHP15: =AHP13*AHP14 -> 0 | AHQ15: =AHQ13*AHQ14 -> 0 | AHR15: =AHR13*AHR14 -> 0 | AHS15: =AHS13*AHS14 -> 0 | AHT15: =AHT13*AHT14 -> 0 | AHU15: =AHU13*AHU14 -> 0 | AHV15: =AHV13*AHV14 -> 0 | AHW15: =AHW13*AHW14 -> 0 | AHX15: =AHX13*AHX14 -> 0 | AHY15: =AHY13*AHY14 -> 0 | AHZ15: =AHZ13*AHZ14 -> 0 | AIA15: =AIA13*AIA14 -> 0 | AIB15: =AIB13*AIB14 -> 0 | AIC15: =AIC13*AIC14 -> 0 | AID15: =AID13*AID14 -> 0 | AIE15: =AIE13*AIE14 -> 0 | AIF15: =AIF13*AIF14 -> 0 | AIG15: =AIG13*AIG14 -> 0 | AIH15: =AIH13*AIH14 -> 0 | AII15: =AII13*AII14 -> 0 | AIJ15: =AIJ13*AIJ14 -> 0 | AIK15: =AIK13*AIK14 -> 0 | AIL15: =AIL13*AIL14 -> 0 | AIM15: =AIM13*AIM14 -> 0 | AIN15: =AIN13*AIN14 -> 0 | AIO15: =AIO13*AIO14 -> 0 | AIP15: =AIP13*AIP14 -> 0 | AIQ15: =AIQ13*AIQ14 -> 0 | AIR15: =AIR13*AIR14 -> 0 | AIS15: =AIS13*AIS14 -> 0 | AIT15: =AIT13*AIT14 -> 0 | AIU15: =AIU13*AIU14 -> 0 | AIV15: =AIV13*AIV14 -> 0 | AIW15: =AIW13*AIW14 -> 0 | AIX15: =AIX13*AIX14 -> 0 | AIY15: =AIY13*AIY14 -> 0 | AIZ15: =AIZ13*AIZ14 -> 0 | AJA15: =AJA13*AJA14 -> 0 | AJB15: =AJB13*AJB14 -> 0 | AJC15: =AJC13*AJC14 -> 0 | AJD15: =AJD13*AJD14 -> 0 | AJE15: =AJE13*AJE14 -> 0 | AJF15: =AJF13*AJF14 -> 0 | AJG15: =AJG13*AJG14 -> 0 | AJH15: =AJH13*AJH14 -> 0 | AJI15: =AJI13*AJI14 -> 0 | AJJ15: =AJJ13*AJJ14 -> 0 | AJK15: =AJK13*AJK14 -> 0 | AJL15: =AJL13*AJL14 -> 0 | AJM15: =AJM13*AJM14 -> 0 | AJN15: =AJN13*AJN14 -> 0 | AJO15: =AJO13*AJO14 -> 0 | AJP15: =AJP13*AJP14 -> 0 | AJQ15: =AJQ13*AJQ14 -> 0 | AJR15: =AJR13*AJR14 -> 0 | AJS15: =AJS13*AJS14 -> 0 | AJT15: =AJT13*AJT14 -> 0 | AJU15: =AJU13*AJU14 -> 0 | AJV15: =AJV13*AJV14 -> 0 | AJW15: =AJW13*AJW14 -> 0 | AJX15: =AJX13*AJX14 -> 0 | AJY15: =AJY13*AJY14 -> 0 | AJZ15: =AJZ13*AJZ14 -> 0 | AKA15: =AKA13*AKA14 -> 0 | AKB15: =AKB13*AKB14 -> 0 | AKC15: =AKC13*AKC14 -> 0 | AKD15: =AKD13*AKD14 -> 0 | AKE15: =AKE13*AKE14 -> 0 | AKF15: =AKF13*AKF14 -> 0 | AKG15: =AKG13*AKG14 -> 0 | AKH15: =AKH13*AKH14 -> 0 | AKI15: =AKI13*AKI14 -> 0 | AKJ15: =AKJ13*AKJ14 -> 0 | AKK15: =AKK13*AKK14 -> 0 | AKL15: =AKL13*AKL14 -> 0 | AKM15: =AKM13*AKM14 -> 0 | AKN15: =AKN13*AKN14 -> 0 | AKO15: =AKO13*AKO14 -> 0 | AKP15: =AKP13*AKP14 -> 0 | AKQ15: =AKQ13*AKQ14 -> 0 | AKR15: =AKR13*AKR14 -> 0 | AKS15: =AKS13*AKS14 -> 0 | AKT15: =AKT13*AKT14 -> 0 | AKU15: =AKU13*AKU14 -> 0 | AKV15: =AKV13*AKV14 -> 0 | AKW15: =AKW13*AKW14 -> 0 | AKX15: =AKX13*AKX14 -> 0 | AKY15: =AKY13*AKY14 -> 0 | AKZ15: =AKZ13*AKZ14 -> 0 | ALA15: =ALA13*ALA14 -> 0 | ALB15: =ALB13*ALB14 -> 0 | ALC15: =ALC13*ALC14 -> 0 | ALD15: =ALD13*ALD14 -> 0 | ALE15: =ALE13*ALE14 -> 0 | ALF15: =ALF13*ALF14 -> 0 | ALG15: =ALG13*ALG14 -> 0 | ALH15: =ALH13*ALH14 -> 0 | ALI15: =ALI13*ALI14 -> 0 | ALJ15: =ALJ13*ALJ14 -> 0 | ALK15: =ALK13*ALK14 -> 0 | ALL15: =ALL13*ALL14 -> 0 | ALM15: =ALM13*ALM14 -> 0 | ALN15: =ALN13*ALN14 -> 0 | ALO15: =ALO13*ALO14 -> 0 | ALP15: =ALP13*ALP14 -> 0 | ALQ15: =ALQ13*ALQ14 -> 0 | ALR15: =ALR13*ALR14 -> 0 | ALS15: =ALS13*ALS14 -> 0 | ALT15: =ALT13*ALT14 -> 0 | ALU15: =ALU13*ALU14 -> 0 | ALV15: =ALV13*ALV14 -> 0
C17: Base EBITDA | E17: EUR/yr | F17: =InputC!F19 -> 80000 | G17: =F17*G6/months -> 80000 | I17: EUR/period | K17: =$G$17*K9 -> 0 | L17: =$G$17*L9 -> 80000 | M17: 80000 | N17: 80000 | O17: 80000 | P17: 80000 | Q17: 80000 | R17: 80000 | S17: 80000 | T17: 80000 | U17: 80000 | V17: 80000 | W17: 80000 | X17: 80000 | Y17: 80000 | Z17: 80000 | AA17: 80000 | AB17: 80000 | AC17: 80000 | AD17: 80000 | AE17: 80000 | AF17: 80000 | AG17: 80000 | AH17: 80000 | AI17: 80000 | AJ17: 80000 | AK17: 80000 | AL17: 80000 | AM17: 80000 | AN17: 80000 | AO17: 80000 | AP17: 80000 | AQ17: 80000 | AR17: 80000 | AS17: 80000 | AT17: 80000 | AU17: 0 | AV17: 0 | AW17: 0 | AX17: 0 | AY17: 0 | AZ17: 0 | BA17: 0 | BB17: 0 | BC17: 0 | BD17: 0 | BE17: 0 | BF17: 0 | BG17: 0 | BH17: 0 | BI17: 0 | BJ17: 0 | BK17: 0 | BL17: 0 | BM17: 0 | BN17: 0 | BO17: 0 | BP17: 0 | BQ17: 0 | BR17: 0 | BS17: 0 | BT17: 0 | BU17: 0 | BV17: 0 | BW17: 0 | BX17: =$G$17*BX9 -> 0 | BY17: 0 | BZ17: 0 | CA17: 0 | CB17: 0 | CC17: 0 | CD17: 0 | CE17: 0 | CF17: 0 | CG17: 0 | CH17: 0 | CI17: 0 | CJ17: 0 | CK17: 0 | CL17: 0 | CM17: 0 | CN17: 0 | CO17: 0 | CP17: 0 | CQ17: 0 | CR17: 0 | CS17: 0 | CT17: 0 | CU17: 0 | CV17: 0 | CW17: 0 | CX17: 0 | CY17: 0 | CZ17: 0 | DA17: 0 | DB17: 0 | DC17: 0 | DD17: 0 | DE17: 0 | DF17: 0 | DG17: 0 | DH17: 0 | DI17: 0 | DJ17: 0 | DK17: 0 | DL17: 0 | DM17: 0 | DN17: 0 | DO17: 0 | DP17: 0 | DQ17: 0 | DR17: 0 | DS17: 0 | DT17: 0 | DU17: 0 | DV17: 0 | DW17: 0 | DX17: 0 | DY17: 0 | DZ17: 0 | EA17: 0 | EB17: 0 | EC17: 0 | ED17: 0 | EE17: 0 | EF17: 0 | EG17: 0 | EH17: 0 | EI17: 0 | EJ17: =$G$17*EJ9 -> 0 | EK17: 0 | EL17: 0 | EM17: 0 | EN17: 0 | EO17: 0 | EP17: 0 | EQ17: 0 | ER17: 0 | ES17: 0 | ET17: 0 | EU17: 0 | EV17: 0 | EW17: 0 | EX17: 0 | EY17: 0 | EZ17: 0 | FA17: 0 | FB17: 0 | FC17: 0 | FD17: 0 | FE17: 0 | FF17: 0 | FG17: 0 | FH17: 0 | FI17: 0 | FJ17: 0 | FK17: 0 | FL17: 0 | FM17: 0 | FN17: 0 | FO17: 0 | FP17: 0 | FQ17: 0 | FR17: 0 | FS17: 0 | FT17: 0 | FU17: 0 | FV17: 0 | FW17: 0 | FX17: 0 | FY17: 0 | FZ17: 0 | GA17: 0 | GB17: 0 | GC17: 0 | GD17: 0 | GE17: 0 | GF17: 0 | GG17: 0 | GH17: 0 | GI17: 0 | GJ17: 0 | GK17: 0 | GL17: 0 | GM17: 0 | GN17: 0 | GO17: 0 | GP17: 0 | GQ17: 0 | GR17: 0 | GS17: 0 | GT17: 0 | GU17: 0 | GV17: =$G$17*GV9 -> 0 | GW17: 0 | GX17: 0 | GY17: 0 | GZ17: 0 | HA17: 0 | HB17: 0 | HC17: 0 | HD17: 0 | HE17: 0 | HF17: 0 | HG17: 0 | HH17: 0 | HI17: 0 | HJ17: 0 | HK17: 0 | HL17: 0 | HM17: 0 | HN17: 0 | HO17: 0 | HP17: 0 | HQ17: 0 | HR17: 0 | HS17: 0 | HT17: 0 | HU17: 0 | HV17: 0 | HW17: 0 | HX17: 0 | HY17: 0 | HZ17: 0 | IA17: 0 | IB17: 0 | IC17: 0 | ID17: 0 | IE17: 0 | IF17: 0 | IG17: 0 | IH17: 0 | II17: 0 | IJ17: 0 | IK17: 0 | IL17: 0 | IM17: 0 | IN17: 0 | IO17: 0 | IP17: 0 | IQ17: 0 | IR17: 0 | IS17: 0 | IT17: 0 | IU17: 0 | IV17: 0 | IW17: 0 | IX17: 0 | IY17: 0 | IZ17: 0 | JA17: 0 | JB17: 0 | JC17: 0 | JD17: 0 | JE17: 0 | JF17: 0 | JG17: 0 | JH17: =$G$17*JH9 -> 0 | JI17: 0 | JJ17: 0 | JK17: 0 | JL17: 0 | JM17: 0 | JN17: 0 | JO17: 0 | JP17: 0 | JQ17: 0 | JR17: 0 | JS17: 0 | JT17: 0 | JU17: 0 | JV17: 0 | JW17: 0 | JX17: 0 | JY17: 0 | JZ17: 0 | KA17: 0 | KB17: 0 | KC17: 0 | KD17: 0 | KE17: 0 | KF17: 0 | KG17: 0 | KH17: 0 | KI17: 0 | KJ17: 0 | KK17: 0 | KL17: 0 | KM17: 0 | KN17: 0 | KO17: 0 | KP17: 0 | KQ17: 0 | KR17: 0 | KS17: 0 | KT17: 0 | KU17: 0 | KV17: 0 | KW17: 0 | KX17: 0 | KY17: 0 | KZ17: 0 | LA17: 0 | LB17: 0 | LC17: 0 | LD17: 0 | LE17: 0 | LF17: 0 | LG17: 0 | LH17: 0 | LI17: 0 | LJ17: 0 | LK17: 0 | LL17: 0 | LM17: 0 | LN17: 0 | LO17: 0 | LP17: 0 | LQ17: 0 | LR17: 0 | LS17: 0 | LT17: =$G$17*LT9 -> 0 | LU17: 0 | LV17: 0 | LW17: 0 | LX17: 0 | LY17: 0 | LZ17: 0 | MA17: 0 | MB17: 0 | MC17: 0 | MD17: 0 | ME17: 0 | MF17: 0 | MG17: 0 | MH17: 0 | MI17: 0 | MJ17: 0 | MK17: 0 | ML17: 0 | MM17: 0 | MN17: 0 | MO17: 0 | MP17: 0 | MQ17: 0 | MR17: 0 | MS17: 0 | MT17: 0 | MU17: 0 | MV17: 0 | MW17: 0 | MX17: 0 | MY17: 0 | MZ17: 0 | NA17: 0 | NB17: 0 | NC17: 0 | ND17: 0 | NE17: 0 | NF17: 0 | NG17: 0 | NH17: 0 | NI17: 0 | NJ17: 0 | NK17: 0 | NL17: 0 | NM17: 0 | NN17: 0 | NO17: 0 | NP17: 0 | NQ17: 0 | NR17: 0 | NS17: 0 | NT17: 0 | NU17: 0 | NV17: 0 | NW17: 0 | NX17: 0 | NY17: 0 | NZ17: 0 | OA17: 0 | OB17: 0 | OC17: 0 | OD17: 0 | OE17: 0 | OF17: =$G$17*OF9 -> 0 | OG17: 0 | OH17: 0 | OI17: 0 | OJ17: 0 | OK17: 0 | OL17: 0 | OM17: 0 | ON17: 0 | OO17: 0 | OP17: 0 | OQ17: 0 | OR17: 0 | OS17: 0 | OT17: 0 | OU17: 0 | OV17: 0 | OW17: 0 | OX17: 0 | OY17: 0 | OZ17: 0 | PA17: 0 | PB17: 0 | PC17: 0 | PD17: 0 | PE17: 0 | PF17: 0 | PG17: 0 | PH17: 0 | PI17: 0 | PJ17: 0 | PK17: 0 | PL17: 0 | PM17: 0 | PN17: 0 | PO17: 0 | PP17: 0 | PQ17: 0 | PR17: 0 | PS17: 0 | PT17: 0 | PU17: 0 | PV17: 0 | PW17: 0 | PX17: 0 | PY17: 0 | PZ17: 0 | QA17: 0 | QB17: 0 | QC17: 0 | QD17: 0 | QE17: 0 | QF17: 0 | QG17: 0 | QH17: 0 | QI17: 0 | QJ17: 0 | QK17: 0 | QL17: 0 | QM17: 0 | QN17: 0 | QO17: 0 | QP17: 0 | QQ17: 0 | QR17: =$G$17*QR9 -> 0 | QS17: 0 | QT17: 0 | QU17: 0 | QV17: 0 | QW17: 0 | QX17: 0 | QY17: 0 | QZ17: 0 | RA17: 0 | RB17: 0 | RC17: 0 | RD17: 0 | RE17: 0 | RF17: 0 | RG17: 0 | RH17: 0 | RI17: 0 | RJ17: 0 | RK17: 0 | RL17: 0 | RM17: 0 | RN17: 0 | RO17: 0 | RP17: 0 | RQ17: 0 | RR17: 0 | RS17: 0 | RT17: 0 | RU17: 0 | RV17: 0 | RW17: 0 | RX17: 0 | RY17: 0 | RZ17: 0 | SA17: 0 | SB17: 0 | SC17: 0 | SD17: 0 | SE17: 0 | SF17: 0 | SG17: 0 | SH17: 0 | SI17: 0 | SJ17: 0 | SK17: 0 | SL17: 0 | SM17: 0 | SN17: 0 | SO17: 0 | SP17: 0 | SQ17: 0 | SR17: 0 | SS17: 0 | ST17: 0 | SU17: 0 | SV17: 0 | SW17: 0 | SX17: 0 | SY17: 0 | SZ17: 0 | TA17: 0 | TB17: 0 | TC17: 0 | TD17: =$G$17*TD9 -> 0 | TE17: 0 | TF17: 0 | TG17: 0 | TH17: 0 | TI17: 0 | TJ17: 0 | TK17: 0 | TL17: 0 | TM17: 0 | TN17: 0 | TO17: 0 | TP17: 0 | TQ17: 0 | TR17: 0 | TS17: 0 | TT17: 0 | TU17: 0 | TV17: 0 | TW17: 0 | TX17: 0 | TY17: 0 | TZ17: 0 | UA17: 0 | UB17: 0 | UC17: 0 | UD17: 0 | UE17: 0 | UF17: 0 | UG17: 0 | UH17: 0 | UI17: 0 | UJ17: 0 | UK17: 0 | UL17: 0 | UM17: 0 | UN17: 0 | UO17: 0 | UP17: 0 | UQ17: 0 | UR17: 0 | US17: 0 | UT17: 0 | UU17: 0 | UV17: 0 | UW17: 0 | UX17: 0 | UY17: 0 | UZ17: 0 | VA17: 0 | VB17: 0 | VC17: 0 | VD17: 0 | VE17: 0 | VF17: 0 | VG17: 0 | VH17: 0 | VI17: 0 | VJ17: 0 | VK17: 0 | VL17: 0 | VM17: 0 | VN17: 0 | VO17: 0 | VP17: =$G$17*VP9 -> 0 | VQ17: 0 | VR17: 0 | VS17: 0 | VT17: 0 | VU17: 0 | VV17: 0 | VW17: 0 | VX17: 0 | VY17: 0 | VZ17: 0 | WA17: 0 | WB17: 0 | WC17: 0 | WD17: 0 | WE17: 0 | WF17: 0 | WG17: 0 | WH17: 0 | WI17: 0 | WJ17: 0 | WK17: 0 | WL17: 0 | WM17: 0 | WN17: 0 | WO17: 0 | WP17: 0 | WQ17: 0 | WR17: 0 | WS17: 0 | WT17: 0 | WU17: 0 | WV17: 0 | WW17: 0 | WX17: 0 | WY17: 0 | WZ17: 0 | XA17: 0 | XB17: 0 | XC17: 0 | XD17: 0 | XE17: 0 | XF17: 0 | XG17: 0 | XH17: 0 | XI17: 0 | XJ17: 0 | XK17: 0 | XL17: 0 | XM17: 0 | XN17: 0 | XO17: 0 | XP17: 0 | XQ17: 0 | XR17: 0 | XS17: 0 | XT17: 0 | XU17: 0 | XV17: 0 | XW17: 0 | XX17: 0 | XY17: 0 | XZ17: 0 | YA17: 0 | YB17: =$G$17*YB9 -> 0 | YC17: 0 | YD17: 0 | YE17: 0 | YF17: 0 | YG17: 0 | YH17: 0 | YI17: 0 | YJ17: 0 | YK17: 0 | YL17: 0 | YM17: 0 | YN17: 0 | YO17: 0 | YP17: 0 | YQ17: 0 | YR17: 0 | YS17: 0 | YT17: 0 | YU17: 0 | YV17: 0 | YW17: 0 | YX17: 0 | YY17: 0 | YZ17: 0 | ZA17: 0 | ZB17: 0 | ZC17: 0 | ZD17: 0 | ZE17: 0 | ZF17: 0 | ZG17: 0 | ZH17: 0 | ZI17: 0 | ZJ17: 0 | ZK17: 0 | ZL17: 0 | ZM17: 0 | ZN17: 0 | ZO17: 0 | ZP17: 0 | ZQ17: 0 | ZR17: 0 | ZS17: 0 | ZT17: 0 | ZU17: 0 | ZV17: 0 | ZW17: 0 | ZX17: 0 | ZY17: 0 | ZZ17: 0 | AAA17: 0 | AAB17: 0 | AAC17: 0 | AAD17: 0 | AAE17: 0 | AAF17: 0 | AAG17: 0 | AAH17: 0 | AAI17: 0 | AAJ17: 0 | AAK17: 0 | AAL17: 0 | AAM17: 0 | AAN17: =$G$17*AAN9 -> 0 | AAO17: 0 | AAP17: 0 | AAQ17: 0 | AAR17: 0 | AAS17: 0 | AAT17: 0 | AAU17: 0 | AAV17: 0 | AAW17: 0 | AAX17: 0 | AAY17: 0 | AAZ17: 0 | ABA17: 0 | ABB17: 0 | ABC17: 0 | ABD17: 0 | ABE17: 0 | ABF17: 0 | ABG17: 0 | ABH17: 0 | ABI17: 0 | ABJ17: 0 | ABK17: 0 | ABL17: 0 | ABM17: 0 | ABN17: 0 | ABO17: 0 | ABP17: 0 | ABQ17: 0 | ABR17: 0 | ABS17: 0 | ABT17: 0 | ABU17: 0 | ABV17: 0 | ABW17: 0 | ABX17: 0 | ABY17: 0 | ABZ17: 0 | ACA17: 0 | ACB17: 0 | ACC17: 0 | ACD17: 0 | ACE17: 0 | ACF17: 0 | ACG17: 0 | ACH17: 0 | ACI17: 0 | ACJ17: 0 | ACK17: 0 | ACL17: 0 | ACM17: 0 | ACN17: 0 | ACO17: 0 | ACP17: 0 | ACQ17: 0 | ACR17: 0 | ACS17: 0 | ACT17: 0 | ACU17: 0 | ACV17: 0 | ACW17: 0 | ACX17: 0 | ACY17: 0 | ACZ17: =$G$17*ACZ9 -> 0 | ADA17: 0 | ADB17: 0 | ADC17: 0 | ADD17: 0 | ADE17: 0 | ADF17: 0 | ADG17: 0 | ADH17: 0 | ADI17: 0 | ADJ17: 0 | ADK17: 0 | ADL17: 0 | ADM17: 0 | ADN17: 0 | ADO17: 0 | ADP17: 0 | ADQ17: 0 | ADR17: 0 | ADS17: 0 | ADT17: 0 | ADU17: 0 | ADV17: 0 | ADW17: 0 | ADX17: 0 | ADY17: 0 | ADZ17: 0 | AEA17: 0 | AEB17: 0 | AEC17: 0 | AED17: 0 | AEE17: 0 | AEF17: 0 | AEG17: 0 | AEH17: 0 | AEI17: 0 | AEJ17: 0 | AEK17: 0 | AEL17: 0 | AEM17: 0 | AEN17: 0 | AEO17: 0 | AEP17: 0 | AEQ17: 0 | AER17: 0 | AES17: 0 | AET17: 0 | AEU17: 0 | AEV17: 0 | AEW17: 0 | AEX17: 0 | AEY17: 0 | AEZ17: 0 | AFA17: 0 | AFB17: 0 | AFC17: 0 | AFD17: 0 | AFE17: 0 | AFF17: 0 | AFG17: 0 | AFH17: 0 | AFI17: 0 | AFJ17: 0 | AFK17: 0 | AFL17: =$G$17*AFL9 -> 0 | AFM17: 0 | AFN17: 0 | AFO17: 0 | AFP17: 0 | AFQ17: 0 | AFR17: 0 | AFS17: 0 | AFT17: 0 | AFU17: 0 | AFV17: 0 | AFW17: 0 | AFX17: 0 | AFY17: 0 | AFZ17: 0 | AGA17: 0 | AGB17: 0 | AGC17: 0 | AGD17: 0 | AGE17: 0 | AGF17: 0 | AGG17: 0 | AGH17: 0 | AGI17: 0 | AGJ17: 0 | AGK17: 0 | AGL17: 0 | AGM17: 0 | AGN17: 0 | AGO17: 0 | AGP17: 0 | AGQ17: 0 | AGR17: 0 | AGS17: 0 | AGT17: 0 | AGU17: 0 | AGV17: 0 | AGW17: 0 | AGX17: 0 | AGY17: 0 | AGZ17: 0 | AHA17: 0 | AHB17: 0 | AHC17: 0 | AHD17: 0 | AHE17: 0 | AHF17: 0 | AHG17: 0 | AHH17: 0 | AHI17: 0 | AHJ17: 0 | AHK17: 0 | AHL17: 0 | AHM17: 0 | AHN17: 0 | AHO17: 0 | AHP17: 0 | AHQ17: 0 | AHR17: 0 | AHS17: 0 | AHT17: 0 | AHU17: 0 | AHV17: 0 | AHW17: 0 | AHX17: =$G$17*AHX9 -> 0 | AHY17: 0 | AHZ17: 0 | AIA17: 0 | AIB17: 0 | AIC17: 0 | AID17: 0 | AIE17: 0 | AIF17: 0 | AIG17: 0 | AIH17: 0 | AII17: 0 | AIJ17: 0 | AIK17: 0 | AIL17: 0 | AIM17: 0 | AIN17: 0 | AIO17: 0 | AIP17: 0 | AIQ17: 0 | AIR17: 0 | AIS17: 0 | AIT17: 0 | AIU17: 0 | AIV17: 0 | AIW17: 0 | AIX17: 0 | AIY17: 0 | AIZ17: 0 | AJA17: 0 | AJB17: 0 | AJC17: 0 | AJD17: 0 | AJE17: 0 | AJF17: 0 | AJG17: 0 | AJH17: 0 | AJI17: 0 | AJJ17: 0 | AJK17: 0 | AJL17: 0 | AJM17: 0 | AJN17: 0 | AJO17: 0 | AJP17: 0 | AJQ17: 0 | AJR17: 0 | AJS17: 0 | AJT17: 0 | AJU17: 0 | AJV17: 0 | AJW17: 0 | AJX17: 0 | AJY17: 0 | AJZ17: 0 | AKA17: 0 | AKB17: 0 | AKC17: 0 | AKD17: 0 | AKE17: 0 | AKF17: 0 | AKG17: 0 | AKH17: 0 | AKI17: 0 | AKJ17: =$G$17*AKJ9 -> 0 | AKK17: 0 | AKL17: 0 | AKM17: 0 | AKN17: 0 | AKO17: 0 | AKP17: 0 | AKQ17: 0 | AKR17: 0 | AKS17: 0 | AKT17: 0 | AKU17: 0 | AKV17: 0 | AKW17: 0 | AKX17: 0 | AKY17: 0 | AKZ17: 0 | ALA17: 0 | ALB17: 0 | ALC17: 0 | ALD17: 0 | ALE17: 0 | ALF17: 0 | ALG17: 0 | ALH17: 0 | ALI17: 0 | ALJ17: 0 | ALK17: 0 | ALL17: 0 | ALM17: 0 | ALN17: 0 | ALO17: 0 | ALP17: 0 | ALQ17: 0 | ALR17: 0 | ALS17: 0 | ALT17: 0 | ALU17: 0 | ALV17: 0
C18: Growth Rate | E18: % p.a. | F18: =InputC!F20 -> 0.02 | G18: =G6 -> 12 | I18: % p.p. | K18: =(1+$F$18)^($G$18/months)-1 -> 0.02 | L18: =(1+$F$18)^($G$18/months)-1 -> 0.02 | M18: 0.02 | N18: 0.02 | O18: 0.02 | P18: 0.02 | Q18: 0.02 | R18: 0.02 | S18: 0.02 | T18: 0.02 | U18: 0.02 | V18: 0.02 | W18: 0.02 | X18: 0.02 | Y18: 0.02 | Z18: 0.02 | AA18: 0.02 | AB18: 0.02 | AC18: 0.02 | AD18: 0.02 | AE18: 0.02 | AF18: 0.02 | AG18: 0.02 | AH18: 0.02 | AI18: 0.02 | AJ18: 0.02 | AK18: 0.02 | AL18: 0.02 | AM18: 0.02 | AN18: 0.02 | AO18: 0.02 | AP18: 0.02 | AQ18: 0.02 | AR18: 0.02 | AS18: 0.02 | AT18: 0.02 | AU18: 0.02 | AV18: 0.02 | AW18: 0.02 | AX18: 0.02 | AY18: 0.02 | AZ18: 0.02 | BA18: 0.02 | BB18: 0.02 | BC18: 0.02 | BD18: 0.02 | BE18: 0.02 | BF18: 0.02 | BG18: 0.02 | BH18: 0.02 | BI18: 0.02 | BJ18: 0.02 | BK18: 0.02 | BL18: 0.02 | BM18: 0.02 | BN18: 0.02 | BO18: 0.02 | BP18: 0.02 | BQ18: 0.02 | BR18: 0.02 | BS18: 0.02 | BT18: 0.02 | BU18: 0.02 | BV18: 0.02 | BW18: =(1+$F$18)^($G$18/months)-1 -> 0.02 | BX18: 0.02 | BY18: 0.02 | BZ18: 0.02 | CA18: 0.02 | CB18: 0.02 | CC18: 0.02 | CD18: 0.02 | CE18: 0.02 | CF18: 0.02 | CG18: 0.02 | CH18: 0.02 | CI18: 0.02 | CJ18: 0.02 | CK18: 0.02 | CL18: 0.02 | CM18: 0.02 | CN18: 0.02 | CO18: 0.02 | CP18: 0.02 | CQ18: 0.02 | CR18: 0.02 | CS18: 0.02 | CT18: 0.02 | CU18: 0.02 | CV18: 0.02 | CW18: 0.02 | CX18: 0.02 | CY18: 0.02 | CZ18: 0.02 | DA18: 0.02 | DB18: 0.02 | DC18: 0.02 | DD18: 0.02 | DE18: 0.02 | DF18: 0.02 | DG18: 0.02 | DH18: 0.02 | DI18: 0.02 | DJ18: 0.02 | DK18: 0.02 | DL18: 0.02 | DM18: 0.02 | DN18: 0.02 | DO18: 0.02 | DP18: 0.02 | DQ18: 0.02 | DR18: 0.02 | DS18: 0.02 | DT18: 0.02 | DU18: 0.02 | DV18: 0.02 | DW18: 0.02 | DX18: 0.02 | DY18: 0.02 | DZ18: 0.02 | EA18: 0.02 | EB18: 0.02 | EC18: 0.02 | ED18: 0.02 | EE18: 0.02 | EF18: 0.02 | EG18: 0.02 | EH18: 0.02 | EI18: =(1+$F$18)^($G$18/months)-1 -> 0.02 | EJ18: 0.02 | EK18: 0.02 | EL18: 0.02 | EM18: 0.02 | EN18: 0.02 | EO18: 0.02 | EP18: 0.02 | EQ18: 0.02 | ER18: 0.02 | ES18: 0.02 | ET18: 0.02 | EU18: 0.02 | EV18: 0.02 | EW18: 0.02 | EX18: 0.02 | EY18: 0.02 | EZ18: 0.02 | FA18: 0.02 | FB18: 0.02 | FC18: 0.02 | FD18: 0.02 | FE18: 0.02 | FF18: 0.02 | FG18: 0.02 | FH18: 0.02 | FI18: 0.02 | FJ18: 0.02 | FK18: 0.02 | FL18: 0.02 | FM18: 0.02 | FN18: 0.02 | FO18: 0.02 | FP18: 0.02 | FQ18: 0.02 | FR18: 0.02 | FS18: 0.02 | FT18: 0.02 | FU18: 0.02 | FV18: 0.02 | FW18: 0.02 | FX18: 0.02 | FY18: 0.02 | FZ18: 0.02 | GA18: 0.02 | GB18: 0.02 | GC18: 0.02 | GD18: 0.02 | GE18: 0.02 | GF18: 0.02 | GG18: 0.02 | GH18: 0.02 | GI18: 0.02 | GJ18: 0.02 | GK18: 0.02 | GL18: 0.02 | GM18: 0.02 | GN18: 0.02 | GO18: 0.02 | GP18: 0.02 | GQ18: 0.02 | GR18: 0.02 | GS18: 0.02 | GT18: 0.02 | GU18: =(1+$F$18)^($G$18/months)-1 -> 0.02 | GV18: 0.02 | GW18: 0.02 | GX18: 0.02 | GY18: 0.02 | GZ18: 0.02 | HA18: 0.02 | HB18: 0.02 | HC18: 0.02 | HD18: 0.02 | HE18: 0.02 | HF18: 0.02 | HG18: 0.02 | HH18: 0.02 | HI18: 0.02 | HJ18: 0.02 | HK18: 0.02 | HL18: 0.02 | HM18: 0.02 | HN18: 0.02 | HO18: 0.02 | HP18: 0.02 | HQ18: 0.02 | HR18: 0.02 | HS18: 0.02 | HT18: 0.02 | HU18: 0.02 | HV18: 0.02 | HW18: 0.02 | HX18: 0.02 | HY18: 0.02 | HZ18: 0.02 | IA18: 0.02 | IB18: 0.02 | IC18: 0.02 | ID18: 0.02 | IE18: 0.02 | IF18: 0.02 | IG18: 0.02 | IH18: 0.02 | II18: 0.02 | IJ18: 0.02 | IK18: 0.02 | IL18: 0.02 | IM18: 0.02 | IN18: 0.02 | IO18: 0.02 | IP18: 0.02 | IQ18: 0.02 | IR18: 0.02 | IS18: 0.02 | IT18: 0.02 | IU18: 0.02 | IV18: 0.02 | IW18: 0.02 | IX18: 0.02 | IY18: 0.02 | IZ18: 0.02 | JA18: 0.02 | JB18: 0.02 | JC18: 0.02 | JD18: 0.02 | JE18: 0.02 | JF18: 0.02 | JG18: =(1+$F$18)^($G$18/months)-1 -> 0.02 | JH18: 0.02 | JI18: 0.02 | JJ18: 0.02 | JK18: 0.02 | JL18: 0.02 | JM18: 0.02 | JN18: 0.02 | JO18: 0.02 | JP18: 0.02 | JQ18: 0.02 | JR18: 0.02 | JS18: 0.02 | JT18: 0.02 | JU18: 0.02 | JV18: 0.02 | JW18: 0.02 | JX18: 0.02 | JY18: 0.02 | JZ18: 0.02 | KA18: 0.02 | KB18: 0.02 | KC18: 0.02 | KD18: 0.02 | KE18: 0.02 | KF18: 0.02 | KG18: 0.02 | KH18: 0.02 | KI18: 0.02 | KJ18: 0.02 | KK18: 0.02 | KL18: 0.02 | KM18: 0.02 | KN18: 0.02 | KO18: 0.02 | KP18: 0.02 | KQ18: 0.02 | KR18: 0.02 | KS18: 0.02 | KT18: 0.02 | KU18: 0.02 | KV18: 0.02 | KW18: 0.02 | KX18: 0.02 | KY18: 0.02 | KZ18: 0.02 | LA18: 0.02 | LB18: 0.02 | LC18: 0.02 | LD18: 0.02 | LE18: 0.02 | LF18: 0.02 | LG18: 0.02 | LH18: 0.02 | LI18: 0.02 | LJ18: 0.02 | LK18: 0.02 | LL18: 0.02 | LM18: 0.02 | LN18: 0.02 | LO18: 0.02 | LP18: 0.02 | LQ18: 0.02 | LR18: 0.02 | LS18: =(1+$F$18)^($G$18/months)-1 -> 0.02 | LT18: 0.02 | LU18: 0.02 | LV18: 0.02 | LW18: 0.02 | LX18: 0.02 | LY18: 0.02 | LZ18: 0.02 | MA18: 0.02 | MB18: 0.02 | MC18: 0.02 | MD18: 0.02 | ME18: 0.02 | MF18: 0.02 | MG18: 0.02 | MH18: 0.02 | MI18: 0.02 | MJ18: 0.02 | MK18: 0.02 | ML18: 0.02 | MM18: 0.02 | MN18: 0.02 | MO18: 0.02 | MP18: 0.02 | MQ18: 0.02 | MR18: 0.02 | MS18: 0.02 | MT18: 0.02 | MU18: 0.02 | MV18: 0.02 | MW18: 0.02 | MX18: 0.02 | MY18: 0.02 | MZ18: 0.02 | NA18: 0.02 | NB18: 0.02 | NC18: 0.02 | ND18: 0.02 | NE18: 0.02 | NF18: 0.02 | NG18: 0.02 | NH18: 0.02 | NI18: 0.02 | NJ18: 0.02 | NK18: 0.02 | NL18: 0.02 | NM18: 0.02 | NN18: 0.02 | NO18: 0.02 | NP18: 0.02 | NQ18: 0.02 | NR18: 0.02 | NS18: 0.02 | NT18: 0.02 | NU18: 0.02 | NV18: 0.02 | NW18: 0.02 | NX18: 0.02 | NY18: 0.02 | NZ18: 0.02 | OA18: 0.02 | OB18: 0.02 | OC18: 0.02 | OD18: 0.02 | OE18: =(1+$F$18)^($G$18/months)-1 -> 0.02 | OF18: 0.02 | OG18: 0.02 | OH18: 0.02 | OI18: 0.02 | OJ18: 0.02 | OK18: 0.02 | OL18: 0.02 | OM18: 0.02 | ON18: 0.02 | OO18: 0.02 | OP18: 0.02 | OQ18: 0.02 | OR18: 0.02 | OS18: 0.02 | OT18: 0.02 | OU18: 0.02 | OV18: 0.02 | OW18: 0.02 | OX18: 0.02 | OY18: 0.02 | OZ18: 0.02 | PA18: 0.02 | PB18: 0.02 | PC18: 0.02 | PD18: 0.02 | PE18: 0.02 | PF18: 0.02 | PG18: 0.02 | PH18: 0.02 | PI18: 0.02 | PJ18: 0.02 | PK18: 0.02 | PL18: 0.02 | PM18: 0.02 | PN18: 0.02 | PO18: 0.02 | PP18: 0.02 | PQ18: 0.02 | PR18: 0.02 | PS18: 0.02 | PT18: 0.02 | PU18: 0.02 | PV18: 0.02 | PW18: 0.02 | PX18: 0.02 | PY18: 0.02 | PZ18: 0.02 | QA18: 0.02 | QB18: 0.02 | QC18: 0.02 | QD18: 0.02 | QE18: 0.02 | QF18: 0.02 | QG18: 0.02 | QH18: 0.02 | QI18: 0.02 | QJ18: 0.02 | QK18: 0.02 | QL18: 0.02 | QM18: 0.02 | QN18: 0.02 | QO18: 0.02 | QP18: 0.02 | QQ18: =(1+$F$18)^($G$18/months)-1 -> 0.02 | QR18: 0.02 | QS18: 0.02 | QT18: 0.02 | QU18: 0.02 | QV18: 0.02 | QW18: 0.02 | QX18: 0.02 | QY18: 0.02 | QZ18: 0.02 | RA18: 0.02 | RB18: 0.02 | RC18: 0.02 | RD18: 0.02 | RE18: 0.02 | RF18: 0.02 | RG18: 0.02 | RH18: 0.02 | RI18: 0.02 | RJ18: 0.02 | RK18: 0.02 | RL18: 0.02 | RM18: 0.02 | RN18: 0.02 | RO18: 0.02 | RP18: 0.02 | RQ18: 0.02 | RR18: 0.02 | RS18: 0.02 | RT18: 0.02 | RU18: 0.02 | RV18: 0.02 | RW18: 0.02 | RX18: 0.02 | RY18: 0.02 | RZ18: 0.02 | SA18: 0.02 | SB18: 0.02 | SC18: 0.02 | SD18: 0.02 | SE18: 0.02 | SF18: 0.02 | SG18: 0.02 | SH18: 0.02 | SI18: 0.02 | SJ18: 0.02 | SK18: 0.02 | SL18: 0.02 | SM18: 0.02 | SN18: 0.02 | SO18: 0.02 | SP18: 0.02 | SQ18: 0.02 | SR18: 0.02 | SS18: 0.02 | ST18: 0.02 | SU18: 0.02 | SV18: 0.02 | SW18: 0.02 | SX18: 0.02 | SY18: 0.02 | SZ18: 0.02 | TA18: 0.02 | TB18: 0.02 | TC18: =(1+$F$18)^($G$18/months)-1 -> 0.02 | TD18: 0.02 | TE18: 0.02 | TF18: 0.02 | TG18: 0.02 | TH18: 0.02 | TI18: 0.02 | TJ18: 0.02 | TK18: 0.02 | TL18: 0.02 | TM18: 0.02 | TN18: 0.02 | TO18: 0.02 | TP18: 0.02 | TQ18: 0.02 | TR18: 0.02 | TS18: 0.02 | TT18: 0.02 | TU18: 0.02 | TV18: 0.02 | TW18: 0.02 | TX18: 0.02 | TY18: 0.02 | TZ18: 0.02 | UA18: 0.02 | UB18: 0.02 | UC18: 0.02 | UD18: 0.02 | UE18: 0.02 | UF18: 0.02 | UG18: 0.02 | UH18: 0.02 | UI18: 0.02 | UJ18: 0.02 | UK18: 0.02 | UL18: 0.02 | UM18: 0.02 | UN18: 0.02 | UO18: 0.02 | UP18: 0.02 | UQ18: 0.02 | UR18: 0.02 | US18: 0.02 | UT18: 0.02 | UU18: 0.02 | UV18: 0.02 | UW18: 0.02 | UX18: 0.02 | UY18: 0.02 | UZ18: 0.02 | VA18: 0.02 | VB18: 0.02 | VC18: 0.02 | VD18: 0.02 | VE18: 0.02 | VF18: 0.02 | VG18: 0.02 | VH18: 0.02 | VI18: 0.02 | VJ18: 0.02 | VK18: 0.02 | VL18: 0.02 | VM18: 0.02 | VN18: 0.02 | VO18: =(1+$F$18)^($G$18/months)-1 -> 0.02 | VP18: 0.02 | VQ18: 0.02 | VR18: 0.02 | VS18: 0.02 | VT18: 0.02 | VU18: 0.02 | VV18: 0.02 | VW18: 0.02 | VX18: 0.02 | VY18: 0.02 | VZ18: 0.02 | WA18: 0.02 | WB18: 0.02 | WC18: 0.02 | WD18: 0.02 | WE18: 0.02 | WF18: 0.02 | WG18: 0.02 | WH18: 0.02 | WI18: 0.02 | WJ18: 0.02 | WK18: 0.02 | WL18: 0.02 | WM18: 0.02 | WN18: 0.02 | WO18: 0.02 | WP18: 0.02 | WQ18: 0.02 | WR18: 0.02 | WS18: 0.02 | WT18: 0.02 | WU18: 0.02 | WV18: 0.02 | WW18: 0.02 | WX18: 0.02 | WY18: 0.02 | WZ18: 0.02 | XA18: 0.02 | XB18: 0.02 | XC18: 0.02 | XD18: 0.02 | XE18: 0.02 | XF18: 0.02 | XG18: 0.02 | XH18: 0.02 | XI18: 0.02 | XJ18: 0.02 | XK18: 0.02 | XL18: 0.02 | XM18: 0.02 | XN18: 0.02 | XO18: 0.02 | XP18: 0.02 | XQ18: 0.02 | XR18: 0.02 | XS18: 0.02 | XT18: 0.02 | XU18: 0.02 | XV18: 0.02 | XW18: 0.02 | XX18: 0.02 | XY18: 0.02 | XZ18: 0.02 | YA18: =(1+$F$18)^($G$18/months)-1 -> 0.02 | YB18: 0.02 | YC18: 0.02 | YD18: 0.02 | YE18: 0.02 | YF18: 0.02 | YG18: 0.02 | YH18: 0.02 | YI18: 0.02 | YJ18: 0.02 | YK18: 0.02 | YL18: 0.02 | YM18: 0.02 | YN18: 0.02 | YO18: 0.02 | YP18: 0.02 | YQ18: 0.02 | YR18: 0.02 | YS18: 0.02 | YT18: 0.02 | YU18: 0.02 | YV18: 0.02 | YW18: 0.02 | YX18: 0.02 | YY18: 0.02 | YZ18: 0.02 | ZA18: 0.02 | ZB18: 0.02 | ZC18: 0.02 | ZD18: 0.02 | ZE18: 0.02 | ZF18: 0.02 | ZG18: 0.02 | ZH18: 0.02 | ZI18: 0.02 | ZJ18: 0.02 | ZK18: 0.02 | ZL18: 0.02 | ZM18: 0.02 | ZN18: 0.02 | ZO18: 0.02 | ZP18: 0.02 | ZQ18: 0.02 | ZR18: 0.02 | ZS18: 0.02 | ZT18: 0.02 | ZU18: 0.02 | ZV18: 0.02 | ZW18: 0.02 | ZX18: 0.02 | ZY18: 0.02 | ZZ18: 0.02 | AAA18: 0.02 | AAB18: 0.02 | AAC18: 0.02 | AAD18: 0.02 | AAE18: 0.02 | AAF18: 0.02 | AAG18: 0.02 | AAH18: 0.02 | AAI18: 0.02 | AAJ18: 0.02 | AAK18: 0.02 | AAL18: 0.02 | AAM18: =(1+$F$18)^($G$18/months)-1 -> 0.02 | AAN18: 0.02 | AAO18: 0.02 | AAP18: 0.02 | AAQ18: 0.02 | AAR18: 0.02 | AAS18: 0.02 | AAT18: 0.02 | AAU18: 0.02 | AAV18: 0.02 | AAW18: 0.02 | AAX18: 0.02 | AAY18: 0.02 | AAZ18: 0.02 | ABA18: 0.02 | ABB18: 0.02 | ABC18: 0.02 | ABD18: 0.02 | ABE18: 0.02 | ABF18: 0.02 | ABG18: 0.02 | ABH18: 0.02 | ABI18: 0.02 | ABJ18: 0.02 | ABK18: 0.02 | ABL18: 0.02 | ABM18: 0.02 | ABN18: 0.02 | ABO18: 0.02 | ABP18: 0.02 | ABQ18: 0.02 | ABR18: 0.02 | ABS18: 0.02 | ABT18: 0.02 | ABU18: 0.02 | ABV18: 0.02 | ABW18: 0.02 | ABX18: 0.02 | ABY18: 0.02 | ABZ18: 0.02 | ACA18: 0.02 | ACB18: 0.02 | ACC18: 0.02 | ACD18: 0.02 | ACE18: 0.02 | ACF18: 0.02 | ACG18: 0.02 | ACH18: 0.02 | ACI18: 0.02 | ACJ18: 0.02 | ACK18: 0.02 | ACL18: 0.02 | ACM18: 0.02 | ACN18: 0.02 | ACO18: 0.02 | ACP18: 0.02 | ACQ18: 0.02 | ACR18: 0.02 | ACS18: 0.02 | ACT18: 0.02 | ACU18: 0.02 | ACV18: 0.02 | ACW18: 0.02 | ACX18: 0.02 | ACY18: =(1+$F$18)^($G$18/months)-1 -> 0.02 | ACZ18: 0.02 | ADA18: 0.02 | ADB18: 0.02 | ADC18: 0.02 | ADD18: 0.02 | ADE18: 0.02 | ADF18: 0.02 | ADG18: 0.02 | ADH18: 0.02 | ADI18: 0.02 | ADJ18: 0.02 | ADK18: 0.02 | ADL18: 0.02 | ADM18: 0.02 | ADN18: 0.02 | ADO18: 0.02 | ADP18: 0.02 | ADQ18: 0.02 | ADR18: 0.02 | ADS18: 0.02 | ADT18: 0.02 | ADU18: 0.02 | ADV18: 0.02 | ADW18: 0.02 | ADX18: 0.02 | ADY18: 0.02 | ADZ18: 0.02 | AEA18: 0.02 | AEB18: 0.02 | AEC18: 0.02 | AED18: 0.02 | AEE18: 0.02 | AEF18: 0.02 | AEG18: 0.02 | AEH18: 0.02 | AEI18: 0.02 | AEJ18: 0.02 | AEK18: 0.02 | AEL18: 0.02 | AEM18: 0.02 | AEN18: 0.02 | AEO18: 0.02 | AEP18: 0.02 | AEQ18: 0.02 | AER18: 0.02 | AES18: 0.02 | AET18: 0.02 | AEU18: 0.02 | AEV18: 0.02 | AEW18: 0.02 | AEX18: 0.02 | AEY18: 0.02 | AEZ18: 0.02 | AFA18: 0.02 | AFB18: 0.02 | AFC18: 0.02 | AFD18: 0.02 | AFE18: 0.02 | AFF18: 0.02 | AFG18: 0.02 | AFH18: 0.02 | AFI18: 0.02 | AFJ18: 0.02 | AFK18: =(1+$F$18)^($G$18/months)-1 -> 0.02 | AFL18: 0.02 | AFM18: 0.02 | AFN18: 0.02 | AFO18: 0.02 | AFP18: 0.02 | AFQ18: 0.02 | AFR18: 0.02 | AFS18: 0.02 | AFT18: 0.02 | AFU18: 0.02 | AFV18: 0.02 | AFW18: 0.02 | AFX18: 0.02 | AFY18: 0.02 | AFZ18: 0.02 | AGA18: 0.02 | AGB18: 0.02 | AGC18: 0.02 | AGD18: 0.02 | AGE18: 0.02 | AGF18: 0.02 | AGG18: 0.02 | AGH18: 0.02 | AGI18: 0.02 | AGJ18: 0.02 | AGK18: 0.02 | AGL18: 0.02 | AGM18: 0.02 | AGN18: 0.02 | AGO18: 0.02 | AGP18: 0.02 | AGQ18: 0.02 | AGR18: 0.02 | AGS18: 0.02 | AGT18: 0.02 | AGU18: 0.02 | AGV18: 0.02 | AGW18: 0.02 | AGX18: 0.02 | AGY18: 0.02 | AGZ18: 0.02 | AHA18: 0.02 | AHB18: 0.02 | AHC18: 0.02 | AHD18: 0.02 | AHE18: 0.02 | AHF18: 0.02 | AHG18: 0.02 | AHH18: 0.02 | AHI18: 0.02 | AHJ18: 0.02 | AHK18: 0.02 | AHL18: 0.02 | AHM18: 0.02 | AHN18: 0.02 | AHO18: 0.02 | AHP18: 0.02 | AHQ18: 0.02 | AHR18: 0.02 | AHS18: 0.02 | AHT18: 0.02 | AHU18: 0.02 | AHV18: 0.02 | AHW18: =(1+$F$18)^($G$18/months)-1 -> 0.02 | AHX18: 0.02 | AHY18: 0.02 | AHZ18: 0.02 | AIA18: 0.02 | AIB18: 0.02 | AIC18: 0.02 | AID18: 0.02 | AIE18: 0.02 | AIF18: 0.02 | AIG18: 0.02 | AIH18: 0.02 | AII18: 0.02 | AIJ18: 0.02 | AIK18: 0.02 | AIL18: 0.02 | AIM18: 0.02 | AIN18: 0.02 | AIO18: 0.02 | AIP18: 0.02 | AIQ18: 0.02 | AIR18: 0.02 | AIS18: 0.02 | AIT18: 0.02 | AIU18: 0.02 | AIV18: 0.02 | AIW18: 0.02 | AIX18: 0.02 | AIY18: 0.02 | AIZ18: 0.02 | AJA18: 0.02 | AJB18: 0.02 | AJC18: 0.02 | AJD18: 0.02 | AJE18: 0.02 | AJF18: 0.02 | AJG18: 0.02 | AJH18: 0.02 | AJI18: 0.02 | AJJ18: 0.02 | AJK18: 0.02 | AJL18: 0.02 | AJM18: 0.02 | AJN18: 0.02 | AJO18: 0.02 | AJP18: 0.02 | AJQ18: 0.02 | AJR18: 0.02 | AJS18: 0.02 | AJT18: 0.02 | AJU18: 0.02 | AJV18: 0.02 | AJW18: 0.02 | AJX18: 0.02 | AJY18: 0.02 | AJZ18: 0.02 | AKA18: 0.02 | AKB18: 0.02 | AKC18: 0.02 | AKD18: 0.02 | AKE18: 0.02 | AKF18: 0.02 | AKG18: 0.02 | AKH18: 0.02 | AKI18: =(1+$F$18)^($G$18/months)-1 -> 0.02 | AKJ18: 0.02 | AKK18: 0.02 | AKL18: 0.02 | AKM18: 0.02 | AKN18: 0.02 | AKO18: 0.02 | AKP18: 0.02 | AKQ18: 0.02 | AKR18: 0.02 | AKS18: 0.02 | AKT18: 0.02 | AKU18: 0.02 | AKV18: 0.02 | AKW18: 0.02 | AKX18: 0.02 | AKY18: 0.02 | AKZ18: 0.02 | ALA18: 0.02 | ALB18: 0.02 | ALC18: 0.02 | ALD18: 0.02 | ALE18: 0.02 | ALF18: 0.02 | ALG18: 0.02 | ALH18: 0.02 | ALI18: 0.02 | ALJ18: 0.02 | ALK18: 0.02 | ALL18: 0.02 | ALM18: 0.02 | ALN18: 0.02 | ALO18: 0.02 | ALP18: 0.02 | ALQ18: 0.02 | ALR18: 0.02 | ALS18: 0.02 | ALT18: 0.02 | ALU18: 0.02 | ALV18: 0.02
C19: Inflation Index | I19: Index | J19: =One -> 1 | K19: =J19*(1+K18*K9) -> 1 | L19: =K19*(1+L18*L9) -> 1.02 | M19: 1.0404 | N19: 1.061208 | O19: 1.08243216 | P19: 1.104080803 | Q19: 1.126162419 | R19: 1.148685668 | S19: 1.171659381 | T19: 1.195092569 | U19: 1.21899442 | V19: 1.243374308 | W19: 1.268241795 | X19: 1.29360663 | Y19: 1.319478763 | Z19: 1.345868338 | AA19: 1.372785705 | AB19: 1.400241419 | AC19: 1.428246248 | AD19: 1.456811173 | AE19: 1.485947396 | AF19: 1.515666344 | AG19: 1.545979671 | AH19: 1.576899264 | AI19: 1.608437249 | AJ19: 1.640605994 | AK19: 1.673418114 | AL19: 1.706886477 | AM19: 1.741024206 | AN19: 1.77584469 | AO19: 1.811361584 | AP19: 1.847588816 | AQ19: 1.884540592 | AR19: 1.922231404 | AS19: 1.960676032 | AT19: 1.999889553 | AU19: 1.999889553 | AV19: 1.999889553 | AW19: 1.999889553 | AX19: 1.999889553 | AY19: 1.999889553 | AZ19: 1.999889553 | BA19: 1.999889553 | BB19: 1.999889553 | BC19: 1.999889553 | BD19: 1.999889553 | BE19: 1.999889553 | BF19: 1.999889553 | BG19: 1.999889553 | BH19: 1.999889553 | BI19: 1.999889553 | BJ19: 1.999889553 | BK19: 1.999889553 | BL19: 1.999889553 | BM19: 1.999889553 | BN19: 1.999889553 | BO19: 1.999889553 | BP19: 1.999889553 | BQ19: 1.999889553 | BR19: 1.999889553 | BS19: 1.999889553 | BT19: 1.999889553 | BU19: 1.999889553 | BV19: 1.999889553 | BW19: 1.999889553 | BX19: =BW19*(1+BX18*BX9) -> 1.999889553 | BY19: 1.999889553 | BZ19: 1.999889553 | CA19: 1.999889553 | CB19: 1.999889553 | CC19: 1.999889553 | CD19: 1.999889553 | CE19: 1.999889553 | CF19: 1.999889553 | CG19: 1.999889553 | CH19: 1.999889553 | CI19: 1.999889553 | CJ19: 1.999889553 | CK19: 1.999889553 | CL19: 1.999889553 | CM19: 1.999889553 | CN19: 1.999889553 | CO19: 1.999889553 | CP19: 1.999889553 | CQ19: 1.999889553 | CR19: 1.999889553 | CS19: 1.999889553 | CT19: 1.999889553 | CU19: 1.999889553 | CV19: 1.999889553 | CW19: 1.999889553 | CX19: 1.999889553 | CY19: 1.999889553 | CZ19: 1.999889553 | DA19: 1.999889553 | DB19: 1.999889553 | DC19: 1.999889553 | DD19: 1.999889553 | DE19: 1.999889553 | DF19: 1.999889553 | DG19: 1.999889553 | DH19: 1.999889553 | DI19: 1.999889553 | DJ19: 1.999889553 | DK19: 1.999889553 | DL19: 1.999889553 | DM19: 1.999889553 | DN19: 1.999889553 | DO19: 1.999889553 | DP19: 1.999889553 | DQ19: 1.999889553 | DR19: 1.999889553 | DS19: 1.999889553 | DT19: 1.999889553 | DU19: 1.999889553 | DV19: 1.999889553 | DW19: 1.999889553 | DX19: 1.999889553 | DY19: 1.999889553 | DZ19: 1.999889553 | EA19: 1.999889553 | EB19: 1.999889553 | EC19: 1.999889553 | ED19: 1.999889553 | EE19: 1.999889553 | EF19: 1.999889553 | EG19: 1.999889553 | EH19: 1.999889553 | EI19: 1.999889553 | EJ19: =EI19*(1+EJ18*EJ9) -> 1.999889553 | EK19: 1.999889553 | EL19: 1.999889553 | EM19: 1.999889553 | EN19: 1.999889553 | EO19: 1.999889553 | EP19: 1.999889553 | EQ19: 1.999889553 | ER19: 1.999889553 | ES19: 1.999889553 | ET19: 1.999889553 | EU19: 1.999889553 | EV19: 1.999889553 | EW19: 1.999889553 | EX19: 1.999889553 | EY19: 1.999889553 | EZ19: 1.999889553 | FA19: 1.999889553 | FB19: 1.999889553 | FC19: 1.999889553 | FD19: 1.999889553 | FE19: 1.999889553 | FF19: 1.999889553 | FG19: 1.999889553 | FH19: 1.999889553 | FI19: 1.999889553 | FJ19: 1.999889553 | FK19: 1.999889553 | FL19: 1.999889553 | FM19: 1.999889553 | FN19: 1.999889553 | FO19: 1.999889553 | FP19: 1.999889553 | FQ19: 1.999889553 | FR19: 1.999889553 | FS19: 1.999889553 | FT19: 1.999889553 | FU19: 1.999889553 | FV19: 1.999889553 | FW19: 1.999889553 | FX19: 1.999889553 | FY19: 1.999889553 | FZ19: 1.999889553 | GA19: 1.999889553 | GB19: 1.999889553 | GC19: 1.999889553 | GD19: 1.999889553 | GE19: 1.999889553 | GF19: 1.999889553 | GG19: 1.999889553 | GH19: 1.999889553 | GI19: 1.999889553 | GJ19: 1.999889553 | GK19: 1.999889553 | GL19: 1.999889553 | GM19: 1.999889553 | GN19: 1.999889553 | GO19: 1.999889553 | GP19: 1.999889553 | GQ19: 1.999889553 | GR19: 1.999889553 | GS19: 1.999889553 | GT19: 1.999889553 | GU19: 1.999889553 | GV19: =GU19*(1+GV18*GV9) -> 1.999889553 | GW19: 1.999889553 | GX19: 1.999889553 | GY19: 1.999889553 | GZ19: 1.999889553 | HA19: 1.999889553 | HB19: 1.999889553 | HC19: 1.999889553 | HD19: 1.999889553 | HE19: 1.999889553 | HF19: 1.999889553 | HG19: 1.999889553 | HH19: 1.999889553 | HI19: 1.999889553 | HJ19: 1.999889553 | HK19: 1.999889553 | HL19: 1.999889553 | HM19: 1.999889553 | HN19: 1.999889553 | HO19: 1.999889553 | HP19: 1.999889553 | HQ19: 1.999889553 | HR19: 1.999889553 | HS19: 1.999889553 | HT19: 1.999889553 | HU19: 1.999889553 | HV19: 1.999889553 | HW19: 1.999889553 | HX19: 1.999889553 | HY19: 1.999889553 | HZ19: 1.999889553 | IA19: 1.999889553 | IB19: 1.999889553 | IC19: 1.999889553 | ID19: 1.999889553 | IE19: 1.999889553 | IF19: 1.999889553 | IG19: 1.999889553 | IH19: 1.999889553 | II19: 1.999889553 | IJ19: 1.999889553 | IK19: 1.999889553 | IL19: 1.999889553 | IM19: 1.999889553 | IN19: 1.999889553 | IO19: 1.999889553 | IP19: 1.999889553 | IQ19: 1.999889553 | IR19: 1.999889553 | IS19: 1.999889553 | IT19: 1.999889553 | IU19: 1.999889553 | IV19: 1.999889553 | IW19: 1.999889553 | IX19: 1.999889553 | IY19: 1.999889553 | IZ19: 1.999889553 | JA19: 1.999889553 | JB19: 1.999889553 | JC19: 1.999889553 | JD19: 1.999889553 | JE19: 1.999889553 | JF19: 1.999889553 | JG19: 1.999889553 | JH19: =JG19*(1+JH18*JH9) -> 1.999889553 | JI19: 1.999889553 | JJ19: 1.999889553 | JK19: 1.999889553 | JL19: 1.999889553 | JM19: 1.999889553 | JN19: 1.999889553 | JO19: 1.999889553 | JP19: 1.999889553 | JQ19: 1.999889553 | JR19: 1.999889553 | JS19: 1.999889553 | JT19: 1.999889553 | JU19: 1.999889553 | JV19: 1.999889553 | JW19: 1.999889553 | JX19: 1.999889553 | JY19: 1.999889553 | JZ19: 1.999889553 | KA19: 1.999889553 | KB19: 1.999889553 | KC19: 1.999889553 | KD19: 1.999889553 | KE19: 1.999889553 | KF19: 1.999889553 | KG19: 1.999889553 | KH19: 1.999889553 | KI19: 1.999889553 | KJ19: 1.999889553 | KK19: 1.999889553 | KL19: 1.999889553 | KM19: 1.999889553 | KN19: 1.999889553 | KO19: 1.999889553 | KP19: 1.999889553 | KQ19: 1.999889553 | KR19: 1.999889553 | KS19: 1.999889553 | KT19: 1.999889553 | KU19: 1.999889553 | KV19: 1.999889553 | KW19: 1.999889553 | KX19: 1.999889553 | KY19: 1.999889553 | KZ19: 1.999889553 | LA19: 1.999889553 | LB19: 1.999889553 | LC19: 1.999889553 | LD19: 1.999889553 | LE19: 1.999889553 | LF19: 1.999889553 | LG19: 1.999889553 | LH19: 1.999889553 | LI19: 1.999889553 | LJ19: 1.999889553 | LK19: 1.999889553 | LL19: 1.999889553 | LM19: 1.999889553 | LN19: 1.999889553 | LO19: 1.999889553 | LP19: 1.999889553 | LQ19: 1.999889553 | LR19: 1.999889553 | LS19: 1.999889553 | LT19: =LS19*(1+LT18*LT9) -> 1.999889553 | LU19: 1.999889553 | LV19: 1.999889553 | LW19: 1.999889553 | LX19: 1.999889553 | LY19: 1.999889553 | LZ19: 1.999889553 | MA19: 1.999889553 | MB19: 1.999889553 | MC19: 1.999889553 | MD19: 1.999889553 | ME19: 1.999889553 | MF19: 1.999889553 | MG19: 1.999889553 | MH19: 1.999889553 | MI19: 1.999889553 | MJ19: 1.999889553 | MK19: 1.999889553 | ML19: 1.999889553 | MM19: 1.999889553 | MN19: 1.999889553 | MO19: 1.999889553 | MP19: 1.999889553 | MQ19: 1.999889553 | MR19: 1.999889553 | MS19: 1.999889553 | MT19: 1.999889553 | MU19: 1.999889553 | MV19: 1.999889553 | MW19: 1.999889553 | MX19: 1.999889553 | MY19: 1.999889553 | MZ19: 1.999889553 | NA19: 1.999889553 | NB19: 1.999889553 | NC19: 1.999889553 | ND19: 1.999889553 | NE19: 1.999889553 | NF19: 1.999889553 | NG19: 1.999889553 | NH19: 1.999889553 | NI19: 1.999889553 | NJ19: 1.999889553 | NK19: 1.999889553 | NL19: 1.999889553 | NM19: 1.999889553 | NN19: 1.999889553 | NO19: 1.999889553 | NP19: 1.999889553 | NQ19: 1.999889553 | NR19: 1.999889553 | NS19: 1.999889553 | NT19: 1.999889553 | NU19: 1.999889553 | NV19: 1.999889553 | NW19: 1.999889553 | NX19: 1.999889553 | NY19: 1.999889553 | NZ19: 1.999889553 | OA19: 1.999889553 | OB19: 1.999889553 | OC19: 1.999889553 | OD19: 1.999889553 | OE19: 1.999889553 | OF19: =OE19*(1+OF18*OF9) -> 1.999889553 | OG19: 1.999889553 | OH19: 1.999889553 | OI19: 1.999889553 | OJ19: 1.999889553 | OK19: 1.999889553 | OL19: 1.999889553 | OM19: 1.999889553 | ON19: 1.999889553 | OO19: 1.999889553 | OP19: 1.999889553 | OQ19: 1.999889553 | OR19: 1.999889553 | OS19: 1.999889553 | OT19: 1.999889553 | OU19: 1.999889553 | OV19: 1.999889553 | OW19: 1.999889553 | OX19: 1.999889553 | OY19: 1.999889553 | OZ19: 1.999889553 | PA19: 1.999889553 | PB19: 1.999889553 | PC19: 1.999889553 | PD19: 1.999889553 | PE19: 1.999889553 | PF19: 1.999889553 | PG19: 1.999889553 | PH19: 1.999889553 | PI19: 1.999889553 | PJ19: 1.999889553 | PK19: 1.999889553 | PL19: 1.999889553 | PM19: 1.999889553 | PN19: 1.999889553 | PO19: 1.999889553 | PP19: 1.999889553 | PQ19: 1.999889553 | PR19: 1.999889553 | PS19: 1.999889553 | PT19: 1.999889553 | PU19: 1.999889553 | PV19: 1.999889553 | PW19: 1.999889553 | PX19: 1.999889553 | PY19: 1.999889553 | PZ19: 1.999889553 | QA19: 1.999889553 | QB19: 1.999889553 | QC19: 1.999889553 | QD19: 1.999889553 | QE19: 1.999889553 | QF19: 1.999889553 | QG19: 1.999889553 | QH19: 1.999889553 | QI19: 1.999889553 | QJ19: 1.999889553 | QK19: 1.999889553 | QL19: 1.999889553 | QM19: 1.999889553 | QN19: 1.999889553 | QO19: 1.999889553 | QP19: 1.999889553 | QQ19: 1.999889553 | QR19: =QQ19*(1+QR18*QR9) -> 1.999889553 | QS19: 1.999889553 | QT19: 1.999889553 | QU19: 1.999889553 | QV19: 1.999889553 | QW19: 1.999889553 | QX19: 1.999889553 | QY19: 1.999889553 | QZ19: 1.999889553 | RA19: 1.999889553 | RB19: 1.999889553 | RC19: 1.999889553 | RD19: 1.999889553 | RE19: 1.999889553 | RF19: 1.999889553 | RG19: 1.999889553 | RH19: 1.999889553 | RI19: 1.999889553 | RJ19: 1.999889553 | RK19: 1.999889553 | RL19: 1.999889553 | RM19: 1.999889553 | RN19: 1.999889553 | RO19: 1.999889553 | RP19: 1.999889553 | RQ19: 1.999889553 | RR19: 1.999889553 | RS19: 1.999889553 | RT19: 1.999889553 | RU19: 1.999889553 | RV19: 1.999889553 | RW19: 1.999889553 | RX19: 1.999889553 | RY19: 1.999889553 | RZ19: 1.999889553 | SA19: 1.999889553 | SB19: 1.999889553 | SC19: 1.999889553 | SD19: 1.999889553 | SE19: 1.999889553 | SF19: 1.999889553 | SG19: 1.999889553 | SH19: 1.999889553 | SI19: 1.999889553 | SJ19: 1.999889553 | SK19: 1.999889553 | SL19: 1.999889553 | SM19: 1.999889553 | SN19: 1.999889553 | SO19: 1.999889553 | SP19: 1.999889553 | SQ19: =SP19*(1+SQ18*SQ9) -> 1.999889553 | SR19: =SQ19*(1+SR18*SR9) -> 1.999889553 | SS19: =SR19*(1+SS18*SS9) -> 1.999889553 | ST19: =SS19*(1+ST18*ST9) -> 1.999889553 | SU19: =ST19*(1+SU18*SU9) -> 1.999889553 | SV19: =SU19*(1+SV18*SV9) -> 1.999889553 | SW19: =SV19*(1+SW18*SW9) -> 1.999889553 | SX19: =SW19*(1+SX18*SX9) -> 1.999889553 | SY19: =SX19*(1+SY18*SY9) -> 1.999889553 | SZ19: =SY19*(1+SZ18*SZ9) -> 1.999889553 | TA19: =SZ19*(1+TA18*TA9) -> 1.999889553 | TB19: =TA19*(1+TB18*TB9) -> 1.999889553 | TC19: =TB19*(1+TC18*TC9) -> 1.999889553 | TD19: =TC19*(1+TD18*TD9) -> 1.999889553 | TE19: =TD19*(1+TE18*TE9) -> 1.999889553 | TF19: =TE19*(1+TF18*TF9) -> 1.999889553 | TG19: =TF19*(1+TG18*TG9) -> 1.999889553 | TH19: =TG19*(1+TH18*TH9) -> 1.999889553 | TI19: =TH19*(1+TI18*TI9) -> 1.999889553 | TJ19: =TI19*(1+TJ18*TJ9) -> 1.999889553 | TK19: =TJ19*(1+TK18*TK9) -> 1.999889553 | TL19: =TK19*(1+TL18*TL9) -> 1.999889553 | TM19: =TL19*(1+TM18*TM9) -> 1.999889553 | TN19: =TM19*(1+TN18*TN9) -> 1.999889553 | TO19: =TN19*(1+TO18*TO9) -> 1.999889553 | TP19: =TO19*(1+TP18*TP9) -> 1.999889553 | TQ19: =TP19*(1+TQ18*TQ9) -> 1.999889553 | TR19: =TQ19*(1+TR18*TR9) -> 1.999889553 | TS19: =TR19*(1+TS18*TS9) -> 1.999889553 | TT19: =TS19*(1+TT18*TT9) -> 1.999889553 | TU19: =TT19*(1+TU18*TU9) -> 1.999889553 | TV19: =TU19*(1+TV18*TV9) -> 1.999889553 | TW19: =TV19*(1+TW18*TW9) -> 1.999889553 | TX19: =TW19*(1+TX18*TX9) -> 1.999889553 | TY19: =TX19*(1+TY18*TY9) -> 1.999889553 | TZ19: =TY19*(1+TZ18*TZ9) -> 1.999889553 | UA19: =TZ19*(1+UA18*UA9) -> 1.999889553 | UB19: =UA19*(1+UB18*UB9) -> 1.999889553 | UC19: =UB19*(1+UC18*UC9) -> 1.999889553 | UD19: =UC19*(1+UD18*UD9) -> 1.999889553 | UE19: =UD19*(1+UE18*UE9) -> 1.999889553 | UF19: =UE19*(1+UF18*UF9) -> 1.999889553 | UG19: =UF19*(1+UG18*UG9) -> 1.999889553 | UH19: =UG19*(1+UH18*UH9) -> 1.999889553 | UI19: =UH19*(1+UI18*UI9) -> 1.999889553 | UJ19: =UI19*(1+UJ18*UJ9) -> 1.999889553 | UK19: =UJ19*(1+UK18*UK9) -> 1.999889553 | UL19: =UK19*(1+UL18*UL9) -> 1.999889553 | UM19: =UL19*(1+UM18*UM9) -> 1.999889553 | UN19: =UM19*(1+UN18*UN9) -> 1.999889553 | UO19: =UN19*(1+UO18*UO9) -> 1.999889553 | UP19: =UO19*(1+UP18*UP9) -> 1.999889553 | UQ19: =UP19*(1+UQ18*UQ9) -> 1.999889553 | UR19: =UQ19*(1+UR18*UR9) -> 1.999889553 | US19: =UR19*(1+US18*US9) -> 1.999889553 | UT19: =US19*(1+UT18*UT9) -> 1.999889553 | UU19: =UT19*(1+UU18*UU9) -> 1.999889553 | UV19: =UU19*(1+UV18*UV9) -> 1.999889553 | UW19: =UV19*(1+UW18*UW9) -> 1.999889553 | UX19: =UW19*(1+UX18*UX9) -> 1.999889553 | UY19: =UX19*(1+UY18*UY9) -> 1.999889553 | UZ19: =UY19*(1+UZ18*UZ9) -> 1.999889553 | VA19: =UZ19*(1+VA18*VA9) -> 1.999889553 | VB19: =VA19*(1+VB18*VB9) -> 1.999889553 | VC19: =VB19*(1+VC18*VC9) -> 1.999889553 | VD19: =VC19*(1+VD18*VD9) -> 1.999889553 | VE19: =VD19*(1+VE18*VE9) -> 1.999889553 | VF19: =VE19*(1+VF18*VF9) -> 1.999889553 | VG19: =VF19*(1+VG18*VG9) -> 1.999889553 | VH19: =VG19*(1+VH18*VH9) -> 1.999889553 | VI19: =VH19*(1+VI18*VI9) -> 1.999889553 | VJ19: =VI19*(1+VJ18*VJ9) -> 1.999889553 | VK19: =VJ19*(1+VK18*VK9) -> 1.999889553 | VL19: =VK19*(1+VL18*VL9) -> 1.999889553 | VM19: =VL19*(1+VM18*VM9) -> 1.999889553 | VN19: =VM19*(1+VN18*VN9) -> 1.999889553 | VO19: =VN19*(1+VO18*VO9) -> 1.999889553 | VP19: =VO19*(1+VP18*VP9) -> 1.999889553 | VQ19: =VP19*(1+VQ18*VQ9) -> 1.999889553 | VR19: =VQ19*(1+VR18*VR9) -> 1.999889553 | VS19: =VR19*(1+VS18*VS9) -> 1.999889553 | VT19: =VS19*(1+VT18*VT9) -> 1.999889553 | VU19: =VT19*(1+VU18*VU9) -> 1.999889553 | VV19: =VU19*(1+VV18*VV9) -> 1.999889553 | VW19: =VV19*(1+VW18*VW9) -> 1.999889553 | VX19: =VW19*(1+VX18*VX9) -> 1.999889553 | VY19: =VX19*(1+VY18*VY9) -> 1.999889553 | VZ19: =VY19*(1+VZ18*VZ9) -> 1.999889553 | WA19: =VZ19*(1+WA18*WA9) -> 1.999889553 | WB19: =WA19*(1+WB18*WB9) -> 1.999889553 | WC19: =WB19*(1+WC18*WC9) -> 1.999889553 | WD19: =WC19*(1+WD18*WD9) -> 1.999889553 | WE19: =WD19*(1+WE18*WE9) -> 1.999889553 | WF19: =WE19*(1+WF18*WF9) -> 1.999889553 | WG19: =WF19*(1+WG18*WG9) -> 1.999889553 | WH19: =WG19*(1+WH18*WH9) -> 1.999889553 | WI19: =WH19*(1+WI18*WI9) -> 1.999889553 | WJ19: =WI19*(1+WJ18*WJ9) -> 1.999889553 | WK19: =WJ19*(1+WK18*WK9) -> 1.999889553 | WL19: =WK19*(1+WL18*WL9) -> 1.999889553 | WM19: =WL19*(1+WM18*WM9) -> 1.999889553 | WN19: =WM19*(1+WN18*WN9) -> 1.999889553 | WO19: =WN19*(1+WO18*WO9) -> 1.999889553 | WP19: =WO19*(1+WP18*WP9) -> 1.999889553 | WQ19: =WP19*(1+WQ18*WQ9) -> 1.999889553 | WR19: =WQ19*(1+WR18*WR9) -> 1.999889553 | WS19: =WR19*(1+WS18*WS9) -> 1.999889553 | WT19: =WS19*(1+WT18*WT9) -> 1.999889553 | WU19: =WT19*(1+WU18*WU9) -> 1.999889553 | WV19: =WU19*(1+WV18*WV9) -> 1.999889553 | WW19: =WV19*(1+WW18*WW9) -> 1.999889553 | WX19: =WW19*(1+WX18*WX9) -> 1.999889553 | WY19: =WX19*(1+WY18*WY9) -> 1.999889553 | WZ19: =WY19*(1+WZ18*WZ9) -> 1.999889553 | XA19: =WZ19*(1+XA18*XA9) -> 1.999889553 | XB19: =XA19*(1+XB18*XB9) -> 1.999889553 | XC19: =XB19*(1+XC18*XC9) -> 1.999889553 | XD19: =XC19*(1+XD18*XD9) -> 1.999889553 | XE19: =XD19*(1+XE18*XE9) -> 1.999889553 | XF19: =XE19*(1+XF18*XF9) -> 1.999889553 | XG19: =XF19*(1+XG18*XG9) -> 1.999889553 | XH19: =XG19*(1+XH18*XH9) -> 1.999889553 | XI19: =XH19*(1+XI18*XI9) -> 1.999889553 | XJ19: =XI19*(1+XJ18*XJ9) -> 1.999889553 | XK19: =XJ19*(1+XK18*XK9) -> 1.999889553 | XL19: =XK19*(1+XL18*XL9) -> 1.999889553 | XM19: =XL19*(1+XM18*XM9) -> 1.999889553 | XN19: =XM19*(1+XN18*XN9) -> 1.999889553 | XO19: =XN19*(1+XO18*XO9) -> 1.999889553 | XP19: =XO19*(1+XP18*XP9) -> 1.999889553 | XQ19: =XP19*(1+XQ18*XQ9) -> 1.999889553 | XR19: =XQ19*(1+XR18*XR9) -> 1.999889553 | XS19: =XR19*(1+XS18*XS9) -> 1.999889553 | XT19: =XS19*(1+XT18*XT9) -> 1.999889553 | XU19: =XT19*(1+XU18*XU9) -> 1.999889553 | XV19: =XU19*(1+XV18*XV9) -> 1.999889553 | XW19: =XV19*(1+XW18*XW9) -> 1.999889553 | XX19: =XW19*(1+XX18*XX9) -> 1.999889553 | XY19: =XX19*(1+XY18*XY9) -> 1.999889553 | XZ19: =XY19*(1+XZ18*XZ9) -> 1.999889553 | YA19: =XZ19*(1+YA18*YA9) -> 1.999889553 | YB19: =YA19*(1+YB18*YB9) -> 1.999889553 | YC19: =YB19*(1+YC18*YC9) -> 1.999889553 | YD19: =YC19*(1+YD18*YD9) -> 1.999889553 | YE19: =YD19*(1+YE18*YE9) -> 1.999889553 | YF19: =YE19*(1+YF18*YF9) -> 1.999889553 | YG19: =YF19*(1+YG18*YG9) -> 1.999889553 | YH19: =YG19*(1+YH18*YH9) -> 1.999889553 | YI19: =YH19*(1+YI18*YI9) -> 1.999889553 | YJ19: =YI19*(1+YJ18*YJ9) -> 1.999889553 | YK19: =YJ19*(1+YK18*YK9) -> 1.999889553 | YL19: =YK19*(1+YL18*YL9) -> 1.999889553 | YM19: =YL19*(1+YM18*YM9) -> 1.999889553 | YN19: =YM19*(1+YN18*YN9) -> 1.999889553 | YO19: =YN19*(1+YO18*YO9) -> 1.999889553 | YP19: =YO19*(1+YP18*YP9) -> 1.999889553 | YQ19: =YP19*(1+YQ18*YQ9) -> 1.999889553 | YR19: =YQ19*(1+YR18*YR9) -> 1.999889553 | YS19: =YR19*(1+YS18*YS9) -> 1.999889553 | YT19: =YS19*(1+YT18*YT9) -> 1.999889553 | YU19: =YT19*(1+YU18*YU9) -> 1.999889553 | YV19: =YU19*(1+YV18*YV9) -> 1.999889553 | YW19: =YV19*(1+YW18*YW9) -> 1.999889553 | YX19: =YW19*(1+YX18*YX9) -> 1.999889553 | YY19: =YX19*(1+YY18*YY9) -> 1.999889553 | YZ19: =YY19*(1+YZ18*YZ9) -> 1.999889553 | ZA19: =YZ19*(1+ZA18*ZA9) -> 1.999889553 | ZB19: =ZA19*(1+ZB18*ZB9) -> 1.999889553 | ZC19: =ZB19*(1+ZC18*ZC9) -> 1.999889553 | ZD19: =ZC19*(1+ZD18*ZD9) -> 1.999889553 | ZE19: =ZD19*(1+ZE18*ZE9) -> 1.999889553 | ZF19: =ZE19*(1+ZF18*ZF9) -> 1.999889553 | ZG19: =ZF19*(1+ZG18*ZG9) -> 1.999889553 | ZH19: =ZG19*(1+ZH18*ZH9) -> 1.999889553 | ZI19: =ZH19*(1+ZI18*ZI9) -> 1.999889553 | ZJ19: =ZI19*(1+ZJ18*ZJ9) -> 1.999889553 | ZK19: =ZJ19*(1+ZK18*ZK9) -> 1.999889553 | ZL19: =ZK19*(1+ZL18*ZL9) -> 1.999889553 | ZM19: =ZL19*(1+ZM18*ZM9) -> 1.999889553 | ZN19: =ZM19*(1+ZN18*ZN9) -> 1.999889553 | ZO19: =ZN19*(1+ZO18*ZO9) -> 1.999889553 | ZP19: =ZO19*(1+ZP18*ZP9) -> 1.999889553 | ZQ19: =ZP19*(1+ZQ18*ZQ9) -> 1.999889553 | ZR19: =ZQ19*(1+ZR18*ZR9) -> 1.999889553 | ZS19: =ZR19*(1+ZS18*ZS9) -> 1.999889553 | ZT19: =ZS19*(1+ZT18*ZT9) -> 1.999889553 | ZU19: =ZT19*(1+ZU18*ZU9) -> 1.999889553 | ZV19: =ZU19*(1+ZV18*ZV9) -> 1.999889553 | ZW19: =ZV19*(1+ZW18*ZW9) -> 1.999889553 | ZX19: =ZW19*(1+ZX18*ZX9) -> 1.999889553 | ZY19: =ZX19*(1+ZY18*ZY9) -> 1.999889553 | ZZ19: =ZY19*(1+ZZ18*ZZ9) -> 1.999889553 | AAA19: =ZZ19*(1+AAA18*AAA9) -> 1.999889553 | AAB19: =AAA19*(1+AAB18*AAB9) -> 1.999889553 | AAC19: =AAB19*(1+AAC18*AAC9) -> 1.999889553 | AAD19: =AAC19*(1+AAD18*AAD9) -> 1.999889553 | AAE19: =AAD19*(1+AAE18*AAE9) -> 1.999889553 | AAF19: =AAE19*(1+AAF18*AAF9) -> 1.999889553 | AAG19: =AAF19*(1+AAG18*AAG9) -> 1.999889553 | AAH19: =AAG19*(1+AAH18*AAH9) -> 1.999889553 | AAI19: =AAH19*(1+AAI18*AAI9) -> 1.999889553 | AAJ19: =AAI19*(1+AAJ18*AAJ9) -> 1.999889553 | AAK19: =AAJ19*(1+AAK18*AAK9) -> 1.999889553 | AAL19: =AAK19*(1+AAL18*AAL9) -> 1.999889553 | AAM19: =AAL19*(1+AAM18*AAM9) -> 1.999889553 | AAN19: =AAM19*(1+AAN18*AAN9) -> 1.999889553 | AAO19: =AAN19*(1+AAO18*AAO9) -> 1.999889553 | AAP19: =AAO19*(1+AAP18*AAP9) -> 1.999889553 | AAQ19: =AAP19*(1+AAQ18*AAQ9) -> 1.999889553 | AAR19: =AAQ19*(1+AAR18*AAR9) -> 1.999889553 | AAS19: =AAR19*(1+AAS18*AAS9) -> 1.999889553 | AAT19: =AAS19*(1+AAT18*AAT9) -> 1.999889553 | AAU19: =AAT19*(1+AAU18*AAU9) -> 1.999889553 | AAV19: =AAU19*(1+AAV18*AAV9) -> 1.999889553 | AAW19: =AAV19*(1+AAW18*AAW9) -> 1.999889553 | AAX19: =AAW19*(1+AAX18*AAX9) -> 1.999889553 | AAY19: =AAX19*(1+AAY18*AAY9) -> 1.999889553 | AAZ19: =AAY19*(1+AAZ18*AAZ9) -> 1.999889553 | ABA19: =AAZ19*(1+ABA18*ABA9) -> 1.999889553 | ABB19: =ABA19*(1+ABB18*ABB9) -> 1.999889553 | ABC19: =ABB19*(1+ABC18*ABC9) -> 1.999889553 | ABD19: =ABC19*(1+ABD18*ABD9) -> 1.999889553 | ABE19: =ABD19*(1+ABE18*ABE9) -> 1.999889553 | ABF19: =ABE19*(1+ABF18*ABF9) -> 1.999889553 | ABG19: =ABF19*(1+ABG18*ABG9) -> 1.999889553 | ABH19: =ABG19*(1+ABH18*ABH9) -> 1.999889553 | ABI19: =ABH19*(1+ABI18*ABI9) -> 1.999889553 | ABJ19: =ABI19*(1+ABJ18*ABJ9) -> 1.999889553 | ABK19: =ABJ19*(1+ABK18*ABK9) -> 1.999889553 | ABL19: =ABK19*(1+ABL18*ABL9) -> 1.999889553 | ABM19: =ABL19*(1+ABM18*ABM9) -> 1.999889553 | ABN19: =ABM19*(1+ABN18*ABN9) -> 1.999889553 | ABO19: =ABN19*(1+ABO18*ABO9) -> 1.999889553 | ABP19: =ABO19*(1+ABP18*ABP9) -> 1.999889553 | ABQ19: =ABP19*(1+ABQ18*ABQ9) -> 1.999889553 | ABR19: =ABQ19*(1+ABR18*ABR9) -> 1.999889553 | ABS19: =ABR19*(1+ABS18*ABS9) -> 1.999889553 | ABT19: =ABS19*(1+ABT18*ABT9) -> 1.999889553 | ABU19: =ABT19*(1+ABU18*ABU9) -> 1.999889553 | ABV19: =ABU19*(1+ABV18*ABV9) -> 1.999889553 | ABW19: =ABV19*(1+ABW18*ABW9) -> 1.999889553 | ABX19: =ABW19*(1+ABX18*ABX9) -> 1.999889553 | ABY19: =ABX19*(1+ABY18*ABY9) -> 1.999889553 | ABZ19: =ABY19*(1+ABZ18*ABZ9) -> 1.999889553 | ACA19: =ABZ19*(1+ACA18*ACA9) -> 1.999889553 | ACB19: =ACA19*(1+ACB18*ACB9) -> 1.999889553 | ACC19: =ACB19*(1+ACC18*ACC9) -> 1.999889553 | ACD19: =ACC19*(1+ACD18*ACD9) -> 1.999889553 | ACE19: =ACD19*(1+ACE18*ACE9) -> 1.999889553 | ACF19: =ACE19*(1+ACF18*ACF9) -> 1.999889553 | ACG19: =ACF19*(1+ACG18*ACG9) -> 1.999889553 | ACH19: =ACG19*(1+ACH18*ACH9) -> 1.999889553 | ACI19: =ACH19*(1+ACI18*ACI9) -> 1.999889553 | ACJ19: =ACI19*(1+ACJ18*ACJ9) -> 1.999889553 | ACK19: =ACJ19*(1+ACK18*ACK9) -> 1.999889553 | ACL19: =ACK19*(1+ACL18*ACL9) -> 1.999889553 | ACM19: =ACL19*(1+ACM18*ACM9) -> 1.999889553 | ACN19: =ACM19*(1+ACN18*ACN9) -> 1.999889553 | ACO19: =ACN19*(1+ACO18*ACO9) -> 1.999889553 | ACP19: =ACO19*(1+ACP18*ACP9) -> 1.999889553 | ACQ19: =ACP19*(1+ACQ18*ACQ9) -> 1.999889553 | ACR19: =ACQ19*(1+ACR18*ACR9) -> 1.999889553 | ACS19: =ACR19*(1+ACS18*ACS9) -> 1.999889553 | ACT19: =ACS19*(1+ACT18*ACT9) -> 1.999889553 | ACU19: =ACT19*(1+ACU18*ACU9) -> 1.999889553 | ACV19: =ACU19*(1+ACV18*ACV9) -> 1.999889553 | ACW19: =ACV19*(1+ACW18*ACW9) -> 1.999889553 | ACX19: =ACW19*(1+ACX18*ACX9) -> 1.999889553 | ACY19: =ACX19*(1+ACY18*ACY9) -> 1.999889553 | ACZ19: =ACY19*(1+ACZ18*ACZ9) -> 1.999889553 | ADA19: =ACZ19*(1+ADA18*ADA9) -> 1.999889553 | ADB19: =ADA19*(1+ADB18*ADB9) -> 1.999889553 | ADC19: =ADB19*(1+ADC18*ADC9) -> 1.999889553 | ADD19: =ADC19*(1+ADD18*ADD9) -> 1.999889553 | ADE19: =ADD19*(1+ADE18*ADE9) -> 1.999889553 | ADF19: =ADE19*(1+ADF18*ADF9) -> 1.999889553 | ADG19: =ADF19*(1+ADG18*ADG9) -> 1.999889553 | ADH19: =ADG19*(1+ADH18*ADH9) -> 1.999889553 | ADI19: =ADH19*(1+ADI18*ADI9) -> 1.999889553 | ADJ19: =ADI19*(1+ADJ18*ADJ9) -> 1.999889553 | ADK19: =ADJ19*(1+ADK18*ADK9) -> 1.999889553 | ADL19: =ADK19*(1+ADL18*ADL9) -> 1.999889553 | ADM19: =ADL19*(1+ADM18*ADM9) -> 1.999889553 | ADN19: =ADM19*(1+ADN18*ADN9) -> 1.999889553 | ADO19: =ADN19*(1+ADO18*ADO9) -> 1.999889553 | ADP19: =ADO19*(1+ADP18*ADP9) -> 1.999889553 | ADQ19: =ADP19*(1+ADQ18*ADQ9) -> 1.999889553 | ADR19: =ADQ19*(1+ADR18*ADR9) -> 1.999889553 | ADS19: =ADR19*(1+ADS18*ADS9) -> 1.999889553 | ADT19: =ADS19*(1+ADT18*ADT9) -> 1.999889553 | ADU19: =ADT19*(1+ADU18*ADU9) -> 1.999889553 | ADV19: =ADU19*(1+ADV18*ADV9) -> 1.999889553 | ADW19: =ADV19*(1+ADW18*ADW9) -> 1.999889553 | ADX19: =ADW19*(1+ADX18*ADX9) -> 1.999889553 | ADY19: =ADX19*(1+ADY18*ADY9) -> 1.999889553 | ADZ19: =ADY19*(1+ADZ18*ADZ9) -> 1.999889553 | AEA19: =ADZ19*(1+AEA18*AEA9) -> 1.999889553 | AEB19: =AEA19*(1+AEB18*AEB9) -> 1.999889553 | AEC19: =AEB19*(1+AEC18*AEC9) -> 1.999889553 | AED19: =AEC19*(1+AED18*AED9) -> 1.999889553 | AEE19: =AED19*(1+AEE18*AEE9) -> 1.999889553 | AEF19: =AEE19*(1+AEF18*AEF9) -> 1.999889553 | AEG19: =AEF19*(1+AEG18*AEG9) -> 1.999889553 | AEH19: =AEG19*(1+AEH18*AEH9) -> 1.999889553 | AEI19: =AEH19*(1+AEI18*AEI9) -> 1.999889553 | AEJ19: =AEI19*(1+AEJ18*AEJ9) -> 1.999889553 | AEK19: =AEJ19*(1+AEK18*AEK9) -> 1.999889553 | AEL19: =AEK19*(1+AEL18*AEL9) -> 1.999889553 | AEM19: =AEL19*(1+AEM18*AEM9) -> 1.999889553 | AEN19: =AEM19*(1+AEN18*AEN9) -> 1.999889553 | AEO19: =AEN19*(1+AEO18*AEO9) -> 1.999889553 | AEP19: =AEO19*(1+AEP18*AEP9) -> 1.999889553 | AEQ19: =AEP19*(1+AEQ18*AEQ9) -> 1.999889553 | AER19: =AEQ19*(1+AER18*AER9) -> 1.999889553 | AES19: =AER19*(1+AES18*AES9) -> 1.999889553 | AET19: =AES19*(1+AET18*AET9) -> 1.999889553 | AEU19: =AET19*(1+AEU18*AEU9) -> 1.999889553 | AEV19: =AEU19*(1+AEV18*AEV9) -> 1.999889553 | AEW19: =AEV19*(1+AEW18*AEW9) -> 1.999889553 | AEX19: =AEW19*(1+AEX18*AEX9) -> 1.999889553 | AEY19: =AEX19*(1+AEY18*AEY9) -> 1.999889553 | AEZ19: =AEY19*(1+AEZ18*AEZ9) -> 1.999889553 | AFA19: =AEZ19*(1+AFA18*AFA9) -> 1.999889553 | AFB19: =AFA19*(1+AFB18*AFB9) -> 1.999889553 | AFC19: =AFB19*(1+AFC18*AFC9) -> 1.999889553 | AFD19: =AFC19*(1+AFD18*AFD9) -> 1.999889553 | AFE19: =AFD19*(1+AFE18*AFE9) -> 1.999889553 | AFF19: =AFE19*(1+AFF18*AFF9) -> 1.999889553 | AFG19: =AFF19*(1+AFG18*AFG9) -> 1.999889553 | AFH19: =AFG19*(1+AFH18*AFH9) -> 1.999889553 | AFI19: =AFH19*(1+AFI18*AFI9) -> 1.999889553 | AFJ19: =AFI19*(1+AFJ18*AFJ9) -> 1.999889553 | AFK19: =AFJ19*(1+AFK18*AFK9) -> 1.999889553 | AFL19: =AFK19*(1+AFL18*AFL9) -> 1.999889553 | AFM19: =AFL19*(1+AFM18*AFM9) -> 1.999889553 | AFN19: =AFM19*(1+AFN18*AFN9) -> 1.999889553 | AFO19: =AFN19*(1+AFO18*AFO9) -> 1.999889553 | AFP19: =AFO19*(1+AFP18*AFP9) -> 1.999889553 | AFQ19: =AFP19*(1+AFQ18*AFQ9) -> 1.999889553 | AFR19: =AFQ19*(1+AFR18*AFR9) -> 1.999889553 | AFS19: =AFR19*(1+AFS18*AFS9) -> 1.999889553 | AFT19: =AFS19*(1+AFT18*AFT9) -> 1.999889553 | AFU19: =AFT19*(1+AFU18*AFU9) -> 1.999889553 | AFV19: =AFU19*(1+AFV18*AFV9) -> 1.999889553 | AFW19: =AFV19*(1+AFW18*AFW9) -> 1.999889553 | AFX19: =AFW19*(1+AFX18*AFX9) -> 1.999889553 | AFY19: =AFX19*(1+AFY18*AFY9) -> 1.999889553 | AFZ19: =AFY19*(1+AFZ18*AFZ9) -> 1.999889553 | AGA19: =AFZ19*(1+AGA18*AGA9) -> 1.999889553 | AGB19: =AGA19*(1+AGB18*AGB9) -> 1.999889553 | AGC19: =AGB19*(1+AGC18*AGC9) -> 1.999889553 | AGD19: =AGC19*(1+AGD18*AGD9) -> 1.999889553 | AGE19: =AGD19*(1+AGE18*AGE9) -> 1.999889553 | AGF19: =AGE19*(1+AGF18*AGF9) -> 1.999889553 | AGG19: =AGF19*(1+AGG18*AGG9) -> 1.999889553 | AGH19: =AGG19*(1+AGH18*AGH9) -> 1.999889553 | AGI19: =AGH19*(1+AGI18*AGI9) -> 1.999889553 | AGJ19: =AGI19*(1+AGJ18*AGJ9) -> 1.999889553 | AGK19: =AGJ19*(1+AGK18*AGK9) -> 1.999889553 | AGL19: =AGK19*(1+AGL18*AGL9) -> 1.999889553 | AGM19: =AGL19*(1+AGM18*AGM9) -> 1.999889553 | AGN19: =AGM19*(1+AGN18*AGN9) -> 1.999889553 | AGO19: =AGN19*(1+AGO18*AGO9) -> 1.999889553 | AGP19: =AGO19*(1+AGP18*AGP9) -> 1.999889553 | AGQ19: =AGP19*(1+AGQ18*AGQ9) -> 1.999889553 | AGR19: =AGQ19*(1+AGR18*AGR9) -> 1.999889553 | AGS19: =AGR19*(1+AGS18*AGS9) -> 1.999889553 | AGT19: =AGS19*(1+AGT18*AGT9) -> 1.999889553 | AGU19: =AGT19*(1+AGU18*AGU9) -> 1.999889553 | AGV19: =AGU19*(1+AGV18*AGV9) -> 1.999889553 | AGW19: =AGV19*(1+AGW18*AGW9) -> 1.999889553 | AGX19: =AGW19*(1+AGX18*AGX9) -> 1.999889553 | AGY19: =AGX19*(1+AGY18*AGY9) -> 1.999889553 | AGZ19: =AGY19*(1+AGZ18*AGZ9) -> 1.999889553 | AHA19: =AGZ19*(1+AHA18*AHA9) -> 1.999889553 | AHB19: =AHA19*(1+AHB18*AHB9) -> 1.999889553 | AHC19: =AHB19*(1+AHC18*AHC9) -> 1.999889553 | AHD19: =AHC19*(1+AHD18*AHD9) -> 1.999889553 | AHE19: =AHD19*(1+AHE18*AHE9) -> 1.999889553 | AHF19: =AHE19*(1+AHF18*AHF9) -> 1.999889553 | AHG19: =AHF19*(1+AHG18*AHG9) -> 1.999889553 | AHH19: =AHG19*(1+AHH18*AHH9) -> 1.999889553 | AHI19: =AHH19*(1+AHI18*AHI9) -> 1.999889553 | AHJ19: =AHI19*(1+AHJ18*AHJ9) -> 1.999889553 | AHK19: =AHJ19*(1+AHK18*AHK9) -> 1.999889553 | AHL19: =AHK19*(1+AHL18*AHL9) -> 1.999889553 | AHM19: =AHL19*(1+AHM18*AHM9) -> 1.999889553 | AHN19: =AHM19*(1+AHN18*AHN9) -> 1.999889553 | AHO19: =AHN19*(1+AHO18*AHO9) -> 1.999889553 | AHP19: =AHO19*(1+AHP18*AHP9) -> 1.999889553 | AHQ19: =AHP19*(1+AHQ18*AHQ9) -> 1.999889553 | AHR19: =AHQ19*(1+AHR18*AHR9) -> 1.999889553 | AHS19: =AHR19*(1+AHS18*AHS9) -> 1.999889553 | AHT19: =AHS19*(1+AHT18*AHT9) -> 1.999889553 | AHU19: =AHT19*(1+AHU18*AHU9) -> 1.999889553 | AHV19: =AHU19*(1+AHV18*AHV9) -> 1.999889553 | AHW19: =AHV19*(1+AHW18*AHW9) -> 1.999889553 | AHX19: =AHW19*(1+AHX18*AHX9) -> 1.999889553 | AHY19: =AHX19*(1+AHY18*AHY9) -> 1.999889553 | AHZ19: =AHY19*(1+AHZ18*AHZ9) -> 1.999889553 | AIA19: =AHZ19*(1+AIA18*AIA9) -> 1.999889553 | AIB19: =AIA19*(1+AIB18*AIB9) -> 1.999889553 | AIC19: =AIB19*(1+AIC18*AIC9) -> 1.999889553 | AID19: =AIC19*(1+AID18*AID9) -> 1.999889553 | AIE19: =AID19*(1+AIE18*AIE9) -> 1.999889553 | AIF19: =AIE19*(1+AIF18*AIF9) -> 1.999889553 | AIG19: =AIF19*(1+AIG18*AIG9) -> 1.999889553 | AIH19: =AIG19*(1+AIH18*AIH9) -> 1.999889553 | AII19: =AIH19*(1+AII18*AII9) -> 1.999889553 | AIJ19: =AII19*(1+AIJ18*AIJ9) -> 1.999889553 | AIK19: =AIJ19*(1+AIK18*AIK9) -> 1.999889553 | AIL19: =AIK19*(1+AIL18*AIL9) -> 1.999889553 | AIM19: =AIL19*(1+AIM18*AIM9) -> 1.999889553 | AIN19: =AIM19*(1+AIN18*AIN9) -> 1.999889553 | AIO19: =AIN19*(1+AIO18*AIO9) -> 1.999889553 | AIP19: =AIO19*(1+AIP18*AIP9) -> 1.999889553 | AIQ19: =AIP19*(1+AIQ18*AIQ9) -> 1.999889553 | AIR19: =AIQ19*(1+AIR18*AIR9) -> 1.999889553 | AIS19: =AIR19*(1+AIS18*AIS9) -> 1.999889553 | AIT19: =AIS19*(1+AIT18*AIT9) -> 1.999889553 | AIU19: =AIT19*(1+AIU18*AIU9) -> 1.999889553 | AIV19: =AIU19*(1+AIV18*AIV9) -> 1.999889553 | AIW19: =AIV19*(1+AIW18*AIW9) -> 1.999889553 | AIX19: =AIW19*(1+AIX18*AIX9) -> 1.999889553 | AIY19: =AIX19*(1+AIY18*AIY9) -> 1.999889553 | AIZ19: =AIY19*(1+AIZ18*AIZ9) -> 1.999889553 | AJA19: =AIZ19*(1+AJA18*AJA9) -> 1.999889553 | AJB19: =AJA19*(1+AJB18*AJB9) -> 1.999889553 | AJC19: =AJB19*(1+AJC18*AJC9) -> 1.999889553 | AJD19: =AJC19*(1+AJD18*AJD9) -> 1.999889553 | AJE19: =AJD19*(1+AJE18*AJE9) -> 1.999889553 | AJF19: =AJE19*(1+AJF18*AJF9) -> 1.999889553 | AJG19: =AJF19*(1+AJG18*AJG9) -> 1.999889553 | AJH19: =AJG19*(1+AJH18*AJH9) -> 1.999889553 | AJI19: =AJH19*(1+AJI18*AJI9) -> 1.999889553 | AJJ19: =AJI19*(1+AJJ18*AJJ9) -> 1.999889553 | AJK19: =AJJ19*(1+AJK18*AJK9) -> 1.999889553 | AJL19: =AJK19*(1+AJL18*AJL9) -> 1.999889553 | AJM19: =AJL19*(1+AJM18*AJM9) -> 1.999889553 | AJN19: =AJM19*(1+AJN18*AJN9) -> 1.999889553 | AJO19: =AJN19*(1+AJO18*AJO9) -> 1.999889553 | AJP19: =AJO19*(1+AJP18*AJP9) -> 1.999889553 | AJQ19: =AJP19*(1+AJQ18*AJQ9) -> 1.999889553 | AJR19: =AJQ19*(1+AJR18*AJR9) -> 1.999889553 | AJS19: =AJR19*(1+AJS18*AJS9) -> 1.999889553 | AJT19: =AJS19*(1+AJT18*AJT9) -> 1.999889553 | AJU19: =AJT19*(1+AJU18*AJU9) -> 1.999889553 | AJV19: =AJU19*(1+AJV18*AJV9) -> 1.999889553 | AJW19: =AJV19*(1+AJW18*AJW9) -> 1.999889553 | AJX19: =AJW19*(1+AJX18*AJX9) -> 1.999889553 | AJY19: =AJX19*(1+AJY18*AJY9) -> 1.999889553 | AJZ19: =AJY19*(1+AJZ18*AJZ9) -> 1.999889553 | AKA19: =AJZ19*(1+AKA18*AKA9) -> 1.999889553 | AKB19: =AKA19*(1+AKB18*AKB9) -> 1.999889553 | AKC19: =AKB19*(1+AKC18*AKC9) -> 1.999889553 | AKD19: =AKC19*(1+AKD18*AKD9) -> 1.999889553 | AKE19: =AKD19*(1+AKE18*AKE9) -> 1.999889553 | AKF19: =AKE19*(1+AKF18*AKF9) -> 1.999889553 | AKG19: =AKF19*(1+AKG18*AKG9) -> 1.999889553 | AKH19: =AKG19*(1+AKH18*AKH9) -> 1.999889553 | AKI19: =AKH19*(1+AKI18*AKI9) -> 1.999889553 | AKJ19: =AKI19*(1+AKJ18*AKJ9) -> 1.999889553 | AKK19: =AKJ19*(1+AKK18*AKK9) -> 1.999889553 | AKL19: =AKK19*(1+AKL18*AKL9) -> 1.999889553 | AKM19: =AKL19*(1+AKM18*AKM9) -> 1.999889553 | AKN19: =AKM19*(1+AKN18*AKN9) -> 1.999889553 | AKO19: =AKN19*(1+AKO18*AKO9) -> 1.999889553 | AKP19: =AKO19*(1+AKP18*AKP9) -> 1.999889553 | AKQ19: =AKP19*(1+AKQ18*AKQ9) -> 1.999889553 | AKR19: =AKQ19*(1+AKR18*AKR9) -> 1.999889553 | AKS19: =AKR19*(1+AKS18*AKS9) -> 1.999889553 | AKT19: =AKS19*(1+AKT18*AKT9) -> 1.999889553 | AKU19: =AKT19*(1+AKU18*AKU9) -> 1.999889553 | AKV19: =AKU19*(1+AKV18*AKV9) -> 1.999889553 | AKW19: =AKV19*(1+AKW18*AKW9) -> 1.999889553 | AKX19: =AKW19*(1+AKX18*AKX9) -> 1.999889553 | AKY19: =AKX19*(1+AKY18*AKY9) -> 1.999889553 | AKZ19: =AKY19*(1+AKZ18*AKZ9) -> 1.999889553 | ALA19: =AKZ19*(1+ALA18*ALA9) -> 1.999889553 | ALB19: =ALA19*(1+ALB18*ALB9) -> 1.999889553 | ALC19: =ALB19*(1+ALC18*ALC9) -> 1.999889553 | ALD19: =ALC19*(1+ALD18*ALD9) -> 1.999889553 | ALE19: =ALD19*(1+ALE18*ALE9) -> 1.999889553 | ALF19: =ALE19*(1+ALF18*ALF9) -> 1.999889553 | ALG19: =ALF19*(1+ALG18*ALG9) -> 1.999889553 | ALH19: =ALG19*(1+ALH18*ALH9) -> 1.999889553 | ALI19: =ALH19*(1+ALI18*ALI9) -> 1.999889553 | ALJ19: =ALI19*(1+ALJ18*ALJ9) -> 1.999889553 | ALK19: =ALJ19*(1+ALK18*ALK9) -> 1.999889553 | ALL19: =ALK19*(1+ALL18*ALL9) -> 1.999889553 | ALM19: =ALL19*(1+ALM18*ALM9) -> 1.999889553 | ALN19: =ALM19*(1+ALN18*ALN9) -> 1.999889553 | ALO19: =ALN19*(1+ALO18*ALO9) -> 1.999889553 | ALP19: =ALO19*(1+ALP18*ALP9) -> 1.999889553 | ALQ19: =ALP19*(1+ALQ18*ALQ9) -> 1.999889553 | ALR19: =ALQ19*(1+ALR18*ALR9) -> 1.999889553 | ALS19: =ALR19*(1+ALS18*ALS9) -> 1.999889553 | ALT19: =ALS19*(1+ALT18*ALT9) -> 1.999889553 | ALU19: =ALT19*(1+ALU18*ALU9) -> 1.999889553 | ALV19: =ALU19*(1+ALV18*ALV9) -> 1.999889553
C20: EBITDA with Inflation | I20: EUR | K20: =K19*K17 -> 0 | L20: =L19*L17 -> 81600 | M20: 83232 | N20: 84896.64 | O20: 86594.5728 | P20: 88326.46426 | Q20: 90092.99354 | R20: 91894.85341 | S20: 93732.75048 | T20: 95607.40549 | U20: 97519.5536 | V20: 99469.94467 | W20: 101459.3436 | X20: 103488.5304 | Y20: 105558.301 | Z20: 107669.4671 | AA20: 109822.8564 | AB20: 112019.3135 | AC20: 114259.6998 | AD20: 116544.8938 | AE20: 118875.7917 | AF20: 121253.3075 | AG20: 123678.3737 | AH20: 126151.9411 | AI20: 128674.98 | AJ20: 131248.4796 | AK20: 133873.4491 | AL20: 136550.9181 | AM20: 139281.9365 | AN20: 142067.5752 | AO20: 144908.9267 | AP20: 147807.1053 | AQ20: 150763.2474 | AR20: 153778.5123 | AS20: 156854.0826 | AT20: 159991.1642 | AU20: 0 | AV20: 0 | AW20: 0 | AX20: 0 | AY20: 0 | AZ20: 0 | BA20: 0 | BB20: 0 | BC20: 0 | BD20: 0 | BE20: 0 | BF20: 0 | BG20: 0 | BH20: 0 | BI20: 0 | BJ20: 0 | BK20: 0 | BL20: 0 | BM20: 0 | BN20: 0 | BO20: 0 | BP20: 0 | BQ20: 0 | BR20: 0 | BS20: 0 | BT20: 0 | BU20: 0 | BV20: 0 | BW20: 0 | BX20: =BX19*BX17 -> 0 | BY20: 0 | BZ20: 0 | CA20: 0 | CB20: 0 | CC20: 0 | CD20: 0 | CE20: 0 | CF20: 0 | CG20: 0 | CH20: 0 | CI20: 0 | CJ20: 0 | CK20: 0 | CL20: 0 | CM20: 0 | CN20: 0 | CO20: 0 | CP20: 0 | CQ20: 0 | CR20: 0 | CS20: 0 | CT20: 0 | CU20: 0 | CV20: 0 | CW20: 0 | CX20: 0 | CY20: 0 | CZ20: 0 | DA20: 0 | DB20: 0 | DC20: 0 | DD20: 0 | DE20: 0 | DF20: 0 | DG20: 0 | DH20: 0 | DI20: 0 | DJ20: 0 | DK20: 0 | DL20: 0 | DM20: 0 | DN20: 0 | DO20: 0 | DP20: 0 | DQ20: 0 | DR20: 0 | DS20: 0 | DT20: 0 | DU20: 0 | DV20: 0 | DW20: 0 | DX20: 0 | DY20: 0 | DZ20: 0 | EA20: 0 | EB20: 0 | EC20: 0 | ED20: 0 | EE20: 0 | EF20: 0 | EG20: 0 | EH20: 0 | EI20: 0 | EJ20: =EJ19*EJ17 -> 0 | EK20: 0 | EL20: 0 | EM20: 0 | EN20: 0 | EO20: 0 | EP20: 0 | EQ20: 0 | ER20: 0 | ES20: 0 | ET20: 0 | EU20: 0 | EV20: 0 | EW20: 0 | EX20: 0 | EY20: 0 | EZ20: 0 | FA20: 0 | FB20: 0 | FC20: 0 | FD20: 0 | FE20: 0 | FF20: 0 | FG20: 0 | FH20: 0 | FI20: 0 | FJ20: 0 | FK20: 0 | FL20: 0 | FM20: 0 | FN20: 0 | FO20: 0 | FP20: 0 | FQ20: 0 | FR20: 0 | FS20: 0 | FT20: 0 | FU20: 0 | FV20: 0 | FW20: 0 | FX20: 0 | FY20: 0 | FZ20: 0 | GA20: 0 | GB20: 0 | GC20: 0 | GD20: 0 | GE20: 0 | GF20: 0 | GG20: 0 | GH20: 0 | GI20: 0 | GJ20: 0 | GK20: 0 | GL20: 0 | GM20: 0 | GN20: 0 | GO20: 0 | GP20: 0 | GQ20: 0 | GR20: 0 | GS20: 0 | GT20: 0 | GU20: 0 | GV20: =GV19*GV17 -> 0 | GW20: 0 | GX20: 0 | GY20: 0 | GZ20: 0 | HA20: 0 | HB20: 0 | HC20: 0 | HD20: 0 | HE20: 0 | HF20: 0 | HG20: 0 | HH20: 0 | HI20: 0 | HJ20: 0 | HK20: 0 | HL20: 0 | HM20: 0 | HN20: 0 | HO20: 0 | HP20: 0 | HQ20: 0 | HR20: 0 | HS20: 0 | HT20: 0 | HU20: 0 | HV20: 0 | HW20: 0 | HX20: 0 | HY20: 0 | HZ20: 0 | IA20: 0 | IB20: 0 | IC20: 0 | ID20: 0 | IE20: 0 | IF20: 0 | IG20: 0 | IH20: 0 | II20: 0 | IJ20: 0 | IK20: 0 | IL20: 0 | IM20: 0 | IN20: 0 | IO20: 0 | IP20: 0 | IQ20: 0 | IR20: 0 | IS20: 0 | IT20: 0 | IU20: 0 | IV20: 0 | IW20: 0 | IX20: 0 | IY20: 0 | IZ20: 0 | JA20: 0 | JB20: 0 | JC20: 0 | JD20: 0 | JE20: 0 | JF20: 0 | JG20: 0 | JH20: =JH19*JH17 -> 0 | JI20: 0 | JJ20: 0 | JK20: 0 | JL20: 0 | JM20: 0 | JN20: 0 | JO20: 0 | JP20: 0 | JQ20: 0 | JR20: 0 | JS20: 0 | JT20: 0 | JU20: 0 | JV20: 0 | JW20: 0 | JX20: 0 | JY20: 0 | JZ20: 0 | KA20: 0 | KB20: 0 | KC20: 0 | KD20: 0 | KE20: 0 | KF20: 0 | KG20: 0 | KH20: 0 | KI20: 0 | KJ20: 0 | KK20: 0 | KL20: 0 | KM20: 0 | KN20: 0 | KO20: 0 | KP20: 0 | KQ20: 0 | KR20: 0 | KS20: 0 | KT20: 0 | KU20: 0 | KV20: 0 | KW20: 0 | KX20: 0 | KY20: 0 | KZ20: 0 | LA20: 0 | LB20: 0 | LC20: 0 | LD20: 0 | LE20: 0 | LF20: 0 | LG20: 0 | LH20: 0 | LI20: 0 | LJ20: 0 | LK20: 0 | LL20: 0 | LM20: 0 | LN20: 0 | LO20: 0 | LP20: 0 | LQ20: 0 | LR20: 0 | LS20: 0 | LT20: =LT19*LT17 -> 0 | LU20: 0 | LV20: 0 | LW20: 0 | LX20: 0 | LY20: 0 | LZ20: 0 | MA20: 0 | MB20: 0 | MC20: 0 | MD20: 0 | ME20: 0 | MF20: 0 | MG20: 0 | MH20: 0 | MI20: 0 | MJ20: 0 | MK20: 0 | ML20: 0 | MM20: 0 | MN20: 0 | MO20: 0 | MP20: 0 | MQ20: 0 | MR20: 0 | MS20: 0 | MT20: 0 | MU20: 0 | MV20: 0 | MW20: 0 | MX20: 0 | MY20: 0 | MZ20: 0 | NA20: 0 | NB20: 0 | NC20: 0 | ND20: 0 | NE20: 0 | NF20: 0 | NG20: 0 | NH20: 0 | NI20: 0 | NJ20: 0 | NK20: 0 | NL20: 0 | NM20: 0 | NN20: 0 | NO20: 0 | NP20: 0 | NQ20: 0 | NR20: 0 | NS20: 0 | NT20: 0 | NU20: 0 | NV20: 0 | NW20: 0 | NX20: 0 | NY20: 0 | NZ20: 0 | OA20: 0 | OB20: 0 | OC20: 0 | OD20: 0 | OE20: 0 | OF20: =OF19*OF17 -> 0 | OG20: 0 | OH20: 0 | OI20: 0 | OJ20: 0 | OK20: 0 | OL20: 0 | OM20: 0 | ON20: 0 | OO20: 0 | OP20: 0 | OQ20: 0 | OR20: 0 | OS20: 0 | OT20: 0 | OU20: 0 | OV20: 0 | OW20: 0 | OX20: 0 | OY20: 0 | OZ20: 0 | PA20: 0 | PB20: 0 | PC20: 0 | PD20: 0 | PE20: 0 | PF20: 0 | PG20: 0 | PH20: 0 | PI20: 0 | PJ20: 0 | PK20: 0 | PL20: 0 | PM20: 0 | PN20: 0 | PO20: 0 | PP20: 0 | PQ20: 0 | PR20: 0 | PS20: 0 | PT20: 0 | PU20: 0 | PV20: 0 | PW20: 0 | PX20: 0 | PY20: 0 | PZ20: 0 | QA20: 0 | QB20: 0 | QC20: 0 | QD20: 0 | QE20: 0 | QF20: 0 | QG20: 0 | QH20: 0 | QI20: 0 | QJ20: 0 | QK20: 0 | QL20: 0 | QM20: 0 | QN20: 0 | QO20: 0 | QP20: 0 | QQ20: 0 | QR20: =QR19*QR17 -> 0 | QS20: 0 | QT20: 0 | QU20: 0 | QV20: 0 | QW20: 0 | QX20: 0 | QY20: 0 | QZ20: 0 | RA20: 0 | RB20: 0 | RC20: 0 | RD20: 0 | RE20: 0 | RF20: 0 | RG20: 0 | RH20: 0 | RI20: 0 | RJ20: 0 | RK20: 0 | RL20: 0 | RM20: 0 | RN20: 0 | RO20: 0 | RP20: 0 | RQ20: 0 | RR20: 0 | RS20: 0 | RT20: 0 | RU20: 0 | RV20: 0 | RW20: 0 | RX20: 0 | RY20: 0 | RZ20: 0 | SA20: 0 | SB20: 0 | SC20: 0 | SD20: 0 | SE20: 0 | SF20: 0 | SG20: 0 | SH20: 0 | SI20: 0 | SJ20: 0 | SK20: 0 | SL20: 0 | SM20: 0 | SN20: 0 | SO20: 0 | SP20: 0 | SQ20: =SQ19*SQ17 -> 0 | SR20: =SR19*SR17 -> 0 | SS20: =SS19*SS17 -> 0 | ST20: =ST19*ST17 -> 0 | SU20: =SU19*SU17 -> 0 | SV20: =SV19*SV17 -> 0 | SW20: =SW19*SW17 -> 0 | SX20: =SX19*SX17 -> 0 | SY20: =SY19*SY17 -> 0 | SZ20: =SZ19*SZ17 -> 0 | TA20: =TA19*TA17 -> 0 | TB20: =TB19*TB17 -> 0 | TC20: =TC19*TC17 -> 0 | TD20: =TD19*TD17 -> 0 | TE20: =TE19*TE17 -> 0 | TF20: =TF19*TF17 -> 0 | TG20: =TG19*TG17 -> 0 | TH20: =TH19*TH17 -> 0 | TI20: =TI19*TI17 -> 0 | TJ20: =TJ19*TJ17 -> 0 | TK20: =TK19*TK17 -> 0 | TL20: =TL19*TL17 -> 0 | TM20: =TM19*TM17 -> 0 | TN20: =TN19*TN17 -> 0 | TO20: =TO19*TO17 -> 0 | TP20: =TP19*TP17 -> 0 | TQ20: =TQ19*TQ17 -> 0 | TR20: =TR19*TR17 -> 0 | TS20: =TS19*TS17 -> 0 | TT20: =TT19*TT17 -> 0 | TU20: =TU19*TU17 -> 0 | TV20: =TV19*TV17 -> 0 | TW20: =TW19*TW17 -> 0 | TX20: =TX19*TX17 -> 0 | TY20: =TY19*TY17 -> 0 | TZ20: =TZ19*TZ17 -> 0 | UA20: =UA19*UA17 -> 0 | UB20: =UB19*UB17 -> 0 | UC20: =UC19*UC17 -> 0 | UD20: =UD19*UD17 -> 0 | UE20: =UE19*UE17 -> 0 | UF20: =UF19*UF17 -> 0 | UG20: =UG19*UG17 -> 0 | UH20: =UH19*UH17 -> 0 | UI20: =UI19*UI17 -> 0 | UJ20: =UJ19*UJ17 -> 0 | UK20: =UK19*UK17 -> 0 | UL20: =UL19*UL17 -> 0 | UM20: =UM19*UM17 -> 0 | UN20: =UN19*UN17 -> 0 | UO20: =UO19*UO17 -> 0 | UP20: =UP19*UP17 -> 0 | UQ20: =UQ19*UQ17 -> 0 | UR20: =UR19*UR17 -> 0 | US20: =US19*US17 -> 0 | UT20: =UT19*UT17 -> 0 | UU20: =UU19*UU17 -> 0 | UV20: =UV19*UV17 -> 0 | UW20: =UW19*UW17 -> 0 | UX20: =UX19*UX17 -> 0 | UY20: =UY19*UY17 -> 0 | UZ20: =UZ19*UZ17 -> 0 | VA20: =VA19*VA17 -> 0 | VB20: =VB19*VB17 -> 0 | VC20: =VC19*VC17 -> 0 | VD20: =VD19*VD17 -> 0 | VE20: =VE19*VE17 -> 0 | VF20: =VF19*VF17 -> 0 | VG20: =VG19*VG17 -> 0 | VH20: =VH19*VH17 -> 0 | VI20: =VI19*VI17 -> 0 | VJ20: =VJ19*VJ17 -> 0 | VK20: =VK19*VK17 -> 0 | VL20: =VL19*VL17 -> 0 | VM20: =VM19*VM17 -> 0 | VN20: =VN19*VN17 -> 0 | VO20: =VO19*VO17 -> 0 | VP20: =VP19*VP17 -> 0 | VQ20: =VQ19*VQ17 -> 0 | VR20: =VR19*VR17 -> 0 | VS20: =VS19*VS17 -> 0 | VT20: =VT19*VT17 -> 0 | VU20: =VU19*VU17 -> 0 | VV20: =VV19*VV17 -> 0 | VW20: =VW19*VW17 -> 0 | VX20: =VX19*VX17 -> 0 | VY20: =VY19*VY17 -> 0 | VZ20: =VZ19*VZ17 -> 0 | WA20: =WA19*WA17 -> 0 | WB20: =WB19*WB17 -> 0 | WC20: =WC19*WC17 -> 0 | WD20: =WD19*WD17 -> 0 | WE20: =WE19*WE17 -> 0 | WF20: =WF19*WF17 -> 0 | WG20: =WG19*WG17 -> 0 | WH20: =WH19*WH17 -> 0 | WI20: =WI19*WI17 -> 0 | WJ20: =WJ19*WJ17 -> 0 | WK20: =WK19*WK17 -> 0 | WL20: =WL19*WL17 -> 0 | WM20: =WM19*WM17 -> 0 | WN20: =WN19*WN17 -> 0 | WO20: =WO19*WO17 -> 0 | WP20: =WP19*WP17 -> 0 | WQ20: =WQ19*WQ17 -> 0 | WR20: =WR19*WR17 -> 0 | WS20: =WS19*WS17 -> 0 | WT20: =WT19*WT17 -> 0 | WU20: =WU19*WU17 -> 0 | WV20: =WV19*WV17 -> 0 | WW20: =WW19*WW17 -> 0 | WX20: =WX19*WX17 -> 0 | WY20: =WY19*WY17 -> 0 | WZ20: =WZ19*WZ17 -> 0 | XA20: =XA19*XA17 -> 0 | XB20: =XB19*XB17 -> 0 | XC20: =XC19*XC17 -> 0 | XD20: =XD19*XD17 -> 0 | XE20: =XE19*XE17 -> 0 | XF20: =XF19*XF17 -> 0 | XG20: =XG19*XG17 -> 0 | XH20: =XH19*XH17 -> 0 | XI20: =XI19*XI17 -> 0 | XJ20: =XJ19*XJ17 -> 0 | XK20: =XK19*XK17 -> 0 | XL20: =XL19*XL17 -> 0 | XM20: =XM19*XM17 -> 0 | XN20: =XN19*XN17 -> 0 | XO20: =XO19*XO17 -> 0 | XP20: =XP19*XP17 -> 0 | XQ20: =XQ19*XQ17 -> 0 | XR20: =XR19*XR17 -> 0 | XS20: =XS19*XS17 -> 0 | XT20: =XT19*XT17 -> 0 | XU20: =XU19*XU17 -> 0 | XV20: =XV19*XV17 -> 0 | XW20: =XW19*XW17 -> 0 | XX20: =XX19*XX17 -> 0 | XY20: =XY19*XY17 -> 0 | XZ20: =XZ19*XZ17 -> 0 | YA20: =YA19*YA17 -> 0 | YB20: =YB19*YB17 -> 0 | YC20: =YC19*YC17 -> 0 | YD20: =YD19*YD17 -> 0 | YE20: =YE19*YE17 -> 0 | YF20: =YF19*YF17 -> 0 | YG20: =YG19*YG17 -> 0 | YH20: =YH19*YH17 -> 0 | YI20: =YI19*YI17 -> 0 | YJ20: =YJ19*YJ17 -> 0 | YK20: =YK19*YK17 -> 0 | YL20: =YL19*YL17 -> 0 | YM20: =YM19*YM17 -> 0 | YN20: =YN19*YN17 -> 0 | YO20: =YO19*YO17 -> 0 | YP20: =YP19*YP17 -> 0 | YQ20: =YQ19*YQ17 -> 0 | YR20: =YR19*YR17 -> 0 | YS20: =YS19*YS17 -> 0 | YT20: =YT19*YT17 -> 0 | YU20: =YU19*YU17 -> 0 | YV20: =YV19*YV17 -> 0 | YW20: =YW19*YW17 -> 0 | YX20: =YX19*YX17 -> 0 | YY20: =YY19*YY17 -> 0 | YZ20: =YZ19*YZ17 -> 0 | ZA20: =ZA19*ZA17 -> 0 | ZB20: =ZB19*ZB17 -> 0 | ZC20: =ZC19*ZC17 -> 0 | ZD20: =ZD19*ZD17 -> 0 | ZE20: =ZE19*ZE17 -> 0 | ZF20: =ZF19*ZF17 -> 0 | ZG20: =ZG19*ZG17 -> 0 | ZH20: =ZH19*ZH17 -> 0 | ZI20: =ZI19*ZI17 -> 0 | ZJ20: =ZJ19*ZJ17 -> 0 | ZK20: =ZK19*ZK17 -> 0 | ZL20: =ZL19*ZL17 -> 0 | ZM20: =ZM19*ZM17 -> 0 | ZN20: =ZN19*ZN17 -> 0 | ZO20: =ZO19*ZO17 -> 0 | ZP20: =ZP19*ZP17 -> 0 | ZQ20: =ZQ19*ZQ17 -> 0 | ZR20: =ZR19*ZR17 -> 0 | ZS20: =ZS19*ZS17 -> 0 | ZT20: =ZT19*ZT17 -> 0 | ZU20: =ZU19*ZU17 -> 0 | ZV20: =ZV19*ZV17 -> 0 | ZW20: =ZW19*ZW17 -> 0 | ZX20: =ZX19*ZX17 -> 0 | ZY20: =ZY19*ZY17 -> 0 | ZZ20: =ZZ19*ZZ17 -> 0 | AAA20: =AAA19*AAA17 -> 0 | AAB20: =AAB19*AAB17 -> 0 | AAC20: =AAC19*AAC17 -> 0 | AAD20: =AAD19*AAD17 -> 0 | AAE20: =AAE19*AAE17 -> 0 | AAF20: =AAF19*AAF17 -> 0 | AAG20: =AAG19*AAG17 -> 0 | AAH20: =AAH19*AAH17 -> 0 | AAI20: =AAI19*AAI17 -> 0 | AAJ20: =AAJ19*AAJ17 -> 0 | AAK20: =AAK19*AAK17 -> 0 | AAL20: =AAL19*AAL17 -> 0 | AAM20: =AAM19*AAM17 -> 0 | AAN20: =AAN19*AAN17 -> 0 | AAO20: =AAO19*AAO17 -> 0 | AAP20: =AAP19*AAP17 -> 0 | AAQ20: =AAQ19*AAQ17 -> 0 | AAR20: =AAR19*AAR17 -> 0 | AAS20: =AAS19*AAS17 -> 0 | AAT20: =AAT19*AAT17 -> 0 | AAU20: =AAU19*AAU17 -> 0 | AAV20: =AAV19*AAV17 -> 0 | AAW20: =AAW19*AAW17 -> 0 | AAX20: =AAX19*AAX17 -> 0 | AAY20: =AAY19*AAY17 -> 0 | AAZ20: =AAZ19*AAZ17 -> 0 | ABA20: =ABA19*ABA17 -> 0 | ABB20: =ABB19*ABB17 -> 0 | ABC20: =ABC19*ABC17 -> 0 | ABD20: =ABD19*ABD17 -> 0 | ABE20: =ABE19*ABE17 -> 0 | ABF20: =ABF19*ABF17 -> 0 | ABG20: =ABG19*ABG17 -> 0 | ABH20: =ABH19*ABH17 -> 0 | ABI20: =ABI19*ABI17 -> 0 | ABJ20: =ABJ19*ABJ17 -> 0 | ABK20: =ABK19*ABK17 -> 0 | ABL20: =ABL19*ABL17 -> 0 | ABM20: =ABM19*ABM17 -> 0 | ABN20: =ABN19*ABN17 -> 0 | ABO20: =ABO19*ABO17 -> 0 | ABP20: =ABP19*ABP17 -> 0 | ABQ20: =ABQ19*ABQ17 -> 0 | ABR20: =ABR19*ABR17 -> 0 | ABS20: =ABS19*ABS17 -> 0 | ABT20: =ABT19*ABT17 -> 0 | ABU20: =ABU19*ABU17 -> 0 | ABV20: =ABV19*ABV17 -> 0 | ABW20: =ABW19*ABW17 -> 0 | ABX20: =ABX19*ABX17 -> 0 | ABY20: =ABY19*ABY17 -> 0 | ABZ20: =ABZ19*ABZ17 -> 0 | ACA20: =ACA19*ACA17 -> 0 | ACB20: =ACB19*ACB17 -> 0 | ACC20: =ACC19*ACC17 -> 0 | ACD20: =ACD19*ACD17 -> 0 | ACE20: =ACE19*ACE17 -> 0 | ACF20: =ACF19*ACF17 -> 0 | ACG20: =ACG19*ACG17 -> 0 | ACH20: =ACH19*ACH17 -> 0 | ACI20: =ACI19*ACI17 -> 0 | ACJ20: =ACJ19*ACJ17 -> 0 | ACK20: =ACK19*ACK17 -> 0 | ACL20: =ACL19*ACL17 -> 0 | ACM20: =ACM19*ACM17 -> 0 | ACN20: =ACN19*ACN17 -> 0 | ACO20: =ACO19*ACO17 -> 0 | ACP20: =ACP19*ACP17 -> 0 | ACQ20: =ACQ19*ACQ17 -> 0 | ACR20: =ACR19*ACR17 -> 0 | ACS20: =ACS19*ACS17 -> 0 | ACT20: =ACT19*ACT17 -> 0 | ACU20: =ACU19*ACU17 -> 0 | ACV20: =ACV19*ACV17 -> 0 | ACW20: =ACW19*ACW17 -> 0 | ACX20: =ACX19*ACX17 -> 0 | ACY20: =ACY19*ACY17 -> 0 | ACZ20: =ACZ19*ACZ17 -> 0 | ADA20: =ADA19*ADA17 -> 0 | ADB20: =ADB19*ADB17 -> 0 | ADC20: =ADC19*ADC17 -> 0 | ADD20: =ADD19*ADD17 -> 0 | ADE20: =ADE19*ADE17 -> 0 | ADF20: =ADF19*ADF17 -> 0 | ADG20: =ADG19*ADG17 -> 0 | ADH20: =ADH19*ADH17 -> 0 | ADI20: =ADI19*ADI17 -> 0 | ADJ20: =ADJ19*ADJ17 -> 0 | ADK20: =ADK19*ADK17 -> 0 | ADL20: =ADL19*ADL17 -> 0 | ADM20: =ADM19*ADM17 -> 0 | ADN20: =ADN19*ADN17 -> 0 | ADO20: =ADO19*ADO17 -> 0 | ADP20: =ADP19*ADP17 -> 0 | ADQ20: =ADQ19*ADQ17 -> 0 | ADR20: =ADR19*ADR17 -> 0 | ADS20: =ADS19*ADS17 -> 0 | ADT20: =ADT19*ADT17 -> 0 | ADU20: =ADU19*ADU17 -> 0 | ADV20: =ADV19*ADV17 -> 0 | ADW20: =ADW19*ADW17 -> 0 | ADX20: =ADX19*ADX17 -> 0 | ADY20: =ADY19*ADY17 -> 0 | ADZ20: =ADZ19*ADZ17 -> 0 | AEA20: =AEA19*AEA17 -> 0 | AEB20: =AEB19*AEB17 -> 0 | AEC20: =AEC19*AEC17 -> 0 | AED20: =AED19*AED17 -> 0 | AEE20: =AEE19*AEE17 -> 0 | AEF20: =AEF19*AEF17 -> 0 | AEG20: =AEG19*AEG17 -> 0 | AEH20: =AEH19*AEH17 -> 0 | AEI20: =AEI19*AEI17 -> 0 | AEJ20: =AEJ19*AEJ17 -> 0 | AEK20: =AEK19*AEK17 -> 0 | AEL20: =AEL19*AEL17 -> 0 | AEM20: =AEM19*AEM17 -> 0 | AEN20: =AEN19*AEN17 -> 0 | AEO20: =AEO19*AEO17 -> 0 | AEP20: =AEP19*AEP17 -> 0 | AEQ20: =AEQ19*AEQ17 -> 0 | AER20: =AER19*AER17 -> 0 | AES20: =AES19*AES17 -> 0 | AET20: =AET19*AET17 -> 0 | AEU20: =AEU19*AEU17 -> 0 | AEV20: =AEV19*AEV17 -> 0 | AEW20: =AEW19*AEW17 -> 0 | AEX20: =AEX19*AEX17 -> 0 | AEY20: =AEY19*AEY17 -> 0 | AEZ20: =AEZ19*AEZ17 -> 0 | AFA20: =AFA19*AFA17 -> 0 | AFB20: =AFB19*AFB17 -> 0 | AFC20: =AFC19*AFC17 -> 0 | AFD20: =AFD19*AFD17 -> 0 | AFE20: =AFE19*AFE17 -> 0 | AFF20: =AFF19*AFF17 -> 0 | AFG20: =AFG19*AFG17 -> 0 | AFH20: =AFH19*AFH17 -> 0 | AFI20: =AFI19*AFI17 -> 0 | AFJ20: =AFJ19*AFJ17 -> 0 | AFK20: =AFK19*AFK17 -> 0 | AFL20: =AFL19*AFL17 -> 0 | AFM20: =AFM19*AFM17 -> 0 | AFN20: =AFN19*AFN17 -> 0 | AFO20: =AFO19*AFO17 -> 0 | AFP20: =AFP19*AFP17 -> 0 | AFQ20: =AFQ19*AFQ17 -> 0 | AFR20: =AFR19*AFR17 -> 0 | AFS20: =AFS19*AFS17 -> 0 | AFT20: =AFT19*AFT17 -> 0 | AFU20: =AFU19*AFU17 -> 0 | AFV20: =AFV19*AFV17 -> 0 | AFW20: =AFW19*AFW17 -> 0 | AFX20: =AFX19*AFX17 -> 0 | AFY20: =AFY19*AFY17 -> 0 | AFZ20: =AFZ19*AFZ17 -> 0 | AGA20: =AGA19*AGA17 -> 0 | AGB20: =AGB19*AGB17 -> 0 | AGC20: =AGC19*AGC17 -> 0 | AGD20: =AGD19*AGD17 -> 0 | AGE20: =AGE19*AGE17 -> 0 | AGF20: =AGF19*AGF17 -> 0 | AGG20: =AGG19*AGG17 -> 0 | AGH20: =AGH19*AGH17 -> 0 | AGI20: =AGI19*AGI17 -> 0 | AGJ20: =AGJ19*AGJ17 -> 0 | AGK20: =AGK19*AGK17 -> 0 | AGL20: =AGL19*AGL17 -> 0 | AGM20: =AGM19*AGM17 -> 0 | AGN20: =AGN19*AGN17 -> 0 | AGO20: =AGO19*AGO17 -> 0 | AGP20: =AGP19*AGP17 -> 0 | AGQ20: =AGQ19*AGQ17 -> 0 | AGR20: =AGR19*AGR17 -> 0 | AGS20: =AGS19*AGS17 -> 0 | AGT20: =AGT19*AGT17 -> 0 | AGU20: =AGU19*AGU17 -> 0 | AGV20: =AGV19*AGV17 -> 0 | AGW20: =AGW19*AGW17 -> 0 | AGX20: =AGX19*AGX17 -> 0 | AGY20: =AGY19*AGY17 -> 0 | AGZ20: =AGZ19*AGZ17 -> 0 | AHA20: =AHA19*AHA17 -> 0 | AHB20: =AHB19*AHB17 -> 0 | AHC20: =AHC19*AHC17 -> 0 | AHD20: =AHD19*AHD17 -> 0 | AHE20: =AHE19*AHE17 -> 0 | AHF20: =AHF19*AHF17 -> 0 | AHG20: =AHG19*AHG17 -> 0 | AHH20: =AHH19*AHH17 -> 0 | AHI20: =AHI19*AHI17 -> 0 | AHJ20: =AHJ19*AHJ17 -> 0 | AHK20: =AHK19*AHK17 -> 0 | AHL20: =AHL19*AHL17 -> 0 | AHM20: =AHM19*AHM17 -> 0 | AHN20: =AHN19*AHN17 -> 0 | AHO20: =AHO19*AHO17 -> 0 | AHP20: =AHP19*AHP17 -> 0 | AHQ20: =AHQ19*AHQ17 -> 0 | AHR20: =AHR19*AHR17 -> 0 | AHS20: =AHS19*AHS17 -> 0 | AHT20: =AHT19*AHT17 -> 0 | AHU20: =AHU19*AHU17 -> 0 | AHV20: =AHV19*AHV17 -> 0 | AHW20: =AHW19*AHW17 -> 0 | AHX20: =AHX19*AHX17 -> 0 | AHY20: =AHY19*AHY17 -> 0 | AHZ20: =AHZ19*AHZ17 -> 0 | AIA20: =AIA19*AIA17 -> 0 | AIB20: =AIB19*AIB17 -> 0 | AIC20: =AIC19*AIC17 -> 0 | AID20: =AID19*AID17 -> 0 | AIE20: =AIE19*AIE17 -> 0 | AIF20: =AIF19*AIF17 -> 0 | AIG20: =AIG19*AIG17 -> 0 | AIH20: =AIH19*AIH17 -> 0 | AII20: =AII19*AII17 -> 0 | AIJ20: =AIJ19*AIJ17 -> 0 | AIK20: =AIK19*AIK17 -> 0 | AIL20: =AIL19*AIL17 -> 0 | AIM20: =AIM19*AIM17 -> 0 | AIN20: =AIN19*AIN17 -> 0 | AIO20: =AIO19*AIO17 -> 0 | AIP20: =AIP19*AIP17 -> 0 | AIQ20: =AIQ19*AIQ17 -> 0 | AIR20: =AIR19*AIR17 -> 0 | AIS20: =AIS19*AIS17 -> 0 | AIT20: =AIT19*AIT17 -> 0 | AIU20: =AIU19*AIU17 -> 0 | AIV20: =AIV19*AIV17 -> 0 | AIW20: =AIW19*AIW17 -> 0 | AIX20: =AIX19*AIX17 -> 0 | AIY20: =AIY19*AIY17 -> 0 | AIZ20: =AIZ19*AIZ17 -> 0 | AJA20: =AJA19*AJA17 -> 0 | AJB20: =AJB19*AJB17 -> 0 | AJC20: =AJC19*AJC17 -> 0 | AJD20: =AJD19*AJD17 -> 0 | AJE20: =AJE19*AJE17 -> 0 | AJF20: =AJF19*AJF17 -> 0 | AJG20: =AJG19*AJG17 -> 0 | AJH20: =AJH19*AJH17 -> 0 | AJI20: =AJI19*AJI17 -> 0 | AJJ20: =AJJ19*AJJ17 -> 0 | AJK20: =AJK19*AJK17 -> 0 | AJL20: =AJL19*AJL17 -> 0 | AJM20: =AJM19*AJM17 -> 0 | AJN20: =AJN19*AJN17 -> 0 | AJO20: =AJO19*AJO17 -> 0 | AJP20: =AJP19*AJP17 -> 0 | AJQ20: =AJQ19*AJQ17 -> 0 | AJR20: =AJR19*AJR17 -> 0 | AJS20: =AJS19*AJS17 -> 0 | AJT20: =AJT19*AJT17 -> 0 | AJU20: =AJU19*AJU17 -> 0 | AJV20: =AJV19*AJV17 -> 0 | AJW20: =AJW19*AJW17 -> 0 | AJX20: =AJX19*AJX17 -> 0 | AJY20: =AJY19*AJY17 -> 0 | AJZ20: =AJZ19*AJZ17 -> 0 | AKA20: =AKA19*AKA17 -> 0 | AKB20: =AKB19*AKB17 -> 0 | AKC20: =AKC19*AKC17 -> 0 | AKD20: =AKD19*AKD17 -> 0 | AKE20: =AKE19*AKE17 -> 0 | AKF20: =AKF19*AKF17 -> 0 | AKG20: =AKG19*AKG17 -> 0 | AKH20: =AKH19*AKH17 -> 0 | AKI20: =AKI19*AKI17 -> 0 | AKJ20: =AKJ19*AKJ17 -> 0 | AKK20: =AKK19*AKK17 -> 0 | AKL20: =AKL19*AKL17 -> 0 | AKM20: =AKM19*AKM17 -> 0 | AKN20: =AKN19*AKN17 -> 0 | AKO20: =AKO19*AKO17 -> 0 | AKP20: =AKP19*AKP17 -> 0 | AKQ20: =AKQ19*AKQ17 -> 0 | AKR20: =AKR19*AKR17 -> 0 | AKS20: =AKS19*AKS17 -> 0 | AKT20: =AKT19*AKT17 -> 0 | AKU20: =AKU19*AKU17 -> 0 | AKV20: =AKV19*AKV17 -> 0 | AKW20: =AKW19*AKW17 -> 0 | AKX20: =AKX19*AKX17 -> 0 | AKY20: =AKY19*AKY17 -> 0 | AKZ20: =AKZ19*AKZ17 -> 0 | ALA20: =ALA19*ALA17 -> 0 | ALB20: =ALB19*ALB17 -> 0 | ALC20: =ALC19*ALC17 -> 0 | ALD20: =ALD19*ALD17 -> 0 | ALE20: =ALE19*ALE17 -> 0 | ALF20: =ALF19*ALF17 -> 0 | ALG20: =ALG19*ALG17 -> 0 | ALH20: =ALH19*ALH17 -> 0 | ALI20: =ALI19*ALI17 -> 0 | ALJ20: =ALJ19*ALJ17 -> 0 | ALK20: =ALK19*ALK17 -> 0 | ALL20: =ALL19*ALL17 -> 0 | ALM20: =ALM19*ALM17 -> 0 | ALN20: =ALN19*ALN17 -> 0 | ALO20: =ALO19*ALO17 -> 0 | ALP20: =ALP19*ALP17 -> 0 | ALQ20: =ALQ19*ALQ17 -> 0 | ALR20: =ALR19*ALR17 -> 0 | ALS20: =ALS19*ALS17 -> 0 | ALT20: =ALT19*ALT17 -> 0 | ALU20: =ALU19*ALU17 -> 0 | ALV20: =ALV19*ALV17 -> 0
C22: Pre tax free cashflow | I22: EUR | K22: =K20-K15 -> -1000000 | L22: =L20-L15 -> 81600 | M22: 83232 | N22: 84896.64 | O22: 86594.5728 | P22: 88326.46426 | Q22: 90092.99354 | R22: 91894.85341 | S22: 93732.75048 | T22: 95607.40549 | U22: 97519.5536 | V22: 99469.94467 | W22: 101459.3436 | X22: 103488.5304 | Y22: 105558.301 | Z22: 107669.4671 | AA22: 109822.8564 | AB22: 112019.3135 | AC22: 114259.6998 | AD22: 116544.8938 | AE22: 118875.7917 | AF22: 121253.3075 | AG22: 123678.3737 | AH22: 126151.9411 | AI22: 128674.98 | AJ22: 131248.4796 | AK22: 133873.4491 | AL22: 136550.9181 | AM22: 139281.9365 | AN22: 142067.5752 | AO22: 144908.9267 | AP22: 147807.1053 | AQ22: 150763.2474 | AR22: 153778.5123 | AS22: 156854.0826 | AT22: 159991.1642 | AU22: 0 | AV22: 0 | AW22: 0 | AX22: 0 | AY22: 0 | AZ22: 0 | BA22: 0 | BB22: 0 | BC22: 0 | BD22: 0 | BE22: 0 | BF22: 0 | BG22: 0 | BH22: 0 | BI22: 0 | BJ22: 0 | BK22: 0 | BL22: 0 | BM22: 0 | BN22: 0 | BO22: 0 | BP22: 0 | BQ22: 0 | BR22: 0 | BS22: 0 | BT22: 0 | BU22: 0 | BV22: 0 | BW22: 0 | BX22: =BX20-BX15 -> 0 | BY22: 0 | BZ22: 0 | CA22: 0 | CB22: 0 | CC22: 0 | CD22: 0 | CE22: 0 | CF22: 0 | CG22: 0 | CH22: 0 | CI22: 0 | CJ22: 0 | CK22: 0 | CL22: 0 | CM22: 0 | CN22: 0 | CO22: 0 | CP22: 0 | CQ22: 0 | CR22: 0 | CS22: 0 | CT22: 0 | CU22: 0 | CV22: 0 | CW22: 0 | CX22: 0 | CY22: 0 | CZ22: 0 | DA22: 0 | DB22: 0 | DC22: 0 | DD22: 0 | DE22: 0 | DF22: 0 | DG22: 0 | DH22: 0 | DI22: 0 | DJ22: 0 | DK22: 0 | DL22: 0 | DM22: 0 | DN22: 0 | DO22: 0 | DP22: 0 | DQ22: 0 | DR22: 0 | DS22: 0 | DT22: 0 | DU22: 0 | DV22: 0 | DW22: 0 | DX22: 0 | DY22: 0 | DZ22: 0 | EA22: 0 | EB22: 0 | EC22: 0 | ED22: 0 | EE22: 0 | EF22: 0 | EG22: 0 | EH22: 0 | EI22: 0 | EJ22: =EJ20-EJ15 -> 0 | EK22: 0 | EL22: 0 | EM22: 0 | EN22: 0 | EO22: 0 | EP22: 0 | EQ22: 0 | ER22: 0 | ES22: 0 | ET22: 0 | EU22: 0 | EV22: 0 | EW22: 0 | EX22: 0 | EY22: 0 | EZ22: 0 | FA22: 0 | FB22: 0 | FC22: 0 | FD22: 0 | FE22: 0 | FF22: 0 | FG22: 0 | FH22: 0 | FI22: 0 | FJ22: 0 | FK22: 0 | FL22: 0 | FM22: 0 | FN22: 0 | FO22: 0 | FP22: 0 | FQ22: 0 | FR22: 0 | FS22: 0 | FT22: 0 | FU22: 0 | FV22: 0 | FW22: 0 | FX22: 0 | FY22: 0 | FZ22: 0 | GA22: 0 | GB22: 0 | GC22: 0 | GD22: 0 | GE22: 0 | GF22: 0 | GG22: 0 | GH22: 0 | GI22: 0 | GJ22: 0 | GK22: 0 | GL22: 0 | GM22: 0 | GN22: 0 | GO22: 0 | GP22: 0 | GQ22: 0 | GR22: 0 | GS22: 0 | GT22: 0 | GU22: 0 | GV22: =GV20-GV15 -> 0 | GW22: 0 | GX22: 0 | GY22: 0 | GZ22: 0 | HA22: 0 | HB22: 0 | HC22: 0 | HD22: 0 | HE22: 0 | HF22: 0 | HG22: 0 | HH22: 0 | HI22: 0 | HJ22: 0 | HK22: 0 | HL22: 0 | HM22: 0 | HN22: 0 | HO22: 0 | HP22: 0 | HQ22: 0 | HR22: 0 | HS22: 0 | HT22: 0 | HU22: 0 | HV22: 0 | HW22: 0 | HX22: 0 | HY22: 0 | HZ22: 0 | IA22: 0 | IB22: 0 | IC22: 0 | ID22: 0 | IE22: 0 | IF22: 0 | IG22: 0 | IH22: 0 | II22: 0 | IJ22: 0 | IK22: 0 | IL22: 0 | IM22: 0 | IN22: 0 | IO22: 0 | IP22: 0 | IQ22: 0 | IR22: 0 | IS22: 0 | IT22: 0 | IU22: 0 | IV22: 0 | IW22: 0 | IX22: 0 | IY22: 0 | IZ22: 0 | JA22: 0 | JB22: 0 | JC22: 0 | JD22: 0 | JE22: 0 | JF22: 0 | JG22: 0 | JH22: =JH20-JH15 -> 0 | JI22: 0 | JJ22: 0 | JK22: 0 | JL22: 0 | JM22: 0 | JN22: 0 | JO22: 0 | JP22: 0 | JQ22: 0 | JR22: 0 | JS22: 0 | JT22: 0 | JU22: 0 | JV22: 0 | JW22: 0 | JX22: 0 | JY22: 0 | JZ22: 0 | KA22: 0 | KB22: 0 | KC22: 0 | KD22: 0 | KE22: 0 | KF22: 0 | KG22: 0 | KH22: 0 | KI22: 0 | KJ22: 0 | KK22: 0 | KL22: 0 | KM22: 0 | KN22: 0 | KO22: 0 | KP22: 0 | KQ22: 0 | KR22: 0 | KS22: 0 | KT22: 0 | KU22: 0 | KV22: 0 | KW22: 0 | KX22: 0 | KY22: 0 | KZ22: 0 | LA22: 0 | LB22: 0 | LC22: 0 | LD22: 0 | LE22: 0 | LF22: 0 | LG22: 0 | LH22: 0 | LI22: 0 | LJ22: 0 | LK22: 0 | LL22: 0 | LM22: 0 | LN22: 0 | LO22: 0 | LP22: 0 | LQ22: 0 | LR22: 0 | LS22: 0 | LT22: =LT20-LT15 -> 0 | LU22: 0 | LV22: 0 | LW22: 0 | LX22: 0 | LY22: 0 | LZ22: 0 | MA22: 0 | MB22: 0 | MC22: 0 | MD22: 0 | ME22: 0 | MF22: 0 | MG22: 0 | MH22: 0 | MI22: 0 | MJ22: 0 | MK22: 0 | ML22: 0 | MM22: 0 | MN22: 0 | MO22: 0 | MP22: 0 | MQ22: 0 | MR22: 0 | MS22: 0 | MT22: 0 | MU22: 0 | MV22: 0 | MW22: 0 | MX22: 0 | MY22: 0 | MZ22: 0 | NA22: 0 | NB22: 0 | NC22: 0 | ND22: 0 | NE22: 0 | NF22: 0 | NG22: 0 | NH22: 0 | NI22: 0 | NJ22: 0 | NK22: 0 | NL22: 0 | NM22: 0 | NN22: 0 | NO22: 0 | NP22: 0 | NQ22: 0 | NR22: 0 | NS22: 0 | NT22: 0 | NU22: 0 | NV22: 0 | NW22: 0 | NX22: 0 | NY22: 0 | NZ22: 0 | OA22: 0 | OB22: 0 | OC22: 0 | OD22: 0 | OE22: 0 | OF22: =OF20-OF15 -> 0 | OG22: 0 | OH22: 0 | OI22: 0 | OJ22: 0 | OK22: 0 | OL22: 0 | OM22: 0 | ON22: 0 | OO22: 0 | OP22: 0 | OQ22: 0 | OR22: 0 | OS22: 0 | OT22: 0 | OU22: 0 | OV22: 0 | OW22: 0 | OX22: 0 | OY22: 0 | OZ22: 0 | PA22: 0 | PB22: 0 | PC22: 0 | PD22: 0 | PE22: 0 | PF22: 0 | PG22: 0 | PH22: 0 | PI22: 0 | PJ22: 0 | PK22: 0 | PL22: 0 | PM22: 0 | PN22: 0 | PO22: 0 | PP22: 0 | PQ22: 0 | PR22: 0 | PS22: 0 | PT22: 0 | PU22: 0 | PV22: 0 | PW22: 0 | PX22: 0 | PY22: 0 | PZ22: 0 | QA22: 0 | QB22: 0 | QC22: 0 | QD22: 0 | QE22: 0 | QF22: 0 | QG22: 0 | QH22: 0 | QI22: 0 | QJ22: 0 | QK22: 0 | QL22: 0 | QM22: 0 | QN22: 0 | QO22: 0 | QP22: 0 | QQ22: 0 | QR22: =QR20-QR15 -> 0 | QS22: 0 | QT22: 0 | QU22: 0 | QV22: 0 | QW22: 0 | QX22: 0 | QY22: 0 | QZ22: 0 | RA22: 0 | RB22: 0 | RC22: 0 | RD22: 0 | RE22: 0 | RF22: 0 | RG22: 0 | RH22: 0 | RI22: 0 | RJ22: 0 | RK22: 0 | RL22: 0 | RM22: 0 | RN22: 0 | RO22: 0 | RP22: 0 | RQ22: 0 | RR22: 0 | RS22: 0 | RT22: 0 | RU22: 0 | RV22: 0 | RW22: 0 | RX22: 0 | RY22: 0 | RZ22: 0 | SA22: 0 | SB22: 0 | SC22: 0 | SD22: 0 | SE22: 0 | SF22: 0 | SG22: 0 | SH22: 0 | SI22: 0 | SJ22: 0 | SK22: 0 | SL22: 0 | SM22: 0 | SN22: 0 | SO22: 0 | SP22: 0 | SQ22: 0 | SR22: 0 | SS22: 0 | ST22: 0 | SU22: 0 | SV22: 0 | SW22: 0 | SX22: 0 | SY22: 0 | SZ22: 0 | TA22: 0 | TB22: 0 | TC22: 0 | TD22: =TD20-TD15 -> 0 | TE22: 0 | TF22: 0 | TG22: 0 | TH22: 0 | TI22: 0 | TJ22: 0 | TK22: 0 | TL22: 0 | TM22: 0 | TN22: 0 | TO22: 0 | TP22: 0 | TQ22: 0 | TR22: 0 | TS22: 0 | TT22: 0 | TU22: 0 | TV22: 0 | TW22: 0 | TX22: 0 | TY22: 0 | TZ22: 0 | UA22: 0 | UB22: 0 | UC22: 0 | UD22: 0 | UE22: 0 | UF22: 0 | UG22: 0 | UH22: 0 | UI22: 0 | UJ22: 0 | UK22: 0 | UL22: 0 | UM22: 0 | UN22: 0 | UO22: 0 | UP22: 0 | UQ22: 0 | UR22: 0 | US22: 0 | UT22: 0 | UU22: 0 | UV22: 0 | UW22: 0 | UX22: 0 | UY22: 0 | UZ22: 0 | VA22: 0 | VB22: 0 | VC22: 0 | VD22: 0 | VE22: 0 | VF22: 0 | VG22: 0 | VH22: 0 | VI22: 0 | VJ22: 0 | VK22: 0 | VL22: 0 | VM22: 0 | VN22: 0 | VO22: 0 | VP22: =VP20-VP15 -> 0 | VQ22: 0 | VR22: 0 | VS22: 0 | VT22: 0 | VU22: 0 | VV22: 0 | VW22: 0 | VX22: 0 | VY22: 0 | VZ22: 0 | WA22: 0 | WB22: 0 | WC22: 0 | WD22: 0 | WE22: 0 | WF22: 0 | WG22: 0 | WH22: 0 | WI22: 0 | WJ22: 0 | WK22: 0 | WL22: 0 | WM22: 0 | WN22: 0 | WO22: 0 | WP22: 0 | WQ22: 0 | WR22: 0 | WS22: 0 | WT22: 0 | WU22: 0 | WV22: 0 | WW22: 0 | WX22: 0 | WY22: 0 | WZ22: 0 | XA22: 0 | XB22: 0 | XC22: 0 | XD22: 0 | XE22: 0 | XF22: 0 | XG22: 0 | XH22: 0 | XI22: 0 | XJ22: 0 | XK22: 0 | XL22: 0 | XM22: 0 | XN22: 0 | XO22: 0 | XP22: 0 | XQ22: 0 | XR22: 0 | XS22: 0 | XT22: 0 | XU22: 0 | XV22: 0 | XW22: 0 | XX22: 0 | XY22: 0 | XZ22: 0 | YA22: 0 | YB22: =YB20-YB15 -> 0 | YC22: 0 | YD22: 0 | YE22: 0 | YF22: 0 | YG22: 0 | YH22: 0 | YI22: 0 | YJ22: 0 | YK22: 0 | YL22: 0 | YM22: 0 | YN22: 0 | YO22: 0 | YP22: 0 | YQ22: 0 | YR22: 0 | YS22: 0 | YT22: 0 | YU22: 0 | YV22: 0 | YW22: 0 | YX22: 0 | YY22: 0 | YZ22: 0 | ZA22: 0 | ZB22: 0 | ZC22: 0 | ZD22: 0 | ZE22: 0 | ZF22: 0 | ZG22: 0 | ZH22: 0 | ZI22: 0 | ZJ22: 0 | ZK22: 0 | ZL22: 0 | ZM22: 0 | ZN22: 0 | ZO22: 0 | ZP22: 0 | ZQ22: 0 | ZR22: 0 | ZS22: 0 | ZT22: 0 | ZU22: 0 | ZV22: 0 | ZW22: 0 | ZX22: 0 | ZY22: 0 | ZZ22: 0 | AAA22: 0 | AAB22: 0 | AAC22: 0 | AAD22: 0 | AAE22: 0 | AAF22: 0 | AAG22: 0 | AAH22: 0 | AAI22: 0 | AAJ22: 0 | AAK22: 0 | AAL22: 0 | AAM22: 0 | AAN22: =AAN20-AAN15 -> 0 | AAO22: 0 | AAP22: 0 | AAQ22: 0 | AAR22: 0 | AAS22: 0 | AAT22: 0 | AAU22: 0 | AAV22: 0 | AAW22: 0 | AAX22: 0 | AAY22: 0 | AAZ22: 0 | ABA22: 0 | ABB22: 0 | ABC22: 0 | ABD22: 0 | ABE22: 0 | ABF22: 0 | ABG22: 0 | ABH22: 0 | ABI22: 0 | ABJ22: 0 | ABK22: 0 | ABL22: 0 | ABM22: 0 | ABN22: 0 | ABO22: 0 | ABP22: 0 | ABQ22: 0 | ABR22: 0 | ABS22: 0 | ABT22: 0 | ABU22: 0 | ABV22: 0 | ABW22: 0 | ABX22: 0 | ABY22: 0 | ABZ22: 0 | ACA22: 0 | ACB22: 0 | ACC22: 0 | ACD22: 0 | ACE22: 0 | ACF22: 0 | ACG22: 0 | ACH22: 0 | ACI22: 0 | ACJ22: 0 | ACK22: 0 | ACL22: 0 | ACM22: 0 | ACN22: 0 | ACO22: 0 | ACP22: 0 | ACQ22: 0 | ACR22: 0 | ACS22: 0 | ACT22: 0 | ACU22: 0 | ACV22: 0 | ACW22: 0 | ACX22: 0 | ACY22: 0 | ACZ22: =ACZ20-ACZ15 -> 0 | ADA22: 0 | ADB22: 0 | ADC22: 0 | ADD22: 0 | ADE22: 0 | ADF22: 0 | ADG22: 0 | ADH22: 0 | ADI22: 0 | ADJ22: 0 | ADK22: 0 | ADL22: 0 | ADM22: 0 | ADN22: 0 | ADO22: 0 | ADP22: 0 | ADQ22: 0 | ADR22: 0 | ADS22: 0 | ADT22: 0 | ADU22: 0 | ADV22: 0 | ADW22: 0 | ADX22: 0 | ADY22: 0 | ADZ22: 0 | AEA22: 0 | AEB22: 0 | AEC22: 0 | AED22: 0 | AEE22: 0 | AEF22: 0 | AEG22: 0 | AEH22: 0 | AEI22: 0 | AEJ22: 0 | AEK22: 0 | AEL22: 0 | AEM22: 0 | AEN22: 0 | AEO22: 0 | AEP22: 0 | AEQ22: 0 | AER22: 0 | AES22: 0 | AET22: 0 | AEU22: 0 | AEV22: 0 | AEW22: 0 | AEX22: 0 | AEY22: 0 | AEZ22: 0 | AFA22: 0 | AFB22: 0 | AFC22: 0 | AFD22: 0 | AFE22: 0 | AFF22: 0 | AFG22: 0 | AFH22: 0 | AFI22: 0 | AFJ22: 0 | AFK22: 0 | AFL22: =AFL20-AFL15 -> 0 | AFM22: 0 | AFN22: 0 | AFO22: 0 | AFP22: 0 | AFQ22: 0 | AFR22: 0 | AFS22: 0 | AFT22: 0 | AFU22: 0 | AFV22: 0 | AFW22: 0 | AFX22: 0 | AFY22: 0 | AFZ22: 0 | AGA22: 0 | AGB22: 0 | AGC22: 0 | AGD22: 0 | AGE22: 0 | AGF22: 0 | AGG22: 0 | AGH22: 0 | AGI22: 0 | AGJ22: 0 | AGK22: 0 | AGL22: 0 | AGM22: 0 | AGN22: 0 | AGO22: 0 | AGP22: 0 | AGQ22: 0 | AGR22: 0 | AGS22: 0 | AGT22: 0 | AGU22: 0 | AGV22: 0 | AGW22: 0 | AGX22: 0 | AGY22: 0 | AGZ22: 0 | AHA22: 0 | AHB22: 0 | AHC22: 0 | AHD22: 0 | AHE22: 0 | AHF22: 0 | AHG22: 0 | AHH22: 0 | AHI22: 0 | AHJ22: 0 | AHK22: 0 | AHL22: 0 | AHM22: 0 | AHN22: 0 | AHO22: 0 | AHP22: 0 | AHQ22: 0 | AHR22: 0 | AHS22: 0 | AHT22: 0 | AHU22: 0 | AHV22: 0 | AHW22: 0 | AHX22: =AHX20-AHX15 -> 0 | AHY22: 0 | AHZ22: 0 | AIA22: 0 | AIB22: 0 | AIC22: 0 | AID22: 0 | AIE22: 0 | AIF22: 0 | AIG22: 0 | AIH22: 0 | AII22: 0 | AIJ22: 0 | AIK22: 0 | AIL22: 0 | AIM22: 0 | AIN22: 0 | AIO22: 0 | AIP22: 0 | AIQ22: 0 | AIR22: 0 | AIS22: 0 | AIT22: 0 | AIU22: 0 | AIV22: 0 | AIW22: 0 | AIX22: 0 | AIY22: 0 | AIZ22: 0 | AJA22: 0 | AJB22: 0 | AJC22: 0 | AJD22: 0 | AJE22: 0 | AJF22: 0 | AJG22: 0 | AJH22: 0 | AJI22: 0 | AJJ22: 0 | AJK22: 0 | AJL22: 0 | AJM22: 0 | AJN22: 0 | AJO22: 0 | AJP22: 0 | AJQ22: 0 | AJR22: 0 | AJS22: 0 | AJT22: 0 | AJU22: 0 | AJV22: 0 | AJW22: 0 | AJX22: 0 | AJY22: 0 | AJZ22: 0 | AKA22: 0 | AKB22: 0 | AKC22: 0 | AKD22: 0 | AKE22: 0 | AKF22: 0 | AKG22: 0 | AKH22: 0 | AKI22: 0 | AKJ22: =AKJ20-AKJ15 -> 0 | AKK22: 0 | AKL22: 0 | AKM22: 0 | AKN22: 0 | AKO22: 0 | AKP22: 0 | AKQ22: 0 | AKR22: 0 | AKS22: 0 | AKT22: 0 | AKU22: 0 | AKV22: 0 | AKW22: 0 | AKX22: 0 | AKY22: 0 | AKZ22: 0 | ALA22: 0 | ALB22: 0 | ALC22: 0 | ALD22: 0 | ALE22: 0 | ALF22: 0 | ALG22: 0 | ALH22: 0 | ALI22: 0 | ALJ22: 0 | ALK22: 0 | ALL22: 0 | ALM22: 0 | ALN22: 0 | ALO22: 0 | ALP22: 0 | ALQ22: 0 | ALR22: 0 | ALS22: 0 | ALT22: 0 | ALU22: 0 | ALV22: 0
C23: Pre tax IRR | E23: % | F23: =IRR(K22:ALV22,0.0001) -> 0.09473012679 | G23: =(1+F23)^(months/G6)-1 -> 0.09473012679 | I23: %
C24: Pre tax XIRR | E24: % | F24: =XIRR(K22:ALV22,K8:ALV8) -> 0.09465945065 | I24: %
B26: Investment Account
C28: Cash Before COD
D29: Opening Balance | I29: EUR | K29: =J32 -> 0 | L29: =K32 -> 1000000 | M29: 1000000 | N29: 1000000 | O29: 1000000 | P29: 1000000 | Q29: 1000000 | R29: 1000000 | S29: 1000000 | T29: 1000000 | U29: 1000000 | V29: 1000000 | W29: 1000000 | X29: 1000000 | Y29: 1000000 | Z29: 1000000 | AA29: 1000000 | AB29: 1000000 | AC29: 1000000 | AD29: 1000000 | AE29: 1000000 | AF29: 1000000 | AG29: 1000000 | AH29: 1000000 | AI29: 1000000 | AJ29: 1000000 | AK29: 1000000 | AL29: 1000000 | AM29: 1000000 | AN29: 1000000 | AO29: 1000000 | AP29: 1000000 | AQ29: 1000000 | AR29: 1000000 | AS29: 1000000 | AT29: 1000000 | AU29: 1000000 | AV29: 1000000 | AW29: 1000000 | AX29: 1000000 | AY29: 1000000 | AZ29: 1000000 | BA29: 1000000 | BB29: 1000000 | BC29: 1000000 | BD29: 1000000 | BE29: 1000000 | BF29: 1000000 | BG29: 1000000 | BH29: 1000000 | BI29: 1000000 | BJ29: 1000000 | BK29: 1000000 | BL29: 1000000 | BM29: 1000000 | BN29: 1000000 | BO29: 1000000 | BP29: 1000000 | BQ29: 1000000 | BR29: 1000000 | BS29: 1000000 | BT29: 1000000 | BU29: 1000000 | BV29: 1000000 | BW29: 1000000 | BX29: =BW32 -> 1000000 | BY29: 1000000 | BZ29: 1000000 | CA29: 1000000 | CB29: 1000000 | CC29: 1000000 | CD29: 1000000 | CE29: 1000000 | CF29: 1000000 | CG29: 1000000 | CH29: 1000000 | CI29: 1000000 | CJ29: 1000000 | CK29: 1000000 | CL29: 1000000 | CM29: 1000000 | CN29: 1000000 | CO29: 1000000 | CP29: 1000000 | CQ29: 1000000 | CR29: 1000000 | CS29: 1000000 | CT29: 1000000 | CU29: 1000000 | CV29: 1000000 | CW29: 1000000 | CX29: 1000000 | CY29: 1000000 | CZ29: 1000000 | DA29: 1000000 | DB29: 1000000 | DC29: 1000000 | DD29: 1000000 | DE29: 1000000 | DF29: 1000000 | DG29: 1000000 | DH29: 1000000 | DI29: 1000000 | DJ29: 1000000 | DK29: 1000000 | DL29: 1000000 | DM29: 1000000 | DN29: 1000000 | DO29: 1000000 | DP29: 1000000 | DQ29: 1000000 | DR29: 1000000 | DS29: 1000000 | DT29: 1000000 | DU29: 1000000 | DV29: 1000000 | DW29: 1000000 | DX29: 1000000 | DY29: 1000000 | DZ29: 1000000 | EA29: 1000000 | EB29: 1000000 | EC29: 1000000 | ED29: 1000000 | EE29: 1000000 | EF29: 1000000 | EG29: 1000000 | EH29: 1000000 | EI29: 1000000 | EJ29: =EI32 -> 1000000 | EK29: 1000000 | EL29: 1000000 | EM29: 1000000 | EN29: 1000000 | EO29: 1000000 | EP29: 1000000 | EQ29: 1000000 | ER29: 1000000 | ES29: 1000000 | ET29: 1000000 | EU29: 1000000 | EV29: 1000000 | EW29: 1000000 | EX29: 1000000 | EY29: 1000000 | EZ29: 1000000 | FA29: 1000000 | FB29: 1000000 | FC29: 1000000 | FD29: 1000000 | FE29: 1000000 | FF29: 1000000 | FG29: 1000000 | FH29: 1000000 | FI29: 1000000 | FJ29: 1000000 | FK29: 1000000 | FL29: 1000000 | FM29: 1000000 | FN29: 1000000 | FO29: 1000000 | FP29: 1000000 | FQ29: 1000000 | FR29: 1000000 | FS29: 1000000 | FT29: 1000000 | FU29: 1000000 | FV29: 1000000 | FW29: 1000000 | FX29: 1000000 | FY29: 1000000 | FZ29: 1000000 | GA29: 1000000 | GB29: 1000000 | GC29: 1000000 | GD29: 1000000 | GE29: 1000000 | GF29: 1000000 | GG29: 1000000 | GH29: 1000000 | GI29: 1000000 | GJ29: 1000000 | GK29: 1000000 | GL29: 1000000 | GM29: 1000000 | GN29: 1000000 | GO29: 1000000 | GP29: 1000000 | GQ29: 1000000 | GR29: 1000000 | GS29: 1000000 | GT29: 1000000 | GU29: 1000000 | GV29: =GU32 -> 1000000 | GW29: 1000000 | GX29: 1000000 | GY29: 1000000 | GZ29: 1000000 | HA29: 1000000 | HB29: 1000000 | HC29: 1000000 | HD29: 1000000 | HE29: 1000000 | HF29: 1000000 | HG29: 1000000 | HH29: 1000000 | HI29: 1000000 | HJ29: 1000000 | HK29: 1000000 | HL29: 1000000 | HM29: 1000000 | HN29: 1000000 | HO29: 1000000 | HP29: 1000000 | HQ29: 1000000 | HR29: 1000000 | HS29: 1000000 | HT29: 1000000 | HU29: 1000000 | HV29: 1000000 | HW29: 1000000 | HX29: 1000000 | HY29: 1000000 | HZ29: 1000000 | IA29: 1000000 | IB29: 1000000 | IC29: 1000000 | ID29: 1000000 | IE29: 1000000 | IF29: 1000000 | IG29: 1000000 | IH29: 1000000 | II29: 1000000 | IJ29: 1000000 | IK29: 1000000 | IL29: 1000000 | IM29: 1000000 | IN29: 1000000 | IO29: 1000000 | IP29: 1000000 | IQ29: 1000000 | IR29: 1000000 | IS29: 1000000 | IT29: 1000000 | IU29: 1000000 | IV29: 1000000 | IW29: 1000000 | IX29: 1000000 | IY29: 1000000 | IZ29: 1000000 | JA29: 1000000 | JB29: 1000000 | JC29: 1000000 | JD29: 1000000 | JE29: 1000000 | JF29: 1000000 | JG29: 1000000 | JH29: =JG32 -> 1000000 | JI29: 1000000 | JJ29: 1000000 | JK29: 1000000 | JL29: 1000000 | JM29: 1000000 | JN29: 1000000 | JO29: 1000000 | JP29: 1000000 | JQ29: 1000000 | JR29: 1000000 | JS29: 1000000 | JT29: 1000000 | JU29: 1000000 | JV29: 1000000 | JW29: 1000000 | JX29: 1000000 | JY29: 1000000 | JZ29: 1000000 | KA29: 1000000 | KB29: 1000000 | KC29: 1000000 | KD29: 1000000 | KE29: 1000000 | KF29: 1000000 | KG29: 1000000 | KH29: 1000000 | KI29: 1000000 | KJ29: 1000000 | KK29: 1000000 | KL29: 1000000 | KM29: 1000000 | KN29: 1000000 | KO29: 1000000 | KP29: 1000000 | KQ29: 1000000 | KR29: 1000000 | KS29: 1000000 | KT29: 1000000 | KU29: 1000000 | KV29: 1000000 | KW29: 1000000 | KX29: 1000000 | KY29: 1000000 | KZ29: 1000000 | LA29: 1000000 | LB29: 1000000 | LC29: 1000000 | LD29: 1000000 | LE29: 1000000 | LF29: 1000000 | LG29: 1000000 | LH29: 1000000 | LI29: 1000000 | LJ29: 1000000 | LK29: 1000000 | LL29: 1000000 | LM29: 1000000 | LN29: 1000000 | LO29: 1000000 | LP29: 1000000 | LQ29: 1000000 | LR29: 1000000 | LS29: 1000000 | LT29: =LS32 -> 1000000 | LU29: 1000000 | LV29: 1000000 | LW29: 1000000 | LX29: 1000000 | LY29: 1000000 | LZ29: 1000000 | MA29: 1000000 | MB29: 1000000 | MC29: 1000000 | MD29: 1000000 | ME29: 1000000 | MF29: 1000000 | MG29: 1000000 | MH29: 1000000 | MI29: 1000000 | MJ29: 1000000 | MK29: 1000000 | ML29: 1000000 | MM29: 1000000 | MN29: 1000000 | MO29: 1000000 | MP29: 1000000 | MQ29: 1000000 | MR29: 1000000 | MS29: 1000000 | MT29: 1000000 | MU29: 1000000 | MV29: 1000000 | MW29: 1000000 | MX29: 1000000 | MY29: 1000000 | MZ29: 1000000 | NA29: 1000000 | NB29: 1000000 | NC29: 1000000 | ND29: 1000000 | NE29: 1000000 | NF29: 1000000 | NG29: 1000000 | NH29: 1000000 | NI29: 1000000 | NJ29: 1000000 | NK29: 1000000 | NL29: 1000000 | NM29: 1000000 | NN29: 1000000 | NO29: 1000000 | NP29: 1000000 | NQ29: 1000000 | NR29: 1000000 | NS29: 1000000 | NT29: 1000000 | NU29: 1000000 | NV29: 1000000 | NW29: 1000000 | NX29: 1000000 | NY29: 1000000 | NZ29: 1000000 | OA29: 1000000 | OB29: 1000000 | OC29: 1000000 | OD29: 1000000 | OE29: 1000000 | OF29: =OE32 -> 1000000 | OG29: 1000000 | OH29: 1000000 | OI29: 1000000 | OJ29: 1000000 | OK29: 1000000 | OL29: 1000000 | OM29: 1000000 | ON29: 1000000 | OO29: 1000000 | OP29: 1000000 | OQ29: 1000000 | OR29: 1000000 | OS29: 1000000 | OT29: 1000000 | OU29: 1000000 | OV29: 1000000 | OW29: 1000000 | OX29: 1000000 | OY29: 1000000 | OZ29: 1000000 | PA29: 1000000 | PB29: 1000000 | PC29: 1000000 | PD29: 1000000 | PE29: 1000000 | PF29: 1000000 | PG29: 1000000 | PH29: 1000000 | PI29: 1000000 | PJ29: 1000000 | PK29: 1000000 | PL29: 1000000 | PM29: 1000000 | PN29: 1000000 | PO29: 1000000 | PP29: 1000000 | PQ29: 1000000 | PR29: 1000000 | PS29: 1000000 | PT29: 1000000 | PU29: 1000000 | PV29: 1000000 | PW29: 1000000 | PX29: 1000000 | PY29: 1000000 | PZ29: 1000000 | QA29: 1000000 | QB29: 1000000 | QC29: 1000000 | QD29: 1000000 | QE29: 1000000 | QF29: 1000000 | QG29: 1000000 | QH29: 1000000 | QI29: 1000000 | QJ29: 1000000 | QK29: 1000000 | QL29: 1000000 | QM29: 1000000 | QN29: 1000000 | QO29: 1000000 | QP29: 1000000 | QQ29: 1000000 | QR29: =QQ32 -> 1000000 | QS29: 1000000 | QT29: 1000000 | QU29: 1000000 | QV29: 1000000 | QW29: 1000000 | QX29: 1000000 | QY29: 1000000 | QZ29: 1000000 | RA29: 1000000 | RB29: 1000000 | RC29: 1000000 | RD29: 1000000 | RE29: 1000000 | RF29: 1000000 | RG29: 1000000 | RH29: 1000000 | RI29: 1000000 | RJ29: 1000000 | RK29: 1000000 | RL29: 1000000 | RM29: 1000000 | RN29: 1000000 | RO29: 1000000 | RP29: 1000000 | RQ29: 1000000 | RR29: 1000000 | RS29: 1000000 | RT29: 1000000 | RU29: 1000000 | RV29: 1000000 | RW29: 1000000 | RX29: 1000000 | RY29: 1000000 | RZ29: 1000000 | SA29: 1000000 | SB29: 1000000 | SC29: 1000000 | SD29: 1000000 | SE29: 1000000 | SF29: 1000000 | SG29: 1000000 | SH29: 1000000 | SI29: 1000000 | SJ29: 1000000 | SK29: 1000000 | SL29: 1000000 | SM29: 1000000 | SN29: 1000000 | SO29: 1000000 | SP29: 1000000 | SQ29: 1000000 | SR29: 1000000 | SS29: 1000000 | ST29: 1000000 | SU29: 1000000 | SV29: 1000000 | SW29: 1000000 | SX29: 1000000 | SY29: 1000000 | SZ29: 1000000 | TA29: 1000000 | TB29: 1000000 | TC29: 1000000 | TD29: =TC32 -> 1000000 | TE29: 1000000 | TF29: 1000000 | TG29: 1000000 | TH29: 1000000 | TI29: 1000000 | TJ29: 1000000 | TK29: 1000000 | TL29: 1000000 | TM29: 1000000 | TN29: 1000000 | TO29: 1000000 | TP29: 1000000 | TQ29: 1000000 | TR29: 1000000 | TS29: 1000000 | TT29: 1000000 | TU29: 1000000 | TV29: 1000000 | TW29: 1000000 | TX29: 1000000 | TY29: 1000000 | TZ29: 1000000 | UA29: 1000000 | UB29: 1000000 | UC29: 1000000 | UD29: 1000000 | UE29: 1000000 | UF29: 1000000 | UG29: 1000000 | UH29: 1000000 | UI29: 1000000 | UJ29: 1000000 | UK29: 1000000 | UL29: 1000000 | UM29: 1000000 | UN29: 1000000 | UO29: 1000000 | UP29: 1000000 | UQ29: 1000000 | UR29: 1000000 | US29: 1000000 | UT29: 1000000 | UU29: 1000000 | UV29: 1000000 | UW29: 1000000 | UX29: 1000000 | UY29: 1000000 | UZ29: 1000000 | VA29: 1000000 | VB29: 1000000 | VC29: 1000000 | VD29: 1000000 | VE29: 1000000 | VF29: 1000000 | VG29: 1000000 | VH29: 1000000 | VI29: 1000000 | VJ29: 1000000 | VK29: 1000000 | VL29: 1000000 | VM29: 1000000 | VN29: 1000000 | VO29: 1000000 | VP29: =VO32 -> 1000000 | VQ29: 1000000 | VR29: 1000000 | VS29: 1000000 | VT29: 1000000 | VU29: 1000000 | VV29: 1000000 | VW29: 1000000 | VX29: 1000000 | VY29: 1000000 | VZ29: 1000000 | WA29: 1000000 | WB29: 1000000 | WC29: 1000000 | WD29: 1000000 | WE29: 1000000 | WF29: 1000000 | WG29: 1000000 | WH29: 1000000 | WI29: 1000000 | WJ29: 1000000 | WK29: 1000000 | WL29: 1000000 | WM29: 1000000 | WN29: 1000000 | WO29: 1000000 | WP29: 1000000 | WQ29: 1000000 | WR29: 1000000 | WS29: 1000000 | WT29: 1000000 | WU29: 1000000 | WV29: 1000000 | WW29: 1000000 | WX29: 1000000 | WY29: 1000000 | WZ29: 1000000 | XA29: 1000000 | XB29: 1000000 | XC29: 1000000 | XD29: 1000000 | XE29: 1000000 | XF29: 1000000 | XG29: 1000000 | XH29: 1000000 | XI29: 1000000 | XJ29: 1000000 | XK29: 1000000 | XL29: 1000000 | XM29: 1000000 | XN29: 1000000 | XO29: 1000000 | XP29: 1000000 | XQ29: 1000000 | XR29: 1000000 | XS29: 1000000 | XT29: 1000000 | XU29: 1000000 | XV29: 1000000 | XW29: 1000000 | XX29: 1000000 | XY29: 1000000 | XZ29: 1000000 | YA29: 1000000 | YB29: =YA32 -> 1000000 | YC29: 1000000 | YD29: 1000000 | YE29: 1000000 | YF29: 1000000 | YG29: 1000000 | YH29: 1000000 | YI29: 1000000 | YJ29: 1000000 | YK29: 1000000 | YL29: 1000000 | YM29: 1000000 | YN29: 1000000 | YO29: 1000000 | YP29: 1000000 | YQ29: 1000000 | YR29: 1000000 | YS29: 1000000 | YT29: 1000000 | YU29: 1000000 | YV29: 1000000 | YW29: 1000000 | YX29: 1000000 | YY29: 1000000 | YZ29: 1000000 | ZA29: 1000000 | ZB29: 1000000 | ZC29: 1000000 | ZD29: 1000000 | ZE29: 1000000 | ZF29: 1000000 | ZG29: 1000000 | ZH29: 1000000 | ZI29: 1000000 | ZJ29: 1000000 | ZK29: 1000000 | ZL29: 1000000 | ZM29: 1000000 | ZN29: 1000000 | ZO29: 1000000 | ZP29: 1000000 | ZQ29: 1000000 | ZR29: 1000000 | ZS29: 1000000 | ZT29: 1000000 | ZU29: 1000000 | ZV29: 1000000 | ZW29: 1000000 | ZX29: 1000000 | ZY29: 1000000 | ZZ29: 1000000 | AAA29: 1000000 | AAB29: 1000000 | AAC29: 1000000 | AAD29: 1000000 | AAE29: 1000000 | AAF29: 1000000 | AAG29: 1000000 | AAH29: 1000000 | AAI29: 1000000 | AAJ29: 1000000 | AAK29: 1000000 | AAL29: 1000000 | AAM29: 1000000 | AAN29: =AAM32 -> 1000000 | AAO29: 1000000 | AAP29: 1000000 | AAQ29: 1000000 | AAR29: 1000000 | AAS29: 1000000 | AAT29: 1000000 | AAU29: 1000000 | AAV29: 1000000 | AAW29: 1000000 | AAX29: 1000000 | AAY29: 1000000 | AAZ29: 1000000 | ABA29: 1000000 | ABB29: 1000000 | ABC29: 1000000 | ABD29: 1000000 | ABE29: 1000000 | ABF29: 1000000 | ABG29: 1000000 | ABH29: 1000000 | ABI29: 1000000 | ABJ29: 1000000 | ABK29: 1000000 | ABL29: 1000000 | ABM29: 1000000 | ABN29: 1000000 | ABO29: 1000000 | ABP29: 1000000 | ABQ29: 1000000 | ABR29: 1000000 | ABS29: 1000000 | ABT29: 1000000 | ABU29: 1000000 | ABV29: 1000000 | ABW29: 1000000 | ABX29: 1000000 | ABY29: 1000000 | ABZ29: 1000000 | ACA29: 1000000 | ACB29: 1000000 | ACC29: 1000000 | ACD29: 1000000 | ACE29: 1000000 | ACF29: 1000000 | ACG29: 1000000 | ACH29: 1000000 | ACI29: 1000000 | ACJ29: 1000000 | ACK29: 1000000 | ACL29: 1000000 | ACM29: 1000000 | ACN29: 1000000 | ACO29: 1000000 | ACP29: 1000000 | ACQ29: 1000000 | ACR29: 1000000 | ACS29: 1000000 | ACT29: 1000000 | ACU29: 1000000 | ACV29: 1000000 | ACW29: 1000000 | ACX29: 1000000 | ACY29: 1000000 | ACZ29: =ACY32 -> 1000000 | ADA29: 1000000 | ADB29: 1000000 | ADC29: 1000000 | ADD29: 1000000 | ADE29: 1000000 | ADF29: 1000000 | ADG29: 1000000 | ADH29: 1000000 | ADI29: 1000000 | ADJ29: 1000000 | ADK29: 1000000 | ADL29: 1000000 | ADM29: 1000000 | ADN29: 1000000 | ADO29: 1000000 | ADP29: 1000000 | ADQ29: 1000000 | ADR29: 1000000 | ADS29: 1000000 | ADT29: 1000000 | ADU29: 1000000 | ADV29: 1000000 | ADW29: 1000000 | ADX29: 1000000 | ADY29: 1000000 | ADZ29: 1000000 | AEA29: 1000000 | AEB29: 1000000 | AEC29: 1000000 | AED29: 1000000 | AEE29: 1000000 | AEF29: 1000000 | AEG29: 1000000 | AEH29: 1000000 | AEI29: 1000000 | AEJ29: 1000000 | AEK29: 1000000 | AEL29: 1000000 | AEM29: 1000000 | AEN29: 1000000 | AEO29: 1000000 | AEP29: 1000000 | AEQ29: 1000000 | AER29: 1000000 | AES29: 1000000 | AET29: 1000000 | AEU29: 1000000 | AEV29: 1000000 | AEW29: 1000000 | AEX29: 1000000 | AEY29: 1000000 | AEZ29: 1000000 | AFA29: 1000000 | AFB29: 1000000 | AFC29: 1000000 | AFD29: 1000000 | AFE29: 1000000 | AFF29: 1000000 | AFG29: 1000000 | AFH29: 1000000 | AFI29: 1000000 | AFJ29: 1000000 | AFK29: 1000000 | AFL29: =AFK32 -> 1000000 | AFM29: 1000000 | AFN29: 1000000 | AFO29: 1000000 | AFP29: 1000000 | AFQ29: 1000000 | AFR29: 1000000 | AFS29: 1000000 | AFT29: 1000000 | AFU29: 1000000 | AFV29: 1000000 | AFW29: 1000000 | AFX29: 1000000 | AFY29: 1000000 | AFZ29: 1000000 | AGA29: 1000000 | AGB29: 1000000 | AGC29: 1000000 | AGD29: 1000000 | AGE29: 1000000 | AGF29: 1000000 | AGG29: 1000000 | AGH29: 1000000 | AGI29: 1000000 | AGJ29: 1000000 | AGK29: 1000000 | AGL29: 1000000 | AGM29: 1000000 | AGN29: 1000000 | AGO29: 1000000 | AGP29: 1000000 | AGQ29: 1000000 | AGR29: 1000000 | AGS29: 1000000 | AGT29: 1000000 | AGU29: 1000000 | AGV29: 1000000 | AGW29: 1000000 | AGX29: 1000000 | AGY29: 1000000 | AGZ29: 1000000 | AHA29: 1000000 | AHB29: 1000000 | AHC29: 1000000 | AHD29: 1000000 | AHE29: 1000000 | AHF29: 1000000 | AHG29: 1000000 | AHH29: 1000000 | AHI29: 1000000 | AHJ29: 1000000 | AHK29: 1000000 | AHL29: 1000000 | AHM29: 1000000 | AHN29: 1000000 | AHO29: 1000000 | AHP29: 1000000 | AHQ29: 1000000 | AHR29: 1000000 | AHS29: 1000000 | AHT29: 1000000 | AHU29: 1000000 | AHV29: 1000000 | AHW29: 1000000 | AHX29: =AHW32 -> 1000000 | AHY29: 1000000 | AHZ29: 1000000 | AIA29: 1000000 | AIB29: 1000000 | AIC29: 1000000 | AID29: 1000000 | AIE29: 1000000 | AIF29: 1000000 | AIG29: 1000000 | AIH29: 1000000 | AII29: 1000000 | AIJ29: 1000000 | AIK29: 1000000 | AIL29: 1000000 | AIM29: 1000000 | AIN29: 1000000 | AIO29: 1000000 | AIP29: 1000000 | AIQ29: 1000000 | AIR29: 1000000 | AIS29: 1000000 | AIT29: 1000000 | AIU29: 1000000 | AIV29: 1000000 | AIW29: 1000000 | AIX29: 1000000 | AIY29: 1000000 | AIZ29: 1000000 | AJA29: 1000000 | AJB29: 1000000 | AJC29: 1000000 | AJD29: 1000000 | AJE29: 1000000 | AJF29: 1000000 | AJG29: 1000000 | AJH29: 1000000 | AJI29: 1000000 | AJJ29: 1000000 | AJK29: 1000000 | AJL29: 1000000 | AJM29: 1000000 | AJN29: 1000000 | AJO29: 1000000 | AJP29: 1000000 | AJQ29: 1000000 | AJR29: 1000000 | AJS29: 1000000 | AJT29: 1000000 | AJU29: 1000000 | AJV29: 1000000 | AJW29: 1000000 | AJX29: 1000000 | AJY29: 1000000 | AJZ29: 1000000 | AKA29: 1000000 | AKB29: 1000000 | AKC29: 1000000 | AKD29: 1000000 | AKE29: 1000000 | AKF29: 1000000 | AKG29: 1000000 | AKH29: 1000000 | AKI29: 1000000 | AKJ29: =AKI32 -> 1000000 | AKK29: 1000000 | AKL29: 1000000 | AKM29: 1000000 | AKN29: 1000000 | AKO29: 1000000 | AKP29: 1000000 | AKQ29: 1000000 | AKR29: 1000000 | AKS29: 1000000 | AKT29: 1000000 | AKU29: 1000000 | AKV29: 1000000 | AKW29: 1000000 | AKX29: 1000000 | AKY29: 1000000 | AKZ29: 1000000 | ALA29: 1000000 | ALB29: 1000000 | ALC29: 1000000 | ALD29: 1000000 | ALE29: 1000000 | ALF29: 1000000 | ALG29: 1000000 | ALH29: 1000000 | ALI29: 1000000 | ALJ29: 1000000 | ALK29: 1000000 | ALL29: 1000000 | ALM29: 1000000 | ALN29: 1000000 | ALO29: 1000000 | ALP29: 1000000 | ALQ29: 1000000 | ALR29: 1000000 | ALS29: 1000000 | ALT29: 1000000 | ALU29: 1000000 | ALV29: 1000000
D30: Financing Cost | F30: =F23 -> 0.09473012679 | I30: EUR | K30: =K29*$F$30*K5 -> 0 | L30: 0 | M30: 0 | N30: 0 | O30: 0 | P30: 0 | Q30: 0 | R30: 0 | S30: 0 | T30: 0 | U30: 0 | V30: 0 | W30: 0 | X30: 0 | Y30: 0 | Z30: 0 | AA30: 0 | AB30: 0 | AC30: 0 | AD30: 0 | AE30: 0 | AF30: 0 | AG30: 0 | AH30: 0 | AI30: 0 | AJ30: 0 | AK30: 0 | AL30: 0 | AM30: 0 | AN30: 0 | AO30: 0 | AP30: 0 | AQ30: 0 | AR30: 0 | AS30: 0 | AT30: 0 | AU30: 0 | AV30: 0 | AW30: 0 | AX30: 0 | AY30: 0 | AZ30: 0 | BA30: 0 | BB30: 0 | BC30: 0 | BD30: 0 | BE30: 0 | BF30: 0 | BG30: 0 | BH30: 0 | BI30: 0 | BJ30: 0 | BK30: 0 | BL30: 0 | BM30: 0 | BN30: 0 | BO30: 0 | BP30: 0 | BQ30: 0 | BR30: 0 | BS30: 0 | BT30: 0 | BU30: 0 | BV30: 0 | BW30: =BW29*$F$30*BW5 -> 0 | BX30: 0 | BY30: 0 | BZ30: 0 | CA30: 0 | CB30: 0 | CC30: 0 | CD30: 0 | CE30: 0 | CF30: 0 | CG30: 0 | CH30: 0 | CI30: 0 | CJ30: 0 | CK30: 0 | CL30: 0 | CM30: 0 | CN30: 0 | CO30: 0 | CP30: 0 | CQ30: 0 | CR30: 0 | CS30: 0 | CT30: 0 | CU30: 0 | CV30: 0 | CW30: 0 | CX30: 0 | CY30: 0 | CZ30: 0 | DA30: 0 | DB30: 0 | DC30: 0 | DD30: 0 | DE30: 0 | DF30: 0 | DG30: 0 | DH30: 0 | DI30: 0 | DJ30: 0 | DK30: 0 | DL30: 0 | DM30: 0 | DN30: 0 | DO30: 0 | DP30: 0 | DQ30: 0 | DR30: 0 | DS30: 0 | DT30: 0 | DU30: 0 | DV30: 0 | DW30: 0 | DX30: 0 | DY30: 0 | DZ30: 0 | EA30: 0 | EB30: 0 | EC30: 0 | ED30: 0 | EE30: 0 | EF30: 0 | EG30: 0 | EH30: 0 | EI30: =EI29*$F$30*EI5 -> 0 | EJ30: 0 | EK30: 0 | EL30: 0 | EM30: 0 | EN30: 0 | EO30: 0 | EP30: 0 | EQ30: 0 | ER30: 0 | ES30: 0 | ET30: 0 | EU30: 0 | EV30: 0 | EW30: 0 | EX30: 0 | EY30: 0 | EZ30: 0 | FA30: 0 | FB30: 0 | FC30: 0 | FD30: 0 | FE30: 0 | FF30: 0 | FG30: 0 | FH30: 0 | FI30: 0 | FJ30: 0 | FK30: 0 | FL30: 0 | FM30: 0 | FN30: 0 | FO30: 0 | FP30: 0 | FQ30: 0 | FR30: 0 | FS30: 0 | FT30: 0 | FU30: 0 | FV30: 0 | FW30: 0 | FX30: 0 | FY30: 0 | FZ30: 0 | GA30: 0 | GB30: 0 | GC30: 0 | GD30: 0 | GE30: 0 | GF30: 0 | GG30: 0 | GH30: 0 | GI30: 0 | GJ30: 0 | GK30: 0 | GL30: 0 | GM30: 0 | GN30: 0 | GO30: 0 | GP30: 0 | GQ30: 0 | GR30: 0 | GS30: 0 | GT30: 0 | GU30: =GU29*$F$30*GU5 -> 0 | GV30: 0 | GW30: 0 | GX30: 0 | GY30: 0 | GZ30: 0 | HA30: 0 | HB30: 0 | HC30: 0 | HD30: 0 | HE30: 0 | HF30: 0 | HG30: 0 | HH30: 0 | HI30: 0 | HJ30: 0 | HK30: 0 | HL30: 0 | HM30: 0 | HN30: 0 | HO30: 0 | HP30: 0 | HQ30: 0 | HR30: 0 | HS30: 0 | HT30: 0 | HU30: 0 | HV30: 0 | HW30: 0 | HX30: 0 | HY30: 0 | HZ30: 0 | IA30: 0 | IB30: 0 | IC30: 0 | ID30: 0 | IE30: 0 | IF30: 0 | IG30: 0 | IH30: 0 | II30: 0 | IJ30: 0 | IK30: 0 | IL30: 0 | IM30: 0 | IN30: 0 | IO30: 0 | IP30: 0 | IQ30: 0 | IR30: 0 | IS30: 0 | IT30: 0 | IU30: 0 | IV30: 0 | IW30: 0 | IX30: 0 | IY30: 0 | IZ30: 0 | JA30: 0 | JB30: 0 | JC30: 0 | JD30: 0 | JE30: 0 | JF30: 0 | JG30: =JG29*$F$30*JG5 -> 0 | JH30: 0 | JI30: 0 | JJ30: 0 | JK30: 0 | JL30: 0 | JM30: 0 | JN30: 0 | JO30: 0 | JP30: 0 | JQ30: 0 | JR30: 0 | JS30: 0 | JT30: 0 | JU30: 0 | JV30: 0 | JW30: 0 | JX30: 0 | JY30: 0 | JZ30: 0 | KA30: 0 | KB30: 0 | KC30: 0 | KD30: 0 | KE30: 0 | KF30: 0 | KG30: 0 | KH30: 0 | KI30: 0 | KJ30: 0 | KK30: 0 | KL30: 0 | KM30: 0 | KN30: 0 | KO30: 0 | KP30: 0 | KQ30: 0 | KR30: 0 | KS30: 0 | KT30: 0 | KU30: 0 | KV30: 0 | KW30: 0 | KX30: 0 | KY30: 0 | KZ30: 0 | LA30: 0 | LB30: 0 | LC30: 0 | LD30: 0 | LE30: 0 | LF30: 0 | LG30: 0 | LH30: 0 | LI30: 0 | LJ30: 0 | LK30: 0 | LL30: 0 | LM30: 0 | LN30: 0 | LO30: 0 | LP30: 0 | LQ30: 0 | LR30: 0 | LS30: =LS29*$F$30*LS5 -> 0 | LT30: 0 | LU30: 0 | LV30: 0 | LW30: 0 | LX30: 0 | LY30: 0 | LZ30: 0 | MA30: 0 | MB30: 0 | MC30: 0 | MD30: 0 | ME30: 0 | MF30: 0 | MG30: 0 | MH30: 0 | MI30: 0 | MJ30: 0 | MK30: 0 | ML30: 0 | MM30: 0 | MN30: 0 | MO30: 0 | MP30: 0 | MQ30: 0 | MR30: 0 | MS30: 0 | MT30: 0 | MU30: 0 | MV30: 0 | MW30: 0 | MX30: 0 | MY30: 0 | MZ30: 0 | NA30: 0 | NB30: 0 | NC30: 0 | ND30: 0 | NE30: 0 | NF30: 0 | NG30: 0 | NH30: 0 | NI30: 0 | NJ30: 0 | NK30: 0 | NL30: 0 | NM30: 0 | NN30: 0 | NO30: 0 | NP30: 0 | NQ30: 0 | NR30: 0 | NS30: 0 | NT30: 0 | NU30: 0 | NV30: 0 | NW30: 0 | NX30: 0 | NY30: 0 | NZ30: 0 | OA30: 0 | OB30: 0 | OC30: 0 | OD30: 0 | OE30: =OE29*$F$30*OE5 -> 0 | OF30: 0 | OG30: 0 | OH30: 0 | OI30: 0 | OJ30: 0 | OK30: 0 | OL30: 0 | OM30: 0 | ON30: 0 | OO30: 0 | OP30: 0 | OQ30: 0 | OR30: 0 | OS30: 0 | OT30: 0 | OU30: 0 | OV30: 0 | OW30: 0 | OX30: 0 | OY30: 0 | OZ30: 0 | PA30: 0 | PB30: 0 | PC30: 0 | PD30: 0 | PE30: 0 | PF30: 0 | PG30: 0 | PH30: 0 | PI30: 0 | PJ30: 0 | PK30: 0 | PL30: 0 | PM30: 0 | PN30: 0 | PO30: 0 | PP30: 0 | PQ30: 0 | PR30: 0 | PS30: 0 | PT30: 0 | PU30: 0 | PV30: 0 | PW30: 0 | PX30: 0 | PY30: 0 | PZ30: 0 | QA30: 0 | QB30: 0 | QC30: 0 | QD30: 0 | QE30: 0 | QF30: 0 | QG30: 0 | QH30: 0 | QI30: 0 | QJ30: 0 | QK30: 0 | QL30: 0 | QM30: 0 | QN30: 0 | QO30: 0 | QP30: 0 | QQ30: =QQ29*$F$30*QQ5 -> 0 | QR30: 0 | QS30: 0 | QT30: 0 | QU30: 0 | QV30: 0 | QW30: 0 | QX30: 0 | QY30: 0 | QZ30: 0 | RA30: 0 | RB30: 0 | RC30: 0 | RD30: 0 | RE30: 0 | RF30: 0 | RG30: 0 | RH30: 0 | RI30: 0 | RJ30: 0 | RK30: 0 | RL30: 0 | RM30: 0 | RN30: 0 | RO30: 0 | RP30: 0 | RQ30: 0 | RR30: 0 | RS30: 0 | RT30: 0 | RU30: 0 | RV30: 0 | RW30: 0 | RX30: 0 | RY30: 0 | RZ30: 0 | SA30: 0 | SB30: 0 | SC30: 0 | SD30: 0 | SE30: 0 | SF30: 0 | SG30: 0 | SH30: 0 | SI30: 0 | SJ30: 0 | SK30: 0 | SL30: 0 | SM30: 0 | SN30: 0 | SO30: 0 | SP30: 0 | SQ30: =SQ29*$F$30*SQ5 -> 0 | SR30: 0 | SS30: 0 | ST30: 0 | SU30: 0 | SV30: 0 | SW30: 0 | SX30: 0 | SY30: 0 | SZ30: 0 | TA30: 0 | TB30: 0 | TC30: 0 | TD30: 0 | TE30: 0 | TF30: 0 | TG30: 0 | TH30: 0 | TI30: 0 | TJ30: 0 | TK30: 0 | TL30: 0 | TM30: 0 | TN30: 0 | TO30: 0 | TP30: 0 | TQ30: 0 | TR30: 0 | TS30: 0 | TT30: 0 | TU30: 0 | TV30: 0 | TW30: 0 | TX30: 0 | TY30: 0 | TZ30: 0 | UA30: 0 | UB30: 0 | UC30: 0 | UD30: 0 | UE30: 0 | UF30: 0 | UG30: 0 | UH30: 0 | UI30: 0 | UJ30: 0 | UK30: 0 | UL30: 0 | UM30: 0 | UN30: 0 | UO30: 0 | UP30: 0 | UQ30: 0 | UR30: 0 | US30: 0 | UT30: 0 | UU30: 0 | UV30: 0 | UW30: 0 | UX30: 0 | UY30: 0 | UZ30: 0 | VA30: 0 | VB30: 0 | VC30: =VC29*$F$30*VC5 -> 0 | VD30: 0 | VE30: 0 | VF30: 0 | VG30: 0 | VH30: 0 | VI30: 0 | VJ30: 0 | VK30: 0 | VL30: 0 | VM30: 0 | VN30: 0 | VO30: 0 | VP30: 0 | VQ30: 0 | VR30: 0 | VS30: 0 | VT30: 0 | VU30: 0 | VV30: 0 | VW30: 0 | VX30: 0 | VY30: 0 | VZ30: 0 | WA30: 0 | WB30: 0 | WC30: 0 | WD30: 0 | WE30: 0 | WF30: 0 | WG30: 0 | WH30: 0 | WI30: 0 | WJ30: 0 | WK30: 0 | WL30: 0 | WM30: 0 | WN30: 0 | WO30: 0 | WP30: 0 | WQ30: 0 | WR30: 0 | WS30: 0 | WT30: 0 | WU30: 0 | WV30: 0 | WW30: 0 | WX30: 0 | WY30: 0 | WZ30: 0 | XA30: 0 | XB30: 0 | XC30: 0 | XD30: 0 | XE30: 0 | XF30: 0 | XG30: 0 | XH30: 0 | XI30: 0 | XJ30: 0 | XK30: 0 | XL30: 0 | XM30: 0 | XN30: 0 | XO30: =XO29*$F$30*XO5 -> 0 | XP30: 0 | XQ30: 0 | XR30: 0 | XS30: 0 | XT30: 0 | XU30: 0 | XV30: 0 | XW30: 0 | XX30: 0 | XY30: 0 | XZ30: 0 | YA30: 0 | YB30: 0 | YC30: 0 | YD30: 0 | YE30: 0 | YF30: 0 | YG30: 0 | YH30: 0 | YI30: 0 | YJ30: 0 | YK30: 0 | YL30: 0 | YM30: 0 | YN30: 0 | YO30: 0 | YP30: 0 | YQ30: 0 | YR30: 0 | YS30: 0 | YT30: 0 | YU30: 0 | YV30: 0 | YW30: 0 | YX30: 0 | YY30: 0 | YZ30: 0 | ZA30: 0 | ZB30: 0 | ZC30: 0 | ZD30: 0 | ZE30: 0 | ZF30: 0 | ZG30: 0 | ZH30: 0 | ZI30: 0 | ZJ30: 0 | ZK30: 0 | ZL30: 0 | ZM30: 0 | ZN30: 0 | ZO30: 0 | ZP30: 0 | ZQ30: 0 | ZR30: 0 | ZS30: 0 | ZT30: 0 | ZU30: 0 | ZV30: 0 | ZW30: 0 | ZX30: 0 | ZY30: 0 | ZZ30: 0 | AAA30: =AAA29*$F$30*AAA5 -> 0 | AAB30: 0 | AAC30: 0 | AAD30: 0 | AAE30: 0 | AAF30: 0 | AAG30: 0 | AAH30: 0 | AAI30: 0 | AAJ30: 0 | AAK30: 0 | AAL30: 0 | AAM30: 0 | AAN30: 0 | AAO30: 0 | AAP30: 0 | AAQ30: 0 | AAR30: 0 | AAS30: 0 | AAT30: 0 | AAU30: 0 | AAV30: 0 | AAW30: 0 | AAX30: 0 | AAY30: 0 | AAZ30: 0 | ABA30: 0 | ABB30: 0 | ABC30: 0 | ABD30: 0 | ABE30: 0 | ABF30: 0 | ABG30: 0 | ABH30: 0 | ABI30: 0 | ABJ30: 0 | ABK30: 0 | ABL30: 0 | ABM30: 0 | ABN30: 0 | ABO30: 0 | ABP30: 0 | ABQ30: 0 | ABR30: 0 | ABS30: 0 | ABT30: 0 | ABU30: 0 | ABV30: 0 | ABW30: 0 | ABX30: 0 | ABY30: 0 | ABZ30: 0 | ACA30: 0 | ACB30: 0 | ACC30: 0 | ACD30: 0 | ACE30: 0 | ACF30: 0 | ACG30: 0 | ACH30: 0 | ACI30: 0 | ACJ30: 0 | ACK30: 0 | ACL30: 0 | ACM30: =ACM29*$F$30*ACM5 -> 0 | ACN30: 0 | ACO30: 0 | ACP30: 0 | ACQ30: 0 | ACR30: 0 | ACS30: 0 | ACT30: 0 | ACU30: 0 | ACV30: 0 | ACW30: 0 | ACX30: 0 | ACY30: 0 | ACZ30: 0 | ADA30: 0 | ADB30: 0 | ADC30: 0 | ADD30: 0 | ADE30: 0 | ADF30: 0 | ADG30: 0 | ADH30: 0 | ADI30: 0 | ADJ30: 0 | ADK30: 0 | ADL30: 0 | ADM30: 0 | ADN30: 0 | ADO30: 0 | ADP30: 0 | ADQ30: 0 | ADR30: 0 | ADS30: 0 | ADT30: 0 | ADU30: 0 | ADV30: 0 | ADW30: 0 | ADX30: 0 | ADY30: 0 | ADZ30: 0 | AEA30: 0 | AEB30: 0 | AEC30: 0 | AED30: 0 | AEE30: 0 | AEF30: 0 | AEG30: 0 | AEH30: 0 | AEI30: 0 | AEJ30: 0 | AEK30: 0 | AEL30: 0 | AEM30: 0 | AEN30: 0 | AEO30: 0 | AEP30: 0 | AEQ30: 0 | AER30: 0 | AES30: 0 | AET30: 0 | AEU30: 0 | AEV30: 0 | AEW30: 0 | AEX30: 0 | AEY30: =AEY29*$F$30*AEY5 -> 0 | AEZ30: 0 | AFA30: 0 | AFB30: 0 | AFC30: 0 | AFD30: 0 | AFE30: 0 | AFF30: 0 | AFG30: 0 | AFH30: 0 | AFI30: 0 | AFJ30: 0 | AFK30: 0 | AFL30: 0 | AFM30: 0 | AFN30: 0 | AFO30: 0 | AFP30: 0 | AFQ30: 0 | AFR30: 0 | AFS30: 0 | AFT30: 0 | AFU30: 0 | AFV30: 0 | AFW30: 0 | AFX30: 0 | AFY30: 0 | AFZ30: 0 | AGA30: 0 | AGB30: 0 | AGC30: 0 | AGD30: 0 | AGE30: 0 | AGF30: 0 | AGG30: 0 | AGH30: 0 | AGI30: 0 | AGJ30: 0 | AGK30: 0 | AGL30: 0 | AGM30: 0 | AGN30: 0 | AGO30: 0 | AGP30: 0 | AGQ30: 0 | AGR30: 0 | AGS30: 0 | AGT30: 0 | AGU30: 0 | AGV30: 0 | AGW30: 0 | AGX30: 0 | AGY30: 0 | AGZ30: 0 | AHA30: 0 | AHB30: 0 | AHC30: 0 | AHD30: 0 | AHE30: 0 | AHF30: 0 | AHG30: 0 | AHH30: 0 | AHI30: 0 | AHJ30: 0 | AHK30: =AHK29*$F$30*AHK5 -> 0 | AHL30: 0 | AHM30: 0 | AHN30: 0 | AHO30: 0 | AHP30: 0 | AHQ30: 0 | AHR30: 0 | AHS30: 0 | AHT30: 0 | AHU30: 0 | AHV30: 0 | AHW30: 0 | AHX30: 0 | AHY30: 0 | AHZ30: 0 | AIA30: 0 | AIB30: 0 | AIC30: 0 | AID30: 0 | AIE30: 0 | AIF30: 0 | AIG30: 0 | AIH30: 0 | AII30: 0 | AIJ30: 0 | AIK30: 0 | AIL30: 0 | AIM30: 0 | AIN30: 0 | AIO30: 0 | AIP30: 0 | AIQ30: 0 | AIR30: 0 | AIS30: 0 | AIT30: 0 | AIU30: 0 | AIV30: 0 | AIW30: 0 | AIX30: 0 | AIY30: 0 | AIZ30: 0 | AJA30: 0 | AJB30: 0 | AJC30: 0 | AJD30: 0 | AJE30: 0 | AJF30: 0 | AJG30: 0 | AJH30: 0 | AJI30: 0 | AJJ30: 0 | AJK30: 0 | AJL30: 0 | AJM30: 0 | AJN30: 0 | AJO30: 0 | AJP30: 0 | AJQ30: 0 | AJR30: 0 | AJS30: 0 | AJT30: 0 | AJU30: 0 | AJV30: 0 | AJW30: =AJW29*$F$30*AJW5 -> 0 | AJX30: 0 | AJY30: 0 | AJZ30: 0 | AKA30: 0 | AKB30: 0 | AKC30: 0 | AKD30: 0 | AKE30: 0 | AKF30: 0 | AKG30: 0 | AKH30: 0 | AKI30: 0 | AKJ30: 0 | AKK30: 0 | AKL30: 0 | AKM30: 0 | AKN30: 0 | AKO30: 0 | AKP30: 0 | AKQ30: 0 | AKR30: 0 | AKS30: 0 | AKT30: 0 | AKU30: 0 | AKV30: 0 | AKW30: 0 | AKX30: 0 | AKY30: 0 | AKZ30: 0 | ALA30: 0 | ALB30: 0 | ALC30: 0 | ALD30: 0 | ALE30: 0 | ALF30: 0 | ALG30: 0 | ALH30: 0 | ALI30: 0 | ALJ30: 0 | ALK30: 0 | ALL30: 0 | ALM30: 0 | ALN30: 0 | ALO30: 0 | ALP30: 0 | ALQ30: 0 | ALR30: 0 | ALS30: 0 | ALT30: 0 | ALU30: 0 | ALV30: 0
D31: Payments | I31: EUR | K31: =K15 -> 1000000 | L31: =L15 -> 0 | M31: 0 | N31: 0 | O31: 0 | P31: 0 | Q31: 0 | R31: 0 | S31: 0 | T31: 0 | U31: 0 | V31: 0 | W31: 0 | X31: 0 | Y31: 0 | Z31: 0 | AA31: 0 | AB31: 0 | AC31: 0 | AD31: 0 | AE31: 0 | AF31: 0 | AG31: 0 | AH31: 0 | AI31: 0 | AJ31: 0 | AK31: 0 | AL31: 0 | AM31: 0 | AN31: 0 | AO31: 0 | AP31: 0 | AQ31: 0 | AR31: 0 | AS31: 0 | AT31: 0 | AU31: 0 | AV31: 0 | AW31: 0 | AX31: 0 | AY31: 0 | AZ31: 0 | BA31: 0 | BB31: 0 | BC31: 0 | BD31: 0 | BE31: 0 | BF31: 0 | BG31: 0 | BH31: 0 | BI31: 0 | BJ31: 0 | BK31: 0 | BL31: 0 | BM31: 0 | BN31: 0 | BO31: 0 | BP31: 0 | BQ31: 0 | BR31: 0 | BS31: 0 | BT31: 0 | BU31: 0 | BV31: 0 | BW31: 0 | BX31: =BX15 -> 0 | BY31: 0 | BZ31: 0 | CA31: 0 | CB31: 0 | CC31: 0 | CD31: 0 | CE31: 0 | CF31: 0 | CG31: 0 | CH31: 0 | CI31: 0 | CJ31: 0 | CK31: 0 | CL31: 0 | CM31: 0 | CN31: 0 | CO31: 0 | CP31: 0 | CQ31: 0 | CR31: 0 | CS31: 0 | CT31: 0 | CU31: 0 | CV31: 0 | CW31: 0 | CX31: 0 | CY31: 0 | CZ31: 0 | DA31: 0 | DB31: 0 | DC31: 0 | DD31: 0 | DE31: 0 | DF31: 0 | DG31: 0 | DH31: 0 | DI31: 0 | DJ31: 0 | DK31: 0 | DL31: 0 | DM31: 0 | DN31: 0 | DO31: 0 | DP31: 0 | DQ31: 0 | DR31: 0 | DS31: 0 | DT31: 0 | DU31: 0 | DV31: 0 | DW31: 0 | DX31: 0 | DY31: 0 | DZ31: 0 | EA31: 0 | EB31: 0 | EC31: 0 | ED31: 0 | EE31: 0 | EF31: 0 | EG31: 0 | EH31: 0 | EI31: 0 | EJ31: =EJ15 -> 0 | EK31: 0 | EL31: 0 | EM31: 0 | EN31: 0 | EO31: 0 | EP31: 0 | EQ31: 0 | ER31: 0 | ES31: 0 | ET31: 0 | EU31: 0 | EV31: 0 | EW31: 0 | EX31: 0 | EY31: 0 | EZ31: 0 | FA31: 0 | FB31: 0 | FC31: 0 | FD31: 0 | FE31: 0 | FF31: 0 | FG31: 0 | FH31: 0 | FI31: 0 | FJ31: 0 | FK31: 0 | FL31: 0 | FM31: 0 | FN31: 0 | FO31: 0 | FP31: 0 | FQ31: 0 | FR31: 0 | FS31: 0 | FT31: 0 | FU31: 0 | FV31: 0 | FW31: 0 | FX31: 0 | FY31: 0 | FZ31: 0 | GA31: 0 | GB31: 0 | GC31: 0 | GD31: 0 | GE31: 0 | GF31: 0 | GG31: 0 | GH31: 0 | GI31: 0 | GJ31: 0 | GK31: 0 | GL31: 0 | GM31: 0 | GN31: 0 | GO31: 0 | GP31: 0 | GQ31: 0 | GR31: 0 | GS31: 0 | GT31: 0 | GU31: 0 | GV31: =GV15 -> 0 | GW31: 0 | GX31: 0 | GY31: 0 | GZ31: 0 | HA31: 0 | HB31: 0 | HC31: 0 | HD31: 0 | HE31: 0 | HF31: 0 | HG31: 0 | HH31: 0 | HI31: 0 | HJ31: 0 | HK31: 0 | HL31: 0 | HM31: 0 | HN31: 0 | HO31: 0 | HP31: 0 | HQ31: 0 | HR31: 0 | HS31: 0 | HT31: 0 | HU31: 0 | HV31: 0 | HW31: 0 | HX31: 0 | HY31: 0 | HZ31: 0 | IA31: 0 | IB31: 0 | IC31: 0 | ID31: 0 | IE31: 0 | IF31: 0 | IG31: 0 | IH31: 0 | II31: 0 | IJ31: 0 | IK31: 0 | IL31: 0 | IM31: 0 | IN31: 0 | IO31: 0 | IP31: 0 | IQ31: 0 | IR31: 0 | IS31: 0 | IT31: 0 | IU31: 0 | IV31: 0 | IW31: 0 | IX31: 0 | IY31: 0 | IZ31: 0 | JA31: 0 | JB31: 0 | JC31: 0 | JD31: 0 | JE31: 0 | JF31: 0 | JG31: 0 | JH31: =JH15 -> 0 | JI31: 0 | JJ31: 0 | JK31: 0 | JL31: 0 | JM31: 0 | JN31: 0 | JO31: 0 | JP31: 0 | JQ31: 0 | JR31: 0 | JS31: 0 | JT31: 0 | JU31: 0 | JV31: 0 | JW31: 0 | JX31: 0 | JY31: 0 | JZ31: 0 | KA31: 0 | KB31: 0 | KC31: 0 | KD31: 0 | KE31: 0 | KF31: 0 | KG31: 0 | KH31: 0 | KI31: 0 | KJ31: 0 | KK31: 0 | KL31: 0 | KM31: 0 | KN31: 0 | KO31: 0 | KP31: 0 | KQ31: 0 | KR31: 0 | KS31: 0 | KT31: 0 | KU31: 0 | KV31: 0 | KW31: 0 | KX31: 0 | KY31: 0 | KZ31: 0 | LA31: 0 | LB31: 0 | LC31: 0 | LD31: 0 | LE31: 0 | LF31: 0 | LG31: 0 | LH31: 0 | LI31: 0 | LJ31: 0 | LK31: 0 | LL31: 0 | LM31: 0 | LN31: 0 | LO31: 0 | LP31: 0 | LQ31: 0 | LR31: 0 | LS31: 0 | LT31: =LT15 -> 0 | LU31: 0 | LV31: 0 | LW31: 0 | LX31: 0 | LY31: 0 | LZ31: 0 | MA31: 0 | MB31: 0 | MC31: 0 | MD31: 0 | ME31: 0 | MF31: 0 | MG31: 0 | MH31: 0 | MI31: 0 | MJ31: 0 | MK31: 0 | ML31: 0 | MM31: 0 | MN31: 0 | MO31: 0 | MP31: 0 | MQ31: 0 | MR31: 0 | MS31: 0 | MT31: 0 | MU31: 0 | MV31: 0 | MW31: 0 | MX31: 0 | MY31: 0 | MZ31: 0 | NA31: 0 | NB31: 0 | NC31: 0 | ND31: 0 | NE31: 0 | NF31: 0 | NG31: 0 | NH31: 0 | NI31: 0 | NJ31: 0 | NK31: 0 | NL31: 0 | NM31: 0 | NN31: 0 | NO31: 0 | NP31: 0 | NQ31: 0 | NR31: 0 | NS31: 0 | NT31: 0 | NU31: 0 | NV31: 0 | NW31: 0 | NX31: 0 | NY31: 0 | NZ31: 0 | OA31: 0 | OB31: 0 | OC31: 0 | OD31: 0 | OE31: 0 | OF31: =OF15 -> 0 | OG31: 0 | OH31: 0 | OI31: 0 | OJ31: 0 | OK31: 0 | OL31: 0 | OM31: 0 | ON31: 0 | OO31: 0 | OP31: 0 | OQ31: 0 | OR31: 0 | OS31: 0 | OT31: 0 | OU31: 0 | OV31: 0 | OW31: 0 | OX31: 0 | OY31: 0 | OZ31: 0 | PA31: 0 | PB31: 0 | PC31: 0 | PD31: 0 | PE31: 0 | PF31: 0 | PG31: 0 | PH31: 0 | PI31: 0 | PJ31: 0 | PK31: 0 | PL31: 0 | PM31: 0 | PN31: 0 | PO31: 0 | PP31: 0 | PQ31: 0 | PR31: 0 | PS31: 0 | PT31: 0 | PU31: 0 | PV31: 0 | PW31: 0 | PX31: 0 | PY31: 0 | PZ31: 0 | QA31: 0 | QB31: 0 | QC31: 0 | QD31: 0 | QE31: 0 | QF31: 0 | QG31: 0 | QH31: 0 | QI31: 0 | QJ31: 0 | QK31: 0 | QL31: 0 | QM31: 0 | QN31: 0 | QO31: 0 | QP31: 0 | QQ31: 0 | QR31: =QR15 -> 0 | QS31: 0 | QT31: 0 | QU31: 0 | QV31: 0 | QW31: 0 | QX31: 0 | QY31: 0 | QZ31: 0 | RA31: 0 | RB31: 0 | RC31: 0 | RD31: 0 | RE31: 0 | RF31: 0 | RG31: 0 | RH31: 0 | RI31: 0 | RJ31: 0 | RK31: 0 | RL31: 0 | RM31: 0 | RN31: 0 | RO31: 0 | RP31: 0 | RQ31: 0 | RR31: 0 | RS31: 0 | RT31: 0 | RU31: 0 | RV31: 0 | RW31: 0 | RX31: 0 | RY31: 0 | RZ31: 0 | SA31: 0 | SB31: 0 | SC31: 0 | SD31: 0 | SE31: 0 | SF31: 0 | SG31: 0 | SH31: 0 | SI31: 0 | SJ31: 0 | SK31: 0 | SL31: 0 | SM31: 0 | SN31: 0 | SO31: 0 | SP31: 0 | SQ31: 0 | SR31: 0 | SS31: 0 | ST31: 0 | SU31: 0 | SV31: 0 | SW31: 0 | SX31: 0 | SY31: 0 | SZ31: 0 | TA31: 0 | TB31: 0 | TC31: 0 | TD31: =TD15 -> 0 | TE31: 0 | TF31: 0 | TG31: 0 | TH31: 0 | TI31: 0 | TJ31: 0 | TK31: 0 | TL31: 0 | TM31: 0 | TN31: 0 | TO31: 0 | TP31: 0 | TQ31: 0 | TR31: 0 | TS31: 0 | TT31: 0 | TU31: 0 | TV31: 0 | TW31: 0 | TX31: 0 | TY31: 0 | TZ31: 0 | UA31: 0 | UB31: 0 | UC31: 0 | UD31: 0 | UE31: 0 | UF31: 0 | UG31: 0 | UH31: 0 | UI31: 0 | UJ31: 0 | UK31: 0 | UL31: 0 | UM31: 0 | UN31: 0 | UO31: 0 | UP31: 0 | UQ31: 0 | UR31: 0 | US31: 0 | UT31: 0 | UU31: 0 | UV31: 0 | UW31: 0 | UX31: 0 | UY31: 0 | UZ31: 0 | VA31: 0 | VB31: 0 | VC31: 0 | VD31: 0 | VE31: 0 | VF31: 0 | VG31: 0 | VH31: 0 | VI31: 0 | VJ31: 0 | VK31: 0 | VL31: 0 | VM31: 0 | VN31: 0 | VO31: 0 | VP31: =VP15 -> 0 | VQ31: 0 | VR31: 0 | VS31: 0 | VT31: 0 | VU31: 0 | VV31: 0 | VW31: 0 | VX31: 0 | VY31: 0 | VZ31: 0 | WA31: 0 | WB31: 0 | WC31: 0 | WD31: 0 | WE31: 0 | WF31: 0 | WG31: 0 | WH31: 0 | WI31: 0 | WJ31: 0 | WK31: 0 | WL31: 0 | WM31: 0 | WN31: 0 | WO31: 0 | WP31: 0 | WQ31: 0 | WR31: 0 | WS31: 0 | WT31: 0 | WU31: 0 | WV31: 0 | WW31: 0 | WX31: 0 | WY31: 0 | WZ31: 0 | XA31: 0 | XB31: 0 | XC31: 0 | XD31: 0 | XE31: 0 | XF31: 0 | XG31: 0 | XH31: 0 | XI31: 0 | XJ31: 0 | XK31: 0 | XL31: 0 | XM31: 0 | XN31: 0 | XO31: 0 | XP31: 0 | XQ31: 0 | XR31: 0 | XS31: 0 | XT31: 0 | XU31: 0 | XV31: 0 | XW31: 0 | XX31: 0 | XY31: 0 | XZ31: 0 | YA31: 0 | YB31: =YB15 -> 0 | YC31: 0 | YD31: 0 | YE31: 0 | YF31: 0 | YG31: 0 | YH31: 0 | YI31: 0 | YJ31: 0 | YK31: 0 | YL31: 0 | YM31: 0 | YN31: 0 | YO31: 0 | YP31: 0 | YQ31: 0 | YR31: 0 | YS31: 0 | YT31: 0 | YU31: 0 | YV31: 0 | YW31: 0 | YX31: 0 | YY31: 0 | YZ31: 0 | ZA31: 0 | ZB31: 0 | ZC31: 0 | ZD31: 0 | ZE31: 0 | ZF31: 0 | ZG31: 0 | ZH31: 0 | ZI31: 0 | ZJ31: 0 | ZK31: 0 | ZL31: 0 | ZM31: 0 | ZN31: 0 | ZO31: 0 | ZP31: 0 | ZQ31: 0 | ZR31: 0 | ZS31: 0 | ZT31: 0 | ZU31: 0 | ZV31: 0 | ZW31: 0 | ZX31: 0 | ZY31: 0 | ZZ31: 0 | AAA31: 0 | AAB31: 0 | AAC31: 0 | AAD31: 0 | AAE31: 0 | AAF31: 0 | AAG31: 0 | AAH31: 0 | AAI31: 0 | AAJ31: 0 | AAK31: 0 | AAL31: 0 | AAM31: 0 | AAN31: =AAN15 -> 0 | AAO31: 0 | AAP31: 0 | AAQ31: 0 | AAR31: 0 | AAS31: 0 | AAT31: 0 | AAU31: 0 | AAV31: 0 | AAW31: 0 | AAX31: 0 | AAY31: 0 | AAZ31: 0 | ABA31: 0 | ABB31: 0 | ABC31: 0 | ABD31: 0 | ABE31: 0 | ABF31: 0 | ABG31: 0 | ABH31: 0 | ABI31: 0 | ABJ31: 0 | ABK31: 0 | ABL31: 0 | ABM31: 0 | ABN31: 0 | ABO31: 0 | ABP31: 0 | ABQ31: 0 | ABR31: 0 | ABS31: 0 | ABT31: 0 | ABU31: 0 | ABV31: 0 | ABW31: 0 | ABX31: 0 | ABY31: 0 | ABZ31: 0 | ACA31: 0 | ACB31: 0 | ACC31: 0 | ACD31: 0 | ACE31: 0 | ACF31: 0 | ACG31: 0 | ACH31: 0 | ACI31: 0 | ACJ31: 0 | ACK31: 0 | ACL31: 0 | ACM31: 0 | ACN31: 0 | ACO31: 0 | ACP31: 0 | ACQ31: 0 | ACR31: 0 | ACS31: 0 | ACT31: 0 | ACU31: 0 | ACV31: 0 | ACW31: 0 | ACX31: 0 | ACY31: 0 | ACZ31: =ACZ15 -> 0 | ADA31: 0 | ADB31: 0 | ADC31: 0 | ADD31: 0 | ADE31: 0 | ADF31: 0 | ADG31: 0 | ADH31: 0 | ADI31: 0 | ADJ31: 0 | ADK31: 0 | ADL31: 0 | ADM31: 0 | ADN31: 0 | ADO31: 0 | ADP31: 0 | ADQ31: 0 | ADR31: 0 | ADS31: 0 | ADT31: 0 | ADU31: 0 | ADV31: 0 | ADW31: 0 | ADX31: 0 | ADY31: 0 | ADZ31: 0 | AEA31: 0 | AEB31: 0 | AEC31: 0 | AED31: 0 | AEE31: 0 | AEF31: 0 | AEG31: 0 | AEH31: 0 | AEI31: 0 | AEJ31: 0 | AEK31: 0 | AEL31: 0 | AEM31: 0 | AEN31: 0 | AEO31: 0 | AEP31: 0 | AEQ31: 0 | AER31: 0 | AES31: 0 | AET31: 0 | AEU31: 0 | AEV31: 0 | AEW31: 0 | AEX31: 0 | AEY31: 0 | AEZ31: 0 | AFA31: 0 | AFB31: 0 | AFC31: 0 | AFD31: 0 | AFE31: 0 | AFF31: 0 | AFG31: 0 | AFH31: 0 | AFI31: 0 | AFJ31: 0 | AFK31: 0 | AFL31: =AFL15 -> 0 | AFM31: 0 | AFN31: 0 | AFO31: 0 | AFP31: 0 | AFQ31: 0 | AFR31: 0 | AFS31: 0 | AFT31: 0 | AFU31: 0 | AFV31: 0 | AFW31: 0 | AFX31: 0 | AFY31: 0 | AFZ31: 0 | AGA31: 0 | AGB31: 0 | AGC31: 0 | AGD31: 0 | AGE31: 0 | AGF31: 0 | AGG31: 0 | AGH31: 0 | AGI31: 0 | AGJ31: 0 | AGK31: 0 | AGL31: 0 | AGM31: 0 | AGN31: 0 | AGO31: 0 | AGP31: 0 | AGQ31: 0 | AGR31: 0 | AGS31: 0 | AGT31: 0 | AGU31: 0 | AGV31: 0 | AGW31: 0 | AGX31: 0 | AGY31: 0 | AGZ31: 0 | AHA31: 0 | AHB31: 0 | AHC31: 0 | AHD31: 0 | AHE31: 0 | AHF31: 0 | AHG31: 0 | AHH31: 0 | AHI31: 0 | AHJ31: 0 | AHK31: 0 | AHL31: 0 | AHM31: 0 | AHN31: 0 | AHO31: 0 | AHP31: 0 | AHQ31: 0 | AHR31: 0 | AHS31: 0 | AHT31: 0 | AHU31: 0 | AHV31: 0 | AHW31: 0 | AHX31: =AHX15 -> 0 | AHY31: 0 | AHZ31: 0 | AIA31: 0 | AIB31: 0 | AIC31: 0 | AID31: 0 | AIE31: 0 | AIF31: 0 | AIG31: 0 | AIH31: 0 | AII31: 0 | AIJ31: 0 | AIK31: 0 | AIL31: 0 | AIM31: 0 | AIN31: 0 | AIO31: 0 | AIP31: 0 | AIQ31: 0 | AIR31: 0 | AIS31: 0 | AIT31: 0 | AIU31: 0 | AIV31: 0 | AIW31: 0 | AIX31: 0 | AIY31: 0 | AIZ31: 0 | AJA31: 0 | AJB31: 0 | AJC31: 0 | AJD31: 0 | AJE31: 0 | AJF31: 0 | AJG31: 0 | AJH31: 0 | AJI31: 0 | AJJ31: 0 | AJK31: 0 | AJL31: 0 | AJM31: 0 | AJN31: 0 | AJO31: 0 | AJP31: 0 | AJQ31: 0 | AJR31: 0 | AJS31: 0 | AJT31: 0 | AJU31: 0 | AJV31: 0 | AJW31: 0 | AJX31: 0 | AJY31: 0 | AJZ31: 0 | AKA31: 0 | AKB31: 0 | AKC31: 0 | AKD31: 0 | AKE31: 0 | AKF31: 0 | AKG31: 0 | AKH31: 0 | AKI31: 0 | AKJ31: =AKJ15 -> 0 | AKK31: 0 | AKL31: 0 | AKM31: 0 | AKN31: 0 | AKO31: 0 | AKP31: 0 | AKQ31: 0 | AKR31: 0 | AKS31: 0 | AKT31: 0 | AKU31: 0 | AKV31: 0 | AKW31: 0 | AKX31: 0 | AKY31: 0 | AKZ31: 0 | ALA31: 0 | ALB31: 0 | ALC31: 0 | ALD31: 0 | ALE31: 0 | ALF31: 0 | ALG31: 0 | ALH31: 0 | ALI31: 0 | ALJ31: 0 | ALK31: 0 | ALL31: 0 | ALM31: 0 | ALN31: 0 | ALO31: 0 | ALP31: 0 | ALQ31: 0 | ALR31: 0 | ALS31: 0 | ALT31: 0 | ALU31: 0 | ALV31: 0
D32: Closing Balance | I32: EUR | K32: =SUM(K29:K31) -> 1000000 | L32: =SUM(L29:L31) -> 1000000 | M32: 1000000 | N32: 1000000 | O32: 1000000 | P32: 1000000 | Q32: 1000000 | R32: 1000000 | S32: 1000000 | T32: 1000000 | U32: 1000000 | V32: 1000000 | W32: 1000000 | X32: 1000000 | Y32: 1000000 | Z32: 1000000 | AA32: 1000000 | AB32: 1000000 | AC32: 1000000 | AD32: 1000000 | AE32: 1000000 | AF32: 1000000 | AG32: 1000000 | AH32: 1000000 | AI32: 1000000 | AJ32: 1000000 | AK32: 1000000 | AL32: 1000000 | AM32: 1000000 | AN32: 1000000 | AO32: 1000000 | AP32: 1000000 | AQ32: 1000000 | AR32: 1000000 | AS32: 1000000 | AT32: 1000000 | AU32: 1000000 | AV32: 1000000 | AW32: 1000000 | AX32: 1000000 | AY32: 1000000 | AZ32: 1000000 | BA32: 1000000 | BB32: 1000000 | BC32: 1000000 | BD32: 1000000 | BE32: 1000000 | BF32: 1000000 | BG32: 1000000 | BH32: 1000000 | BI32: 1000000 | BJ32: 1000000 | BK32: 1000000 | BL32: 1000000 | BM32: 1000000 | BN32: 1000000 | BO32: 1000000 | BP32: 1000000 | BQ32: 1000000 | BR32: 1000000 | BS32: 1000000 | BT32: 1000000 | BU32: 1000000 | BV32: 1000000 | BW32: 1000000 | BX32: =SUM(BX29:BX31) -> 1000000 | BY32: 1000000 | BZ32: 1000000 | CA32: 1000000 | CB32: 1000000 | CC32: 1000000 | CD32: 1000000 | CE32: 1000000 | CF32: 1000000 | CG32: 1000000 | CH32: 1000000 | CI32: 1000000 | CJ32: 1000000 | CK32: 1000000 | CL32: 1000000 | CM32: 1000000 | CN32: 1000000 | CO32: 1000000 | CP32: 1000000 | CQ32: 1000000 | CR32: 1000000 | CS32: 1000000 | CT32: 1000000 | CU32: 1000000 | CV32: 1000000 | CW32: 1000000 | CX32: 1000000 | CY32: 1000000 | CZ32: 1000000 | DA32: 1000000 | DB32: 1000000 | DC32: 1000000 | DD32: 1000000 | DE32: 1000000 | DF32: 1000000 | DG32: 1000000 | DH32: 1000000 | DI32: 1000000 | DJ32: 1000000 | DK32: 1000000 | DL32: 1000000 | DM32: 1000000 | DN32: 1000000 | DO32: 1000000 | DP32: 1000000 | DQ32: 1000000 | DR32: 1000000 | DS32: 1000000 | DT32: 1000000 | DU32: 1000000 | DV32: 1000000 | DW32: 1000000 | DX32: 1000000 | DY32: 1000000 | DZ32: 1000000 | EA32: 1000000 | EB32: 1000000 | EC32: 1000000 | ED32: 1000000 | EE32: 1000000 | EF32: 1000000 | EG32: 1000000 | EH32: 1000000 | EI32: 1000000 | EJ32: =SUM(EJ29:EJ31) -> 1000000 | EK32: 1000000 | EL32: 1000000 | EM32: 1000000 | EN32: 1000000 | EO32: 1000000 | EP32: 1000000 | EQ32: 1000000 | ER32: 1000000 | ES32: 1000000 | ET32: 1000000 | EU32: 1000000 | EV32: 1000000 | EW32: 1000000 | EX32: 1000000 | EY32: 1000000 | EZ32: 1000000 | FA32: 1000000 | FB32: 1000000 | FC32: 1000000 | FD32: 1000000 | FE32: 1000000 | FF32: 1000000 | FG32: 1000000 | FH32: 1000000 | FI32: 1000000 | FJ32: 1000000 | FK32: 1000000 | FL32: 1000000 | FM32: 1000000 | FN32: 1000000 | FO32: 1000000 | FP32: 1000000 | FQ32: 1000000 | FR32: 1000000 | FS32: 1000000 | FT32: 1000000 | FU32: 1000000 | FV32: 1000000 | FW32: 1000000 | FX32: 1000000 | FY32: 1000000 | FZ32: 1000000 | GA32: 1000000 | GB32: 1000000 | GC32: 1000000 | GD32: 1000000 | GE32: 1000000 | GF32: 1000000 | GG32: 1000000 | GH32: 1000000 | GI32: 1000000 | GJ32: 1000000 | GK32: 1000000 | GL32: 1000000 | GM32: 1000000 | GN32: 1000000 | GO32: 1000000 | GP32: 1000000 | GQ32: 1000000 | GR32: 1000000 | GS32: 1000000 | GT32: 1000000 | GU32: 1000000 | GV32: =SUM(GV29:GV31) -> 1000000 | GW32: 1000000 | GX32: 1000000 | GY32: 1000000 | GZ32: 1000000 | HA32: 1000000 | HB32: 1000000 | HC32: 1000000 | HD32: 1000000 | HE32: 1000000 | HF32: 1000000 | HG32: 1000000 | HH32: 1000000 | HI32: 1000000 | HJ32: 1000000 | HK32: 1000000 | HL32: 1000000 | HM32: 1000000 | HN32: 1000000 | HO32: 1000000 | HP32: 1000000 | HQ32: 1000000 | HR32: 1000000 | HS32: 1000000 | HT32: 1000000 | HU32: 1000000 | HV32: 1000000 | HW32: 1000000 | HX32: 1000000 | HY32: 1000000 | HZ32: 1000000 | IA32: 1000000 | IB32: 1000000 | IC32: 1000000 | ID32: 1000000 | IE32: 1000000 | IF32: 1000000 | IG32: 1000000 | IH32: 1000000 | II32: 1000000 | IJ32: 1000000 | IK32: 1000000 | IL32: 1000000 | IM32: 1000000 | IN32: 1000000 | IO32: 1000000 | IP32: 1000000 | IQ32: 1000000 | IR32: 1000000 | IS32: 1000000 | IT32: 1000000 | IU32: 1000000 | IV32: 1000000 | IW32: 1000000 | IX32: 1000000 | IY32: 1000000 | IZ32: 1000000 | JA32: 1000000 | JB32: 1000000 | JC32: 1000000 | JD32: 1000000 | JE32: 1000000 | JF32: 1000000 | JG32: 1000000 | JH32: =SUM(JH29:JH31) -> 1000000 | JI32: 1000000 | JJ32: 1000000 | JK32: 1000000 | JL32: 1000000 | JM32: 1000000 | JN32: 1000000 | JO32: 1000000 | JP32: 1000000 | JQ32: 1000000 | JR32: 1000000 | JS32: 1000000 | JT32: 1000000 | JU32: 1000000 | JV32: 1000000 | JW32: 1000000 | JX32: 1000000 | JY32: 1000000 | JZ32: 1000000 | KA32: 1000000 | KB32: 1000000 | KC32: 1000000 | KD32: 1000000 | KE32: 1000000 | KF32: 1000000 | KG32: 1000000 | KH32: 1000000 | KI32: 1000000 | KJ32: 1000000 | KK32: 1000000 | KL32: 1000000 | KM32: 1000000 | KN32: 1000000 | KO32: 1000000 | KP32: 1000000 | KQ32: 1000000 | KR32: 1000000 | KS32: 1000000 | KT32: 1000000 | KU32: 1000000 | KV32: 1000000 | KW32: 1000000 | KX32: 1000000 | KY32: 1000000 | KZ32: 1000000 | LA32: 1000000 | LB32: 1000000 | LC32: 1000000 | LD32: 1000000 | LE32: 1000000 | LF32: 1000000 | LG32: 1000000 | LH32: 1000000 | LI32: 1000000 | LJ32: 1000000 | LK32: 1000000 | LL32: 1000000 | LM32: 1000000 | LN32: 1000000 | LO32: 1000000 | LP32: 1000000 | LQ32: 1000000 | LR32: 1000000 | LS32: 1000000 | LT32: =SUM(LT29:LT31) -> 1000000 | LU32: 1000000 | LV32: 1000000 | LW32: 1000000 | LX32: 1000000 | LY32: 1000000 | LZ32: 1000000 | MA32: 1000000 | MB32: 1000000 | MC32: 1000000 | MD32: 1000000 | ME32: 1000000 | MF32: 1000000 | MG32: 1000000 | MH32: 1000000 | MI32: 1000000 | MJ32: 1000000 | MK32: 1000000 | ML32: 1000000 | MM32: 1000000 | MN32: 1000000 | MO32: 1000000 | MP32: 1000000 | MQ32: 1000000 | MR32: 1000000 | MS32: 1000000 | MT32: 1000000 | MU32: 1000000 | MV32: 1000000 | MW32: 1000000 | MX32: 1000000 | MY32: 1000000 | MZ32: 1000000 | NA32: 1000000 | NB32: 1000000 | NC32: 1000000 | ND32: 1000000 | NE32: 1000000 | NF32: 1000000 | NG32: 1000000 | NH32: 1000000 | NI32: 1000000 | NJ32: 1000000 | NK32: 1000000 | NL32: 1000000 | NM32: 1000000 | NN32: 1000000 | NO32: 1000000 | NP32: 1000000 | NQ32: 1000000 | NR32: 1000000 | NS32: 1000000 | NT32: 1000000 | NU32: 1000000 | NV32: 1000000 | NW32: 1000000 | NX32: 1000000 | NY32: 1000000 | NZ32: 1000000 | OA32: 1000000 | OB32: 1000000 | OC32: 1000000 | OD32: 1000000 | OE32: 1000000 | OF32: =SUM(OF29:OF31) -> 1000000 | OG32: 1000000 | OH32: 1000000 | OI32: 1000000 | OJ32: 1000000 | OK32: 1000000 | OL32: 1000000 | OM32: 1000000 | ON32: 1000000 | OO32: 1000000 | OP32: 1000000 | OQ32: 1000000 | OR32: 1000000 | OS32: 1000000 | OT32: 1000000 | OU32: 1000000 | OV32: 1000000 | OW32: 1000000 | OX32: 1000000 | OY32: 1000000 | OZ32: 1000000 | PA32: 1000000 | PB32: 1000000 | PC32: 1000000 | PD32: 1000000 | PE32: 1000000 | PF32: 1000000 | PG32: 1000000 | PH32: 1000000 | PI32: 1000000 | PJ32: 1000000 | PK32: 1000000 | PL32: 1000000 | PM32: 1000000 | PN32: 1000000 | PO32: 1000000 | PP32: 1000000 | PQ32: 1000000 | PR32: 1000000 | PS32: 1000000 | PT32: 1000000 | PU32: 1000000 | PV32: 1000000 | PW32: 1000000 | PX32: 1000000 | PY32: 1000000 | PZ32: 1000000 | QA32: 1000000 | QB32: 1000000 | QC32: 1000000 | QD32: 1000000 | QE32: 1000000 | QF32: 1000000 | QG32: 1000000 | QH32: 1000000 | QI32: 1000000 | QJ32: 1000000 | QK32: 1000000 | QL32: 1000000 | QM32: 1000000 | QN32: 1000000 | QO32: 1000000 | QP32: 1000000 | QQ32: 1000000 | QR32: =SUM(QR29:QR31) -> 1000000 | QS32: 1000000 | QT32: 1000000 | QU32: 1000000 | QV32: 1000000 | QW32: 1000000 | QX32: 1000000 | QY32: 1000000 | QZ32: 1000000 | RA32: 1000000 | RB32: 1000000 | RC32: 1000000 | RD32: 1000000 | RE32: 1000000 | RF32: 1000000 | RG32: 1000000 | RH32: 1000000 | RI32: 1000000 | RJ32: 1000000 | RK32: 1000000 | RL32: 1000000 | RM32: 1000000 | RN32: 1000000 | RO32: 1000000 | RP32: 1000000 | RQ32: 1000000 | RR32: 1000000 | RS32: 1000000 | RT32: 1000000 | RU32: 1000000 | RV32: 1000000 | RW32: 1000000 | RX32: 1000000 | RY32: 1000000 | RZ32: 1000000 | SA32: 1000000 | SB32: 1000000 | SC32: 1000000 | SD32: 1000000 | SE32: 1000000 | SF32: 1000000 | SG32: 1000000 | SH32: 1000000 | SI32: 1000000 | SJ32: 1000000 | SK32: 1000000 | SL32: 1000000 | SM32: 1000000 | SN32: 1000000 | SO32: 1000000 | SP32: 1000000 | SQ32: =SUM(SQ29:SQ31) -> 1000000 | SR32: =SUM(SR29:SR31) -> 1000000 | SS32: =SUM(SS29:SS31) -> 1000000 | ST32: =SUM(ST29:ST31) -> 1000000 | SU32: =SUM(SU29:SU31) -> 1000000 | SV32: =SUM(SV29:SV31) -> 1000000 | SW32: =SUM(SW29:SW31) -> 1000000 | SX32: =SUM(SX29:SX31) -> 1000000 | SY32: =SUM(SY29:SY31) -> 1000000 | SZ32: =SUM(SZ29:SZ31) -> 1000000 | TA32: =SUM(TA29:TA31) -> 1000000 | TB32: =SUM(TB29:TB31) -> 1000000 | TC32: =SUM(TC29:TC31) -> 1000000 | TD32: =SUM(TD29:TD31) -> 1000000 | TE32: =SUM(TE29:TE31) -> 1000000 | TF32: =SUM(TF29:TF31) -> 1000000 | TG32: =SUM(TG29:TG31) -> 1000000 | TH32: =SUM(TH29:TH31) -> 1000000 | TI32: =SUM(TI29:TI31) -> 1000000 | TJ32: =SUM(TJ29:TJ31) -> 1000000 | TK32: =SUM(TK29:TK31) -> 1000000 | TL32: =SUM(TL29:TL31) -> 1000000 | TM32: =SUM(TM29:TM31) -> 1000000 | TN32: =SUM(TN29:TN31) -> 1000000 | TO32: =SUM(TO29:TO31) -> 1000000 | TP32: =SUM(TP29:TP31) -> 1000000 | TQ32: =SUM(TQ29:TQ31) -> 1000000 | TR32: =SUM(TR29:TR31) -> 1000000 | TS32: =SUM(TS29:TS31) -> 1000000 | TT32: =SUM(TT29:TT31) -> 1000000 | TU32: =SUM(TU29:TU31) -> 1000000 | TV32: =SUM(TV29:TV31) -> 1000000 | TW32: =SUM(TW29:TW31) -> 1000000 | TX32: =SUM(TX29:TX31) -> 1000000 | TY32: =SUM(TY29:TY31) -> 1000000 | TZ32: =SUM(TZ29:TZ31) -> 1000000 | UA32: =SUM(UA29:UA31) -> 1000000 | UB32: =SUM(UB29:UB31) -> 1000000 | UC32: =SUM(UC29:UC31) -> 1000000 | UD32: =SUM(UD29:UD31) -> 1000000 | UE32: =SUM(UE29:UE31) -> 1000000 | UF32: =SUM(UF29:UF31) -> 1000000 | UG32: =SUM(UG29:UG31) -> 1000000 | UH32: =SUM(UH29:UH31) -> 1000000 | UI32: =SUM(UI29:UI31) -> 1000000 | UJ32: =SUM(UJ29:UJ31) -> 1000000 | UK32: =SUM(UK29:UK31) -> 1000000 | UL32: =SUM(UL29:UL31) -> 1000000 | UM32: =SUM(UM29:UM31) -> 1000000 | UN32: =SUM(UN29:UN31) -> 1000000 | UO32: =SUM(UO29:UO31) -> 1000000 | UP32: =SUM(UP29:UP31) -> 1000000 | UQ32: =SUM(UQ29:UQ31) -> 1000000 | UR32: =SUM(UR29:UR31) -> 1000000 | US32: =SUM(US29:US31) -> 1000000 | UT32: =SUM(UT29:UT31) -> 1000000 | UU32: =SUM(UU29:UU31) -> 1000000 | UV32: =SUM(UV29:UV31) -> 1000000 | UW32: =SUM(UW29:UW31) -> 1000000 | UX32: =SUM(UX29:UX31) -> 1000000 | UY32: =SUM(UY29:UY31) -> 1000000 | UZ32: =SUM(UZ29:UZ31) -> 1000000 | VA32: =SUM(VA29:VA31) -> 1000000 | VB32: =SUM(VB29:VB31) -> 1000000 | VC32: =SUM(VC29:VC31) -> 1000000 | VD32: =SUM(VD29:VD31) -> 1000000 | VE32: =SUM(VE29:VE31) -> 1000000 | VF32: =SUM(VF29:VF31) -> 1000000 | VG32: =SUM(VG29:VG31) -> 1000000 | VH32: =SUM(VH29:VH31) -> 1000000 | VI32: =SUM(VI29:VI31) -> 1000000 | VJ32: =SUM(VJ29:VJ31) -> 1000000 | VK32: =SUM(VK29:VK31) -> 1000000 | VL32: =SUM(VL29:VL31) -> 1000000 | VM32: =SUM(VM29:VM31) -> 1000000 | VN32: =SUM(VN29:VN31) -> 1000000 | VO32: =SUM(VO29:VO31) -> 1000000 | VP32: =SUM(VP29:VP31) -> 1000000 | VQ32: =SUM(VQ29:VQ31) -> 1000000 | VR32: =SUM(VR29:VR31) -> 1000000 | VS32: =SUM(VS29:VS31) -> 1000000 | VT32: =SUM(VT29:VT31) -> 1000000 | VU32: =SUM(VU29:VU31) -> 1000000 | VV32: =SUM(VV29:VV31) -> 1000000 | VW32: =SUM(VW29:VW31) -> 1000000 | VX32: =SUM(VX29:VX31) -> 1000000 | VY32: =SUM(VY29:VY31) -> 1000000 | VZ32: =SUM(VZ29:VZ31) -> 1000000 | WA32: =SUM(WA29:WA31) -> 1000000 | WB32: =SUM(WB29:WB31) -> 1000000 | WC32: =SUM(WC29:WC31) -> 1000000 | WD32: =SUM(WD29:WD31) -> 1000000 | WE32: =SUM(WE29:WE31) -> 1000000 | WF32: =SUM(WF29:WF31) -> 1000000 | WG32: =SUM(WG29:WG31) -> 1000000 | WH32: =SUM(WH29:WH31) -> 1000000 | WI32: =SUM(WI29:WI31) -> 1000000 | WJ32: =SUM(WJ29:WJ31) -> 1000000 | WK32: =SUM(WK29:WK31) -> 1000000 | WL32: =SUM(WL29:WL31) -> 1000000 | WM32: =SUM(WM29:WM31) -> 1000000 | WN32: =SUM(WN29:WN31) -> 1000000 | WO32: =SUM(WO29:WO31) -> 1000000 | WP32: =SUM(WP29:WP31) -> 1000000 | WQ32: =SUM(WQ29:WQ31) -> 1000000 | WR32: =SUM(WR29:WR31) -> 1000000 | WS32: =SUM(WS29:WS31) -> 1000000 | WT32: =SUM(WT29:WT31) -> 1000000 | WU32: =SUM(WU29:WU31) -> 1000000 | WV32: =SUM(WV29:WV31) -> 1000000 | WW32: =SUM(WW29:WW31) -> 1000000 | WX32: =SUM(WX29:WX31) -> 1000000 | WY32: =SUM(WY29:WY31) -> 1000000 | WZ32: =SUM(WZ29:WZ31) -> 1000000 | XA32: =SUM(XA29:XA31) -> 1000000 | XB32: =SUM(XB29:XB31) -> 1000000 | XC32: =SUM(XC29:XC31) -> 1000000 | XD32: =SUM(XD29:XD31) -> 1000000 | XE32: =SUM(XE29:XE31) -> 1000000 | XF32: =SUM(XF29:XF31) -> 1000000 | XG32: =SUM(XG29:XG31) -> 1000000 | XH32: =SUM(XH29:XH31) -> 1000000 | XI32: =SUM(XI29:XI31) -> 1000000 | XJ32: =SUM(XJ29:XJ31) -> 1000000 | XK32: =SUM(XK29:XK31) -> 1000000 | XL32: =SUM(XL29:XL31) -> 1000000 | XM32: =SUM(XM29:XM31) -> 1000000 | XN32: =SUM(XN29:XN31) -> 1000000 | XO32: =SUM(XO29:XO31) -> 1000000 | XP32: =SUM(XP29:XP31) -> 1000000 | XQ32: =SUM(XQ29:XQ31) -> 1000000 | XR32: =SUM(XR29:XR31) -> 1000000 | XS32: =SUM(XS29:XS31) -> 1000000 | XT32: =SUM(XT29:XT31) -> 1000000 | XU32: =SUM(XU29:XU31) -> 1000000 | XV32: =SUM(XV29:XV31) -> 1000000 | XW32: =SUM(XW29:XW31) -> 1000000 | XX32: =SUM(XX29:XX31) -> 1000000 | XY32: =SUM(XY29:XY31) -> 1000000 | XZ32: =SUM(XZ29:XZ31) -> 1000000 | YA32: =SUM(YA29:YA31) -> 1000000 | YB32: =SUM(YB29:YB31) -> 1000000 | YC32: =SUM(YC29:YC31) -> 1000000 | YD32: =SUM(YD29:YD31) -> 1000000 | YE32: =SUM(YE29:YE31) -> 1000000 | YF32: =SUM(YF29:YF31) -> 1000000 | YG32: =SUM(YG29:YG31) -> 1000000 | YH32: =SUM(YH29:YH31) -> 1000000 | YI32: =SUM(YI29:YI31) -> 1000000 | YJ32: =SUM(YJ29:YJ31) -> 1000000 | YK32: =SUM(YK29:YK31) -> 1000000 | YL32: =SUM(YL29:YL31) -> 1000000 | YM32: =SUM(YM29:YM31) -> 1000000 | YN32: =SUM(YN29:YN31) -> 1000000 | YO32: =SUM(YO29:YO31) -> 1000000 | YP32: =SUM(YP29:YP31) -> 1000000 | YQ32: =SUM(YQ29:YQ31) -> 1000000 | YR32: =SUM(YR29:YR31) -> 1000000 | YS32: =SUM(YS29:YS31) -> 1000000 | YT32: =SUM(YT29:YT31) -> 1000000 | YU32: =SUM(YU29:YU31) -> 1000000 | YV32: =SUM(YV29:YV31) -> 1000000 | YW32: =SUM(YW29:YW31) -> 1000000 | YX32: =SUM(YX29:YX31) -> 1000000 | YY32: =SUM(YY29:YY31) -> 1000000 | YZ32: =SUM(YZ29:YZ31) -> 1000000 | ZA32: =SUM(ZA29:ZA31) -> 1000000 | ZB32: =SUM(ZB29:ZB31) -> 1000000 | ZC32: =SUM(ZC29:ZC31) -> 1000000 | ZD32: =SUM(ZD29:ZD31) -> 1000000 | ZE32: =SUM(ZE29:ZE31) -> 1000000 | ZF32: =SUM(ZF29:ZF31) -> 1000000 | ZG32: =SUM(ZG29:ZG31) -> 1000000 | ZH32: =SUM(ZH29:ZH31) -> 1000000 | ZI32: =SUM(ZI29:ZI31) -> 1000000 | ZJ32: =SUM(ZJ29:ZJ31) -> 1000000 | ZK32: =SUM(ZK29:ZK31) -> 1000000 | ZL32: =SUM(ZL29:ZL31) -> 1000000 | ZM32: =SUM(ZM29:ZM31) -> 1000000 | ZN32: =SUM(ZN29:ZN31) -> 1000000 | ZO32: =SUM(ZO29:ZO31) -> 1000000 | ZP32: =SUM(ZP29:ZP31) -> 1000000 | ZQ32: =SUM(ZQ29:ZQ31) -> 1000000 | ZR32: =SUM(ZR29:ZR31) -> 1000000 | ZS32: =SUM(ZS29:ZS31) -> 1000000 | ZT32: =SUM(ZT29:ZT31) -> 1000000 | ZU32: =SUM(ZU29:ZU31) -> 1000000 | ZV32: =SUM(ZV29:ZV31) -> 1000000 | ZW32: =SUM(ZW29:ZW31) -> 1000000 | ZX32: =SUM(ZX29:ZX31) -> 1000000 | ZY32: =SUM(ZY29:ZY31) -> 1000000 | ZZ32: =SUM(ZZ29:ZZ31) -> 1000000 | AAA32: =SUM(AAA29:AAA31) -> 1000000 | AAB32: =SUM(AAB29:AAB31) -> 1000000 | AAC32: =SUM(AAC29:AAC31) -> 1000000 | AAD32: =SUM(AAD29:AAD31) -> 1000000 | AAE32: =SUM(AAE29:AAE31) -> 1000000 | AAF32: =SUM(AAF29:AAF31) -> 1000000 | AAG32: =SUM(AAG29:AAG31) -> 1000000 | AAH32: =SUM(AAH29:AAH31) -> 1000000 | AAI32: =SUM(AAI29:AAI31) -> 1000000 | AAJ32: =SUM(AAJ29:AAJ31) -> 1000000 | AAK32: =SUM(AAK29:AAK31) -> 1000000 | AAL32: =SUM(AAL29:AAL31) -> 1000000 | AAM32: =SUM(AAM29:AAM31) -> 1000000 | AAN32: =SUM(AAN29:AAN31) -> 1000000 | AAO32: =SUM(AAO29:AAO31) -> 1000000 | AAP32: =SUM(AAP29:AAP31) -> 1000000 | AAQ32: =SUM(AAQ29:AAQ31) -> 1000000 | AAR32: =SUM(AAR29:AAR31) -> 1000000 | AAS32: =SUM(AAS29:AAS31) -> 1000000 | AAT32: =SUM(AAT29:AAT31) -> 1000000 | AAU32: =SUM(AAU29:AAU31) -> 1000000 | AAV32: =SUM(AAV29:AAV31) -> 1000000 | AAW32: =SUM(AAW29:AAW31) -> 1000000 | AAX32: =SUM(AAX29:AAX31) -> 1000000 | AAY32: =SUM(AAY29:AAY31) -> 1000000 | AAZ32: =SUM(AAZ29:AAZ31) -> 1000000 | ABA32: =SUM(ABA29:ABA31) -> 1000000 | ABB32: =SUM(ABB29:ABB31) -> 1000000 | ABC32: =SUM(ABC29:ABC31) -> 1000000 | ABD32: =SUM(ABD29:ABD31) -> 1000000 | ABE32: =SUM(ABE29:ABE31) -> 1000000 | ABF32: =SUM(ABF29:ABF31) -> 1000000 | ABG32: =SUM(ABG29:ABG31) -> 1000000 | ABH32: =SUM(ABH29:ABH31) -> 1000000 | ABI32: =SUM(ABI29:ABI31) -> 1000000 | ABJ32: =SUM(ABJ29:ABJ31) -> 1000000 | ABK32: =SUM(ABK29:ABK31) -> 1000000 | ABL32: =SUM(ABL29:ABL31) -> 1000000 | ABM32: =SUM(ABM29:ABM31) -> 1000000 | ABN32: =SUM(ABN29:ABN31) -> 1000000 | ABO32: =SUM(ABO29:ABO31) -> 1000000 | ABP32: =SUM(ABP29:ABP31) -> 1000000 | ABQ32: =SUM(ABQ29:ABQ31) -> 1000000 | ABR32: =SUM(ABR29:ABR31) -> 1000000 | ABS32: =SUM(ABS29:ABS31) -> 1000000 | ABT32: =SUM(ABT29:ABT31) -> 1000000 | ABU32: =SUM(ABU29:ABU31) -> 1000000 | ABV32: =SUM(ABV29:ABV31) -> 1000000 | ABW32: =SUM(ABW29:ABW31) -> 1000000 | ABX32: =SUM(ABX29:ABX31) -> 1000000 | ABY32: =SUM(ABY29:ABY31) -> 1000000 | ABZ32: =SUM(ABZ29:ABZ31) -> 1000000 | ACA32: =SUM(ACA29:ACA31) -> 1000000 | ACB32: =SUM(ACB29:ACB31) -> 1000000 | ACC32: =SUM(ACC29:ACC31) -> 1000000 | ACD32: =SUM(ACD29:ACD31) -> 1000000 | ACE32: =SUM(ACE29:ACE31) -> 1000000 | ACF32: =SUM(ACF29:ACF31) -> 1000000 | ACG32: =SUM(ACG29:ACG31) -> 1000000 | ACH32: =SUM(ACH29:ACH31) -> 1000000 | ACI32: =SUM(ACI29:ACI31) -> 1000000 | ACJ32: =SUM(ACJ29:ACJ31) -> 1000000 | ACK32: =SUM(ACK29:ACK31) -> 1000000 | ACL32: =SUM(ACL29:ACL31) -> 1000000 | ACM32: =SUM(ACM29:ACM31) -> 1000000 | ACN32: =SUM(ACN29:ACN31) -> 1000000 | ACO32: =SUM(ACO29:ACO31) -> 1000000 | ACP32: =SUM(ACP29:ACP31) -> 1000000 | ACQ32: =SUM(ACQ29:ACQ31) -> 1000000 | ACR32: =SUM(ACR29:ACR31) -> 1000000 | ACS32: =SUM(ACS29:ACS31) -> 1000000 | ACT32: =SUM(ACT29:ACT31) -> 1000000 | ACU32: =SUM(ACU29:ACU31) -> 1000000 | ACV32: =SUM(ACV29:ACV31) -> 1000000 | ACW32: =SUM(ACW29:ACW31) -> 1000000 | ACX32: =SUM(ACX29:ACX31) -> 1000000 | ACY32: =SUM(ACY29:ACY31) -> 1000000 | ACZ32: =SUM(ACZ29:ACZ31) -> 1000000 | ADA32: =SUM(ADA29:ADA31) -> 1000000 | ADB32: =SUM(ADB29:ADB31) -> 1000000 | ADC32: =SUM(ADC29:ADC31) -> 1000000 | ADD32: =SUM(ADD29:ADD31) -> 1000000 | ADE32: =SUM(ADE29:ADE31) -> 1000000 | ADF32: =SUM(ADF29:ADF31) -> 1000000 | ADG32: =SUM(ADG29:ADG31) -> 1000000 | ADH32: =SUM(ADH29:ADH31) -> 1000000 | ADI32: =SUM(ADI29:ADI31) -> 1000000 | ADJ32: =SUM(ADJ29:ADJ31) -> 1000000 | ADK32: =SUM(ADK29:ADK31) -> 1000000 | ADL32: =SUM(ADL29:ADL31) -> 1000000 | ADM32: =SUM(ADM29:ADM31) -> 1000000 | ADN32: =SUM(ADN29:ADN31) -> 1000000 | ADO32: =SUM(ADO29:ADO31) -> 1000000 | ADP32: =SUM(ADP29:ADP31) -> 1000000 | ADQ32: =SUM(ADQ29:ADQ31) -> 1000000 | ADR32: =SUM(ADR29:ADR31) -> 1000000 | ADS32: =SUM(ADS29:ADS31) -> 1000000 | ADT32: =SUM(ADT29:ADT31) -> 1000000 | ADU32: =SUM(ADU29:ADU31) -> 1000000 | ADV32: =SUM(ADV29:ADV31) -> 1000000 | ADW32: =SUM(ADW29:ADW31) -> 1000000 | ADX32: =SUM(ADX29:ADX31) -> 1000000 | ADY32: =SUM(ADY29:ADY31) -> 1000000 | ADZ32: =SUM(ADZ29:ADZ31) -> 1000000 | AEA32: =SUM(AEA29:AEA31) -> 1000000 | AEB32: =SUM(AEB29:AEB31) -> 1000000 | AEC32: =SUM(AEC29:AEC31) -> 1000000 | AED32: =SUM(AED29:AED31) -> 1000000 | AEE32: =SUM(AEE29:AEE31) -> 1000000 | AEF32: =SUM(AEF29:AEF31) -> 1000000 | AEG32: =SUM(AEG29:AEG31) -> 1000000 | AEH32: =SUM(AEH29:AEH31) -> 1000000 | AEI32: =SUM(AEI29:AEI31) -> 1000000 | AEJ32: =SUM(AEJ29:AEJ31) -> 1000000 | AEK32: =SUM(AEK29:AEK31) -> 1000000 | AEL32: =SUM(AEL29:AEL31) -> 1000000 | AEM32: =SUM(AEM29:AEM31) -> 1000000 | AEN32: =SUM(AEN29:AEN31) -> 1000000 | AEO32: =SUM(AEO29:AEO31) -> 1000000 | AEP32: =SUM(AEP29:AEP31) -> 1000000 | AEQ32: =SUM(AEQ29:AEQ31) -> 1000000 | AER32: =SUM(AER29:AER31) -> 1000000 | AES32: =SUM(AES29:AES31) -> 1000000 | AET32: =SUM(AET29:AET31) -> 1000000 | AEU32: =SUM(AEU29:AEU31) -> 1000000 | AEV32: =SUM(AEV29:AEV31) -> 1000000 | AEW32: =SUM(AEW29:AEW31) -> 1000000 | AEX32: =SUM(AEX29:AEX31) -> 1000000 | AEY32: =SUM(AEY29:AEY31) -> 1000000 | AEZ32: =SUM(AEZ29:AEZ31) -> 1000000 | AFA32: =SUM(AFA29:AFA31) -> 1000000 | AFB32: =SUM(AFB29:AFB31) -> 1000000 | AFC32: =SUM(AFC29:AFC31) -> 1000000 | AFD32: =SUM(AFD29:AFD31) -> 1000000 | AFE32: =SUM(AFE29:AFE31) -> 1000000 | AFF32: =SUM(AFF29:AFF31) -> 1000000 | AFG32: =SUM(AFG29:AFG31) -> 1000000 | AFH32: =SUM(AFH29:AFH31) -> 1000000 | AFI32: =SUM(AFI29:AFI31) -> 1000000 | AFJ32: =SUM(AFJ29:AFJ31) -> 1000000 | AFK32: =SUM(AFK29:AFK31) -> 1000000 | AFL32: =SUM(AFL29:AFL31) -> 1000000 | AFM32: =SUM(AFM29:AFM31) -> 1000000 | AFN32: =SUM(AFN29:AFN31) -> 1000000 | AFO32: =SUM(AFO29:AFO31) -> 1000000 | AFP32: =SUM(AFP29:AFP31) -> 1000000 | AFQ32: =SUM(AFQ29:AFQ31) -> 1000000 | AFR32: =SUM(AFR29:AFR31) -> 1000000 | AFS32: =SUM(AFS29:AFS31) -> 1000000 | AFT32: =SUM(AFT29:AFT31) -> 1000000 | AFU32: =SUM(AFU29:AFU31) -> 1000000 | AFV32: =SUM(AFV29:AFV31) -> 1000000 | AFW32: =SUM(AFW29:AFW31) -> 1000000 | AFX32: =SUM(AFX29:AFX31) -> 1000000 | AFY32: =SUM(AFY29:AFY31) -> 1000000 | AFZ32: =SUM(AFZ29:AFZ31) -> 1000000 | AGA32: =SUM(AGA29:AGA31) -> 1000000 | AGB32: =SUM(AGB29:AGB31) -> 1000000 | AGC32: =SUM(AGC29:AGC31) -> 1000000 | AGD32: =SUM(AGD29:AGD31) -> 1000000 | AGE32: =SUM(AGE29:AGE31) -> 1000000 | AGF32: =SUM(AGF29:AGF31) -> 1000000 | AGG32: =SUM(AGG29:AGG31) -> 1000000 | AGH32: =SUM(AGH29:AGH31) -> 1000000 | AGI32: =SUM(AGI29:AGI31) -> 1000000 | AGJ32: =SUM(AGJ29:AGJ31) -> 1000000 | AGK32: =SUM(AGK29:AGK31) -> 1000000 | AGL32: =SUM(AGL29:AGL31) -> 1000000 | AGM32: =SUM(AGM29:AGM31) -> 1000000 | AGN32: =SUM(AGN29:AGN31) -> 1000000 | AGO32: =SUM(AGO29:AGO31) -> 1000000 | AGP32: =SUM(AGP29:AGP31) -> 1000000 | AGQ32: =SUM(AGQ29:AGQ31) -> 1000000 | AGR32: =SUM(AGR29:AGR31) -> 1000000 | AGS32: =SUM(AGS29:AGS31) -> 1000000 | AGT32: =SUM(AGT29:AGT31) -> 1000000 | AGU32: =SUM(AGU29:AGU31) -> 1000000 | AGV32: =SUM(AGV29:AGV31) -> 1000000 | AGW32: =SUM(AGW29:AGW31) -> 1000000 | AGX32: =SUM(AGX29:AGX31) -> 1000000 | AGY32: =SUM(AGY29:AGY31) -> 1000000 | AGZ32: =SUM(AGZ29:AGZ31) -> 1000000 | AHA32: =SUM(AHA29:AHA31) -> 1000000 | AHB32: =SUM(AHB29:AHB31) -> 1000000 | AHC32: =SUM(AHC29:AHC31) -> 1000000 | AHD32: =SUM(AHD29:AHD31) -> 1000000 | AHE32: =SUM(AHE29:AHE31) -> 1000000 | AHF32: =SUM(AHF29:AHF31) -> 1000000 | AHG32: =SUM(AHG29:AHG31) -> 1000000 | AHH32: =SUM(AHH29:AHH31) -> 1000000 | AHI32: =SUM(AHI29:AHI31) -> 1000000 | AHJ32: =SUM(AHJ29:AHJ31) -> 1000000 | AHK32: =SUM(AHK29:AHK31) -> 1000000 | AHL32: =SUM(AHL29:AHL31) -> 1000000 | AHM32: =SUM(AHM29:AHM31) -> 1000000 | AHN32: =SUM(AHN29:AHN31) -> 1000000 | AHO32: =SUM(AHO29:AHO31) -> 1000000 | AHP32: =SUM(AHP29:AHP31) -> 1000000 | AHQ32: =SUM(AHQ29:AHQ31) -> 1000000 | AHR32: =SUM(AHR29:AHR31) -> 1000000 | AHS32: =SUM(AHS29:AHS31) -> 1000000 | AHT32: =SUM(AHT29:AHT31) -> 1000000 | AHU32: =SUM(AHU29:AHU31) -> 1000000 | AHV32: =SUM(AHV29:AHV31) -> 1000000 | AHW32: =SUM(AHW29:AHW31) -> 1000000 | AHX32: =SUM(AHX29:AHX31) -> 1000000 | AHY32: =SUM(AHY29:AHY31) -> 1000000 | AHZ32: =SUM(AHZ29:AHZ31) -> 1000000 | AIA32: =SUM(AIA29:AIA31) -> 1000000 | AIB32: =SUM(AIB29:AIB31) -> 1000000 | AIC32: =SUM(AIC29:AIC31) -> 1000000 | AID32: =SUM(AID29:AID31) -> 1000000 | AIE32: =SUM(AIE29:AIE31) -> 1000000 | AIF32: =SUM(AIF29:AIF31) -> 1000000 | AIG32: =SUM(AIG29:AIG31) -> 1000000 | AIH32: =SUM(AIH29:AIH31) -> 1000000 | AII32: =SUM(AII29:AII31) -> 1000000 | AIJ32: =SUM(AIJ29:AIJ31) -> 1000000 | AIK32: =SUM(AIK29:AIK31) -> 1000000 | AIL32: =SUM(AIL29:AIL31) -> 1000000 | AIM32: =SUM(AIM29:AIM31) -> 1000000 | AIN32: =SUM(AIN29:AIN31) -> 1000000 | AIO32: =SUM(AIO29:AIO31) -> 1000000 | AIP32: =SUM(AIP29:AIP31) -> 1000000 | AIQ32: =SUM(AIQ29:AIQ31) -> 1000000 | AIR32: =SUM(AIR29:AIR31) -> 1000000 | AIS32: =SUM(AIS29:AIS31) -> 1000000 | AIT32: =SUM(AIT29:AIT31) -> 1000000 | AIU32: =SUM(AIU29:AIU31) -> 1000000 | AIV32: =SUM(AIV29:AIV31) -> 1000000 | AIW32: =SUM(AIW29:AIW31) -> 1000000 | AIX32: =SUM(AIX29:AIX31) -> 1000000 | AIY32: =SUM(AIY29:AIY31) -> 1000000 | AIZ32: =SUM(AIZ29:AIZ31) -> 1000000 | AJA32: =SUM(AJA29:AJA31) -> 1000000 | AJB32: =SUM(AJB29:AJB31) -> 1000000 | AJC32: =SUM(AJC29:AJC31) -> 1000000 | AJD32: =SUM(AJD29:AJD31) -> 1000000 | AJE32: =SUM(AJE29:AJE31) -> 1000000 | AJF32: =SUM(AJF29:AJF31) -> 1000000 | AJG32: =SUM(AJG29:AJG31) -> 1000000 | AJH32: =SUM(AJH29:AJH31) -> 1000000 | AJI32: =SUM(AJI29:AJI31) -> 1000000 | AJJ32: =SUM(AJJ29:AJJ31) -> 1000000 | AJK32: =SUM(AJK29:AJK31) -> 1000000 | AJL32: =SUM(AJL29:AJL31) -> 1000000 | AJM32: =SUM(AJM29:AJM31) -> 1000000 | AJN32: =SUM(AJN29:AJN31) -> 1000000 | AJO32: =SUM(AJO29:AJO31) -> 1000000 | AJP32: =SUM(AJP29:AJP31) -> 1000000 | AJQ32: =SUM(AJQ29:AJQ31) -> 1000000 | AJR32: =SUM(AJR29:AJR31) -> 1000000 | AJS32: =SUM(AJS29:AJS31) -> 1000000 | AJT32: =SUM(AJT29:AJT31) -> 1000000 | AJU32: =SUM(AJU29:AJU31) -> 1000000 | AJV32: =SUM(AJV29:AJV31) -> 1000000 | AJW32: =SUM(AJW29:AJW31) -> 1000000 | AJX32: =SUM(AJX29:AJX31) -> 1000000 | AJY32: =SUM(AJY29:AJY31) -> 1000000 | AJZ32: =SUM(AJZ29:AJZ31) -> 1000000 | AKA32: =SUM(AKA29:AKA31) -> 1000000 | AKB32: =SUM(AKB29:AKB31) -> 1000000 | AKC32: =SUM(AKC29:AKC31) -> 1000000 | AKD32: =SUM(AKD29:AKD31) -> 1000000 | AKE32: =SUM(AKE29:AKE31) -> 1000000 | AKF32: =SUM(AKF29:AKF31) -> 1000000 | AKG32: =SUM(AKG29:AKG31) -> 1000000 | AKH32: =SUM(AKH29:AKH31) -> 1000000 | AKI32: =SUM(AKI29:AKI31) -> 1000000 | AKJ32: =SUM(AKJ29:AKJ31) -> 1000000 | AKK32: =SUM(AKK29:AKK31) -> 1000000 | AKL32: =SUM(AKL29:AKL31) -> 1000000 | AKM32: =SUM(AKM29:AKM31) -> 1000000 | AKN32: =SUM(AKN29:AKN31) -> 1000000 | AKO32: =SUM(AKO29:AKO31) -> 1000000 | AKP32: =SUM(AKP29:AKP31) -> 1000000 | AKQ32: =SUM(AKQ29:AKQ31) -> 1000000 | AKR32: =SUM(AKR29:AKR31) -> 1000000 | AKS32: =SUM(AKS29:AKS31) -> 1000000 | AKT32: =SUM(AKT29:AKT31) -> 1000000 | AKU32: =SUM(AKU29:AKU31) -> 1000000 | AKV32: =SUM(AKV29:AKV31) -> 1000000 | AKW32: =SUM(AKW29:AKW31) -> 1000000 | AKX32: =SUM(AKX29:AKX31) -> 1000000 | AKY32: =SUM(AKY29:AKY31) -> 1000000 | AKZ32: =SUM(AKZ29:AKZ31) -> 1000000 | ALA32: =SUM(ALA29:ALA31) -> 1000000 | ALB32: =SUM(ALB29:ALB31) -> 1000000 | ALC32: =SUM(ALC29:ALC31) -> 1000000 | ALD32: =SUM(ALD29:ALD31) -> 1000000 | ALE32: =SUM(ALE29:ALE31) -> 1000000 | ALF32: =SUM(ALF29:ALF31) -> 1000000 | ALG32: =SUM(ALG29:ALG31) -> 1000000 | ALH32: =SUM(ALH29:ALH31) -> 1000000 | ALI32: =SUM(ALI29:ALI31) -> 1000000 | ALJ32: =SUM(ALJ29:ALJ31) -> 1000000 | ALK32: =SUM(ALK29:ALK31) -> 1000000 | ALL32: =SUM(ALL29:ALL31) -> 1000000 | ALM32: =SUM(ALM29:ALM31) -> 1000000 | ALN32: =SUM(ALN29:ALN31) -> 1000000 | ALO32: =SUM(ALO29:ALO31) -> 1000000 | ALP32: =SUM(ALP29:ALP31) -> 1000000 | ALQ32: =SUM(ALQ29:ALQ31) -> 1000000 | ALR32: =SUM(ALR29:ALR31) -> 1000000 | ALS32: =SUM(ALS29:ALS31) -> 1000000 | ALT32: =SUM(ALT29:ALT31) -> 1000000 | ALU32: =SUM(ALU29:ALU31) -> 1000000 | ALV32: =SUM(ALV29:ALV31) -> 1000000
D34: Cash in Final Construction Period | E34: Period | F34: =H5 -> 1 | G34: =LOOKUP(F34,3:3,32:32) -> 1000000
C36: Cash After COD
